Workbook

Sheet START

Sheet Instructions
D2: 2020
X4: Yes
X5: No
W7: Type of Entities Range:
X8: Parent Municipality
X9: Consolidated Information
W17: MTREF Range: | X17: 2008
X18: 2009
X19: 2010
X20: 2011
X21: 2012
X22: 2013
X23: 2014
X24: 2015
X25: 2016
X26: 2017
X27: 2018
X28: 2019
X29: 2020
X30: 2021
X31: 2022
W33: MTREF Linked: | X33: 13
W34: MTREF: | X34: =INDEX(X17:X31,X33,1) -> 2020
W36: Fin Year: | X36: =MTREF&"/"&RIGHT(MTREF,2)+1 -> 2020/21

Sheet Template names (hidden)
A1: Common sheet headings
A2: Head1 | B2: =HLOOKUP(MTREF,Headings,2) -> 2018/19 | C2: Prior year -1
A3: Head1A | B3: =HLOOKUP(MTREF,Headings,3) -> 2017/18 | C3: Prior year -2
A4: Head1B | B4: =HLOOKUP(MTREF,Headings,4) -> 2016/17 | C4: Prior year -3
A5: Head2 | B5: =HLOOKUP(MTREF,Headings,5) -> Current Year 2019/20 | C5: Year in which budget is being prepared
A6: Head2A | B6: =HLOOKUP(MTREF,Headings,6) -> 2019/20 | C6: Year in which budget is being prepared
A7: Head3 | B7: =HLOOKUP(MTREF,Headings,7) -> 2020/21 Medium Term Revenue & Expenditure Framework | C7: MTREF name
A8: Head4 | B8: LTFS | C8: Long term financial strategy
A9: Head5 | B9: Audited Outcome
A10: Head5A | B10: Outcome
A11: Head5B | B11: Pre-audit outcome
A12: Head6 | B12: Original Budget
A13: Head7 | B13: Adjusted Budget
A14: Head8 | B14: Full Year Forecast
A15: Head9 | B15: =HLOOKUP(MTREF,Headings,8) -> Budget Year 2020/21 | C15: 1st year of MTREF | D15: Year1
A16: Head10 | B16: =HLOOKUP(MTREF,Headings,9) -> Budget Year +1 2021/22 | C16: 2nd year of MTREF | D16: Year2
A17: Head11 | B17: =HLOOKUP(MTREF,Headings,10) -> Budget Year +2 2022/23 | C17: 3rd year of MTREF | D17: Year3
A18: Head12 | B18: =HLOOKUP(MTREF,Headings,11) -> Forecast 2023/24 | C18: 1st yr of long term forecast | D18: Year4
A19: Head13 | B19: =HLOOKUP(MTREF,Headings,12) -> Forecast 2024/25 | C19: Next yr of long term forecast | D19: Year5
A20: Head14 | B20: =HLOOKUP(MTREF,Headings,13) -> Forecast 2025/26 | C20: Next yr of long term forecast | D20: Year6
A21: Head15 | B21: =HLOOKUP(MTREF,Headings,14) -> Forecast 2026/27 | C21: Next yr of long term forecast | D21: Year7
A22: Head16 | B22: =HLOOKUP(MTREF,Headings,15) -> Forecast 2027/28 | C22: Next yr of long term forecast | D22: Year8
A23: Head17 | B23: =HLOOKUP(MTREF,Headings,16) -> Forecast 2028/29 | C23: Next yr of long term forecast | D23: Year9
A24: Head18 | B24: =HLOOKUP(MTREF,Headings,17) -> Forecast 2029/30 | C24: Next yr of long term forecast | D24: Year10
A25: Head19 | B25: =HLOOKUP(MTREF,Headings,18) -> Forecast 2030/31 | C25: Next yr of long term forecast | D25: Year11
A26: Head20 | B26: =HLOOKUP(MTREF,Headings,19) -> Forecast 2031/32 | C26: Next yr of long term forecast | D26: Year12
A27: Head21 | B27: =HLOOKUP(MTREF,Headings,20) -> Forecast 2032/33 | C27: Next yr of long term forecast | D27: Year13
A28: Head22 | B28: =HLOOKUP(MTREF,Headings,21) -> Forecast 2033/34 | C28: Next yr of long term forecast | D28: Year14
A29: Head23 | B29: =HLOOKUP(MTREF,Headings,22) -> Forecast 2034/35 | C29: Next yr of long term forecast | D29: Year15
A30: Head24 | B30: Description
A31: Head25
A32: Head26 | B32: Vote Description
A33: Head27 | B33: Ref
A34: Head27a | B34: References
A35: Head28 | B35: Surplus/(Deficit) for the year | D35: Result
A36: Head29 | B36: =HLOOKUP(MTREF,Headings,23) -> Annual target 2020/21
A37: Head30 | B37: =HLOOKUP(MTREF,Headings,24) -> Revised target 2020/21
A38: Head31 | B38: Quarter ended 30 September
A39: Head32 | B39: Quarter ended 31 December
A40: Head33 | B40: Quarter ended 31 March
A41: Head34 | B41: Quarter ended 30 June
A42: Head35 | B42: Variance explanation
A43: Head36 | B43: YTD Actual 31 Dec
A44: Head37 | B44: YTD Budget 31 Dec
A45: Head38 | B45: Monthly actual
A46: Head39 | B46: YTD actual
A47: Head40 | B47: YTD budget
A48: Head41 | B48: YTD variance
A49: Head42 | B49: Surplus/ (Deficit) for the yr/period
A50: Head43 | B50: =Head3&" Summary" -> 2020/21 Medium Term Revenue & Expenditure Framework Summary
A51: Head44 | B51: 2001 Census
A52: Head45 | B52: 2011 Census
A53: Head46 | B53: - Adjustments Budget - January 2007
A54: Head47 | B54: Previous target year to complete
A55: Head48 | B55: Present value
A56: Head49
A57: Head50 | B57: Other Adjusts.
A58: Head51 | B58: Accum. Funds
A59: Head52 | B59: Multi-year capital
A60: Head53 | B60: Unfore. Unavoid.
A61: Head54 | B61: Prior Adjusted
A62: Head55 | B62: Nat. or Prov. Govt
A63: Head56 | B63: Total Adjusts.
A64: SFPerf1 | B64: Budgeted Financial Performance
A65: SFPerf2 | B65: Forecast Financial Performance
A66: SFPos1 | B66: Budgeted Financial Position
A67: SFPos2 | B67: Forecast Financial Position
A68: Cash1 | B68: Budget Cash Flow
A69: Cash2 | B69: Forecast Cash Flow
A70: RandM | B70: Expenditure includes repairs & maintenance of R'000
A71: Depart1 | B71: Department 1 - | D71: DEP1
A72: Depart2 | B72: Department 2 - | D72: DEP2
A73: Depart3 | B73: Department 3 - | D73: DEP3
A74: Depart4 | B74: Department 4 - | D74: DEP4
A75: Depart5 | B75: Department 5 - | D75: DEP5
A76: Depart6 | B76: Department 6 - | D76: DEP6
A77: Depart7 | B77: Department 7 - | D77: DEP7
A78: Depart8 | B78: Department 8 - | D78: DEP8
A79: Depart9 | B79: Department 9 - | D79: DEP9
A80: Depart10 | B80: Department 10 - | D80: DEP10
A81: Depart11 | B81: Department 11 - | D81: DEP11
A82: Depart12 | B82: Department 12 - | D82: DEP12
A83: Depart13 | B83: Department 13 - | D83: DEP13
A84: Depart14 | B84: Department 14 - | D84: DEP14
A87: Base year of forecast column selection names
A88: Choose | B88: ACT
B89: APP
B90: ADJ
A92: Standard nomenclature
A93: Muni | B93: ='Lookup and lists'!B28 -> LIM343 Thulamela
A94: Municipal Entities | B94: 2 | C94: Type of report: | D94: 1
A95: =IF((MuniEntities=1)*(MuniType=2),"YES","NO") -> NO | B95: Does this municipality have entities (consolidated budget and entity budgets required)? YES/NO
A96: Entity 1 | B96: (Pty) Ltd Example 1 - Municipal entity - | D96: Ent1
A97: Entity 2 | B97: (Pty) Ltd Example 2 - Municipal entity - | D97: Ent2
A98: Entity 3 | B98: Municipal Entity Example 3 | D98: Ent3
A99: Budget approval tables | C99: Chart x-ref | D99: Sch/Tab/Ch | E99: Alternative for municipalities without entities | F99: Alternative for municipalities without entities
B100: =IF(Consolques="YES",E100,F100) -> Table A1 Budget Summary | D100: Table A1 | E100: =D100&"Consolidated Budget Summary" -> Table A1 Consolidated Budget Summary | F100: =D100&"Budget Summary" -> Table A1 Budget Summary
B101: Table A2 Budgeted Financial Performance (revenue and expenditure by functional classification) | C101: Charts 5, 6 | D101: Table A2 | E101: =D101&"Consolidated Budgeted Financial Performance (revenue and expenditure by functional classification)" -> Table A2 Consolidated Budgeted Financial Performance (revenue and expenditure by functional classification) | F101: =D101&"Budgeted Financial Performance (revenue and expenditure by functional classification)" -> Table A2 Budgeted Financial Performance (revenue and expenditure by functional classification)
B102: Table A3 Budgeted Financial Performance (revenue and expenditure by municipal vote) | D102: Table A3 | E102: =D102&"Consolidated Budgeted Financial Performance (revenue and expenditure by municipal vote)" -> Table A3 Consolidated Budgeted Financial Performance (revenue and expenditure by municipal vote) | F102: =D102&"Budgeted Financial Performance (revenue and expenditure by municipal vote)" -> Table A3 Budgeted Financial Performance (revenue and expenditure by municipal vote)
B103: Table A4 Budgeted Financial Performance (revenue and expenditure) | C103: Charts 1, 2, 3, 4 | D103: Table A4 | E103: =D103&"Consolidated Budgeted Financial Performance (revenue and expenditure)" -> Table A4 Consolidated Budgeted Financial Performance (revenue and expenditure) | F103: =D103&"Budgeted Financial Performance (revenue and expenditure)" -> Table A4 Budgeted Financial Performance (revenue and expenditure)
B104: Table A5 Budgeted Capital Expenditure by vote, functional classification and funding | C104: Charts 7, 8, 9, 10, 20 | D104: Table A5 | E104: =D104&"Consolidated Budgeted Capital Expenditure by vote, functional classification and funding" -> Table A5 Consolidated Budgeted Capital Expenditure by vote, functional classification and funding | F104: =D104&"Budgeted Capital Expenditure by vote, functional classification and funding" -> Table A5 Budgeted Capital Expenditure by vote, functional classification and funding
B105: Table A6 Budgeted Financial Position | D105: Table A6 | E105: =D105&"Consolidated Budgeted Financial Position" -> Table A6 Consolidated Budgeted Financial Position | F105: =D105&"Budgeted Financial Position" -> Table A6 Budgeted Financial Position
B106: Table A7 Budgeted Cash Flows | D106: Table A7 | E106: =D106&"Consolidated Budgeted Cash Flows" -> Table A7 Consolidated Budgeted Cash Flows | F106: =D106&"Budgeted Cash Flows" -> Table A7 Budgeted Cash Flows
B107: Table A8 Cash backed reserves/accumulated surplus reconciliation | D107: Table A8 | E107: =D107&"Consolidated Cash backed reserves/accumulated surplus reconciliation" -> Table A8 Consolidated Cash backed reserves/accumulated surplus reconciliation | F107: =D107&"Cash backed reserves/accumulated surplus reconciliation" -> Table A8 Cash backed reserves/accumulated surplus reconciliation
B108: Table A9 Asset Management | D108: Table A9 | E108: =D108&"Consolidated Asset Management" -> Table A9 Consolidated Asset Management | F108: =D108&"Asset Management" -> Table A9 Asset Management
B109: Table A10 Basic service delivery measurement | D109: Table A10 | E109: =D109&"Consolidated basic service delivery measurement" -> Table A10 Consolidated basic service delivery measurement | F109: =D109&"Basic service delivery measurement" -> Table A10 Basic service delivery measurement
A110: Supportinging Tables to the Budget Approval Tables | C110: =$C$99 -> Chart x-ref | D110: =$D$99 -> Sch/Tab/Ch
A111: Supporting Table SA1 | B111: =A111&" Supportinging detail to 'Budgeted Financial Performance'" -> Supporting Table SA1 Supportinging detail to 'Budgeted Financial Performance'
A112: Supporting Table SA2 | B112: =IF(Consolques="YES",E112,F112) -> Supporting Table SA2 Matrix Financial Performance Budget (revenue source/expenditure type and dept.) | E112: =A112&"Consolidated Matrix Financial Performance Budget (revenue source/expenditure type & dept.)" -> Supporting Table SA2 Consolidated Matrix Financial Performance Budget (revenue source/expenditure type & dept.) | F112: =A112&"Matrix Financial Performance Budget (revenue source/expenditure type and dept.)" -> Supporting Table SA2 Matrix Financial Performance Budget (revenue source/expenditure type and dept.)
A113: Supporting Table SA3 | B113: =A113&"Supportinging detail to 'Budgeted Financial Position'" -> Supporting Table SA3 Supportinging detail to 'Budgeted Financial Position'
A114: Supporting Table SA4 | B114: =A114&"Reconciliation of IDP strategic objectives and budget (revenue)" -> Supporting Table SA4 Reconciliation of IDP strategic objectives and budget (revenue) | C114: Chart 11
A115: Supporting Table SA5 | B115: =A115&"Reconciliation of IDP strategic objectives and budget (operating expenditure)" -> Supporting Table SA5 Reconciliation of IDP strategic objectives and budget (operating expenditure) | C115: Chart 12
A116: Supporting Table SA6 | B116: =A116&"Reconciliation of IDP strategic objectives and budget (capital expenditure)" -> Supporting Table SA6 Reconciliation of IDP strategic objectives and budget (capital expenditure) | C116: Chart 13
A117: Supporting Table SA7 | B117: =A117&" Measureable performance objectives" -> Supporting Table SA7 Measureable performance objectives
A118: Supporting Table SA8 | B118: =A118&" Performance indicators and benchmarks" -> Supporting Table SA8 Performance indicators and benchmarks | C118: Chts 15-19
A119: Supporting Table SA9 | B119: =A119&" Social, economic and demographic statistics and assumptions" -> Supporting Table SA9 Social, economic and demographic statistics and assumptions
A120: Supporting Table SA10 | B120: =A120&" Funding measurement" -> Supporting Table SA10 Funding measurement | C120: Chart 14
A121: Supporting Table SA11 | B121: =A121&" Property rates summary" -> Supporting Table SA11 Property rates summary
A122: Supporting Table SA12a | B122: =A122&" Property rates by category (current year)" -> Supporting Table SA12a Property rates by category (current year)
A123: Supporting Table SA12b | B123: =A123&" Property rates by category (budget year)" -> Supporting Table SA12b Property rates by category (budget year)
A124: Supporting Table SA13a | B124: =A124&" Service Tariffs by category" -> Supporting Table SA13a Service Tariffs by category
A125: Supporting Table SA13b | B125: =A125&" Service Tariffs by category - explanatory" -> Supporting Table SA13b Service Tariffs by category - explanatory
A126: Supporting Table SA14 | B126: =A126&" Household bills" -> Supporting Table SA14 Household bills
A127: Supporting Table SA15 | B127: =A127&" Investment particulars by type" -> Supporting Table SA15 Investment particulars by type
A128: Supporting Table SA16 | B128: =A128&" Investment particulars by maturity" -> Supporting Table SA16 Investment particulars by maturity
A129: Supporting Table SA17 | B129: =A129&" Borrowing" -> Supporting Table SA17 Borrowing
A130: Supporting Table SA18 | B130: =A130&" Transfers and grant receipts" -> Supporting Table SA18 Transfers and grant receipts
A131: Supporting Table SA19 | B131: =A131&" Expenditure on transfers and grant programme" -> Supporting Table SA19 Expenditure on transfers and grant programme
A132: Supporting Table SA20 | B132: =A132&" Reconciliation of transfers, grant receipts and unspent funds" -> Supporting Table SA20 Reconciliation of transfers, grant receipts and unspent funds
A133: Supporting Table SA21 | B133: =A133&" Transfers and grants made by the municipality" -> Supporting Table SA21 Transfers and grants made by the municipality
A134: Supporting Table SA22 | B134: =A134&" Summary councillor and staff benefits" -> Supporting Table SA22 Summary councillor and staff benefits
A135: Supporting Table SA23 | B135: =A135&" Salaries, allowances & benefits (political office bearers/councillors/senior managers)" -> Supporting Table SA23 Salaries, allowances & benefits (political office bearers/councillors/senior managers)
A136: Supporting Table SA24 | B136: =A136&" Summary of personnel numbers" -> Supporting Table SA24 Summary of personnel numbers
A137: Supporting Table SA25 | B137: =IF(Consolques="YES",E137,F137) -> Supporting Table SA25 Budgeted monthly revenue and expenditure | E137: =A137&" Consolidated budgeted monthly revenue and expenditure" -> Supporting Table SA25 Consolidated budgeted monthly revenue and expenditure | F137: =A137&" Budgeted monthly revenue and expenditure" -> Supporting Table SA25 Budgeted monthly revenue and expenditure
A138: Supporting Table SA26 | B138: Supporting Table SA26 Budgeted monthly revenue and expenditure (municipal vote) | E138: =A138&" Consolidated budgeted monthly revenue and expenditure (municipal vote)" -> Supporting Table SA26 Consolidated budgeted monthly revenue and expenditure (municipal vote) | F138: =A138&" Budgeted monthly revenue and expenditure (municipal vote)" -> Supporting Table SA26 Budgeted monthly revenue and expenditure (municipal vote)
A139: Supporting Table SA27 | B139: Supporting Table SA27 Budgeted monthly revenue and expenditure (functional classification) | E139: =A139&" Consolidated budgeted monthly revenue and expenditure (functional classification)" -> Supporting Table SA27 Consolidated budgeted monthly revenue and expenditure (functional classification) | F139: =A139&" Budgeted monthly revenue and expenditure (functional classification)" -> Supporting Table SA27 Budgeted monthly revenue and expenditure (functional classification)
A140: Supporting Table SA28 | B140: Supporting Table SA28 Budgeted monthly capital expenditure (municipal vote) | E140: =A140&" Consolidated budgeted monthly capital expenditure (municipal vote)" -> Supporting Table SA28 Consolidated budgeted monthly capital expenditure (municipal vote) | F140: =A140&" Budgeted monthly capital expenditure (municipal vote)" -> Supporting Table SA28 Budgeted monthly capital expenditure (municipal vote)
A141: Supporting Table SA29 | B141: Supporting Table SA29 Budgeted monthly capital expenditure (functional classification) | E141: =A141&" Consolidated budgeted monthly capital expenditure (functional classification)" -> Supporting Table SA29 Consolidated budgeted monthly capital expenditure (functional classification) | F141: =A141&" Budgeted monthly capital expenditure (functional classification)" -> Supporting Table SA29 Budgeted monthly capital expenditure (functional classification)
A142: Supporting Table SA30 | B142: Supporting Table SA30 Budgeted monthly cash flow | E142: =A142&" Consolidated budgeted monthly cash flow" -> Supporting Table SA30 Consolidated budgeted monthly cash flow | F142: =A142&" Budgeted monthly cash flow" -> Supporting Table SA30 Budgeted monthly cash flow
A143: Supporting Table SA31 | B143: NOT REQUIRED - municipality does not have entities | E143: =A143&" Aggregated entity budget" -> Supporting Table SA31 Aggregated entity budget | F143: NOT REQUIRED - municipality does not have entities
A144: Supporting Table SA32 | B144: =A144&" List of external mechanisms" -> Supporting Table SA32 List of external mechanisms
A145: Supporting Table SA33 | B145: =A145&" Contracts having future budgetary implications" -> Supporting Table SA33 Contracts having future budgetary implications
A146: Supporting Table SA34a | B146: =IF(Consolques="YES",E146,F146) -> Supporting Table SA34a Capital expenditure on new assets by asset class | E146: =A146&" Consolidated capital expenditure on new assets by asset class" -> Supporting Table SA34a Consolidated capital expenditure on new assets by asset class | F146: =A146&" Capital expenditure on new assets by asset class" -> Supporting Table SA34a Capital expenditure on new assets by asset class
A147: Supporting Table SA34b | B147: Supporting Table SA34b Capital expenditure on the renewal of existing assets by asset class | E147: =A147&" Consolidated capital expenditure on the renewal of existing assets by asset class" -> Supporting Table SA34b Consolidated capital expenditure on the renewal of existing assets by asset class | F147: =A147&" Capital expenditure on the renewal of existing assets by asset class" -> Supporting Table SA34b Capital expenditure on the renewal of existing assets by asset class
A148: Supporting Table SA34c | B148: Supporting Table SA34c Repairs and maintenance expenditure by asset class | E148: =A148&" Consolidated repairs and maintenance by asset class" -> Supporting Table SA34c Consolidated repairs and maintenance by asset class | F148: =A148&" Repairs and maintenance expenditure by asset class" -> Supporting Table SA34c Repairs and maintenance expenditure by asset class
A149: Supporting Table SA34d | B149: =IF(Consolques="YES",E149,F149) -> Supporting Table SA34d Depreciation by asset class | E149: =A149&" Consolidated Depreciation by asset class" -> Supporting Table SA34d Consolidated Depreciation by asset class | F149: =A149&" Depreciation by asset class" -> Supporting Table SA34d Depreciation by asset class
A150: Supporting Table SA34e | B150: =IF(Consolques="YES",E150,F150) -> Supporting Table SA34e Capital expenditure on the upgrading of existing assets by asset class | E150: =A150&" Consolidated capital expenditure on the upgrading of existing assets by asset class" -> Supporting Table SA34e Consolidated capital expenditure on the upgrading of existing assets by asset class | F150: =A150&" Capital expenditure on the upgrading of existing assets by asset class" -> Supporting Table SA34e Capital expenditure on the upgrading of existing assets by asset class
A151: Supporting Table SA35 | B151: Supporting Table SA35 Future financial implications of the capital budget | E151: =A151&" Consolidated future financial implications of the capital budget" -> Supporting Table SA35 Consolidated future financial implications of the capital budget | F151: =A151& " Future financial implications of the capital budget" -> Supporting Table SA35 Future financial implications of the capital budget
A152: Supporting Table SA36 | B152: Supporting Table SA36 Detailed capital budget | E152: =A152&" Consolidated detailed capital budget" -> Supporting Table SA36 Consolidated detailed capital budget | F152: =A152& " Detailed capital budget" -> Supporting Table SA36 Detailed capital budget
A153: Supporting Table SA37 | B153: Supporting Table SA37 Projects delayed from previous financial year/s | E153: =A153&" Consolidated projects delayed from previous financial year/s" -> Supporting Table SA37 Consolidated projects delayed from previous financial year/s | F153: =A153& " Projects delayed from previous financial year/s" -> Supporting Table SA37 Projects delayed from previous financial year/s
A154: Supporting Table SA38 | B154: =IF(Consolques="YES",E154,F154) -> Supporting Table SA38 Detailed operational projects | E154: =A154&" Consolidated detailed operational projects" -> Supporting Table SA38 Consolidated detailed operational projects | F154: =A154& " Detailed operational projects" -> Supporting Table SA38 Detailed operational projects
A156: Budget Charts | B156: Charts | C156: Cross reference
A157: Chart A1 | B157: =A157&"Revenue by Municipal Vote" -> Chart A1 Revenue by Municipal Vote
A158: Chart A2 | B158: =A158&"Expenditure by Municipal Vote" -> Chart A2 Expenditure by Municipal Vote
A159: Chart A3 | B159: =A159&"Revenue by Standard Classification" -> Chart A3 Revenue by Standard Classification | C159: A2
A160: Chart A4 | B160: =A160&"Expenditure by Standard Classification" -> Chart A4 Expenditure by Standard Classification | C160: A2
A161: Chart A5 | B161: =A161&"Revenue by Major Source (refer 'Minor' source for 'Other Revenue' allocation" -> Chart A5 Revenue by Major Source (refer 'Minor' source for 'Other Revenue' allocation | C161: A3
A162: Chart A6 | B162: =A162&"Revenue by Minor Source (Other)" -> Chart A6 Revenue by Minor Source (Other) | C162: A3
A163: Chart A7 | B163: =A163&"Expenditure by Major Type" -> Chart A7 Expenditure by Major Type | C163: A3
A164: Chart A8 | B164: =A164&"Expenditure by Minor Type (Other)" -> Chart A8 Expenditure by Minor Type (Other) | C164: A3
A165: Chart A9 | B165: =A165&"Capital Expenditure by Municipal Vote/Appropriation (Major)" -> Chart A9 Capital Expenditure by Municipal Vote/Appropriation (Major) | C165: A5
A166: Chart A10 | B166: =A166&"Capital Expenditure by Municipal Vote/Appropriation (Minor)" -> Chart A10 Capital Expenditure by Municipal Vote/Appropriation (Minor) | C166: A5
A167: Chart A11 | B167: =A166&"Capital Expenditure by Standard Classification" -> Chart A10 Capital Expenditure by Standard Classification | C167: A5
A168: Chart A12 | B168: =A168&"Capital expenditure performance trend" -> Chart A12 Capital expenditure performance trend | C168: A5
A169: Chart A13 | B169: =A169&"Capital funding by Source" -> Chart A13 Capital funding by Source | C169: A5
A170: Chart A14 | B170: =A170&"Cash flow trend" -> Chart A14 Cash flow trend | C170: A7
A171: Chart A15 | B171: =A171&"IDP Strategic Objective - Revenue" -> Chart A15 IDP Strategic Objective - Revenue | C171: Table A4
A172: Chart A16 | B172: =A172&"IDP Strategic Objective - Expenditure" -> Chart A16 IDP Strategic Objective - Expenditure | C172: Table A5
A173: Chart A17 | B173: =A173&"IDP Strategic Objective - Capital Expenditure" -> Chart A17 IDP Strategic Objective - Capital Expenditure | C173: Table A6
A174: Chart A18 | B174: =A174&"Debt (borrowing to Total Revenue)" -> Chart A18 Debt (borrowing to Total Revenue) | C174: Table A8
A175: Chart A19 | B175: =A175&"Debtors' trend analysis" -> Chart A19 Debtors' trend analysis | C175: Table A8
A176: Chart A20 | B176: =A176&"Distribution losses" -> Chart A20 Distribution losses | C176: Table A8
A177: Chart A21 | B177: =A177&"Borrowed funding of capital expenditure" -> Chart A21 Borrowed funding of capital expenditure | C177: Table A8
A178: Chart A22 | B178: =A178&"Expenditure analysis (% of Revenue)" -> Chart A22 Expenditure analysis (% of Revenue) | C178: Table A8
A179: Chart A23 | B179: =A179&"Increases in service charges" -> Chart A23 Increases in service charges | C179: Table A10

Sheet Lookup and lists (hidden)
A1: Description | B1: 2007 | C1: 2008 | D1: 2009 | E1: 2010 | F1: 2011 | G1: 2012 | H1: 2013 | I1: 2014 | J1: 2015 | K1: 2016 | L1: 2017 | M1: 2018 | N1: 2019 | O1: 2020 | Q1: Lists | Y1: Grants: | Z1: National - opex | AA1: Provincial - opex | AB1: National - capex | AC1: Provincial - capex
A2: ='Template names'!C2 -> Prior year -1 | B2: 2005/06 | C2: 2006/07 | D2: 2007/08 | E2: =E1-2&"/"&RIGHT(E1,2)-1 -> 2008/9 | F2: 2009/10 | G2: 2010/11 | H2: 2011/12 | I2: 2012/13 | J2: 2013/14 | K2: 2014/15 | L2: 2015/16 | M2: 2016/17 | N2: 2017/18 | O2: 2018/19 | Q2: Yes | R2: <1 | S2: <4 | T2: Market | U2: Land & impr. | V2: Yes | W2: Uniform | X2: Yrs | Z2: Local Government Equitable Share | AA2: Health subsidy | AB2: Municipal Infrastructure Grant (MIG) | AC2: Agriculture
A3: ='Template names'!C3 -> Prior year -2 | B3: 2004/05 | C3: 2005/06 | D3: 2006/07 | E3: =E1-3&"/"&RIGHT(E1,2)-2 -> 2007/8 | F3: 2008/9 | G3: 2009/10 | H3: 2010/11 | I3: 2011/12 | J3: 2012/13 | K3: 2013/14 | L3: 2014/15 | M3: 2015/16 | N3: 2016/17 | O3: 2017/18 | Q3: No | R3: 1 | S3: 4 | T3: Dep.Replace | U3: Land only | V3: No | W3: Variable | X3: Mths | Z3: RSC Levy Replacement | AA3: Ambulance subsidy | AB3: Public Transport and Systems | AC3: Education
A4: ='Template names'!C4 -> Prior year -3 | B4: 2003/04 | C4: 2004/05 | D4: 2005/06 | E4: =E1-4&"/"&RIGHT(E1,2)-3 -> 2006/7 | F4: 2007/8 | G4: 2008/9 | H4: 2009/10 | I4: 2010/11 | J4: 2011/12 | K4: 2012/13 | L4: 2013/14 | M4: 2014/15 | N4: 2015/16 | O4: 2016/17 | R4: 2 | S4: 5 | T4: Other | U4: Other | Z4: Finance Management | AA4: Housing | AB4: Rural Transport Services and Infrastructure | AC4: Health
A5: ='Template names'!C5 -> Year in which budget is being prepared | B5: Current Year 2006/07 | C5: Current Year 2007/08 | D5: Current Year 2008/09 | E5: ="Current Year "& E1-1&"/"&RIGHT(E1,2) -> Current Year 2009/10 | F5: Current Year 2010/11 | G5: Current Year 2011/12 | H5: Current Year 2012/13 | I5: Current Year 2013/14 | J5: Current Year 2014/15 | K5: Current Year 2015/16 | L5: Current Year 2016/17 | M5: Current Year 2017/18 | N5: Current Year 2018/19 | O5: Current Year 2019/20 | R5: 3 | S5: 6 | Z5: Municipal Systems Improvement | AA5: Sport and Recreation | AB5: Regional Bulk Infrastructure | AC5: Housing and Local Government
A6: ='Template names'!C6 -> Year in which budget is being prepared | B6: 2006/07 | C6: 2007/08 | D6: 2008/09 | E6: =E1-1&"/"&RIGHT(E1,2) -> 2009/10 | F6: 2010/11 | G6: 2011/12 | H6: 2012/13 | I6: 2013/14 | J6: 2014/15 | K6: 2015/16 | L6: 2016/17 | M6: 2017/18 | N6: 2018/19 | O6: 2019/20 | R6: 4 | S6: 6-10 | Z6: Water Services Operating Subsidy | AB6: Rural Households Infrastructure | AC6: Other Departments
A7: ='Template names'!C7 -> MTREF name | B7: 2007/08 Medium Term Revenue & Expenditure Framework | C7: 2008/09 Medium Term Revenue & Expenditure Framework | D7: 2009/10 Medium Term Revenue & Expenditure Framework | E7: =E1&"/"&RIGHT(E1,2)+1&" Medium Term Revenue & Expenditure Framework" -> 2010/11 Medium Term Revenue & Expenditure Framework | F7: 2011/12 Medium Term Revenue & Expenditure Framework | G7: 2012/13 Medium Term Revenue & Expenditure Framework | H7: 2013/14 Medium Term Revenue & Expenditure Framework | I7: 2014/15 Medium Term Revenue & Expenditure Framework | J7: 2015/16 Medium Term Revenue & Expenditure Framework | K7: 2016/17 Medium Term Revenue & Expenditure Framework | L7: 2017/18 Medium Term Revenue & Expenditure Framework | M7: 2018/19 Medium Term Revenue & Expenditure Framework | N7: 2019/20 Medium Term Revenue & Expenditure Framework | O7: 2020/21 Medium Term Revenue & Expenditure Framework | R7: 5 | S7: >10 | Z7: Energy Efficiency and Demand Management | AB7: Neighbourhood Development Partnership | AC7: Public Works, Roads, Transport
A8: ='Template names'!C15 -> 1st year of MTREF | B8: Budget Year 2007/08 | C8: Budget Year 2008/09 | D8: Budget Year 2009/10 | E8: ="Budget Year "&E1&"/"&RIGHT(E1,2)+1 -> Budget Year 2010/11 | F8: Budget Year 2011/12 | G8: Budget Year 2012/13 | H8: Budget Year 2013/14 | I8: Budget Year 2014/15 | J8: Budget Year 2015/16 | K8: Budget Year 2016/17 | L8: Budget Year 2017/18 | M8: Budget Year 2018/19 | N8: Budget Year 2019/20 | O8: Budget Year 2020/21 | R8: >5 | Z8: Integrated National Electrification Programme | AB8: 2010 FIFA World Cup Stadiums Development | AC8: Sport and Recreation
A9: ='Template names'!C16 -> 2nd year of MTREF | B9: Budget Year +1 2008/09 | C9: Budget Year +1 2009/10 | D9: Budget Year +1 2010/11 | E9: ="Budget Year +1 "&E1+1&"/"&RIGHT(E1,2)+2 -> Budget Year +1 2011/12 | F9: Budget Year +1 2012/13 | G9: Budget Year +1 2013/14 | H9: Budget Year +1 2014/15 | I9: Budget Year +1 2015/16 | J9: Budget Year +1 2016/17 | K9: Budget Year +1 2017/18 | L9: Budget Year +1 2018/19 | M9: Budget Year +1 2019/20 | N9: Budget Year +1 2020/21 | O9: Budget Year +1 2021/22 | Z9: Municipal Drought Relief
A10: ='Template names'!C17 -> 3rd year of MTREF | B10: Budget Year +2 2009/10 | C10: Budget Year +2 2010/11 | D10: Budget Year +2 2011/12 | E10: ="Budget Year +2 "&E1+2&"/"&RIGHT(E1,2)+3 -> Budget Year +2 2012/13 | F10: Budget Year +2 2013/14 | G10: Budget Year +2 2014/15 | H10: Budget Year +2 2015/16 | I10: Budget Year +2 2016/17 | J10: Budget Year +2 2017/18 | K10: Budget Year +2 2018/19 | L10: Budget Year +2 2019/20 | M10: Budget Year +2 2020/21 | N10: Budget Year +2 2021/22 | O10: Budget Year +2 2022/23 | Z10: 2010 FIFA World Cup Operating
A11: ='Template names'!C18 -> 1st yr of long term forecast | B11: Forecast 2010/11 | C11: Forecast 2011/12 | D11: Forecast 2012/13 | E11: ="Forecast "&E1+3&"/"&RIGHT(E1,2)+4 -> Forecast 2013/14 | F11: Forecast 2014/15 | G11: Forecast 2015/16 | H11: Forecast 2016/17 | I11: Forecast 2017/18 | J11: Forecast 2018/19 | K11: Forecast 2019/20 | L11: Forecast 2020/21 | M11: Forecast 2021/22 | N11: Forecast 2022/23 | O11: Forecast 2023/24 | Z11: Electricity Demand Side Management
A12: ='Template names'!C19 -> Next yr of long term forecast | B12: Forecast 2011/12 | C12: Forecast 2012/13 | D12: Forecast 2013/14 | E12: ="Forecast "&E1+4&"/"&RIGHT(E1,2)+5 -> Forecast 2014/15 | F12: Forecast 2015/16 | G12: Forecast 2016/17 | H12: Forecast 2017/18 | I12: Forecast 2018/19 | J12: Forecast 2019/20 | K12: Forecast 2020/21 | L12: Forecast 2021/22 | M12: Forecast 2022/23 | N12: Forecast 2023/24 | O12: Forecast 2024/25 | Z12: EPWP Incentive
A13: ='Template names'!C20 -> Next yr of long term forecast | B13: Forecast 2012/13 | C13: Forecast 2013/14 | D13: Forecast 2014/15 | E13: ="Forecast "&E1+5&"/"&RIGHT(E1,2)+6 -> Forecast 2015/16 | F13: Forecast 2016/17 | G13: Forecast 2017/18 | H13: Forecast 2018/19 | I13: Forecast 2019/20 | J13: Forecast 2020/21 | K13: Forecast 2021/22 | L13: Forecast 2022/23 | M13: Forecast 2023/24 | N13: Forecast 2024/25 | O13: Forecast 2025/26
A14: ='Template names'!C21 -> Next yr of long term forecast | B14: Forecast 2013/14 | C14: Forecast 2014/15 | D14: Forecast 2015/16 | E14: ="Forecast "&E1+6&"/"&RIGHT(E1,2)+7 -> Forecast 2016/17 | F14: Forecast 2017/18 | G14: Forecast 2018/19 | H14: Forecast 2019/20 | I14: Forecast 2020/21 | J14: Forecast 2021/22 | K14: Forecast 2022/23 | L14: Forecast 2023/24 | M14: Forecast 2024/25 | N14: Forecast 2025/26 | O14: Forecast 2026/27 | Z14: Asset Class | AA14: Asset sub-class old | AB14: Asset sub-class | AC14: IUDF | AD14: MTSF
A15: ='Template names'!C22 -> Next yr of long term forecast | B15: Forecast 2014/15 | C15: Forecast 2015/16 | D15: Forecast 2016/17 | E15: ="Forecast "&E1+7&"/"&RIGHT(E1,2)+8 -> Forecast 2017/18 | F15: Forecast 2018/19 | G15: Forecast 2019/20 | H15: Forecast 2020/21 | I15: Forecast 2021/22 | J15: Forecast 2022/23 | K15: Forecast 2023/24 | L15: Forecast 2024/25 | M15: Forecast 2025/26 | N15: Forecast 2026/27 | O15: Forecast 2027/28
A16: ='Template names'!C23 -> Next yr of long term forecast | B16: Forecast 2015/16 | C16: Forecast 2016/17 | D16: Forecast 2017/18 | E16: ="Forecast "&E1+8&"/"&RIGHT(E1,2)+9 -> Forecast 2018/19 | F16: Forecast 2019/20 | G16: Forecast 2020/21 | H16: Forecast 2021/22 | I16: Forecast 2022/23 | J16: Forecast 2023/24 | K16: Forecast 2024/25 | L16: Forecast 2025/26 | M16: Forecast 2026/27 | N16: Forecast 2027/28 | O16: Forecast 2028/29 | Z16: Roads Infrastructure | AA16: Roads, Pavements & Bridges | AB16: Roads | AC16: Spatial integration | AD16: Quality basic education
A17: ='Template names'!C24 -> Next yr of long term forecast | B17: Forecast 2016/17 | C17: Forecast 2017/18 | D17: Forecast 2018/19 | E17: ="Forecast "&E1+9&"/"&RIGHT(E1,2)+10 -> Forecast 2019/20 | F17: Forecast 2020/21 | G17: Forecast 2021/22 | H17: Forecast 2022/23 | I17: Forecast 2023/24 | J17: Forecast 2024/25 | K17: Forecast 2025/26 | L17: Forecast 2026/27 | M17: Forecast 2027/28 | N17: Forecast 2028/29 | O17: Forecast 2029/30 | Z17: Storm water Infrastructure | AA17: Storm water | AB17: Road Structures | AC17: Inclusion and access | AD17: A long and healthy life for all South Africans
A18: ='Template names'!C25 -> Next yr of long term forecast | B18: Forecast 2017/18 | C18: Forecast 2018/19 | D18: Forecast 2019/20 | E18: ="Forecast "&E1+10&"/"&RIGHT(E1,2)+11 -> Forecast 2020/21 | F18: Forecast 2021/22 | G18: Forecast 2022/23 | H18: Forecast 2023/24 | I18: Forecast 2024/25 | J18: Forecast 2025/26 | K18: Forecast 2026/27 | L18: Forecast 2027/28 | M18: Forecast 2028/29 | N18: Forecast 2029/30 | O18: Forecast 2030/31 | Z18: Electrical Infrastructure | AA18: Generation | AB18: Road Furniture | AC18: Growth | AD18: All people in South Africa are and feel safe
A19: ='Template names'!C26 -> Next yr of long term forecast | B19: Forecast 2018/19 | C19: Forecast 2019/20 | D19: Forecast 2020/21 | E19: ="Forecast "&E1+11&"/"&RIGHT(E1,2)+12 -> Forecast 2021/22 | F19: Forecast 2022/23 | G19: Forecast 2023/24 | H19: Forecast 2024/25 | I19: Forecast 2025/26 | J19: Forecast 2026/27 | K19: Forecast 2027/28 | L19: Forecast 2028/29 | M19: Forecast 2029/30 | N19: Forecast 2030/31 | O19: Forecast 2031/32 | Z19: Water Supply Infrastructure | AA19: Transmission & Reticulation | AB19: Capital Spares | AC19: Governance | AD19: Decent employment through inclusive growth
A20: ='Template names'!C27 -> Next yr of long term forecast | B20: Forecast 2019/20 | C20: Forecast 2020/21 | D20: Forecast 2021/22 | E20: ="Forecast "&E1+12&"/"&RIGHT(E1,2)+13 -> Forecast 2022/23 | F20: Forecast 2023/24 | G20: Forecast 2024/25 | H20: Forecast 2025/26 | I20: Forecast 2026/27 | J20: Forecast 2027/28 | K20: Forecast 2028/29 | L20: Forecast 2029/30 | M20: Forecast 2030/31 | N20: Forecast 2031/32 | O20: Forecast 2032/33 | Z20: Sanitation Infrastructure | AA20: Street Lighting | AB20: Drainage Collection | AD20: A skilled and capable workforce to support an inclusive growth path
A21: ='Template names'!C28 -> Next yr of long term forecast | B21: Forecast 2020/21 | C21: Forecast 2021/22 | D21: Forecast 2022/23 | E21: ="Forecast "&E1+13&"/"&RIGHT(E1,2)+14 -> Forecast 2023/24 | F21: Forecast 2024/25 | G21: Forecast 2025/26 | H21: Forecast 2026/27 | I21: Forecast 2027/28 | J21: Forecast 2028/29 | K21: Forecast 2029/30 | L21: Forecast 2030/31 | M21: Forecast 2031/32 | N21: Forecast 2032/33 | O21: Forecast 2033/34 | Z21: Solid Waste Infrastructure | AA21: Dams & Reservoirs | AB21: Storm water Conveyance | AD21: An efficient, competitive and responsive economic infrastructure network
A22: ='Template names'!C29 -> Next yr of long term forecast | B22: Forecast 2021/22 | C22: Forecast 2022/23 | D22: Forecast 2023/24 | E22: ="Forecast "&E1+14&"/"&RIGHT(E1,2)+15 -> Forecast 2024/25 | F22: Forecast 2025/26 | G22: Forecast 2026/27 | H22: Forecast 2027/28 | I22: Forecast 2028/29 | J22: Forecast 2029/30 | K22: Forecast 2030/31 | L22: Forecast 2031/32 | M22: Forecast 2032/33 | N22: Forecast 2033/34 | O22: Forecast 2034/35 | Z22: Rail Infrastructure | AA22: Water purification | AB22: Attenuation | AD22: Vibrant, equitable, sustainable rural communities contributing towards food security for all
A23: Adjustments Budget | B23: Annual target 2007/08 | C23: Annual target 2008/09 | D23: Annual target 2009/10 | E23: ="Annual target " & E1&"/"&RIGHT(E1,2)+1 -> Annual target 2010/11 | F23: Annual target 2011/12 | G23: Annual target 2012/13 | H23: Annual target 2013/14 | I23: Annual target 2014/15 | J23: Annual target 2015/16 | K23: Annual target 2016/17 | L23: Annual target 2017/18 | M23: Annual target 2018/19 | N23: Annual target 2019/20 | O23: Annual target 2020/21 | Z23: Coastal Infrastructure | AA23: Reticulation | AB23: Power Plants | AD23: Sustainable human settlements and improved quality of household life
A24: =A23 -> Adjustments Budget | B24: Revised target 2007/08 | C24: Revised target 2008/09 | D24: Revised target 2009/10 | E24: ="Revised target "& E1&"/"&RIGHT(E1,2)+1 -> Revised target 2010/11 | F24: Revised target 2011/12 | G24: Revised target 2012/13 | H24: Revised target 2013/14 | I24: Revised target 2014/15 | J24: Revised target 2015/16 | K24: Revised target 2016/17 | L24: Revised target 2017/18 | M24: Revised target 2018/19 | N24: Revised target 2019/20 | O24: Revised target 2020/21 | Z24: Information and Communication Infrastructure | AA24: Sewerage purification | AB24: HV Substations | AD24: Responsive, accountable, effective and efficient local government
A25: NOTE: This sheet should not be directly amended - select headings from sheet 'S' | Z25: Community Facilities | AA25: Waste Management | AB25: HV Switching Station | AD25: Protect and enhance our environmental assets and natural resources
Z26: Sport and Recreation Facilities | AA26: Transportation | AB26: HV Transmission Conductors | AD26: Create a better South Africa and contribute to a better Africa and a better world
A27: Name link | B27: 136 | Z27: Heritage assets | AA27: Gas | AB27: MV Substations | AD27: An efficient, effective and development-oriented public service
A28: Name of Muni | B28: =INDEX(B29:B307,B27,1) -> LIM343 Thulamela | Z28: Revenue Generating | AA28: Parks & gardens | AB28: MV Switching Stations | AD28: A comprehensive, responsive and sustainable social protection system
B29: Choose name from list | C29: Set name on 'Instructions' sheet | Z29: Non-revenue Generating | AA29: Sportsfields & stadia | AB29: MV Networks | AD29: A diverse, socially cohesive society with a common national identity
B30: BUF Buffalo City | C30: EC EASTERN CAPE | Z30: Operational Buildings | AA30: Swimming pools | AB30: LV Networks
B31: NMA Nelson Mandela Bay | C31: EC EASTERN CAPE | Z31: Housing | AA31: Community halls | AB31: Capital Spares
B32: EC101 Dr Beyers Naude | C32: EC EASTERN CAPE | Z32: Biological or Cultivated Assets | AA32: Libraries | AB32: Dams and Weirs
B33: EC102 Blue Crane Route | C33: EC EASTERN CAPE | Z33: Servitudes | AA33: Recreational facilities | AB33: Boreholes
B34: EC104 Makana | C34: EC EASTERN CAPE | Z34: Licences and Rights | AA34: Fire, safety & emergency | AB34: Reservoirs
B35: EC105 Ndlambe | C35: EC EASTERN CAPE | Z35: Computer Equipment | AA35: Security and policing | AB35: Pump Stations
B36: EC106 Sundays River Valley | C36: EC EASTERN CAPE | Z36: Furniture and Office Equipment | AA36: Buses | AB36: Water Treatment Works
B37: EC108 Kouga | C37: EC EASTERN CAPE | Z37: Machinery and Equipment | AA37: Clinics | AB37: Bulk Mains
B38: EC109 Kou-Kamma | C38: EC EASTERN CAPE | Z38: Transport Assets | AA38: Museums & Art Galleries | AB38: Distribution
B39: DC10 Sarah Baartman | C39: EC EASTERN CAPE | Z39: Land | AA39: Cemeteries | AB39: Distribution Points
B40: EC121 Mbhashe | C40: EC EASTERN CAPE | Z40: Zoo's, Marine and Non-biological Animals | AA40: Social rental housing | AB40: PRV Stations
B41: EC122 Mnquma | C41: EC EASTERN CAPE | AA41: Buildings | AB41: Capital Spares
B42: EC123 Great Kei | C42: EC EASTERN CAPE | AA42: Housing development | AB42: Pump Station
B43: EC124 Amahlathi | C43: EC EASTERN CAPE | AA43: General vehicles | AB43: Reticulation
B44: EC126 Ngqushwa | C44: EC EASTERN CAPE | AA44: Specialised vehicles - Refuse | AB44: Waste Water Treatment Works
B45: EC129 Raymond Mhlaba | C45: EC EASTERN CAPE | AA45: Specialised vehicles - Fire | AB45: Outfall Sewers
B46: DC12 Amathole | C46: EC EASTERN CAPE | AA46: Specialised vehicles - Conservancy | AB46: Toilet Facilities
B47: EC131 Inxuba Yethemba | C47: EC EASTERN CAPE | AA47: Specialised vehicles - Ambulances | AB47: Capital Spares
B48: EC135 Intsika Yethu | C48: EC EASTERN CAPE | AA48: Plant & equipment | AB48: Landfill Sites
B49: EC136 Emalahleni (Ec) | C49: EC EASTERN CAPE | AA49: Computers - hardware/equipment | AB49: Waste Transfer Stations
B50: EC137 Engcobo | C50: EC EASTERN CAPE | AA50: Furniture and other office equipment | AB50: Waste Processing Facilities
B51: EC138 Sakhisizwe | C51: EC EASTERN CAPE | AA51: Abattoirs | AB51: Waste Drop-off Points
B52: EC139 Enoch Mgijima | C52: EC EASTERN CAPE | AA52: Markets | AB52: Waste Separation Facilities
B53: DC13 Chris Hani | C53: EC EASTERN CAPE | AA53: Civic Land and Buildings | AB53: Electricity Generation Facilities
B54: EC141 Elundini | C54: EC EASTERN CAPE | AA54: Other Buildings | AB54: Capital Spares
B55: EC142 Senqu | C55: EC EASTERN CAPE | AA55: Other Land | AB55: Rail Lines
B56: EC145 Walter Sisulu | C56: EC EASTERN CAPE | AA56: Surplus Assets - (Investment or Inventory) | AB56: Rail Structures
B57: DC14 Joe Gqabi | C57: EC EASTERN CAPE | AA57: Computers - software & programming | AB57: Rail Furniture
B58: EC153 Ngquza Hills | C58: EC EASTERN CAPE | AA58: Other | AB58: Drainage Collection
B59: EC154 Port St Johns | C59: EC EASTERN CAPE | AB59: Storm water Conveyance
B60: EC155 Nyandeni | C60: EC EASTERN CAPE | Z60: SA16 - Investments | AB60: Attenuation
B61: EC156 Mhlontlo | C61: EC EASTERN CAPE | Z61: Security | AA61: Interest rate | AB61: MV Substations
B62: EC157 King Sabata Dalindyebo | C62: EC EASTERN CAPE | Z62: Yes | AA62: Fixed | AB62: LV Networks
B63: DC15 O .R. Tambo | C63: EC EASTERN CAPE | Z63: No | AA63: Variable | AB63: Capital Spares
B64: EC441 Matatiele | C64: EC EASTERN CAPE | AB64: Sand Pumps
B65: EC442 Umzimvubu | C65: EC EASTERN CAPE | AB65: Piers
B66: EC443 Mbizana | C66: EC EASTERN CAPE | Z66: SA36, SA37 - Capital projects | AB66: Revetments
B67: EC444 Ntabankulu | C67: EC EASTERN CAPE | Z67: Yes | AB67: Promenades
B68: DC44 Alfred Nzo | C68: EC EASTERN CAPE | Z68: No | AB68: Capital Spares
B69: MAN Mangaung | C69: FS FREE STATE | AB69: Data Centres
B70: FS161 Letsemeng | C70: FS FREE STATE | AB70: Core Layers
B71: FS162 Kopanong | C71: FS FREE STATE | AB71: Distribution Layers
B72: FS163 Mohokare | C72: FS FREE STATE | AB72: Capital Spares
B73: DC16 Xhariep | C73: FS FREE STATE | AB73: Halls
B74: FS181 Masilonyana | C74: FS FREE STATE | AB74: Centres
B75: FS182 Tokologo | C75: FS FREE STATE | AB75: Crèches
B76: FS183 Tswelopele | C76: FS FREE STATE | AB76: Clinics/Care Centres
B77: FS184 Matjhabeng | C77: FS FREE STATE | AB77: Fire/Ambulance Stations
B78: FS185 Nala | C78: FS FREE STATE | AB78: Testing Stations
B79: DC18 Lejweleputswa | C79: FS FREE STATE | AB79: Museums
B80: FS191 Setsoto | C80: FS FREE STATE | AB80: Galleries
B81: FS192 Dihlabeng | C81: FS FREE STATE | AB81: Theatres
B82: FS193 Nketoana | C82: FS FREE STATE | AB82: Libraries
B83: FS194 Maluti-a-Phofung | C83: FS FREE STATE | AB83: Cemeteries/Crematoria
B84: FS195 Phumelela | C84: FS FREE STATE | AB84: Police
B85: FS196 Mantsopa | C85: FS FREE STATE | AB85: Purls
B86: DC19 Thabo Mofutsanyana | C86: FS FREE STATE | AB86: Public Open Space
B87: FS201 Moqhaka | C87: FS FREE STATE | AB87: Nature Reserves
B88: FS203 Ngwathe | C88: FS FREE STATE | AB88: Public Ablution Facilities
B89: FS204 Metsimaholo | C89: FS FREE STATE | AB89: Markets
B90: FS205 Mafube | C90: FS FREE STATE | AB90: Stalls
B91: DC20 Fezile Dabi | C91: FS FREE STATE | AB91: Abattoirs
B92: EKU City of Ekurhuleni | C92: GT GAUTENG | AB92: Airports
B93: JHB City Of Johannesburg | C93: GT GAUTENG | AB93: Taxi Ranks/Bus Terminals
B94: TSH City Of Tshwane | C94: GT GAUTENG | AB94: Capital Spares
B95: GT421 Emfuleni | C95: GT GAUTENG | AB95: Indoor Facilities
B96: GT422 Midvaal | C96: GT GAUTENG | AB96: Outdoor Facilities
B97: GT423 Lesedi | C97: GT GAUTENG | AB97: Capital Spares
B98: DC42 Sedibeng | C98: GT GAUTENG | AB98: Monuments
B99: GT481 Mogale City | C99: GT GAUTENG | AB99: Historic Buildings
B100: GT484 Merafong City | C100: GT GAUTENG | AB100: Works of Art
B101: GT485 Rand West City | C101: GT GAUTENG | AB101: Conservation Areas
B102: DC48 West Rand | C102: GT GAUTENG | AB102: Other Heritage
B103: ETH eThekwini | C103: KZN KWAZULU-NATAL | AB103: Improved Property
B104: KZN212 Umdoni | C104: KZN KWAZULU-NATAL | AB104: Unimproved Property
B105: KZN213 Umzumbe | C105: KZN KWAZULU-NATAL | AB105: Municipal Offices
B106: KZN214 uMuziwabantu | C106: KZN KWAZULU-NATAL | AB106: Pay/Enquiry Points
B107: KZN216 Ray Nkonyeni | C107: KZN KWAZULU-NATAL | AB107: Building Plan Offices
B108: DC21 Ugu | C108: KZN KWAZULU-NATAL | AB108: Workshops
B109: KZN221 uMshwathi | C109: KZN KWAZULU-NATAL | AB109: Yards
B110: KZN222 uMngeni | C110: KZN KWAZULU-NATAL | AB110: Stores
B111: KZN223 Mpofana | C111: KZN KWAZULU-NATAL | AB111: Laboratories
B112: KZN224 Impendle | C112: KZN KWAZULU-NATAL | AB112: Training Centres
B113: KZN225 Msunduzi | C113: KZN KWAZULU-NATAL | AB113: Manufacturing Plant
B114: KZN226 Mkhambathini | C114: KZN KWAZULU-NATAL | AB114: Depots
B115: KZN227 Richmond | C115: KZN KWAZULU-NATAL | AB115: Capital Spares
B116: DC22 uMgungundlovu | C116: KZN KWAZULU-NATAL | AB116: Staff Housing
B117: KZN235 Okhahlamba | C117: KZN KWAZULU-NATAL | AB117: Social Housing
B118: KZN237 Inkosi Langalibalele | C118: KZN KWAZULU-NATAL | AB118: Capital Spares
B119: KZN238 Alfred Duma | C119: KZN KWAZULU-NATAL | AB119: Water Rights
B120: DC23 Uthukela | C120: KZN KWAZULU-NATAL | AB120: Effluent Licenses
B121: KZN241 Endumeni | C121: KZN KWAZULU-NATAL | AB121: Solid Waste Licenses
B122: KZN242 Nquthu | C122: KZN KWAZULU-NATAL | AB122: Computer Software and Applications
B123: KZN244 Msinga | C123: KZN KWAZULU-NATAL | AB123: Load Settlement Software Applications
B124: KZN245 Umvoti | C124: KZN KWAZULU-NATAL | AB124: Unspecified
B125: DC24 Umzinyathi | C125: KZN KWAZULU-NATAL
B126: KZN252 Newcastle | C126: KZN KWAZULU-NATAL
B127: KZN253 Emadlangeni | C127: KZN KWAZULU-NATAL
B128: KZN254 Dannhauser | C128: KZN KWAZULU-NATAL
B129: DC25 Amajuba | C129: KZN KWAZULU-NATAL
B130: KZN261 eDumbe | C130: KZN KWAZULU-NATAL
B131: KZN262 uPhongolo | C131: KZN KWAZULU-NATAL
B132: KZN263 Abaqulusi | C132: KZN KWAZULU-NATAL
B133: KZN265 Nongoma | C133: KZN KWAZULU-NATAL
B134: KZN266 Ulundi | C134: KZN KWAZULU-NATAL
B135: DC26 Zululand | C135: KZN KWAZULU-NATAL
B136: KZN271 Umhlabuyalingana | C136: KZN KWAZULU-NATAL
B137: KZN272 Jozini | C137: KZN KWAZULU-NATAL
B138: KZN275 Mtubatuba | C138: KZN KWAZULU-NATAL
B139: KZN276 Hlabisa Big Five | C139: KZN KWAZULU-NATAL
B140: DC27 Umkhanyakude | C140: KZN KWAZULU-NATAL
B141: KZN281 Mfolozi | C141: KZN KWAZULU-NATAL
B142: KZN282 uMhlathuze | C142: KZN KWAZULU-NATAL
B143: KZN284 uMlalazi | C143: KZN KWAZULU-NATAL
B144: KZN285 Mthonjaneni | C144: KZN KWAZULU-NATAL
B145: KZN286 Nkandla | C145: KZN KWAZULU-NATAL
B146: DC28 King Cetshwayo | C146: KZN KWAZULU-NATAL
B147: KZN291 Mandeni | C147: KZN KWAZULU-NATAL
B148: KZN292 KwaDukuza | C148: KZN KWAZULU-NATAL
B149: KZN293 Ndwedwe | C149: KZN KWAZULU-NATAL
B150: KZN294 Maphumulo | C150: KZN KWAZULU-NATAL
B151: DC29 iLembe | C151: KZN KWAZULU-NATAL
B152: KZN433 Greater Kokstad | C152: KZN KWAZULU-NATAL
B153: KZN434 Ubuhlebezwe | C153: KZN KWAZULU-NATAL
B154: KZN435 Umzimkhulu | C154: KZN KWAZULU-NATAL
B155: KZN436 Dr Nkosazana Dlamini Zuma | C155: KZN KWAZULU-NATAL
B156: DC43 Harry Gwala | C156: KZN KWAZULU-NATAL
B157: LIM331 Greater Giyani | C157: LIM LIMPOPO
B158: LIM332 Greater Letaba | C158: LIM LIMPOPO
B159: LIM333 Greater Tzaneen | C159: LIM LIMPOPO
B160: LIM334 Ba-Phalaborwa | C160: LIM LIMPOPO
B161: LIM335 Maruleng | C161: LIM LIMPOPO
B162: DC33 Mopani | C162: LIM LIMPOPO
B163: LIM341 Musina | C163: LIM LIMPOPO
B164: LIM343 Thulamela | C164: LIM LIMPOPO
B165: LIM344 Makhado | C165: LIM LIMPOPO
B166: LIM345 Collins Chabane | C166: LIM LIMPOPO
B167: DC34 Vhembe | C167: LIM LIMPOPO
B168: LIM351 Blouberg | C168: LIM LIMPOPO
B169: LIM353 Molemole | C169: LIM LIMPOPO
B170: LIM354 Polokwane | C170: LIM LIMPOPO
B171: LIM355 Lepelle-Nkumpi | C171: LIM LIMPOPO
B172: DC35 Capricorn | C172: LIM LIMPOPO
B173: LIM361 Thabazimbi | C173: LIM LIMPOPO
B174: LIM362 Lephalale | C174: LIM LIMPOPO
B175: LIM366 Bela Bela | C175: LIM LIMPOPO
B176: LIM367 Mogalakwena | C176: LIM LIMPOPO
B177: LIM368 Modimolle-Mookgopong | C177: LIM LIMPOPO
B178: DC36 Waterberg | C178: LIM LIMPOPO
B179: LIM471 Ephraim Mogale | C179: LIM LIMPOPO
B180: LIM472 Elias Motsoaledi | C180: LIM LIMPOPO
B181: LIM473 Makhuduthamaga | C181: LIM LIMPOPO
B182: LIM476 Tubatse Fetakgomo | C182: LIM LIMPOPO
B183: DC47 Sekhukhune | C183: LIM LIMPOPO
B184: MP301 Albert Luthuli | C184: MP MPUMALANGA
B185: MP302 Msukaligwa | C185: MP MPUMALANGA
B186: MP303 Mkhondo | C186: MP MPUMALANGA
B187: MP304 Pixley Ka Seme (MP) | C187: MP MPUMALANGA
B188: MP305 Lekwa | C188: MP MPUMALANGA
B189: MP306 Dipaleseng | C189: MP MPUMALANGA
B190: MP307 Govan Mbeki | C190: MP MPUMALANGA
B191: DC30 Gert Sibande | C191: MP MPUMALANGA
B192: MP311 Victor Khanye | C192: MP MPUMALANGA
B193: MP312 Emalahleni (Mp) | C193: MP MPUMALANGA
B194: MP313 Steve Tshwete | C194: MP MPUMALANGA
B195: MP314 Emakhazeni | C195: MP MPUMALANGA
B196: MP315 Thembisile Hani | C196: MP MPUMALANGA
B197: MP316 Dr J.S. Moroka | C197: MP MPUMALANGA
B198: DC31 Nkangala | C198: MP MPUMALANGA
B199: MP321 Thaba Chweu | C199: MP MPUMALANGA
B200: MP324 Nkomazi | C200: MP MPUMALANGA
... 87 more rows

Sheet Org structure
A1: Organisational Structure Votes | C1: Organisational Structure Sub-Votes | E1: Display Sub-Votes
A2: =B2&" - "&C2 -> Vote 1 - GOVERNANCE AND ADMIN | B2: Vote 1 | C2: GOVERNANCE AND ADMIN
A3: =B13&" - "& C13 -> Vote 2 - FINANCE | B3: 1.1 | C3: Municipal Manager | D3: =CONCATENATE(B3, " - ", C3) -> 1.1 - Municipal Manager | E3: 1.1 - Municipal Manager
A4: =B24&" - "&C24 -> Vote 3 - CORPORATE SERVICES | B4: 1.2 | C4: Executive and Council | D4: 1.2 - Executive and Council | E4: 1.2 - Executive and Council
A5: =B35&" - "&C35 -> Vote 4 - COMMUNITY AND PUBLIC SAFETEY | B5: 1.3 | C5: Internal Audit | D5: 1.3 - Internal Audit | E5: 1.3 - Internal Audit
A6: =B46&" - "&C46 -> Vote 5 - PLANNING AND DEVELOPMENT | B6: 1.4 | C6: [Name of sub-vote] | D6: 1.4 - [Name of sub-vote]
A7: =B57&" - "&C57 -> Vote 6 - TECHNICAL SERVICES | B7: 1.5 | C7: [Name of sub-vote] | D7: 1.5 - [Name of sub-vote]
A8: =B68&" - "&C68 -> Vote 7 - [NAME OF VOTE 7] | B8: 1.6 | C8: [Name of sub-vote] | D8: 1.6 - [Name of sub-vote]
A9: =B79&" - "&C79 -> Vote 8 - [NAME OF VOTE 8] | B9: 1.7 | C9: [Name of sub-vote] | D9: 1.7 - [Name of sub-vote]
A10: =B90&" - "&C90 -> Vote 9 - [NAME OF VOTE 9] | B10: 1.8 | C10: [Name of sub-vote] | D10: 1.8 - [Name of sub-vote]
A11: =B101&" - "&C101 -> Vote 10 - [NAME OF VOTE 10] | B11: 1.9 | C11: [Name of sub-vote] | D11: 1.9 - [Name of sub-vote]
A12: =B112&" - "&C112 -> Vote 11 - [NAME OF VOTE 11] | B12: 1.10 | C12: [Name of sub-vote] | D12: 1.10 - [Name of sub-vote]
A13: =B123&" - "&C123 -> Vote 12 - [NAME OF VOTE 12] | B13: Vote 2 | C13: FINANCE
A14: =B134&" - "&C134 -> Vote 13 - [NAME OF VOTE 13] | B14: 2.1 | C14: Finance | D14: =CONCATENATE(B14, " - ", C14) -> 2.1 - Finance | E14: 2.1 - Finance
A15: =B145&" - "&C145 -> Vote 14 - [NAME OF VOTE 14] | B15: 2.2 | C15: [Name of sub-vote] | D15: 2.2 - [Name of sub-vote]
A16: =B156&" - "&C156 -> Vote 15 - [NAME OF VOTE 15] | B16: 2.3 | C16: [Name of sub-vote] | D16: 2.3 - [Name of sub-vote]
B17: 2.4 | C17: [Name of sub-vote] | D17: 2.4 - [Name of sub-vote]
B18: 2.5 | C18: [Name of sub-vote] | D18: 2.5 - [Name of sub-vote]
B19: 2.6 | C19: [Name of sub-vote] | D19: 2.6 - [Name of sub-vote]
B20: 2.7 | C20: [Name of sub-vote] | D20: 2.7 - [Name of sub-vote]
B21: 2.8 | C21: [Name of sub-vote] | D21: 2.8 - [Name of sub-vote]
B22: 2.9 | C22: [Name of sub-vote] | D22: 2.9 - [Name of sub-vote]
B23: 2.10 | C23: [Name of sub-vote] | D23: 2.10 - [Name of sub-vote]
B24: Vote 3 | C24: CORPORATE SERVICES
B25: 3.1 | C25: Corporate and Services | D25: =CONCATENATE(B25, " - ", C25) -> 3.1 - Corporate and Services | E25: 3.1 - Corporate and Services
B26: 3.2 | C26: [Name of sub-vote] | D26: 3.2 - [Name of sub-vote]
B27: 3.3 | C27: [Name of sub-vote] | D27: 3.3 - [Name of sub-vote]
B28: 3.4 | C28: [Name of sub-vote] | D28: 3.4 - [Name of sub-vote]
B29: 3.5 | C29: [Name of sub-vote] | D29: 3.5 - [Name of sub-vote]
B30: 3.6 | C30: [Name of sub-vote] | D30: 3.6 - [Name of sub-vote]
B31: 3.7 | C31: [Name of sub-vote] | D31: 3.7 - [Name of sub-vote]
B32: 3.8 | C32: [Name of sub-vote] | D32: 3.8 - [Name of sub-vote]
B33: 3.9 | C33: [Name of sub-vote] | D33: 3.9 - [Name of sub-vote]
B34: 3.10 | C34: [Name of sub-vote] | D34: 3.10 - [Name of sub-vote]
B35: Vote 4 | C35: COMMUNITY AND PUBLIC SAFETEY
B36: 4.1 | C36: Sports and recreational services | D36: =CONCATENATE(B36, " - ", C36) -> 4.1 - Sports and recreational services | E36: 4.1 - Sports and recreational services
B37: 4.2 | C37: Public Safety | D37: 4.2 - Public Safety | E37: 4.2 - Public Safety
B38: 4.3 | C38: Health & Waste Management | D38: 4.3 - Health & Waste Management | E38: 4.3 - Health & Waste Management
B39: 4.4 | C39: [Name of sub-vote] | D39: 4.4 - [Name of sub-vote]
B40: 4.5 | C40: [Name of sub-vote] | D40: 4.5 - [Name of sub-vote]
B41: 4.6 | C41: [Name of sub-vote] | D41: 4.6 - [Name of sub-vote]
B42: 4.7 | C42: [Name of sub-vote] | D42: 4.7 - [Name of sub-vote]
B43: 4.8 | C43: [Name of sub-vote] | D43: 4.8 - [Name of sub-vote]
B44: 4.9 | C44: [Name of sub-vote] | D44: 4.9 - [Name of sub-vote]
B45: 4.10 | C45: [Name of sub-vote] | D45: 4.10 - [Name of sub-vote]
B46: Vote 5 | C46: PLANNING AND DEVELOPMENT
B47: 5.1 | C47: Planning and Development | D47: =CONCATENATE(B47, " - ", C47) -> 5.1 - Planning and Development | E47: 5.1 - Planning and Development
B48: 5.2 | C48: [Name of sub-vote] | D48: 5.2 - [Name of sub-vote]
B49: 5.3 | C49: [Name of sub-vote] | D49: 5.3 - [Name of sub-vote]
B50: 5.4 | C50: [Name of sub-vote] | D50: 5.4 - [Name of sub-vote]
B51: 5.5 | C51: [Name of sub-vote] | D51: 5.5 - [Name of sub-vote]
B52: 5.6 | C52: [Name of sub-vote] | D52: 5.6 - [Name of sub-vote]
B53: 5.7 | C53: [Name of sub-vote] | D53: 5.7 - [Name of sub-vote]
B54: 5.8 | C54: [Name of sub-vote] | D54: 5.8 - [Name of sub-vote]
B55: 5.9 | C55: [Name of sub-vote] | D55: 5.9 - [Name of sub-vote]
B56: 5.10 | C56: [Name of sub-vote] | D56: 5.10 - [Name of sub-vote]
B57: Vote 6 | C57: TECHNICAL SERVICES
B58: 6.1 | C58: Roads | D58: =CONCATENATE(B58, " - ", C58) -> 6.1 - Roads | E58: 6.1 - Roads
B59: 6.2 | C59: Housing and electricity | D59: 6.2 - Housing and electricity | E59: 6.2 - Housing and electricity
B60: 6.3 | C60: [Name of sub-vote] | D60: 6.3 - [Name of sub-vote]
B61: 6.4 | C61: [Name of sub-vote] | D61: 6.4 - [Name of sub-vote]
B62: 6.5 | C62: [Name of sub-vote] | D62: 6.5 - [Name of sub-vote]
B63: 6.6 | C63: [Name of sub-vote] | D63: 6.6 - [Name of sub-vote]
B64: 6.7 | C64: [Name of sub-vote] | D64: 6.7 - [Name of sub-vote]
B65: 6.8 | C65: [Name of sub-vote] | D65: 6.8 - [Name of sub-vote]
B66: 6.9 | C66: [Name of sub-vote] | D66: 6.9 - [Name of sub-vote]
B67: 6.10 | C67: [Name of sub-vote] | D67: 6.10 - [Name of sub-vote]
B68: Vote 7 | C68: [NAME OF VOTE 7]
B69: 7.1 | C69: [Name of sub-vote] | D69: =CONCATENATE(B69, " - ", C69) -> 7.1 - [Name of sub-vote] | E69: 7.1 - [Name of sub-vote]
B70: 7.2 | C70: [Name of sub-vote] | D70: 7.2 - [Name of sub-vote]
B71: 7.3 | C71: [Name of sub-vote] | D71: 7.3 - [Name of sub-vote]
B72: 7.4 | C72: [Name of sub-vote] | D72: 7.4 - [Name of sub-vote]
B73: 7.5 | C73: [Name of sub-vote] | D73: 7.5 - [Name of sub-vote]
B74: 7.6 | C74: [Name of sub-vote] | D74: 7.6 - [Name of sub-vote]
B75: 7.7 | C75: [Name of sub-vote] | D75: 7.7 - [Name of sub-vote]
B76: 7.8 | C76: [Name of sub-vote] | D76: 7.8 - [Name of sub-vote]
B77: 7.9 | C77: [Name of sub-vote] | D77: 7.9 - [Name of sub-vote]
B78: 7.10 | C78: [Name of sub-vote] | D78: 7.10 - [Name of sub-vote]
B79: Vote 8 | C79: [NAME OF VOTE 8]
B80: 8.1 | C80: [Name of sub-vote] | D80: =CONCATENATE(B80, " - ", C80) -> 8.1 - [Name of sub-vote] | E80: 8.1 - [Name of sub-vote]
B81: 8.2 | C81: [Name of sub-vote] | D81: 8.2 - [Name of sub-vote]
B82: 8.3 | C82: [Name of sub-vote] | D82: 8.3 - [Name of sub-vote]
B83: 8.4 | C83: [Name of sub-vote] | D83: 8.4 - [Name of sub-vote]
B84: 8.5 | C84: [Name of sub-vote] | D84: 8.5 - [Name of sub-vote]
B85: 8.6 | C85: [Name of sub-vote] | D85: 8.6 - [Name of sub-vote]
B86: 8.7 | C86: [Name of sub-vote] | D86: 8.7 - [Name of sub-vote]
B87: 8.8 | C87: [Name of sub-vote] | D87: 8.8 - [Name of sub-vote]
B88: 8.9 | C88: [Name of sub-vote] | D88: 8.9 - [Name of sub-vote]
B89: 8.10 | C89: [Name of sub-vote] | D89: 8.10 - [Name of sub-vote]
B90: Vote 9 | C90: [NAME OF VOTE 9]
B91: 9.1 | C91: [Name of sub-vote] | D91: =CONCATENATE(B91, " - ", C91) -> 9.1 - [Name of sub-vote] | E91: 9.1 - [Name of sub-vote]
B92: 9.2 | C92: [Name of sub-vote] | D92: 9.2 - [Name of sub-vote]
B93: 9.3 | C93: [Name of sub-vote] | D93: 9.3 - [Name of sub-vote]
B94: 9.4 | C94: [Name of sub-vote] | D94: 9.4 - [Name of sub-vote]
B95: 9.5 | C95: [Name of sub-vote] | D95: 9.5 - [Name of sub-vote]
B96: 9.6 | C96: [Name of sub-vote] | D96: 9.6 - [Name of sub-vote]
B97: 9.7 | C97: [Name of sub-vote] | D97: 9.7 - [Name of sub-vote]
B98: 9.8 | C98: [Name of sub-vote] | D98: 9.8 - [Name of sub-vote]
B99: 9.9 | C99: [Name of sub-vote] | D99: 9.9 - [Name of sub-vote]
B100: 9.10 | C100: [Name of sub-vote] | D100: 9.10 - [Name of sub-vote]
B101: Vote 10 | C101: [NAME OF VOTE 10]
B102: 10.1 | C102: [Name of sub-vote] | D102: =CONCATENATE(B102, " - ", C102) -> 10.1 - [Name of sub-vote] | E102: 10.1 - [Name of sub-vote]
B103: 10.2 | C103: [Name of sub-vote] | D103: 10.2 - [Name of sub-vote]
B104: 10.3 | C104: [Name of sub-vote] | D104: 10.3 - [Name of sub-vote]
B105: 10.4 | C105: [Name of sub-vote] | D105: 10.4 - [Name of sub-vote]
B106: 10.5 | C106: [Name of sub-vote] | D106: 10.5 - [Name of sub-vote]
B107: 10.6 | C107: [Name of sub-vote] | D107: 10.6 - [Name of sub-vote]
B108: 10.7 | C108: [Name of sub-vote] | D108: 10.7 - [Name of sub-vote]
B109: 10.8 | C109: [Name of sub-vote] | D109: 10.8 - [Name of sub-vote]
B110: 10.9 | C110: [Name of sub-vote] | D110: 10.9 - [Name of sub-vote]
B111: 10.10 | C111: [Name of sub-vote] | D111: 10.10 - [Name of sub-vote]
B112: Vote 11 | C112: [NAME OF VOTE 11]
B113: 11.1 | C113: [Name of sub-vote] | D113: =CONCATENATE(B113, " - ", C113) -> 11.1 - [Name of sub-vote] | E113: 11.1 - [Name of sub-vote]
B114: 11.2 | C114: [Name of sub-vote] | D114: 11.2 - [Name of sub-vote]
B115: 11.3 | C115: [Name of sub-vote] | D115: 11.3 - [Name of sub-vote]
B116: 11.4 | C116: [Name of sub-vote] | D116: 11.4 - [Name of sub-vote]
B117: 11.5 | C117: [Name of sub-vote] | D117: 11.5 - [Name of sub-vote]
B118: 11.6 | C118: [Name of sub-vote] | D118: 11.6 - [Name of sub-vote]
B119: 11.7 | C119: [Name of sub-vote] | D119: 11.7 - [Name of sub-vote]
B120: 11.8 | C120: [Name of sub-vote] | D120: 11.8 - [Name of sub-vote]
B121: 11.9 | C121: [Name of sub-vote] | D121: 11.9 - [Name of sub-vote]
B122: 11.10 | C122: [Name of sub-vote] | D122: 11.10 - [Name of sub-vote]
B123: Vote 12 | C123: [NAME OF VOTE 12]
B124: 12.1 | C124: [Name of sub-vote] | D124: =CONCATENATE(B124, " - ", C124) -> 12.1 - [Name of sub-vote] | E124: 12.1 - [Name of sub-vote]
B125: 12.2 | C125: [Name of sub-vote] | D125: 12.2 - [Name of sub-vote]
B126: 12.3 | C126: [Name of sub-vote] | D126: 12.3 - [Name of sub-vote]
B127: 12.4 | C127: [Name of sub-vote] | D127: 12.4 - [Name of sub-vote]
B128: 12.5 | C128: [Name of sub-vote] | D128: 12.5 - [Name of sub-vote]
B129: 12.6 | C129: [Name of sub-vote] | D129: 12.6 - [Name of sub-vote]
B130: 12.7 | C130: [Name of sub-vote] | D130: 12.7 - [Name of sub-vote]
B131: 12.8 | C131: [Name of sub-vote] | D131: 12.8 - [Name of sub-vote]
B132: 12.9 | C132: [Name of sub-vote] | D132: 12.9 - [Name of sub-vote]
B133: 12.10 | C133: [Name of sub-vote] | D133: 12.10 - [Name of sub-vote]
B134: Vote 13 | C134: [NAME OF VOTE 13]
B135: 13.1 | C135: [Name of sub-vote] | D135: =CONCATENATE(B135, " - ", C135) -> 13.1 - [Name of sub-vote] | E135: 13.1 - [Name of sub-vote]
B136: 13.2 | C136: [Name of sub-vote] | D136: 13.2 - [Name of sub-vote]
B137: 13.3 | C137: [Name of sub-vote] | D137: 13.3 - [Name of sub-vote]
B138: 13.4 | C138: [Name of sub-vote] | D138: 13.4 - [Name of sub-vote]
B139: 13.5 | C139: [Name of sub-vote] | D139: 13.5 - [Name of sub-vote]
B140: 13.6 | C140: [Name of sub-vote] | D140: 13.6 - [Name of sub-vote]
B141: 13.7 | C141: [Name of sub-vote] | D141: 13.7 - [Name of sub-vote]
B142: 13.8 | C142: [Name of sub-vote] | D142: 13.8 - [Name of sub-vote]
B143: 13.9 | C143: [Name of sub-vote] | D143: 13.9 - [Name of sub-vote]
B144: 13.10 | C144: [Name of sub-vote] | D144: 13.10 - [Name of sub-vote]
B145: Vote 14 | C145: [NAME OF VOTE 14]
B146: 14.1 | C146: [Name of sub-vote] | D146: =CONCATENATE(B146, " - ", C146) -> 14.1 - [Name of sub-vote] | E146: 14.1 - [Name of sub-vote]
B147: 14.2 | C147: [Name of sub-vote] | D147: 14.2 - [Name of sub-vote]
B148: 14.3 | C148: [Name of sub-vote] | D148: 14.3 - [Name of sub-vote]
B149: 14.4 | C149: [Name of sub-vote] | D149: 14.4 - [Name of sub-vote]
B150: 14.5 | C150: [Name of sub-vote] | D150: 14.5 - [Name of sub-vote]
B151: 14.6 | C151: [Name of sub-vote] | D151: 14.6 - [Name of sub-vote]
B152: 14.7 | C152: [Name of sub-vote] | D152: 14.7 - [Name of sub-vote]
B153: 14.8 | C153: [Name of sub-vote] | D153: 14.8 - [Name of sub-vote]
B154: 14.9 | C154: [Name of sub-vote] | D154: 14.9 - [Name of sub-vote]
B155: 14.10 | C155: [Name of sub-vote] | D155: 14.10 - [Name of sub-vote]
B156: Vote 15 | C156: [NAME OF VOTE 15]
B157: 15.1 | C157: [Name of sub-vote] | D157: =CONCATENATE(B157, " - ", C157) -> 15.1 - [Name of sub-vote] | E157: 15.1 - [Name of sub-vote]
B158: 15.2 | C158: [Name of sub-vote] | D158: 15.2 - [Name of sub-vote]
B159: 15.3 | C159: [Name of sub-vote] | D159: 15.3 - [Name of sub-vote]
B160: 15.4 | C160: [Name of sub-vote] | D160: 15.4 - [Name of sub-vote]
B161: 15.5 | C161: [Name of sub-vote] | D161: 15.5 - [Name of sub-vote]
B162: 15.6 | C162: [Name of sub-vote] | D162: 15.6 - [Name of sub-vote]
B163: 15.7 | C163: [Name of sub-vote] | D163: 15.7 - [Name of sub-vote]
B164: 15.8 | C164: [Name of sub-vote] | D164: 15.8 - [Name of sub-vote]
B165: 15.9 | C165: [Name of sub-vote] | D165: 15.9 - [Name of sub-vote]
B166: 15.10 | C166: [Name of sub-vote] | D166: 15.10 - [Name of sub-vote]

Sheet Contacts
A1: =muni&" - "&" Contact Information" -> LIM343 Thulamela - Contact Information
A3: A. GENERAL INFORMATION
A4: Municipality | B4: =muni -> LIM343 Thulamela | C4: =IF(B4="Choose name from List","Set name on 'Instructions' sheet", "") -> 
A6: Grade | C6: 1 Grade in terms of the Remuneration of Public Office Bearers Act.
A8: Province | B8: =IF(B4>" ",VLOOKUP(B4,'Lookup and lists'!B29:C307,2, FALSE)," ") -> LIM LIMPOPO
A10: Web Address | B10: www.thulamela.gov.za
A12: e-mail Address | B12: tshivulemm@thulamela.gov.za
A14: B. CONTACT INFORMATION
A15: Postal address:
A16: P.O. Box | B16: 5066
A17: City / Town | B17: Thohoyandou
A18: Postal Code | B18: 950
A20: Street address
A21: Building | B21: Old Agriven
A22: Street No. & Name
A23: City / Town | B23: Thohoyandou
A24: Postal Code | B24: 950
A26: General Contacts
A27: Telephone number | B27: 015 962 7500
A28: Fax number | B28: 015 962 4020
A30: C. POLITICAL LEADERSHIP
A31: Speaker: | C31: Secretary/PA to the Speaker:
A32: ID Number | C32: ID Number
A33: Title | B33: MRS | C33: Title | D33: MS
A34: Name | B34: MULOVHEDZI HP | C34: Name | D34: MAKARINGE AN
A35: Telephone number | B35: 015 962 7664 | C35: Telephone number | D35: 015 962 7634
A36: Cell number | B36: 076 636 3501 | C36: Cell number | D36: 063 683 0003
A37: Fax number | B37: 015 962 4020 | C37: Fax number | D37: 015 962 4020
A38: E-mail address | B38: mulovhedzihp@thulamela.gov.za | C38: E-mail address | D38: makaringean@thulamela.gov.za
A40: Mayor/Executive Mayor: | C40: Secretary/PA to the Mayor/Executive Mayor:
A41: ID Number | C41: ID Number
A42: Title | B42: MR | C42: Title | D42: MS
A43: Name | B43: TSHIFHANGO AS | C43: Name | D43: NEDOHE RK
A44: Telephone number | B44: 015 962 7590 | C44: Telephone number | D44: 015 962 7694
A45: Cell number | B45: 073 584 2213 | C45: Cell number | D45: 064 779 1683
A46: Fax number | B46: 015 962 6389 | C46: Fax number | D46: 015 962 4020
A47: E-mail address | B47: tshifhangoas@thulamela.gov.za | C47: E-mail address | D47: nedoherk@thulamela.gov.za
A49: Deputy Mayor/Executive Mayor: | C49: Secretary/PA to the Deputy Mayor/Executive Mayor:
A50: ID Number | C50: ID Number
A51: Title | C51: Title
A52: Name | C52: Name
A53: Telephone number | C53: Telephone number
A54: Cell number | C54: Cell number
A55: Fax number | C55: Fax number
A56: E-mail address | C56: E-mail address
A58: D. MANAGEMENT LEADERSHIP
A59: Municipal Manager: | C59: Secretary/PA to the Municipal Manager:
A60: ID Number | C60: ID Number
A61: Title | B61: MR | C61: Title | D61: MR
A62: Name | B62: MALULEKE HE | C62: Name | D62: MOJELA RR
A63: Telephone number | B63: 015 962 7624 | C63: Telephone number | D63: 015 962 7624
A64: Cell number | B64: 083 256 5150 | C64: Cell number | D64: 071 798 7340
A65: Fax number | B65: 015 962 4020 | C65: Fax number | D65: 015 962 4020
A66: E-mail address | B66: malulekehe@thulamela.gov.za | C66: E-mail address | D66: mojelarr@thulamela.gov.za
A68: Chief Financial Officer | C68: Secretary/PA to the Chief Financial Officer
A69: ID Number | C69: ID Number
A70: Title | B70: Mr | C70: Title | D70: MS
A71: Name | B71: TSHIVULE MM | C71: Name | D71: MAFHAGA TF
A72: Telephone number | B72: 015 962 7513 | C72: Telephone number | D72: 015 962 7614
A73: Cell number | B73: 083 445 2089 | C73: Cell number | D73: 072 187 9297
A74: Fax number | B74: 015 962 4020 | C74: Fax number | D74: 015 962 4020
A75: E-mail address | B75: tshivulemm@thulamela.gov.za | C75: E-mail address | D75: mafhagatf@thulamela.gov.za
A77: Official responsible for submitting financial information | C77: Official responsible for submitting financial information
A78: ID Number | C78: ID Number
A79: Title | B79: MS | C79: Title | D79: MRS
A80: Name | B80: RAMBOHO LC | C80: Name | D80: KHARIVHE L.P
A81: Telephone number | B81: 015 962 7710 | C81: Telephone number | D81: 015 962 7603
A82: Cell number | B82: 071 600 8083 | C82: Cell number | D82: 082 860 7638
A83: Fax number | B83: 015 962 4020 | C83: Fax number | D83: 015 962 4020
A84: E-mail address | B84: ramboholc@thulamela.gov.za | C84: E-mail address | D84: kharivhelp@thulamela.gov.za
A85: Official responsible for submitting financial information | C85: Official responsible for submitting financial information
A86: ID Number | C86: ID Number
A87: Title | B87: MS | C87: Title | D87: MS
A88: Name | B88: MATSHEMA AM | C88: Name | D88: MULAUDZI T
A89: Telephone number | B89: 015 962 7715 | C89: Telephone number | D89: 015 962 7513
A90: Cell number | B90: 079 735 7845 | C90: Cell number | D90: 076 449 8083
A91: Fax number | B91: 015 962 4020 | C91: Fax number | D91: 015 962 4020
A92: E-mail address | B92: matshemaam@thulamela.gov.za | C92: E-mail address | D92: mulaudzin@thulamela.gov.za
A93: Official responsible for submitting financial information | C93: Official responsible for submitting financial information
A94: ID Number | C94: ID Number
A95: Title | C95: Title
A96: Name | C96: Name
A97: Telephone number | C97: Telephone number
A98: Cell number | C98: Cell number
A99: Fax number | C99: Fax number
A100: E-mail address | C100: E-mail address
A101: Official responsible for submitting financial information | C101: Official responsible for submitting financial information
A102: ID Number | C102: ID Number
A103: Title | C103: Title
A104: Name | C104: Name
A105: Telephone number | C105: Telephone number
A106: Cell number | C106: Cell number
A107: Fax number | C107: Fax number
A108: E-mail address | C108: E-mail address
A109: Official responsible for submitting financial information | C109: Official responsible for submitting financial information
A110: ID Number | C110: ID Number
A111: Title | C111: Title
A112: Name | C112: Name
A113: Telephone number | C113: Telephone number
A114: Cell number | C114: Cell number
A115: Fax number | C115: Fax number
A116: E-mail address | C116: E-mail address
A117: Official responsible for submitting financial information | C117: Official responsible for submitting financial information
A118: ID Number | C118: ID Number
A119: Title | C119: Title
A120: Name | C120: Name
A121: Telephone number | C121: Telephone number
A122: Cell number | C122: Cell number
A123: Fax number | C123: Fax number
A124: E-mail address | C124: E-mail address
A125: Official responsible for submitting financial information | C125: Official responsible for submitting financial information
A126: ID Number | C126: ID Number
A127: Title | C127: Title
A128: Name | C128: Name
A129: Telephone number | C129: Telephone number
A130: Cell number | C130: Cell number
A131: Fax number | C131: Fax number
A132: E-mail address | C132: E-mail address
A133: Official responsible for submitting financial information
A134: ID Number
A135: Title
A136: Name
A137: Telephone number
A138: Cell number
A139: Fax number
A140: E-mail address

Sheet A1-Sum
A1: =muni&" - "&Approve1 -> LIM343 Thulamela - Table A1 Budget Summary
A2: =desc -> Description | B2: =head1b -> 2016/17 | C2: =head1A -> 2017/18 | D2: =Head1 -> 2018/19 | E2: =Head2 -> Current Year 2019/20 | I2: =Head3 -> 2020/21 Medium Term Revenue & Expenditure Framework
A3: R thousands | B3: =Head5 -> Audited Outcome | C3: =Head5 -> Audited Outcome | D3: =Head5 -> Audited Outcome | E3: =Head6 -> Original Budget | F3: =Head7 -> Adjusted Budget | G3: =Head8 -> Full Year Forecast | H3: =Head5b -> Pre-audit outcome | I3: =Head9 -> Budget Year 2020/21 | J3: =Head10 -> Budget Year +1 2021/22 | K3: =Head11 -> Budget Year +2 2022/23
A4: Financial Performance
A5: Property rates | B5: ='A4-FinPerf RE'!C5 -> 44,111 | C5: ='A4-FinPerf RE'!D5 -> 53,944 | D5: ='A4-FinPerf RE'!E5 -> 61,076 | E5: ='A4-FinPerf RE'!F5 -> 70,190 | F5: ='A4-FinPerf RE'!G5 -> 97,147 | G5: ='A4-FinPerf RE'!H5 -> 97,147 | H5: ='A4-FinPerf RE'!I5 -> 61,076 | I5: ='A4-FinPerf RE'!J5 -> 108,961 | J5: ='A4-FinPerf RE'!K5 -> 116,547 | K5: ='A4-FinPerf RE'!L5 -> 120,298
A6: Service charges | B6: =SUM('A4-FinPerf RE'!C6:C9) -> 43,271 | C6: =SUM('A4-FinPerf RE'!D6:D9) -> 46,445 | D6: =SUM('A4-FinPerf RE'!E6:E9) -> 21,052 | E6: =SUM('A4-FinPerf RE'!F6:F9) -> 46,518 | F6: =SUM('A4-FinPerf RE'!G6:G9) -> 30,764 | G6: =SUM('A4-FinPerf RE'!H6:H9) -> 30,764 | H6: =SUM('A4-FinPerf RE'!I6:I9) -> 20,691 | I6: =SUM('A4-FinPerf RE'!J6:J9) -> 34,436 | J6: =SUM('A4-FinPerf RE'!K6:K9) -> 36,184 | K6: =SUM('A4-FinPerf RE'!L6:L9) -> 38,873
A7: Investment revenue | B7: ='A4-FinPerf RE'!C12 -> 29,570 | C7: ='A4-FinPerf RE'!D12 -> 28,808 | D7: ='A4-FinPerf RE'!E12 -> 33,974 | E7: ='A4-FinPerf RE'!F12 -> 35,000 | F7: ='A4-FinPerf RE'!G12 -> 36,000 | G7: ='A4-FinPerf RE'!H12 -> 36,000 | H7: ='A4-FinPerf RE'!I12 -> 33,974 | I7: ='A4-FinPerf RE'!J12 -> 38,000 | J7: ='A4-FinPerf RE'!K12 -> 39,748 | K7: ='A4-FinPerf RE'!L12 -> 41,576
A8: Transfers recognised - operational | B8: ='A4-FinPerf RE'!C18 -> 419,476 | C8: ='A4-FinPerf RE'!D18 -> 393,323 | D8: ='A4-FinPerf RE'!E18 -> 401,812 | E8: ='A4-FinPerf RE'!F18 -> 482,309 | F8: ='A4-FinPerf RE'!G18 -> 480,559 | G8: ='A4-FinPerf RE'!H18 -> 480,559 | H8: ='A4-FinPerf RE'!I18 -> 436,812 | I8: ='A4-FinPerf RE'!J18 -> 505,805 | J8: ='A4-FinPerf RE'!K18 -> 533,094 | K8: ='A4-FinPerf RE'!L18 -> 563,797
A9: Other own revenue | B9: ='A4-FinPerf RE'!C11+'A4-FinPerf RE'!C13+'A4-FinPerf RE'!C14+'A4-FinPerf RE'!C15+'A4-FinPerf RE'!C16+'A4-FinPerf RE'!C17+'A4-FinPerf RE'!C19+'A4-FinPerf RE'!C20 -> 57,806 | C9: ='A4-FinPerf RE'!D11+'A4-FinPerf RE'!D13+'A4-FinPerf RE'!D14+'A4-FinPerf RE'!D15+'A4-FinPerf RE'!D16+'A4-FinPerf RE'!D17+'A4-FinPerf RE'!D19+'A4-FinPerf RE'!D20 -> 65,371 | D9: ='A4-FinPerf RE'!E11+'A4-FinPerf RE'!E13+'A4-FinPerf RE'!E14+'A4-FinPerf RE'!E15+'A4-FinPerf RE'!E16+'A4-FinPerf RE'!E17+'A4-FinPerf RE'!E19+'A4-FinPerf RE'!E20 -> 67,768 | E9: ='A4-FinPerf RE'!F11+'A4-FinPerf RE'!F13+'A4-FinPerf RE'!F14+'A4-FinPerf RE'!F15+'A4-FinPerf RE'!F16+'A4-FinPerf RE'!F17+'A4-FinPerf RE'!F19+'A4-FinPerf RE'!F20 -> 113,512 | F9: ='A4-FinPerf RE'!G11+'A4-FinPerf RE'!G13+'A4-FinPerf RE'!G14+'A4-FinPerf RE'!G15+'A4-FinPerf RE'!G16+'A4-FinPerf RE'!G17+'A4-FinPerf RE'!G19+'A4-FinPerf RE'!G20 -> 114,903 | G9: ='A4-FinPerf RE'!H11+'A4-FinPerf RE'!H13+'A4-FinPerf RE'!H14+'A4-FinPerf RE'!H15+'A4-FinPerf RE'!H16+'A4-FinPerf RE'!H17+'A4-FinPerf RE'!H19+'A4-FinPerf RE'!H20 -> 114,903 | H9: ='A4-FinPerf RE'!I11+'A4-FinPerf RE'!I13+'A4-FinPerf RE'!I14+'A4-FinPerf RE'!I15+'A4-FinPerf RE'!I16+'A4-FinPerf RE'!I17+'A4-FinPerf RE'!I19+'A4-FinPerf RE'!I20 -> 68,617 | I9: ='A4-FinPerf RE'!J11+'A4-FinPerf RE'!J13+'A4-FinPerf RE'!J14+'A4-FinPerf RE'!J15+'A4-FinPerf RE'!J16+'A4-FinPerf RE'!J17+'A4-FinPerf RE'!J19+'A4-FinPerf RE'!J20 -> 118,821 | J9: ='A4-FinPerf RE'!K11+'A4-FinPerf RE'!K13+'A4-FinPerf RE'!K14+'A4-FinPerf RE'!K15+'A4-FinPerf RE'!K16+'A4-FinPerf RE'!K17+'A4-FinPerf RE'!K19+'A4-FinPerf RE'!K20 -> 119,082 | K9: ='A4-FinPerf RE'!L11+'A4-FinPerf RE'!L13+'A4-FinPerf RE'!L14+'A4-FinPerf RE'!L15+'A4-FinPerf RE'!L16+'A4-FinPerf RE'!L17+'A4-FinPerf RE'!L19+'A4-FinPerf RE'!L20 -> 123,671
A10: ='A4-FinPerf RE'!A21 -> Total Revenue (excluding capital transfers and contributions) | B10: =SUM(B5:B9) -> 594,234 | C10: 587,891 | D10: 585,681 | E10: 747,529 | F10: 759,373 | G10: 759,373 | H10: 621,169 | I10: 806,023 | J10: 844,654 | K10: 888,215
A11: Employee costs | B11: ='A4-FinPerf RE'!C24 -> 227,164 | C11: ='A4-FinPerf RE'!D24 -> 243,870 | D11: ='A4-FinPerf RE'!E24 -> 261,950 | E11: ='A4-FinPerf RE'!F24 -> 274,561 | F11: ='A4-FinPerf RE'!G24 -> 285,496 | G11: ='A4-FinPerf RE'!H24 -> 285,496 | H11: ='A4-FinPerf RE'!I24 -> 267,062 | I11: ='A4-FinPerf RE'!J24 -> 306,893 | J11: ='A4-FinPerf RE'!K24 -> 326,061 | K11: ='A4-FinPerf RE'!L24 -> 346,428
A12: Remuneration of councillors | B12: ='A4-FinPerf RE'!C25 -> 25,767 | C12: ='A4-FinPerf RE'!D25 -> 28,412 | D12: ='A4-FinPerf RE'!E25 -> 29,330 | E12: ='A4-FinPerf RE'!F25 -> 35,200 | F12: ='A4-FinPerf RE'!G25 -> 35,200 | G12: ='A4-FinPerf RE'!H25 -> 35,200 | H12: ='A4-FinPerf RE'!I25 -> 29,118 | I12: ='A4-FinPerf RE'!J25 -> 36,960 | J12: ='A4-FinPerf RE'!K25 -> 38,808 | K12: ='A4-FinPerf RE'!L25 -> 40,748
A13: Depreciation & asset impairment | B13: ='A4-FinPerf RE'!C27 -> 46,345 | C13: ='A4-FinPerf RE'!D27 -> 50,533 | D13: ='A4-FinPerf RE'!E27 -> 50,223 | E13: ='A4-FinPerf RE'!F27 -> 58,000 | F13: ='A4-FinPerf RE'!G27 -> 60,840 | G13: ='A4-FinPerf RE'!H27 -> 60,840 | H13: ='A4-FinPerf RE'!I27 -> 86,266 | I13: ='A4-FinPerf RE'!J27 -> 60,466 | J13: ='A4-FinPerf RE'!K27 -> 60,470 | K13: ='A4-FinPerf RE'!L27 -> 60,820
A14: Finance charges | B14: ='A4-FinPerf RE'!C28 -> 558 | C14: ='A4-FinPerf RE'!D28 -> 225 | D14: ='A4-FinPerf RE'!E28 -> 2,365 | E14: ='A4-FinPerf RE'!F28 -> 0 | F14: ='A4-FinPerf RE'!G28 -> 50 | G14: ='A4-FinPerf RE'!H28 -> 50 | H14: ='A4-FinPerf RE'!I28 -> 2,374 | I14: ='A4-FinPerf RE'!J28 -> 50 | J14: ='A4-FinPerf RE'!K28 -> 52 | K14: ='A4-FinPerf RE'!L28 -> 55
A15: Materials and bulk purchases | B15: ='A4-FinPerf RE'!C29+'A4-FinPerf RE'!C30 -> 0 | C15: ='A4-FinPerf RE'!D29+'A4-FinPerf RE'!D30 -> 0 | D15: ='A4-FinPerf RE'!E29+'A4-FinPerf RE'!E30 -> 7,487 | E15: ='A4-FinPerf RE'!F29+'A4-FinPerf RE'!F30 -> 31,647 | F15: ='A4-FinPerf RE'!G29+'A4-FinPerf RE'!G30 -> 14,637 | G15: ='A4-FinPerf RE'!H29+'A4-FinPerf RE'!H30 -> 14,637 | H15: ='A4-FinPerf RE'!I29+'A4-FinPerf RE'!I30 -> 0 | I15: ='A4-FinPerf RE'!J29+'A4-FinPerf RE'!J30 -> 16,920 | J15: ='A4-FinPerf RE'!K29+'A4-FinPerf RE'!K30 -> 17,698 | K15: ='A4-FinPerf RE'!L29+'A4-FinPerf RE'!L30 -> 18,511
A16: Transfers and grants | B16: ='A4-FinPerf RE'!C32 -> 0 | C16: ='A4-FinPerf RE'!D32 -> 0 | D16: ='A4-FinPerf RE'!E32 -> 6,354 | E16: ='A4-FinPerf RE'!F32 -> 13,560 | F16: ='A4-FinPerf RE'!G32 -> 8,967 | G16: ='A4-FinPerf RE'!H32 -> 8,967 | H16: ='A4-FinPerf RE'!I32 -> 0 | I16: ='A4-FinPerf RE'!J32 -> 6,056 | J16: ='A4-FinPerf RE'!K32 -> 6,106 | K16: ='A4-FinPerf RE'!L32 -> 6,158
A17: Other expenditure | B17: ='A4-FinPerf RE'!C26+'A4-FinPerf RE'!C31+'A4-FinPerf RE'!C33+'A4-FinPerf RE'!C34 -> 540,137 | C17: ='A4-FinPerf RE'!D26+'A4-FinPerf RE'!D31+'A4-FinPerf RE'!D33+'A4-FinPerf RE'!D34 -> 305,759 | D17: ='A4-FinPerf RE'!E26+'A4-FinPerf RE'!E31+'A4-FinPerf RE'!E33+'A4-FinPerf RE'!E34 -> 265,532 | E17: ='A4-FinPerf RE'!F26+'A4-FinPerf RE'!F31+'A4-FinPerf RE'!F33+'A4-FinPerf RE'!F34 -> 263,561 | F17: ='A4-FinPerf RE'!G26+'A4-FinPerf RE'!G31+'A4-FinPerf RE'!G33+'A4-FinPerf RE'!G34 -> 281,398 | G17: ='A4-FinPerf RE'!H26+'A4-FinPerf RE'!H31+'A4-FinPerf RE'!H33+'A4-FinPerf RE'!H34 -> 281,398 | H17: ='A4-FinPerf RE'!I26+'A4-FinPerf RE'!I31+'A4-FinPerf RE'!I33+'A4-FinPerf RE'!I34 -> 247,617 | I17: ='A4-FinPerf RE'!J26+'A4-FinPerf RE'!J31+'A4-FinPerf RE'!J33+'A4-FinPerf RE'!J34 -> 287,380 | J17: ='A4-FinPerf RE'!K26+'A4-FinPerf RE'!K31+'A4-FinPerf RE'!K33+'A4-FinPerf RE'!K34 -> 291,693 | K17: ='A4-FinPerf RE'!L26+'A4-FinPerf RE'!L31+'A4-FinPerf RE'!L33+'A4-FinPerf RE'!L34 -> 297,734
A18: ='A4-FinPerf RE'!A35 -> Total Expenditure | B18: =SUM(B11:B17) -> 839,970 | C18: =SUM(C11:C17) -> 628,799 | D18: 623,242 | E18: 676,529 | F18: 686,588 | G18: 686,588 | H18: 632,437 | I18: 714,725 | J18: 740,889 | K18: 770,454
A19: ='A4-FinPerf RE'!A37 -> Surplus/(Deficit) | B19: =B10-B18 -> (245,737) | C19: (40,908) | D19: (37,561) | E19: 71,000 | F19: 72,785 | G19: 72,785 | H19: (11,269) | I19: 91,298 | J19: 103,765 | K19: 117,761
A20: ='A4-FinPerf RE'!A38 -> Transfers and subsidies - capital (monetary allocations) (National / Provincial and District) | B20: ='A4-FinPerf RE'!C38 -> 109,753 | C20: ='A4-FinPerf RE'!D38 -> 121,159 | D20: ='A4-FinPerf RE'!E38 -> 148,311 | E20: ='A4-FinPerf RE'!F38 -> 99,383 | F20: ='A4-FinPerf RE'!G38 -> 99,383 | G20: ='A4-FinPerf RE'!H38 -> 99,383 | H20: ='A4-FinPerf RE'!I38 -> 112,823 | I20: ='A4-FinPerf RE'!J38 -> 98,702 | J20: ='A4-FinPerf RE'!K38 -> 107,485 | K20: ='A4-FinPerf RE'!L38 -> 113,912
A21: ='A4-FinPerf RE'!A39&" & "&'A4-FinPerf RE'!A40 -> Transfers and subsidies - capital (monetary allocations) (National / Provincial Departmental Agencies, Households, Non-profit Institutions, Private Enterprises, Public Corporatons, Higher Educational Institutions) & Transfers and subsidies - capital (in-kind - all) | B21: ='A4-FinPerf RE'!C39+'A4-FinPerf RE'!C40 -> 0 | C21: ='A4-FinPerf RE'!D39+'A4-FinPerf RE'!D40 -> 0 | D21: ='A4-FinPerf RE'!E39+'A4-FinPerf RE'!E40 -> 0 | E21: ='A4-FinPerf RE'!F39+'A4-FinPerf RE'!F40 -> 0 | F21: ='A4-FinPerf RE'!G39+'A4-FinPerf RE'!G40 -> 0 | G21: ='A4-FinPerf RE'!H39+'A4-FinPerf RE'!H40 -> 0 | H21: ='A4-FinPerf RE'!I39+'A4-FinPerf RE'!I40 -> 0 | I21: ='A4-FinPerf RE'!J39+'A4-FinPerf RE'!J40 -> 0 | J21: ='A4-FinPerf RE'!K39+'A4-FinPerf RE'!K40 -> 0 | K21: ='A4-FinPerf RE'!L39+'A4-FinPerf RE'!L40 -> 0
A22: ='A4-FinPerf RE'!A41 -> Surplus/(Deficit) after capital transfers & contributions | B22: =B19+SUM(B20:B21) -> (135,983) | C22: =C19+SUM(C20:C21) -> 80,251 | D22: 110,750 | E22: 170,383 | F22: 172,168 | G22: 172,168 | H22: 101,554 | I22: 190,000 | J22: 211,250 | K22: 231,673
A23: ='A4-FinPerf RE'!A46 -> Share of surplus/ (deficit) of associate | B23: ='A4-FinPerf RE'!C46 -> 0 | C23: ='A4-FinPerf RE'!D46 -> 0 | D23: ='A4-FinPerf RE'!E46 -> 0 | E23: ='A4-FinPerf RE'!F46 -> 0 | F23: ='A4-FinPerf RE'!G46 -> 0 | G23: ='A4-FinPerf RE'!H46 -> 0 | H23: ='A4-FinPerf RE'!I46 -> 0 | I23: ='A4-FinPerf RE'!J46 -> 0 | J23: ='A4-FinPerf RE'!K46 -> 0 | K23: ='A4-FinPerf RE'!L46 -> 0
A24: ='A4-FinPerf RE'!A47 -> Surplus/(Deficit) for the year | B24: =B22+B23 -> (135,983) | C24: =C22+C23 -> 80,251 | D24: 110,750 | E24: 170,383 | F24: 172,168 | G24: 172,168 | H24: 101,554 | I24: 190,000 | J24: 211,250 | K24: 231,673
A26: Capital expenditure & funds sources
A27: Capital expenditure | B27: ='A5-Capex'!C63 -> 180,287 | C27: ='A5-Capex'!D63 -> 116,127 | D27: ='A5-Capex'!E63 -> 139,220 | E27: ='A5-Capex'!F63 -> 170,383 | F27: ='A5-Capex'!G63 -> 172,168 | G27: ='A5-Capex'!H63 -> 172,168 | H27: ='A5-Capex'!I63 -> 141,273 | I27: ='A5-Capex'!J63 -> 190,000 | J27: ='A5-Capex'!K63 -> 211,250 | K27: ='A5-Capex'!L63 -> 231,673
A28: Transfers recognised - capital | B28: ='A5-Capex'!C70 -> 109,602 | C28: ='A5-Capex'!D70 -> 54,549 | D28: ='A5-Capex'!E70 -> 105,206 | E28: ='A5-Capex'!F70 -> 99,383 | F28: ='A5-Capex'!G70 -> 99,383 | G28: ='A5-Capex'!H70 -> 99,383 | H28: ='A5-Capex'!I70 -> 105,206 | I28: ='A5-Capex'!J70 -> 98,702 | J28: ='A5-Capex'!K70 -> 107,485 | K28: ='A5-Capex'!L70 -> 113,912
A30: ='A5-Capex'!A72 -> Borrowing | B30: ='A5-Capex'!C72 -> 0 | C30: ='A5-Capex'!D72 -> 0 | D30: ='A5-Capex'!E72 -> 0 | E30: ='A5-Capex'!F72 -> 0 | F30: ='A5-Capex'!G72 -> 0 | G30: ='A5-Capex'!H72 -> 0 | H30: ='A5-Capex'!I72 -> 0 | I30: ='A5-Capex'!J72 -> 0 | J30: ='A5-Capex'!K72 -> 0 | K30: ='A5-Capex'!L72 -> 0
A31: ='A5-Capex'!A73 -> Internally generated funds | B31: ='A5-Capex'!C73 -> 70,685 | C31: ='A5-Capex'!D73 -> 61,578 | D31: ='A5-Capex'!E73 -> 34,014 | E31: ='A5-Capex'!F73 -> 71,000 | F31: ='A5-Capex'!G73 -> 72,785 | G31: ='A5-Capex'!H73 -> 72,785 | H31: ='A5-Capex'!I73 -> 36,067 | I31: ='A5-Capex'!J73 -> 91,298 | J31: ='A5-Capex'!K73 -> 103,765 | K31: ='A5-Capex'!L73 -> 117,761
A32: Total sources of capital funds | B32: =+B28+B30+B31 -> 180,287 | C32: =+C28+C30+C31 -> 116,127 | D32: 139,220 | E32: 170,383 | F32: 172,168 | G32: 172,168 | H32: 141,273 | I32: 190,000 | J32: 211,250 | K32: 231,673
A34: Financial position
A35: ='A6-FinPos'!A12 -> Total current assets | B35: ='A6-FinPos'!C12 -> 562,930 | C35: ='A6-FinPos'!D12 -> 546,065 | D35: ='A6-FinPos'!E12 -> 598,843 | E35: ='A6-FinPos'!F12 -> 584,759 | F35: ='A6-FinPos'!G12 -> 524,264 | G35: ='A6-FinPos'!H12 -> 524,264 | H35: ='A6-FinPos'!I12 -> 602,071 | I35: ='A6-FinPos'!J12 -> 464,452 | J35: ='A6-FinPos'!K12 -> 560,766 | K35: ='A6-FinPos'!L12 -> 652,522
A36: ='A6-FinPos'!A24 -> Total non current assets | B36: ='A6-FinPos'!C24 -> 1,364,379 | C36: ='A6-FinPos'!D24 -> 1,423,990 | D36: ='A6-FinPos'!E24 -> 1,481,842 | E36: ='A6-FinPos'!F24 -> 1,752,631 | F36: ='A6-FinPos'!G24 -> 1,584,677 | G36: ='A6-FinPos'!H24 -> 1,584,677 | H36: ='A6-FinPos'!I24 -> 1,489,407 | I36: ='A6-FinPos'!J24 -> 1,177,201 | J36: ='A6-FinPos'!K24 -> 1,327,981 | K36: ='A6-FinPos'!L24 -> 1,498,834
A37: ='A6-FinPos'!A34 -> Total current liabilities | B37: ='A6-FinPos'!C34 -> 137,094 | C37: ='A6-FinPos'!D34 -> 98,538 | D37: ='A6-FinPos'!E34 -> 131,235 | E37: ='A6-FinPos'!F34 -> 70,300 | F37: ='A6-FinPos'!G34 -> 130,300 | G37: ='A6-FinPos'!H34 -> 130,300 | H37: ='A6-FinPos'!I34 -> 123,130 | I37: ='A6-FinPos'!J34 -> 149,310 | J37: ='A6-FinPos'!K34 -> 150,320 | K37: ='A6-FinPos'!L34 -> 150,330
A38: ='A6-FinPos'!A39 -> Total non current liabilities | B38: ='A6-FinPos'!C39 -> 27,748 | C38: ='A6-FinPos'!D39 -> 27,557 | D38: ='A6-FinPos'!E39 -> 28,753 | E38: ='A6-FinPos'!F39 -> 20,000 | F38: ='A6-FinPos'!G39 -> 30,700 | G38: ='A6-FinPos'!H39 -> 30,700 | H38: ='A6-FinPos'!I39 -> 37,254 | I38: ='A6-FinPos'!J39 -> 40,000 | J38: ='A6-FinPos'!K39 -> 40,000 | K38: ='A6-FinPos'!L39 -> 40,000
A39: Community wealth/Equity | B39: ='A6-FinPos'!C48 -> 1,762,467 | C39: ='A6-FinPos'!D48 -> 1,843,960 | D39: ='A6-FinPos'!E48 -> 1,920,697 | E39: ='A6-FinPos'!F48 -> 2,247,090 | F39: ='A6-FinPos'!G48 -> 1,947,941 | G39: ='A6-FinPos'!H48 -> 1,947,941 | H39: ='A6-FinPos'!I48 -> 1,931,094 | I39: ='A6-FinPos'!J48 -> 1,452,343 | J39: ='A6-FinPos'!K48 -> 1,698,426 | K39: ='A6-FinPos'!L48 -> 1,961,026
A41: Cash flows
A42: Net cash from (used) operating | B42: ='A7-CFlow'!C17 -> 240,938 | C42: ='A7-CFlow'!D17 -> 109,687 | D42: ='A7-CFlow'!E17 -> 196,410 | E42: ='A7-CFlow'!F17 -> 220,142 | F42: ='A7-CFlow'!G17 -> 253,397 | G42: ='A7-CFlow'!H17 -> 253,397 | H42: ='A7-CFlow'!I17 -> 185,049 | I42: ='A7-CFlow'!J17 -> 176,726 | J42: ='A7-CFlow'!K17 -> 192,523 | K42: ='A7-CFlow'!L17 -> 209,273
A43: Net cash from (used) investing | B43: ='A7-CFlow'!C27 -> (182,147) | C43: ='A7-CFlow'!D27 -> (116,027) | D43: ='A7-CFlow'!E27 -> (139,220) | E43: ='A7-CFlow'!F27 -> (170,383) | F43: ='A7-CFlow'!G27 -> (172,168) | G43: ='A7-CFlow'!H27 -> (172,168) | H43: ='A7-CFlow'!I27 -> (127,859) | I43: ='A7-CFlow'!J27 -> (81,384) | J43: ='A7-CFlow'!K27 -> (102,100) | K43: ='A7-CFlow'!L27 -> (122,516)
A44: Net cash from (used) financing | B44: ='A7-CFlow'!C36 -> (1,868) | C44: ='A7-CFlow'!D36 -> (1,743) | D44: ='A7-CFlow'!E36 -> 0 | E44: ='A7-CFlow'!F36 -> 0 | F44: ='A7-CFlow'!G36 -> 0 | G44: ='A7-CFlow'!H36 -> 0 | H44: ='A7-CFlow'!I36 -> 0 | I44: ='A7-CFlow'!J36 -> 0 | J44: ='A7-CFlow'!K36 -> 0 | K44: ='A7-CFlow'!L36 -> 0
A45: =LEFT('A7-CFlow'!A40,37) -> Cash/cash equivalents at the year end | B45: ='A7-CFlow'!C40 -> 488,345 | C45: ='A7-CFlow'!D40 -> 480,261 | D45: ='A7-CFlow'!E40 -> 537,462 | E45: ='A7-CFlow'!F40 -> 499,759 | F45: ='A7-CFlow'!G40 -> 618,691 | G45: ='A7-CFlow'!H40 -> 618,691 | H45: ='A7-CFlow'!I40 -> 537,462 | I45: ='A7-CFlow'!J40 -> 395,342 | J45: ='A7-CFlow'!K40 -> 485,766 | K45: ='A7-CFlow'!L40 -> 572,522
A47: Cash backing/surplus reconciliation
A48: ='A8-ResRecon'!A4 -> Cash and investments available | B48: ='A8-ResRecon'!C8 -> 488,345 | C48: ='A8-ResRecon'!D8 -> 480,261 | D48: ='A8-ResRecon'!E8 -> 537,462 | E48: ='A8-ResRecon'!F8 -> 499,759 | F48: ='A8-ResRecon'!G8 -> 451,600 | G48: ='A8-ResRecon'!H8 -> 451,600 | H48: ='A8-ResRecon'!I8 -> 537,462 | I48: ='A8-ResRecon'!J8 -> 395,342 | J48: ='A8-ResRecon'!K8 -> 485,766 | K48: ='A8-ResRecon'!L8 -> 572,522
A49: ='A8-ResRecon'!A10 -> Application of cash and investments | B49: ='A8-ResRecon'!C18 -> 77,958 | C49: ='A8-ResRecon'!D18 -> 58,071 | D49: ='A8-ResRecon'!E18 -> 79,462 | E49: ='A8-ResRecon'!F18 -> 146,617 | F49: ='A8-ResRecon'!G18 -> 135,634 | G49: ='A8-ResRecon'!H18 -> 135,634 | H49: ='A8-ResRecon'!I18 -> 113,076 | I49: ='A8-ResRecon'!J18 -> 338,989 | J49: ='A8-ResRecon'!K18 -> 356,952 | K49: ='A8-ResRecon'!L18 -> 374,383
A50: Balance - surplus (shortfall) | B50: =B48-B49 -> 410,387 | C50: =C48-C49 -> 422,190 | D50: 458,000 | E50: 353,142 | F50: 315,966 | G50: 315,966 | H50: 424,386 | I50: 56,353 | J50: 128,814 | K50: 198,139
A52: Asset management
A53: Asset register summary (WDV) | B53: ='A9-Asset'!C165 -> 1,785,179 | C53: ='A9-Asset'!D165 -> 1,423,554 | D53: ='A9-Asset'!E165 -> 1,481,411 | E53: ='A9-Asset'!F165 -> 1,812,066 | F53: ='A9-Asset'!G165 -> 1,584,677 | G53: ='A9-Asset'!H165 -> 1,584,677 | H53: ='A9-Asset'!H165 -> 1,584,677 | I53: ='A9-Asset'!I165 -> 1,774,677 | J53: ='A9-Asset'!J165 -> 1,985,927 | K53: ='A9-Asset'!K165 -> 2,217,600
A54: ='A9-Asset'!A168 -> Depreciation | B54: ='A9-Asset'!C168 -> 46,345 | C54: ='A9-Asset'!D168 -> 53,379 | D54: ='A9-Asset'!E168 -> 49,641 | E54: ='A9-Asset'!F168 -> 58,000 | F54: ='A9-Asset'!G168 -> 60,265 | G54: ='A9-Asset'!H168 -> 60,265 | H54: ='A9-Asset'!H168 -> 60,265 | I54: ='A9-Asset'!I168 -> 60,466 | J54: ='A9-Asset'!J168 -> 60,470 | K54: ='A9-Asset'!K168 -> 60,820
A55: Renewal and Upgrading of Existing Assets | B55: ='A9-Asset'!C37+'A9-Asset'!C69 -> 0 | C55: ='A9-Asset'!D37+'A9-Asset'!D69 -> 0 | D55: ='A9-Asset'!E37+'A9-Asset'!E69 -> 0 | E55: ='A9-Asset'!F37+'A9-Asset'!F69 -> 1,500 | F55: ='A9-Asset'!G37+'A9-Asset'!G69 -> 500 | G55: ='A9-Asset'!H37+'A9-Asset'!H69 -> 500 | H55: ='A9-Asset'!H37+'A9-Asset'!H69 -> 500 | I55: ='A9-Asset'!I37+'A9-Asset'!I69 -> 450 | J55: ='A9-Asset'!J37+'A9-Asset'!J69 -> 10,000 | K55: ='A9-Asset'!K37+'A9-Asset'!K69 -> 10,000
A56: Repairs and Maintenance | B56: ='A9-Asset'!C169 -> 16,560 | C56: ='A9-Asset'!D169 -> 9,166 | D56: ='A9-Asset'!E169 -> 25,715 | E56: ='A9-Asset'!F169 -> 39,108 | F56: ='A9-Asset'!G169 -> 30,673 | G56: ='A9-Asset'!H169 -> 30,673 | H56: ='A9-Asset'!H169 -> 30,673 | I56: ='A9-Asset'!I169 -> 35,849 | J56: ='A9-Asset'!J169 -> 37,498 | K56: ='A9-Asset'!K169 -> 38,960
A58: Free services
A59: Cost of Free Basic Services provided | B59: ='A10-SerDel'!C60 -> 0 | C59: ='A10-SerDel'!D60 -> 0 | D59: ='A10-SerDel'!E60 -> 0 | E59: ='A10-SerDel'!F60 -> 128,500 | F59: ='A10-SerDel'!G60 -> 123,000 | G59: ='A10-SerDel'!H60 -> 123,000 | H59: ='A10-SerDel'!I60 -> 123,000 | I59: ='A10-SerDel'!I60 -> 123,000 | J59: ='A10-SerDel'!J60 -> 123,000 | K59: ='A10-SerDel'!K60 -> 123,000
A60: Revenue cost of free services provided | B60: ='A10-SerDel'!C79 -> 18,774 | C60: ='A10-SerDel'!D79 -> 29,000 | D60: ='A10-SerDel'!E79 -> 0 | E60: ='A10-SerDel'!F79 -> 10,387 | F60: ='A10-SerDel'!G79 -> 7,488 | G60: ='A10-SerDel'!H79 -> 7,488 | H60: ='A10-SerDel'!I79 -> 3,437 | I60: ='A10-SerDel'!I79 -> 3,437 | J60: ='A10-SerDel'!J79 -> 3,437 | K60: ='A10-SerDel'!K79 -> 3,437
A61: Households below minimum service level
A62: ='A10-SerDel'!A5 -> Water: | B62: ='A10-SerDel'!C14 -> 0 | C62: ='A10-SerDel'!D14 -> 0 | D62: ='A10-SerDel'!E14 -> 0 | E62: ='A10-SerDel'!F14 -> 0 | F62: ='A10-SerDel'!G14 -> 0 | G62: ='A10-SerDel'!H14 -> 0 | H62: ='A10-SerDel'!I14 -> 0 | I62: ='A10-SerDel'!I14 -> 0 | J62: ='A10-SerDel'!J14 -> 0 | K62: ='A10-SerDel'!K14 -> 0
A63: ='A10-SerDel'!A16 -> Sanitation/sewerage: | B63: ='A10-SerDel'!C26 -> 0 | C63: ='A10-SerDel'!D26 -> 0 | D63: ='A10-SerDel'!E26 -> 0 | E63: ='A10-SerDel'!F26 -> 0 | F63: ='A10-SerDel'!G26 -> 0 | G63: ='A10-SerDel'!H26 -> 0 | H63: ='A10-SerDel'!I26 -> 0 | I63: ='A10-SerDel'!I26 -> 0 | J63: ='A10-SerDel'!J26 -> 0 | K63: ='A10-SerDel'!K26 -> 0
A64: ='A10-SerDel'!A28 -> Energy: | B64: ='A10-SerDel'!C35 -> 0 | C64: ='A10-SerDel'!D35 -> 0 | D64: ='A10-SerDel'!E35 -> 0 | E64: ='A10-SerDel'!F35 -> 0 | F64: ='A10-SerDel'!G35 -> 0 | G64: ='A10-SerDel'!H35 -> 0 | H64: ='A10-SerDel'!I35 -> 0 | I64: ='A10-SerDel'!I35 -> 0 | J64: ='A10-SerDel'!J35 -> 0 | K64: ='A10-SerDel'!K35 -> 0
A65: ='A10-SerDel'!A37 -> Refuse: | B65: ='A10-SerDel'!C45 -> 0 | C65: ='A10-SerDel'!D45 -> 0 | D65: ='A10-SerDel'!E45 -> 0 | E65: ='A10-SerDel'!F45 -> 134 | F65: ='A10-SerDel'!G45 -> 134 | G65: ='A10-SerDel'!H45 -> 134 | H65: ='A10-SerDel'!I45 -> 134 | I65: ='A10-SerDel'!I45 -> 134 | J65: ='A10-SerDel'!J45 -> 134 | K65: ='A10-SerDel'!K45 -> 134

Sheet A2-FinPerf SC
A1: =muni&" - "&Approve3 -> LIM343 Thulamela - Table A2 Budgeted Financial Performance (revenue and expenditure by functional classification)
A2: ="Functional Classification "&desc -> Functional Classification Description | B2: =head27 -> Ref | C2: =head1b -> 2016/17 | D2: =head1A -> 2017/18 | E2: =Head1 -> 2018/19 | F2: =Head2 -> Current Year 2019/20 | I2: =Head3 -> 2020/21 Medium Term Revenue & Expenditure Framework
A3: R thousand | B3: 1 | C3: =Head5 -> Audited Outcome | D3: =Head5 -> Audited Outcome | E3: =Head5 -> Audited Outcome | F3: =Head6 -> Original Budget | G3: =Head7 -> Adjusted Budget | H3: =Head8 -> Full Year Forecast | I3: =Head9 -> Budget Year 2020/21 | J3: =Head10 -> Budget Year +1 2021/22 | K3: =Head11 -> Budget Year +2 2022/23
A4: Revenue - Functional
A5: Governance and administration | C5: =SUM(C6:C8) -> 463,234 | D5: =SUM(D6:D8) -> 506,516 | E5: 552,648 | F5: 606,801 | G5: 635,457 | H5: 635,457 | I5: 676,854 | J5: 721,348 | K5: 751,156
A6: Executive and council | C6: =A2A!C6 -> 369,080 | D6: =A2A!D6 -> 389,080 | E6: =A2A!E6 -> 426,032 | F6: =A2A!F6 -> 467,882 | G6: =A2A!G6 -> 467,882 | H6: =A2A!H6 -> 467,882 | I6: =A2A!I6 -> 492,887 | J6: =A2A!J6 -> 525,789 | K6: =A2A!K6 -> 556,988
A7: Finance and administration | C7: =A2A!C9 -> 94,154 | D7: =A2A!D9 -> 117,436 | E7: =A2A!E9 -> 126,616 | F7: =A2A!F9 -> 138,919 | G7: =A2A!G9 -> 167,575 | H7: =A2A!H9 -> 167,575 | I7: =A2A!I9 -> 183,967 | J7: =A2A!J9 -> 195,558 | K7: =A2A!K9 -> 194,168
A8: Internal audit | C8: =A2A!C23 -> 0 | D8: =A2A!D23 -> 0 | E8: =A2A!E23 -> 0 | F8: =A2A!F23 -> 0 | G8: =A2A!G23 -> 0 | H8: =A2A!H23 -> 0 | I8: =A2A!I23 -> 0 | J8: =A2A!J23 -> 0 | K8: =A2A!K23 -> 0
A9: Community and public safety | C9: =SUM(C10:C14) -> 77,788 | D9: =SUM(D10:D14) -> 21,226 | E9: 15,098 | F9: 4,557 | G9: 4,725 | H9: 4,725 | I9: 8,321 | J9: 16,331 | K9: 24,374
A10: Community and social services | C10: =A2A!C26 -> 0 | D10: =A2A!D26 -> 0 | E10: =A2A!E26 -> 222 | F10: =A2A!F26 -> 527 | G10: =A2A!G26 -> 400 | H10: =A2A!H26 -> 400 | I10: =A2A!I26 -> 400 | J10: =A2A!J26 -> 418 | K10: =A2A!K26 -> 438
A11: Sport and recreation | C11: =A2A!C48 -> 1,512 | D11: =A2A!D48 -> 1,835 | E11: =A2A!E48 -> 1,070 | F11: =A2A!F48 -> 4,000 | G11: =A2A!G48 -> 3,500 | H11: =A2A!H48 -> 3,500 | I11: =A2A!I48 -> 4,172 | J11: =A2A!J48 -> 4,340 | K11: =A2A!K48 -> 4,517
A12: Public safety | C12: =A2A!C54 -> 22,912 | D12: =A2A!D54 -> 19,391 | E12: =A2A!E54 -> 13,787 | F12: =A2A!F54 -> 0 | G12: =A2A!G54 -> 525 | H12: =A2A!H54 -> 525 | I12: =A2A!I54 -> 3,449 | J12: =A2A!J54 -> 11,095 | K12: =A2A!K54 -> 18,973
A13: Housing | C13: =A2A!C63 -> 53,364 | D13: =A2A!D63 -> 0 | E13: =A2A!E63 -> 19 | F13: =A2A!F63 -> 30 | G13: =A2A!G63 -> 300 | H13: =A2A!H63 -> 300 | I13: =A2A!I63 -> 300 | J13: =A2A!J63 -> 477 | K13: =A2A!K63 -> 447
A14: Health | C14: =A2A!C66 -> 0 | D14: =A2A!D66 -> 0 | E14: =A2A!E66 -> 0 | F14: =A2A!F66 -> 0 | G14: =A2A!G66 -> 0 | H14: =A2A!H66 -> 0 | I14: =A2A!I66 -> 0 | J14: =A2A!J66 -> 0 | K14: =A2A!K66 -> 0
A15: Economic and environmental services | C15: =SUM(C16:C18) -> 119,694 | D15: =SUM(D16:D18) -> 134,863 | E15: 145,206 | F15: 189,065 | G15: 187,790 | H15: 187,790 | I15: 185,893 | J15: 179,254 | K15: 187,801
A16: Planning and development | C16: =A2A!C75 -> 6,954 | D16: =A2A!D75 -> 11,152 | E16: =A2A!E75 -> 22,413 | F16: =A2A!F75 -> 44,055 | G16: =A2A!G75 -> 47,930 | H16: =A2A!H75 -> 47,930 | I16: =A2A!I75 -> 45,939 | J16: =A2A!J75 -> 36,054 | K16: =A2A!K75 -> 36,531
A17: Road transport | C17: =A2A!C86 -> 112,739 | D17: =A2A!D86 -> 123,711 | E17: =A2A!E86 -> 122,792 | F17: =A2A!F86 -> 145,010 | G17: =A2A!G86 -> 139,860 | H17: =A2A!H86 -> 139,860 | I17: =A2A!I86 -> 139,953 | J17: =A2A!J86 -> 143,200 | K17: =A2A!K86 -> 151,270
A18: Environmental protection | C18: =A2A!C91 -> 0 | D18: =A2A!D91 -> 0 | E18: =A2A!E91 -> 0 | F18: =A2A!F91 -> 0 | G18: =A2A!G91 -> 0 | H18: =A2A!H91 -> 0 | I18: =A2A!I91 -> 0 | J18: =A2A!J91 -> 0 | K18: =A2A!K91 -> 0
A19: Trading services | C19: =SUM(C20:C23) -> 43,271 | D19: =SUM(D20:D23) -> 46,445 | E19: 21,041 | F19: 46,488 | G19: 30,785 | H19: 30,785 | I19: 33,657 | J19: =SUM(J20:J23) -> 35,206 | K19: 38,796
A20: Energy sources | C20: =A2A!C99 -> 0 | D20: =A2A!D99 -> 0 | E20: =A2A!E99 -> 0 | F20: =A2A!F99 -> 0 | G20: =A2A!G99 -> 0 | H20: =A2A!H99 -> 0 | I20: =A2A!I99 -> 0 | J20: =A2A!J99 -> 0 | K20: =A2A!K99 -> 0
A21: Water management | C21: =A2A!C103 -> 0 | D21: =A2A!D103 -> 0 | E21: =A2A!E103 -> 0 | F21: =A2A!F103 -> 0 | G21: =A2A!G103 -> 0 | H21: =A2A!H103 -> 0 | I21: =A2A!I103 -> 0 | J21: =A2A!J103 -> 0 | K21: =A2A!K103 -> 0
A22: Waste water management | C22: =A2A!C107 -> 0 | D22: =A2A!D107 -> 0 | E22: =A2A!E107 -> 0 | F22: =A2A!F107 -> 0 | G22: =A2A!G107 -> 0 | H22: =A2A!H107 -> 0 | I22: =A2A!I107 -> 0 | J22: =A2A!J107 -> 0 | K22: =A2A!K107 -> 0
A23: Waste management | C23: =A2A!C112 -> 43,271 | D23: =A2A!D112 -> 46,445 | E23: =A2A!E112 -> 21,041 | F23: =A2A!F112 -> 46,488 | G23: =A2A!G112 -> 30,785 | H23: =A2A!H112 -> 30,785 | I23: =A2A!I112 -> 33,657 | J23: =A2A!J112 -> 35,206 | K23: =A2A!K112 -> 38,796
A24: Other | B24: 4 | C24: =A2A!C117 -> 0 | D24: =A2A!D117 -> 0 | E24: =A2A!E117 -> 0 | F24: =A2A!F117 -> 0 | G24: =A2A!G117 -> 0 | H24: =A2A!H117 -> 0 | I24: =A2A!I117 -> 0 | J24: =A2A!J117 -> 0 | K24: =A2A!K117 -> 0
A25: ="Total "&A4 -> Total Revenue - Functional | B25: 2 | C25: =C5+C9+C15+C19+C24 -> 703,987 | D25: =D5+D9+D15+D19+D24 -> 709,050 | E25: =E5+E9+E15+E19+E24 -> 733,992 | F25: 846,912 | G25: 858,756 | H25: 858,756 | I25: =I5+I9+I15+I19+I24 -> 904,725 | J25: 952,139 | K25: 1,002,127
A27: Expenditure - Functional
A28: Governance and administration | C28: =SUM(C29:C31) -> 499,893 | D28: =SUM(D29:D31) -> 302,209 | E28: 241,838 | F28: 302,668 | G28: 304,774 | H28: 304,774 | I28: 311,706 | J28: 323,313 | K28: 334,001
A29: Executive and council | C29: =A2A!C128 -> 208,769 | D29: =A2A!D128 -> 181,544 | E29: =A2A!E128 -> 120,059 | F29: =A2A!F128 -> 161,166 | G29: =A2A!G128 -> 171,836 | H29: =A2A!H128 -> 171,836 | I29: =A2A!I128 -> 174,415 | J29: =A2A!J128 -> 179,382 | K29: =A2A!K128 -> 184,010
A30: Finance and administration | C30: =A2A!C131 -> 291,124 | D30: =A2A!D131 -> 120,665 | E30: =A2A!E131 -> 117,178 | F30: =A2A!F131 -> 134,431 | G30: =A2A!G131 -> 131,808 | H30: =A2A!H131 -> 131,808 | I30: =A2A!I131 -> 136,093 | J30: =A2A!J131 -> 142,677 | K30: =A2A!K131 -> 148,680
A31: Internal audit | C31: =A2A!C145 -> 0 | D31: =A2A!D145 -> 0 | E31: =A2A!E145 -> 4,601 | F31: =A2A!F145 -> 7,071 | G31: =A2A!G145 -> 1,130 | H31: =A2A!H145 -> 1,130 | I31: =A2A!I145 -> 1,199 | J31: =A2A!J145 -> 1,254 | K31: =A2A!K145 -> 1,311
A32: Community and public safety | C32: =SUM(C33:C37) -> 137,845 | D32: =SUM(D33:D37) -> 142,992 | E32: 137,127 | F32: 142,562 | G32: 99,062 | H32: 99,062 | I32: 94,574 | J32: 94,898 | K32: 98,669
A33: Community and social services | C33: =A2A!C148 -> 0 | D33: =A2A!D148 -> 0 | E33: =A2A!E148 -> 15,737 | F33: =A2A!F148 -> 11,306 | G33: =A2A!G148 -> 1,417 | H33: =A2A!H148 -> 1,417 | I33: =A2A!I148 -> 1,149 | J33: =A2A!J148 -> 1,203 | K33: =A2A!K148 -> 1,259
A34: Sport and recreation | C34: =A2A!C170 -> 26,539 | D34: =A2A!D170 -> 36,909 | E34: =A2A!E170 -> 9,004 | F34: =A2A!F170 -> 11,332 | G34: =A2A!G170 -> 18,016 | H34: =A2A!H170 -> 18,016 | I34: =A2A!I170 -> 18,403 | J34: =A2A!J170 -> 19,208 | K34: =A2A!K170 -> 20,291
A35: Public safety | C35: =A2A!C176 -> 71,479 | D35: =A2A!D176 -> 62,344 | E35: =A2A!E176 -> 36,869 | F35: =A2A!F176 -> 42,614 | G35: =A2A!G176 -> 4,695 | H35: =A2A!H176 -> 4,695 | I35: =A2A!I176 -> 6,310 | J35: =A2A!J176 -> 6,589 | K35: =A2A!K176 -> 6,892
A36: Housing | C36: =A2A!C185 -> 39,826 | D36: =A2A!D185 -> 43,739 | E36: =A2A!E185 -> 75,516 | F36: =A2A!F185 -> 77,310 | G36: =A2A!G185 -> 74,934 | H36: =A2A!H185 -> 74,934 | I36: =A2A!I185 -> 68,713 | J36: =A2A!J185 -> 67,899 | K36: =A2A!K185 -> 70,226
A37: Health | C37: =A2A!C188 -> 0 | D37: =A2A!D188 -> 0 | E37: =A2A!E188 -> 0 | F37: =A2A!F188 -> 0 | G37: =A2A!G188 -> 0 | H37: =A2A!H188 -> 0 | I37: =A2A!I188 -> 0 | J37: =A2A!J188 -> 0 | K37: =A2A!K188 -> 0
A38: Economic and environmental services | C38: =SUM(C39:C41) -> 179,751 | D38: =SUM(D39:D41) -> 127,395 | E38: 188,025 | F38: 179,506 | G38: 224,146 | H38: 224,146 | I38: 246,562 | J38: 257,288 | K38: 268,683
A39: Planning and development | C39: =A2A!C197 -> 45,795 | D39: =A2A!D197 -> 41,170 | E39: =A2A!E197 -> 70,472 | F39: =A2A!F197 -> 42,955 | G39: =A2A!G197 -> 55,671 | H39: =A2A!H197 -> 55,671 | I39: =A2A!I197 -> 38,788 | J39: =A2A!J197 -> 40,655 | K39: =A2A!K197 -> 42,643
A40: Road transport | C40: =A2A!C208 -> 133,956 | D40: =A2A!D208 -> 86,225 | E40: =A2A!E208 -> 117,553 | F40: =A2A!F208 -> 136,551 | G40: =A2A!G208 -> 168,475 | H40: =A2A!H208 -> 168,475 | I40: =A2A!I208 -> 207,774 | J40: =A2A!J208 -> 216,634 | K40: =A2A!K208 -> 226,040
A41: Environmental protection | C41: =A2A!C213 -> 0 | D41: =A2A!D213 -> 0 | E41: =A2A!E213 -> 0 | F41: =A2A!F213 -> 0 | G41: =A2A!G213 -> 0 | H41: =A2A!H213 -> 0 | I41: =A2A!I213 -> 0 | J41: =A2A!J213 -> 0 | K41: =A2A!K213 -> 0
A42: Trading services | C42: =SUM(C43:C46) -> 22,482 | D42: =SUM(D43:D46) -> 56,203 | E42: 56,252 | F42: =SUM(F43:F46) -> 51,792 | G42: 58,606 | H42: 58,606 | I42: 61,882 | J42: 65,390 | K42: =SUM(K43:K46) -> 69,101
A43: Energy sources | C43: =A2A!C221 -> 0 | D43: =A2A!D221 -> 0 | E43: =A2A!E221 -> 0 | F43: =A2A!F221 -> 0 | G43: =A2A!G221 -> 0 | H43: =A2A!H221 -> 0 | I43: =A2A!I221 -> 0 | J43: =A2A!J221 -> 0 | K43: =A2A!K221 -> 0
A44: Water management | C44: =A2A!C225 -> 0 | D44: =A2A!D225 -> 0 | E44: =A2A!E225 -> 0 | F44: =A2A!F225 -> 0 | G44: =A2A!G225 -> 0 | H44: =A2A!H225 -> 0 | I44: =A2A!I225 -> 0 | J44: =A2A!J225 -> 0 | K44: =A2A!K225 -> 0
A45: Waste water management | C45: =A2A!C229 -> 0 | D45: =A2A!D229 -> 0 | E45: =A2A!E229 -> 0 | F45: =A2A!F229 -> 0 | G45: =A2A!G229 -> 0 | H45: =A2A!H229 -> 0 | I45: =A2A!I229 -> 0 | J45: =A2A!J229 -> 0 | K45: =A2A!K229 -> 0
A46: Waste management | C46: =A2A!C234 -> 22,482 | D46: =A2A!D234 -> 56,203 | E46: =A2A!E234 -> 56,252 | F46: =A2A!F234 -> 51,792 | G46: =A2A!G234 -> 58,606 | H46: =A2A!H234 -> 58,606 | I46: =A2A!I234 -> 61,882 | J46: =A2A!J234 -> 65,390 | K46: =A2A!K234 -> 69,101
A47: Other | B47: 4 | C47: =A2A!C239 -> 0 | D47: =A2A!D239 -> 0 | E47: =A2A!E239 -> 0 | F47: =A2A!F239 -> 0 | G47: =A2A!G239 -> 0 | H47: =A2A!H239 -> 0 | I47: =A2A!I239 -> 0 | J47: =A2A!J239 -> 0 | K47: =A2A!K239 -> 0
A48: ="Total "&A27 -> Total Expenditure - Functional | B48: 3 | C48: =C28+C32+C38+C42+C47 -> 839,970 | D48: =D28+D32+D38+D42+D47 -> 628,799 | E48: =E28+E32+E38+E42+E47 -> 623,242 | F48: =F28+F32+F38+F42+F47 -> 676,529 | G48: 686,588 | H48: 686,588 | I48: 714,725 | J48: 740,889 | K48: 770,454
A49: =result -> Surplus/(Deficit) for the year | C49: =C25-C48 -> (135,983) | D49: =D25-D48 -> 80,251 | E49: 110,750 | F49: 170,383 | G49: 172,168 | H49: 172,168 | I49: 190,000 | J49: 211,250 | K49: 231,673
A50: =head27a -> References
A51: 1. Government Finance Statistics Functions and Sub-functions are standardised to assist the compilation of national and international accounts for comparison purposes
A52: 2. Total Revenue by functional classification must reconcile to Total Operating Revenue shown in Budgeted Financial Performance (revenue and expenditure)
A53: 3. Total Expenditure by Functional Classification must reconcile to Total Operating Expenditure shown in Budgeted Financial Performance (revenue and expenditure)
A54: 4. All amounts must be classified under a functional classification . The GFS function 'Other' is only for Abbatoirs, Air Transport, Forestry, Licensing and Regulation, Markets and Tourism - and if used must be supported by footnotes. Nothing else may be placed under 'Other'. Assign associate share to relevant classification.
A57: check oprev balance | C57: =C25-'A4-FinPerf RE'!C59 -> 0 | D57: =D25-'A4-FinPerf RE'!D59 -> 0 | E57: =E25-'A4-FinPerf RE'!E59 -> 0 | F57: =F25-'A4-FinPerf RE'!F59 -> -0 | G57: =G25-'A4-FinPerf RE'!G59 -> 0 | H57: =H25-'A4-FinPerf RE'!H59 -> 0 | I57: =I25-'A4-FinPerf RE'!J59 -> 0 | J57: =J25-'A4-FinPerf RE'!K59 -> 0 | K57: =K25-'A4-FinPerf RE'!L59 -> 0
A58: check opexp balance | C58: =C48-'A4-FinPerf RE'!C35 -> 0 | D58: =D48-'A4-FinPerf RE'!D35 -> -1 | E58: =E48-'A4-FinPerf RE'!E35 -> 0 | F58: =F48-'A4-FinPerf RE'!F35 -> 0 | G58: =G48-'A4-FinPerf RE'!G35 -> -1 | H58: =H48-'A4-FinPerf RE'!H35 -> -1 | I58: =I48-'A4-FinPerf RE'!J35 -> 0 | J58: =J48-'A4-FinPerf RE'!K35 -> 0 | K58: =K48-'A4-FinPerf RE'!L35 -> 0

Sheet A2A
A1: =muni&" - "&Approve3 -> LIM343 Thulamela - Table A2 Budgeted Financial Performance (revenue and expenditure by functional classification)
A2: ="Functional Classification "&desc -> Functional Classification Description | B2: =head27 -> Ref | C2: =head1b -> 2016/17 | D2: =head1A -> 2017/18 | E2: =Head1 -> 2018/19 | F2: =Head2 -> Current Year 2019/20 | I2: =Head3 -> 2020/21 Medium Term Revenue & Expenditure Framework
A3: R thousand | B3: 1 | C3: =Head5 -> Audited Outcome | D3: =Head5 -> Audited Outcome | E3: =Head5 -> Audited Outcome | F3: =Head6 -> Original Budget | G3: =Head7 -> Adjusted Budget | H3: =Head8 -> Full Year Forecast | I3: =Head9 -> Budget Year 2020/21 | J3: =Head10 -> Budget Year +1 2021/22 | K3: =Head11 -> Budget Year +2 2022/23
A4: Revenue - Functional
A5: Municipal governance and administration | C5: =C6+C9+C23 -> 463,234 | D5: 506,516 | E5: 552,648 | F5: 606,801 | G5: 635,457 | H5: 635,457 | I5: 676,854 | J5: 721,348 | K5: 751,156
A6: Executive and council | C6: =SUM(C7:C8) -> 369,080 | D6: =SUM(D7:D8) -> 389,080 | E6: 426,032 | F6: 467,882 | G6: 467,882 | H6: 467,882 | I6: 492,887 | J6: 525,789 | K6: 556,988
A7: Mayor and Council | C7: 369,080 | D7: 389,080 | E7: 426,032 | F7: 467,882 | G7: 467,882 | H7: 467,882 | I7: 492,887 | J7: 525,789 | K7: 556,988
A8: Municipal Manager, Town Secretary and Chief Executive
A9: Finance and administration | C9: =SUM(C10:C22) -> 94,154 | D9: 117,436 | E9: 126,616 | F9: 138,919 | G9: 167,575 | H9: 167,575 | I9: 183,967 | J9: 195,558 | K9: 194,168
A10: Administrative and Corporate Support | D10: 456 | E10: 447 | F10: 1,000 | G10: 2,623 | H10: 2,623 | I10: 2,992 | J10: 3,143 | K10: 3,288
A11: Asset Management | I11: 0 | J11: 0 | K11: 0
A12: Finance | C12: 94,154 | D12: 116,980 | E12: 126,168 | F12: 137,919 | G12: 164,953 | H12: 164,953 | I12: 179,825 | J12: 190,958 | K12: 189,356
A13: Fleet Management | I13: 0 | J13: 0 | K13: 0
A14: Human Resources | I14: 1,000 | J14: 1,300 | K14: 1,360
A15: Information Technology | I15: 50 | J15: 52 | K15: 55
A16: Legal Services
A17: Marketing, Customer Relations, Publicity and Media Co-ordination
A18: Property Services
A19: Risk Management
A20: Security Services
A21: Supply Chain Management | I21: 100 | J21: 105 | K21: 109
A22: Valuation Service
A23: Internal audit | C23: =SUM(C24:C24) -> 0 | D23: 0 | E23: 0 | F23: 0 | G23: 0 | H23: 0 | I23: 0 | J23: 0 | K23: 0
A24: Governance Function
A25: Community and public safety | C25: =C26+C48+C54+C63+C66 -> 77,788 | D25: 21,226 | E25: 15,098 | F25: 4,557 | G25: 4,725 | H25: 4,725 | I25: 8,321 | J25: 16,331 | K25: 24,374
A26: Community and social services | C26: =SUM(C27:C47) -> 0 | D26: =SUM(D27:D47) -> 0 | E26: 222 | F26: 527 | G26: 400 | H26: 400 | I26: 400 | J26: 418 | K26: 438
A27: Aged Care
A28: Agricultural
A29: Animal Care and Diseases
A30: Cemeteries, Funeral Parlours and Crematoriums | E30: 222 | F30: 527 | G30: 400 | H30: 400 | I30: 400 | J30: 418 | K30: 438
A31: Child Care Facilities
A32: Community Halls and Facilities
A33: Consumer Protection
A34: Cultural Matters
A35: Disaster Management
A36: Education
A37: Indigenous and Customary Law
A38: Industrial Promotion
A39: Language Policy
A40: Libraries and Archives
A41: Literacy Programmes
A42: Media Services
A43: Museums and Art Galleries
A44: Population Development
A45: Provincial Cultural Matters
A46: Theatres
A47: Zoo's
A48: Sport and recreation | C48: =SUM(C49:C53) -> 1,512 | D48: =SUM(D49:D53) -> 1,835 | E48: 1,070 | F48: 4,000 | G48: 3,500 | H48: 3,500 | I48: 4,172 | J48: 4,340 | K48: 4,517
A49: Beaches and Jetties
A50: Casinos, Racing, Gambling, Wagering
A51: Community Parks (including Nurseries)
A52: Recreational Facilities | I52: 500 | J52: 500 | K52: 500
A53: Sports Grounds and Stadiums | C53: 1,512 | D53: 1,835 | E53: 1,070 | F53: 4,000 | G53: 3,500 | H53: 3,500 | I53: 3,671 | J53: 3,840 | K53: 4,017
A54: Public safety | C54: =SUM(C55:C62) -> 22,912 | D54: 19,391 | E54: 13,787 | F54: 0 | G54: 525 | H54: 525 | I54: 3,449 | J54: 11,095 | K54: 18,973
A55: Civil Defence
A56: Cleansing
A57: Control of Public Nuisances
A58: Fencing and Fences
A59: Fire Fighting and Protection
A60: Licensing and Control of Animals | C60: 22,912 | D60: 19,391 | G60: 520 | H60: 520 | I60: 2,884 | J60: 10,504 | K60: 18,354
A61: Police Forces, Traffic and Street Parking Control | E61: 13,787 | G61: 5 | H61: 5 | I61: 565 | J61: 591 | K61: 619
A62: Pounds
A63: Housing | C63: =SUM(C64:C65) -> 53,364 | D63: =SUM(D64:D65) -> 0 | E63: 19 | F63: 30 | G63: 300 | H63: 300 | I63: 300 | J63: 477 | K63: 447
A64: Housing | C64: 53,364 | E64: 19 | F64: 30 | G64: 300 | H64: 300 | I64: 300 | J64: 477 | K64: 447
A65: Informal Settlements
A66: Health | C66: =SUM(C67:C73) -> 0 | D66: =SUM(D67:D73) -> 0 | E66: 0 | F66: 0 | G66: 0 | H66: 0 | I66: 0 | J66: 0 | K66: 0
A67: Ambulance
A68: Health Services
A69: Laboratory Services
A70: Food Control
A71: Health Surveillance and Prevention of Communicable Diseases including immunizations
A72: Vector Control
A73: Chemical Safety
A74: Economic and environmental services | C74: =C75+C86+C91 -> 119,694 | D74: 134,863 | E74: 145,206 | F74: 189,065 | G74: 187,790 | H74: 187,790 | I74: 185,893 | J74: 179,254 | K74: 187,801
A75: Planning and development | C75: =SUM(C76:C85) -> 6,954 | D75: =SUM(D76:D85) -> 11,152 | E75: 22,413 | F75: 44,055 | G75: 47,930 | H75: 47,930 | I75: 45,939 | J75: 36,054 | K75: 36,531
A76: Billboards
A77: Corporate Wide Strategic Planning (IDPs, LEDs) | I77: 19,174 | J77: 11,740 | K77: 12,280
A78: Central City Improvement District
A79: Development Facilitation
A80: Economic Development/Planning | I80: 568 | J80: 655 | K80: 685
A81: Regional Planning and Development
A82: Town Planning, Building Regulations and Enforcement, and City Engineer | C82: 6,954 | D82: 11,152 | E82: 20,613 | F82: 40,555 | G82: 44,430 | H82: 44,430 | I82: 22,198 | J82: 18,159 | K82: 18,565
A83: Project Management Unit | E83: 1,800 | F83: 3,500 | G83: 3,500 | H83: 3,500 | I83: 4,000 | J83: 5,500 | K83: 5,000
A84: Provincial Planning
A85: Support to Local Municipalities
A86: Road transport | C86: =SUM(C87:C90) -> 112,739 | D86: 123,711 | E86: 122,792 | F86: 145,010 | G86: 139,860 | H86: 139,860 | I86: 139,953 | J86: 143,200 | K86: 151,270
A87: Public Transport
A88: Road and Traffic Regulation | E88: 3,744 | F88: 38,150 | G88: 33,000 | H88: 33,000 | I88: 34,617 | J88: 36,209 | K88: 37,875
A89: Roads | C89: 112,739 | D89: 123,711 | E89: 119,048 | F89: 106,860 | G89: 106,860 | H89: 106,860 | I89: 105,336 | J89: 106,991 | K89: 113,395
A90: Taxi Ranks
A91: Environmental protection | C91: =SUM(C92:C97) -> 0 | D91: =SUM(D92:D97) -> 0 | E91: 0 | F91: 0 | G91: 0 | H91: 0 | I91: 0 | J91: 0 | K91: 0
A92: Biodiversity and Landscape
A93: Coastal Protection
A94: Indigenous Forests
A95: Nature Conservation
A96: Pollution Control
A97: Soil Conservation
A98: Trading services | C98: =C99+C103+C107+C112 -> 43,271 | D98: =D99+D103+D107+D112 -> 46,445 | E98: 21,041 | F98: 46,488 | G98: 30,785 | H98: 30,785 | I98: 33,657 | J98: 35,206 | K98: =K99+K103+K107+K112 -> 38,796
A99: Energy sources | C99: =SUM(C100:C102) -> 0 | D99: =SUM(D100:D102) -> 0 | E99: 0 | F99: 0 | G99: 0 | H99: 0 | I99: 0 | J99: 0 | K99: 0
A100: Electricity
A101: Street Lighting and Signal Systems
A102: Nonelectric Energy
A103: Water management | C103: =SUM(C104:C106) -> 0 | D103: =SUM(D104:D106) -> 0 | E103: 0 | F103: 0 | G103: 0 | H103: 0 | I103: 0 | J103: 0 | K103: 0
A104: Water Treatment
A105: Water Distribution
A106: Water Storage
A107: Waste water management | C107: =SUM(C108:C111) -> 0 | D107: =SUM(D108:D111) -> 0 | E107: 0 | F107: 0 | G107: 0 | H107: 0 | I107: 0 | J107: 0 | K107: 0
A108: Public Toilets
A109: Sewerage
A110: Storm Water Management
A111: Waste Water Treatment
A112: Waste management | C112: =SUM(C113:C116) -> 43,271 | D112: =SUM(D113:D116) -> 46,445 | E112: 21,041 | F112: 46,488 | G112: 30,785 | H112: 30,785 | I112: 33,657 | J112: 35,206 | K112: 38,796
A113: Recycling
A114: Solid Waste Disposal (Landfill Sites)
A115: Solid Waste Removal | C115: 43,271 | D115: 46,445 | E115: 21,041 | F115: 46,488 | G115: 30,785 | H115: 30,785 | I115: 33,626 | J115: 35,173 | K115: 38,762
A116: Street Cleaning | I116: 31 | J116: 33 | K116: 34
A117: Other | C117: =SUM(C118:C123) -> 0 | D117: =SUM(D118:D123) -> 0 | E117: 0 | F117: 0 | G117: 0 | H117: 0 | I117: 0 | J117: 0 | K117: 0
A118: Abattoirs
A119: Air Transport
A120: Forestry
A121: Licensing and Regulation
A122: Markets
A123: Tourism
A124: ="Total "&A4 -> Total Revenue - Functional | B124: 2 | C124: =C5+C25+C74+C98+C117 -> 703,987 | D124: 709,050 | E124: 733,992 | F124: 846,912 | G124: 858,756 | H124: 858,756 | I124: 904,725 | J124: 952,139 | K124: 1,002,127
A126: Expenditure - Functional
A127: =A5 -> Municipal governance and administration | C127: =C128+C131+C145 -> 499,893 | D127: 302,209 | E127: 241,838 | F127: 302,668 | G127: 304,774 | H127: 304,774 | I127: 311,706 | J127: 323,313 | K127: 334,001
A128: Executive and council | C128: =SUM(C129:C130) -> 208,769 | D128: 181,544 | E128: 120,059 | F128: 161,166 | G128: 171,836 | H128: 171,836 | I128: 174,415 | J128: 179,382 | K128: 184,010
A129: Mayor and Council | C129: 157,188 | D129: 155,011 | E129: 117,622 | F129: 157,673 | G129: 152,155 | H129: 152,155 | I129: 153,368 | J129: 157,037 | K129: 160,286
A130: Municipal Manager, Town Secretary and Chief Executive | C130: 51,581 | D130: 26,533 | E130: 2,437 | F130: 3,493 | G130: 19,681 | H130: 19,681 | I130: 21,047 | J130: 22,345 | K130: 23,723
A131: Finance and administration | C131: =SUM(C132:C144) -> 291,124 | D131: 120,665 | E131: 117,178 | F131: 134,431 | G131: 131,808 | H131: 131,808 | I131: 136,093 | J131: 142,677 | K131: 148,680
A132: Administrative and Corporate Support | C132: 56,826 | D132: 70,147 | E132: 23,255 | F132: 28,044 | G132: 57,321 | H132: 57,321 | I132: 63,313 | J132: 66,626 | K132: 70,581
A133: Asset Management | E133: 10,213 | F133: 6,425 | G133: 5,394 | H133: 5,394 | I133: 5,209 | J133: 5,397 | K133: 5,593
A134: Finance | C134: 234,298 | D134: 50,518 | E134: 27,355 | F134: 32,311 | G134: 39,168 | H134: 39,168 | I134: 40,920 | J134: 43,353 | K134: 46,024
A135: Fleet Management | E135: 0 | F135: 0 | G135: 0 | H135: 0 | I135: 0 | J135: 0 | K135: 0
A136: Human Resources | E136: 18,115 | F136: 29,424 | G136: 8,095 | H136: 8,095 | I136: 7,943 | J136: 8,244 | K136: 8,659
A137: Information Technology | E137: 10,056 | F137: 8,341 | G137: 5,745 | H137: 5,745 | I137: 5,933 | J137: 6,206 | K137: 6,491
A138: Legal Services | E138: 17,610 | F138: 15,509 | G138: 13,385 | H138: 13,385 | I138: 10,335 | J138: 10,350 | K138: 8,367
A139: Marketing, Customer Relations, Publicity and Media Co-ordination | E139: 4,496 | F139: 4,976 | G139: 360 | H139: 360 | I139: 295 | J139: 309 | K139: 323
A140: Property Services | E140: 0 | F140: 2,033 | G140: 0 | H140: 0 | I140: 1,624 | J140: 1,648 | K140: 2,073
A141: Risk Management | E141: 1,737 | F141: 1,827 | G141: 219 | H141: 219 | I141: 277 | J141: 289 | K141: 303
A142: Security Services | E142: 0 | F142: 0 | G142: 0 | H142: 0 | I142: 0 | J142: 0 | K142: 0
A143: Supply Chain Management | E143: 3,214 | F143: 3,313 | G143: 158 | H143: 158 | I143: 244 | J143: 255 | K143: 266
A144: Valuation Service | E144: 1,126 | F144: 2,228 | G144: 1,964 | H144: 1,964 | I144: 0 | J144: 0 | K144: 0
A145: Internal audit | C145: =SUM(C146:C146) -> 0 | D145: 0 | E145: 4,601 | F145: 7,071 | G145: 1,130 | H145: 1,130 | I145: 1,199 | J145: 1,254 | K145: 1,311
A146: Governance Function | E146: 4,601 | F146: 7,071 | G146: 1,130 | H146: 1,130 | I146: 1,199 | J146: 1,254 | K146: 1,311
A147: Community and public safety | C147: =C148+C170+C176+C185+C188 -> 137,845 | D147: 142,992 | E147: 137,127 | F147: 142,562 | G147: 99,062 | H147: 99,062 | I147: 94,574 | J147: 94,898 | K147: 98,669
A148: Community and social services | C148: =SUM(C149:C169) -> 0 | D148: =SUM(D149:D169) -> 0 | E148: 15,737 | F148: 11,306 | G148: 1,417 | H148: 1,417 | I148: 1,149 | J148: 1,203 | K148: 1,259
A149: Aged Care
A150: Agricultural
A151: Animal Care and Diseases
A152: Cemeteries, Funeral Parlours and Crematoriums | E152: 10,058 | F152: 6,652 | G152: 22 | H152: 22 | I152: 33 | J152: 34 | K152: 36
A153: Child Care Facilities
A154: Community Halls and Facilities
A155: Consumer Protection
A156: Cultural Matters
A157: Disaster Management | E157: 5,680 | F157: 4,654 | G157: 1,395 | H157: 1,395 | I157: 1,116 | J157: 1,169 | K157: 1,224
A158: Education
A159: =A37 -> Indigenous and Customary Law
A160: Industrial Promotion
A161: Language Policy
A162: Libraries and Archives
A163: Literacy Programmes
A164: Media Services
A165: Museums and Art Galleries
A166: Population Development
A167: Provincial Cultural Matters
A168: Theatres
A169: Zoo's
A170: Sport and recreation | C170: =SUM(C171:C175) -> 26,539 | D170: 36,909 | E170: 9,004 | F170: 11,332 | G170: 18,016 | H170: 18,016 | I170: 18,403 | J170: 19,208 | K170: 20,291
A171: Beaches and Jetties
A172: Casinos, Racing, Gambling, Wagering
A173: Community Parks (including Nurseries) | E173: 417 | F173: 660 | G173: 538 | H173: 538 | I173: 539 | J173: 564 | K173: 590
A174: Recreational Facilities | E174: 431 | G174: 681 | H174: 681 | I174: 185 | J174: 189 | K174: 194
A175: Sports Grounds and Stadiums | C175: 26,539 | D175: 36,909 | E175: 8,156 | F175: 10,673 | G175: 16,797 | H175: 16,797 | I175: 17,679 | J175: 18,455 | K175: 19,508
A176: Public safety | C176: =SUM(C177:C184) -> 71,479 | D176: 62,344 | E176: 36,869 | F176: 42,614 | G176: 4,695 | H176: 4,695 | I176: 6,310 | J176: 6,589 | K176: 6,892
A177: Civil Defence
A178: Cleansing | E178: 6
A179: =A57 -> Control of Public Nuisances
A180: Fencing and Fences
A181: Fire Fighting and Protection
A182: Licensing and Control of Animals
A183: Police Forces, Traffic and Street Parking Control | C183: 71,479 | D183: 62,344 | E183: 36,863 | F183: 42,614 | G183: 4,695 | H183: 4,695 | I183: 6,310 | J183: 6,589 | K183: 6,892
A184: Pounds
A185: =A63 -> Housing | C185: =SUM(C186:C187) -> 39,826 | D185: 43,739 | E185: 75,516 | F185: 77,310 | G185: 74,934 | H185: 74,934 | I185: 68,713 | J185: 67,899 | K185: 70,226
A186: Housing | C186: 39,826 | D186: 43,739 | E186: 75,516 | F186: 77,310 | G186: 74,934 | H186: 74,934 | I186: 68,713 | J186: 67,899 | K186: 70,226
A187: Informal Settlements
A188: Health | C188: =SUM(C189:C195) -> 0 | D188: =SUM(D189:D195) -> 0 | E188: 0 | F188: 0 | G188: 0 | H188: 0 | I188: 0 | J188: 0 | K188: 0
A189: Ambulance
A190: Health Services
A191: Laboratory Services
A192: Food Control
A193: Health Surveillance and Prevention of Communicable Diseases including immunizations
A194: Vector Control
A195: Chemical Safety
A196: Economic and environmental services | C196: =C197+C208+C213 -> 179,751 | D196: 127,395 | E196: 188,025 | F196: 179,506 | G196: 224,146 | H196: 224,146 | I196: 246,562 | J196: 257,288 | K196: 268,683
A197: Planning and development | C197: =SUM(C198:C207) -> 45,795 | D197: =SUM(D198:D207) -> 41,170 | E197: 70,472 | F197: 42,955 | G197: 55,671 | H197: 55,671 | I197: 38,788 | J197: 40,655 | K197: 42,643
A198: Billboards
A199: Corporate Wide Strategic Planning (IDPs, LEDs) | E199: 3,258 | F199: 3,793 | G199: 116 | H199: 116 | I199: 2,209 | J199: 1,914 | K199: 1,619
A200: Central City Improvement District | I200: 0 | J200: 0 | K200: 0
A201: Development Facilitation | E201: 5,230 | F201: 0 | G201: 137 | H201: 137 | I201: 0 | J201: 0 | K201: 0
... 53 more rows

Sheet A3-FinPerf V
A1: =muni&" - "&Approve2 -> LIM343 Thulamela - Table A3 Budgeted Financial Performance (revenue and expenditure by municipal vote)
A2: =Vdesc -> Vote Description | B2: =head27 -> Ref | C2: =head1b -> 2016/17 | D2: =head1A -> 2017/18 | E2: =Head1 -> 2018/19 | F2: =Head2 -> Current Year 2019/20 | I2: =Head3 -> 2020/21 Medium Term Revenue & Expenditure Framework | L2: =Head4 -> LTFS
A3: R thousand | C3: =Head5 -> Audited Outcome | D3: =Head5 -> Audited Outcome | E3: =Head5 -> Audited Outcome | F3: =Head6 -> Original Budget | G3: =Head7 -> Adjusted Budget | H3: =Head8 -> Full Year Forecast | I3: =Head9 -> Budget Year 2020/21 | J3: =Head10 -> Budget Year +1 2021/22 | K3: =Head11 -> Budget Year +2 2022/23 | L3: =Head12 -> Forecast 2023/24 | M3: =Head13 -> Forecast 2024/25 | N3: =Head14 -> Forecast 2025/26 | O3: =Head15 -> Forecast 2026/27 | P3: =Head16 -> Forecast 2027/28 | Q3: =Head17 -> Forecast 2028/29 | R3: =Head18 -> Forecast 2029/30 | S3: =Head19 -> Forecast 2030/31 | T3: =Head20 -> Forecast 2031/32 | U3: =Head21 -> Forecast 2032/33 | V3: =Head22 -> Forecast 2033/34 | W3: =Head23 -> Forecast 2034/35
A4: Revenue by Vote | B4: 1
A5: =A3A!A5 -> Vote 1 - GOVERNANCE AND ADMIN | C5: =A3A!C5 -> 369,080 | D5: =A3A!D5 -> 389,080 | E5: =A3A!E5 -> 426,032 | F5: =A3A!F5 -> 467,882 | G5: =A3A!G5 -> 467,882 | H5: =A3A!H5 -> 467,882 | I5: =A3A!I5 -> 492,887 | J5: =A3A!J5 -> 525,789 | K5: =A3A!K5 -> 556,988
A6: =A3A!A16 -> Vote 2 - FINANCE | C6: =A3A!C16 -> 94,154 | D6: =A3A!D16 -> 116,980 | E6: =A3A!E16 -> 126,168 | F6: =A3A!F16 -> 137,919 | G6: =A3A!G16 -> 164,953 | H6: =A3A!H16 -> 164,953 | I6: =A3A!I16 -> 180,975 | J6: =A3A!J16 -> 192,415 | K6: =A3A!K16 -> 190,880
A7: =A3A!A27 -> Vote 3 - CORPORATE SERVICES | C7: =A3A!C27 -> 0 | D7: =A3A!D27 -> 456 | E7: =A3A!E27 -> 447 | F7: =A3A!F27 -> 1,000 | G7: =A3A!G27 -> 2,623 | H7: =A3A!H27 -> 2,623 | I7: =A3A!I27 -> 2,992 | J7: =A3A!J27 -> 3,143 | K7: =A3A!K27 -> 3,288
A8: =A3A!A38 -> Vote 4 - COMMUNITY AND PUBLIC SAFETEY | C8: =A3A!C38 -> 67,695 | D8: =A3A!D38 -> 67,671 | E8: =A3A!E38 -> 39,864 | F8: =A3A!F38 -> 51,165 | G8: =A3A!G38 -> 34,685 | H8: =A3A!H38 -> 34,685 | I8: =A3A!I38 -> 40,378 | J8: =A3A!J38 -> 49,700 | K8: =A3A!K38 -> 62,195
A9: =A3A!A49 -> Vote 5 - PLANNING AND DEVELOPMENT | C9: =A3A!C49 -> 6,954 | D9: =A3A!D49 -> 11,152 | E9: =A3A!E49 -> 22,413 | F9: =A3A!F49 -> 44,055 | G9: =A3A!G49 -> 47,930 | H9: =A3A!H49 -> 47,930 | I9: =A3A!I49 -> 45,939 | J9: =A3A!J49 -> 36,054 | K9: =A3A!K49 -> 36,531
A10: =A3A!A60 -> Vote 6 - TECHNICAL SERVICES | C10: =A3A!C60 -> 166,103 | D10: =A3A!D60 -> 123,711 | E10: =A3A!E60 -> 119,067 | F10: =A3A!F60 -> 144,890 | G10: =A3A!G60 -> 140,685 | H10: =A3A!H60 -> 140,685 | I10: =A3A!I60 -> 141,553 | J10: =A3A!J60 -> 145,037 | K10: =A3A!K60 -> 152,245
A11: =A3A!A71 -> Vote 7 - [NAME OF VOTE 7] | C11: =A3A!C71 -> 0 | D11: =A3A!D71 -> 0 | E11: =A3A!E71 -> 0 | F11: =A3A!F71 -> 0 | G11: =A3A!G71 -> 0 | H11: =A3A!H71 -> 0 | I11: =A3A!I71 -> 0 | J11: =A3A!J71 -> 0 | K11: =A3A!K71 -> 0
A12: =A3A!A82 -> Vote 8 - [NAME OF VOTE 8] | C12: =A3A!C82 -> 0 | D12: =A3A!D82 -> 0 | E12: =A3A!E82 -> 0 | F12: =A3A!F82 -> 0 | G12: =A3A!G82 -> 0 | H12: =A3A!H82 -> 0 | I12: =A3A!I82 -> 0 | J12: =A3A!J82 -> 0 | K12: =A3A!K82 -> 0
A13: =A3A!A93 -> Vote 9 - [NAME OF VOTE 9] | C13: =A3A!C93 -> 0 | D13: =A3A!D93 -> 0 | E13: =A3A!E93 -> 0 | F13: =A3A!F93 -> 0 | G13: =A3A!G93 -> 0 | H13: =A3A!H93 -> 0 | I13: =A3A!I93 -> 0 | J13: =A3A!J93 -> 0 | K13: =A3A!K93 -> 0
A14: =A3A!A104 -> Vote 10 - [NAME OF VOTE 10] | C14: =A3A!C104 -> 0 | D14: =A3A!D104 -> 0 | E14: =A3A!E104 -> 0 | F14: =A3A!F104 -> 0 | G14: =A3A!G104 -> 0 | H14: =A3A!H104 -> 0 | I14: =A3A!I104 -> 0 | J14: =A3A!J104 -> 0 | K14: =A3A!K104 -> 0
A15: =A3A!A115 -> Vote 11 - [NAME OF VOTE 11] | C15: =A3A!C115 -> 0 | D15: =A3A!D115 -> 0 | E15: =A3A!E115 -> 0 | F15: =A3A!F115 -> 0 | G15: =A3A!G115 -> 0 | H15: =A3A!H115 -> 0 | I15: =A3A!I115 -> 0 | J15: =A3A!J115 -> 0 | K15: =A3A!K115 -> 0 | L15: =A5A!L115 -> 0
A16: =A3A!A126 -> Vote 12 - [NAME OF VOTE 12] | C16: =A3A!C126 -> 0 | D16: =A3A!D126 -> 0 | E16: =A3A!E126 -> 0 | F16: =A3A!F126 -> 0 | G16: =A3A!G126 -> 0 | H16: =A3A!H126 -> 0 | I16: =A3A!I126 -> 0 | J16: =A3A!J126 -> 0 | K16: =A3A!K126 -> 0 | L16: =A5A!L126 -> 0
A17: =A3A!A137 -> Vote 13 - [NAME OF VOTE 13] | C17: =A3A!C137 -> 0 | D17: =A3A!D137 -> 0 | E17: =A3A!E137 -> 0 | F17: =A3A!F137 -> 0 | G17: =A3A!G137 -> 0 | H17: =A3A!H137 -> 0 | I17: =A3A!I137 -> 0 | J17: =A3A!J137 -> 0 | K17: =A3A!K137 -> 0 | L17: =A5A!L137 -> 0
A18: =A3A!A148 -> Vote 14 - [NAME OF VOTE 14] | C18: =A3A!C148 -> 0 | D18: =A3A!D148 -> 0 | E18: =A3A!E148 -> 0 | F18: =A3A!F148 -> 0 | G18: =A3A!G148 -> 0 | H18: =A3A!H148 -> 0 | I18: =A3A!I148 -> 0 | J18: =A3A!J148 -> 0 | K18: =A3A!K148 -> 0 | L18: =A5A!L148 -> 0
A19: =A3A!A159 -> Vote 15 - [NAME OF VOTE 15] | C19: =A3A!C159 -> 0 | D19: =A3A!D159 -> 0 | E19: =A3A!E159 -> 0 | F19: =A3A!F159 -> 0 | G19: =A3A!G159 -> 0 | H19: =A3A!H159 -> 0 | I19: =A3A!I159 -> 0 | J19: =A3A!J159 -> 0 | K19: =A3A!K159 -> 0 | L19: =A5A!L159 -> 0
A20: Total Revenue by Vote | B20: 2 | C20: =SUM(C5:C19) -> 703,987 | D20: =SUM(D5:D19) -> 709,050 | E20: 733,992 | F20: 846,912 | G20: 858,756 | H20: 858,756 | I20: 904,725 | J20: 952,139 | K20: 1,002,127
A22: Expenditure by Vote to be appropriated | B22: 1
A23: =A3A!A173 -> Vote 1 - GOVERNANCE AND ADMIN | C23: =A3A!C173 -> 208,769 | D23: =A3A!D173 -> 181,544 | E23: =A3A!E173 -> 124,660 | F23: =A3A!F173 -> 168,237 | G23: =A3A!G173 -> 188,103 | H23: =A3A!H173 -> 188,103 | I23: =A3A!I173 -> 175,613 | J23: =A3A!J173 -> 180,636 | K23: =A3A!K173 -> 185,321
A24: =A3A!A184 -> Vote 2 - FINANCE | C24: =A3A!C184 -> 234,298 | D24: =A3A!D184 -> 50,518 | E24: =A3A!E184 -> 40,783 | F24: =A3A!F184 -> 42,049 | G24: =A3A!G184 -> 44,719 | H24: =A3A!H184 -> 44,719 | I24: =A3A!I184 -> 72,779 | J24: =A3A!J184 -> 76,051 | K24: =A3A!K184 -> 78,099
A25: =A3A!A195 -> Vote 3 - CORPORATE SERVICES | C25: =A3A!C195 -> 56,826 | D25: =A3A!D195 -> 70,147 | E25: =A3A!E195 -> 86,891 | F25: =A3A!F195 -> 92,382 | G25: =A3A!G195 -> 83,916 | H25: =A3A!H195 -> 83,916 | I25: =A3A!I195 -> 63,313 | J25: =A3A!J195 -> 66,626 | K25: =A3A!K195 -> 70,581
A26: =A3A!A206 -> Vote 4 - COMMUNITY AND PUBLIC SAFETEY | C26: =A3A!C206 -> 120,500 | D26: =A3A!D206 -> 155,456 | E26: =A3A!E206 -> 136,597 | F26: =A3A!F206 -> 117,044 | G26: =A3A!G206 -> 133,498 | H26: =A3A!H206 -> 133,498 | I26: =A3A!I206 -> 87,744 | J26: =A3A!J206 -> 92,390 | K26: =A3A!K206 -> 97,544
A27: =A3A!A217 -> Vote 5 - PLANNING AND DEVELOPMENT | C27: =A3A!C217 -> 45,795 | D27: =A3A!D217 -> 41,170 | E27: =A3A!E217 -> 71,598 | F27: =A3A!F217 -> 42,955 | G27: =A3A!G217 -> 57,498 | H27: =A3A!H217 -> 57,498 | I27: =A3A!I217 -> 38,788 | J27: =A3A!J217 -> 40,655 | K27: =A3A!K217 -> 42,643
A28: =A3A!A228 -> Vote 6 - TECHNICAL SERVICES | C28: =A3A!C228 -> 173,782 | D28: =A3A!D228 -> 129,964 | E28: =A3A!E228 -> 162,714 | F28: =A3A!F228 -> 213,861 | G28: =A3A!G228 -> 178,854 | H28: =A3A!H228 -> 178,854 | I28: =A3A!I228 -> 276,487 | J28: =A3A!J228 -> 284,532 | K28: =A3A!K228 -> 296,266
A29: =A3A!A239 -> Vote 7 - [NAME OF VOTE 7] | C29: =A3A!C239 -> 0 | D29: =A3A!D239 -> 0 | E29: =A3A!E239 -> 0 | F29: =A3A!F239 -> 0 | G29: =A3A!G239 -> 0 | H29: =A3A!H239 -> 0 | I29: =A3A!I239 -> 0 | J29: =A3A!J239 -> 0 | K29: =A3A!K239 -> 0
A30: =A3A!A250 -> Vote 8 - [NAME OF VOTE 8] | C30: =A3A!C250 -> 0 | D30: =A3A!D250 -> 0 | E30: =A3A!E250 -> 0 | F30: =A3A!F250 -> 0 | G30: =A3A!G250 -> 0 | H30: =A3A!H250 -> 0 | I30: =A3A!I250 -> 0 | J30: =A3A!J250 -> 0 | K30: =A3A!K250 -> 0
A31: =A3A!A261 -> Vote 9 - [NAME OF VOTE 9] | C31: =A3A!C261 -> 0 | D31: =A3A!D261 -> 0 | E31: =A3A!E261 -> 0 | F31: =A3A!F261 -> 0 | G31: =A3A!G261 -> 0 | H31: =A3A!H261 -> 0 | I31: =A3A!I261 -> 0 | J31: =A3A!J261 -> 0 | K31: =A3A!K261 -> 0
A32: =A3A!A272 -> Vote 10 - [NAME OF VOTE 10] | C32: =A3A!C272 -> 0 | D32: =A3A!D272 -> 0 | E32: =A3A!E272 -> 0 | F32: =A3A!F272 -> 0 | G32: =A3A!G272 -> 0 | H32: =A3A!H272 -> 0 | I32: =A3A!I272 -> 0 | J32: =A3A!J272 -> 0 | K32: =A3A!K272 -> 0
A33: =A3A!A283 -> Vote 11 - [NAME OF VOTE 11] | C33: =A3A!C283 -> 0 | D33: =A3A!D283 -> 0 | E33: =A3A!E283 -> 0 | F33: =A3A!F283 -> 0 | G33: =A3A!G283 -> 0 | H33: =A3A!H283 -> 0 | I33: =A3A!I283 -> 0 | J33: =A3A!J283 -> 0 | K33: =A3A!K283 -> 0 | L33: =A3A!L284 -> 0
A34: =A3A!A294 -> Vote 12 - [NAME OF VOTE 12] | C34: =A3A!C294 -> 0 | D34: =A3A!D294 -> 0 | E34: =A3A!E294 -> 0 | F34: =A3A!F294 -> 0 | G34: =A3A!G294 -> 0 | H34: =A3A!H294 -> 0 | I34: =A3A!I294 -> 0 | J34: =A3A!J294 -> 0 | K34: =A3A!K294 -> 0 | L34: =A3A!L295 -> 0
A35: =A3A!A305 -> Vote 13 - [NAME OF VOTE 13] | C35: =A3A!C305 -> 0 | D35: =A3A!D305 -> 0 | E35: =A3A!E305 -> 0 | F35: =A3A!F305 -> 0 | G35: =A3A!G305 -> 0 | H35: =A3A!H305 -> 0 | I35: =A3A!I305 -> 0 | J35: =A3A!J305 -> 0 | K35: =A3A!K305 -> 0 | L35: =A3A!L306 -> 0
A36: =A3A!A316 -> Vote 14 - [NAME OF VOTE 14] | C36: =A3A!C316 -> 0 | D36: =A3A!D316 -> 0 | E36: =A3A!E316 -> 0 | F36: =A3A!F316 -> 0 | G36: =A3A!G316 -> 0 | H36: =A3A!H316 -> 0 | I36: =A3A!I316 -> 0 | J36: =A3A!J316 -> 0 | K36: =A3A!K316 -> 0 | L36: =A3A!L317 -> 0
A37: =A3A!A327 -> Vote 15 - [NAME OF VOTE 15] | C37: =A3A!C327 -> 0 | D37: =A3A!D327 -> 0 | E37: =A3A!E327 -> 0 | F37: =A3A!F327 -> 0 | G37: =A3A!G327 -> 0 | H37: =A3A!H327 -> 0 | I37: =A3A!I327 -> 0 | J37: =A3A!J327 -> 0 | K37: =A3A!K327 -> 0 | L37: =A3A!L328 -> 0
A38: Total Expenditure by Vote | B38: 2 | C38: =SUM(C23:C37) -> 839,970 | D38: =SUM(D23:D37) -> 628,799 | E38: 623,242 | F38: 676,529 | G38: 686,588 | H38: 686,588 | I38: 714,725 | J38: 740,889 | K38: 770,454 | L38: =SUM(L23:L29) -> 0 | M38: 0 | N38: 0 | O38: 0 | P38: 0 | Q38: 0 | R38: 0 | S38: 0 | T38: 0 | U38: 0 | V38: 0 | W38: 0
A39: =result -> Surplus/(Deficit) for the year | B39: 2 | C39: =C20-C38 -> (135,983) | D39: 80,251 | E39: 110,750 | F39: 170,383 | G39: 172,168 | H39: 172,168 | I39: 190,000 | J39: 211,250 | K39: 231,673 | L39: 0 | M39: 0 | N39: 0 | O39: 0 | P39: 0 | Q39: 0 | R39: 0 | S39: 0 | T39: 0 | U39: 0 | V39: 0 | W39: 0
A40: =head27a -> References
A41: 1. Insert 'Vote'; e.g. department, if different to functional classification structure
A42: 2. Must reconcile to Budgeted Financial Performance (revenue and expenditure)
A43: 3. Assign share in 'associate' to relevant Vote
A45: ="check "&A39 -> check Surplus/(Deficit) for the year | C45: =C39-A3A!C340 -> 0 | D45: =D39-A3A!D340 -> 0 | E45: =E39-A3A!E340 -> 0 | F45: =F39-A3A!F340 -> 0 | G45: =G39-A3A!G340 -> 0 | H45: =H39-A3A!H340 -> 0 | I45: =I39-A3A!I340 -> 0 | J45: =J39-A3A!J340 -> 0 | K45: =K39-A3A!K340 -> 0

Sheet A3A
A1: =muni&" - "&Approve2&"A" -> LIM343 Thulamela - Table A3 Budgeted Financial Performance (revenue and expenditure by municipal vote)A
A2: =Vdesc -> Vote Description | B2: =head27 -> Ref | C2: =head1b -> 2016/17 | D2: =head1A -> 2017/18 | E2: =Head1 -> 2018/19 | F2: =Head2 -> Current Year 2019/20 | I2: =Head3 -> 2020/21 Medium Term Revenue & Expenditure Framework | L2: =Head4 -> LTFS
A3: R thousand | C3: =Head5 -> Audited Outcome | D3: =Head5 -> Audited Outcome | E3: =Head5 -> Audited Outcome | F3: =Head6 -> Original Budget | G3: =Head7 -> Adjusted Budget | H3: =Head8 -> Full Year Forecast | I3: =Head9 -> Budget Year 2020/21 | J3: =Head10 -> Budget Year +1 2021/22 | K3: =Head11 -> Budget Year +2 2022/23 | L3: =Head12 -> Forecast 2023/24 | M3: =Head13 -> Forecast 2024/25 | N3: =Head14 -> Forecast 2025/26 | O3: =Head15 -> Forecast 2026/27 | P3: =Head16 -> Forecast 2027/28 | Q3: =Head17 -> Forecast 2028/29 | R3: =Head18 -> Forecast 2029/30 | S3: =Head19 -> Forecast 2030/31 | T3: =Head20 -> Forecast 2031/32 | U3: =Head21 -> Forecast 2032/33 | V3: =Head22 -> Forecast 2033/34 | W3: =Head23 -> Forecast 2034/35
A4: Revenue by Vote | B4: 1
A5: ='Org structure'!A2 -> Vote 1 - GOVERNANCE AND ADMIN | C5: =SUM(C6:C15) -> 369,080 | D5: =SUM(D6:D15) -> 389,080 | E5: 426,032 | F5: 467,882 | G5: 467,882 | H5: 467,882 | I5: 492,887 | J5: 525,789 | K5: 556,988
A6: ='Org structure'!E3 -> 1.1 - Municipal Manager | F6: 0
A7: ='Org structure'!E4 -> 1.2 - Executive and Council | C7: 369,080 | D7: 389,080 | E7: 426,032 | F7: 467,882 | G7: 467,882 | H7: 467,882 | I7: 492,887 | J7: 525,789 | K7: 556,988
A8: ='Org structure'!E5 -> 1.3 - Internal Audit
A9: ='Org structure'!E6 -> 0
A10: ='Org structure'!E7 -> 0
A11: ='Org structure'!E8 -> 0
A12: ='Org structure'!E9 -> 0
A13: ='Org structure'!E10 -> 0
A14: ='Org structure'!E11 -> 0
A15: ='Org structure'!E12 -> 0
A16: ='Org structure'!A3 -> Vote 2 - FINANCE | C16: =SUM(C17:C26) -> 94,154 | D16: =SUM(D17:D26) -> 116,980 | E16: 126,168 | F16: 137,919 | G16: 164,953 | H16: 164,953 | I16: 180,975 | J16: 192,415 | K16: 190,880
A17: ='Org structure'!E14 -> 2.1 - Finance | C17: 94,154 | D17: 116,980 | E17: 126,168 | F17: 137,919 | G17: 164,953 | H17: 164,953 | I17: 180,975 | J17: 192,415 | K17: 190,880
A18: ='Org structure'!E15 -> 0
A19: ='Org structure'!E16 -> 0
A20: ='Org structure'!E17 -> 0
A21: ='Org structure'!E18 -> 0
A22: ='Org structure'!E19 -> 0
A23: ='Org structure'!E20 -> 0
A24: ='Org structure'!E21 -> 0
A25: ='Org structure'!E22 -> 0
A26: ='Org structure'!E23 -> 0
A27: ='Org structure'!A4 -> Vote 3 - CORPORATE SERVICES | C27: =SUM(C28:C37) -> 0 | D27: 456 | E27: 447 | F27: 1,000 | G27: 2,623 | H27: 2,623 | I27: 2,992 | J27: 3,143 | K27: 3,288
A28: ='Org structure'!E25 -> 3.1 - Corporate and Services | D28: 456 | E28: 447 | F28: 1,000 | G28: 2,623 | H28: 2,623 | I28: 2,992 | J28: 3,143 | K28: 3,288
A29: ='Org structure'!E26 -> 0
A30: ='Org structure'!E27 -> 0
A31: ='Org structure'!E28 -> 0
A32: ='Org structure'!E29 -> 0
A33: ='Org structure'!E30 -> 0
A34: ='Org structure'!E31 -> 0
A35: ='Org structure'!E32 -> 0
A36: ='Org structure'!E33 -> 0
A37: ='Org structure'!E34 -> 0
A38: ='Org structure'!A5 -> Vote 4 - COMMUNITY AND PUBLIC SAFETEY | C38: =SUM(C39:C48) -> 67,695 | D38: 67,671 | E38: 39,864 | F38: 51,165 | G38: 34,685 | H38: 34,685 | I38: 40,378 | J38: 49,700 | K38: 62,195
A39: ='Org structure'!E36 -> 4.1 - Sports and recreational services | C39: 1,512 | D39: 1,835 | E39: 1,292 | F39: 4,527 | G39: 3,900 | H39: 3,900 | I39: 4,571 | J39: 4,740 | K39: 4,917
A40: ='Org structure'!E37 -> 4.2 - Public Safety | C40: 22,912 | D40: 19,391 | E40: 17,531 | F40: 150 | G40: 0 | H40: 0 | I40: 2,149 | J40: 9,754 | K40: 18,482
A41: ='Org structure'!E38 -> 4.3 - Health & Waste Management | C41: 43,271 | D41: 46,445 | E41: 21,041 | F41: 46,488 | G41: 30,785 | H41: 30,785 | I41: 33,657 | J41: 35,206 | K41: 38,796
A42: ='Org structure'!E39 -> 0
A43: ='Org structure'!E40 -> 0
A44: ='Org structure'!E41 -> 0
A45: ='Org structure'!E42 -> 0
A46: ='Org structure'!E43 -> 0
A47: ='Org structure'!E44 -> 0
A48: ='Org structure'!E45 -> 0
A49: ='Org structure'!A6 -> Vote 5 - PLANNING AND DEVELOPMENT | C49: =SUM(C50:C59) -> 6,954 | D49: =SUM(D50:D59) -> 11,152 | E49: 22,413 | F49: 44,055 | G49: 47,930 | H49: 47,930 | I49: 45,939 | J49: 36,054 | K49: 36,531
A50: ='Org structure'!E47 -> 5.1 - Planning and Development | C50: 6,954 | D50: 11,152 | E50: 22,413 | F50: 44,055 | G50: 47,930 | H50: 47,930 | I50: 45,939 | J50: 36,054 | K50: 36,531
A51: ='Org structure'!E48 -> 0
A52: ='Org structure'!E49 -> 0
A53: ='Org structure'!E50 -> 0
A54: ='Org structure'!E51 -> 0
A55: ='Org structure'!E52 -> 0
A56: ='Org structure'!E53 -> 0
A57: ='Org structure'!E54 -> 0
A58: ='Org structure'!E55 -> 0
A59: ='Org structure'!E56 -> 0
A60: ='Org structure'!A7 -> Vote 6 - TECHNICAL SERVICES | C60: =SUM(C61:C70) -> 166,103 | D60: =SUM(D61:D70) -> 123,711 | E60: 119,067 | F60: 144,890 | G60: 140,685 | H60: =SUM(H61:H70) -> 140,685 | I60: 141,553 | J60: 145,037 | K60: 152,245
A61: ='Org structure'!E58 -> 6.1 - Roads | C61: 112,739 | D61: 123,711 | E61: 119,048 | F61: 144,860 | G61: 140,385 | H61: 140,385 | I61: 140,253 | J61: 143,514 | K61: 151,598
A62: ='Org structure'!E59 -> 6.2 - Housing and electricity | C62: 53,364 | D62: 0 | E62: 19 | F62: 30 | G62: 300 | H62: 300 | I62: 1,300 | J62: 1,523 | K62: 647
A63: ='Org structure'!E60 -> 0
A64: ='Org structure'!E61 -> 0
A65: ='Org structure'!E62 -> 0
A66: ='Org structure'!E63 -> 0
A67: ='Org structure'!E64 -> 0
A68: ='Org structure'!E65 -> 0
A69: ='Org structure'!E66 -> 0
A70: ='Org structure'!E67 -> 0
A71: ='Org structure'!A8 -> Vote 7 - [NAME OF VOTE 7] | C71: =SUM(C72:C81) -> 0 | D71: 0 | E71: 0 | F71: 0 | G71: 0 | H71: 0 | I71: 0 | J71: 0 | K71: 0
A72: ='Org structure'!E69 -> 7.1 - [Name of sub-vote]
A73: ='Org structure'!E70 -> 0
A74: ='Org structure'!E71 -> 0
A75: ='Org structure'!E72 -> 0
A76: ='Org structure'!E73 -> 0
A77: ='Org structure'!E74 -> 0
A78: ='Org structure'!E75 -> 0
A79: ='Org structure'!E76 -> 0
A80: ='Org structure'!E77 -> 0
A81: ='Org structure'!E78 -> 0
A82: ='Org structure'!A9 -> Vote 8 - [NAME OF VOTE 8] | C82: =SUM(C83:C92) -> 0 | D82: =SUM(D83:D92) -> 0 | E82: 0 | F82: 0 | G82: 0 | H82: 0 | I82: 0 | J82: 0 | K82: 0
A83: ='Org structure'!E80 -> 8.1 - [Name of sub-vote]
A84: ='Org structure'!E81 -> 0
A85: ='Org structure'!E82 -> 0
A86: ='Org structure'!E83 -> 0
A87: ='Org structure'!E84 -> 0
A88: ='Org structure'!E85 -> 0
A89: ='Org structure'!E86 -> 0
A90: ='Org structure'!E87 -> 0
A91: ='Org structure'!E88 -> 0
A92: ='Org structure'!E89 -> 0
A93: ='Org structure'!A10 -> Vote 9 - [NAME OF VOTE 9] | C93: =SUM(C94:C103) -> 0 | D93: =SUM(D94:D103) -> 0 | E93: 0 | F93: 0 | G93: 0 | H93: 0 | I93: 0 | J93: 0 | K93: 0
A94: ='Org structure'!E91 -> 9.1 - [Name of sub-vote]
A95: ='Org structure'!E92 -> 0
A96: ='Org structure'!E93 -> 0
A97: ='Org structure'!E94 -> 0
A98: ='Org structure'!E95 -> 0
A99: ='Org structure'!E96 -> 0
A100: ='Org structure'!E97 -> 0
A101: ='Org structure'!E98 -> 0
A102: ='Org structure'!E99 -> 0
A103: ='Org structure'!E100 -> 0
A104: ='Org structure'!A11 -> Vote 10 - [NAME OF VOTE 10] | C104: =SUM(C105:C114) -> 0 | D104: =SUM(D105:D114) -> 0 | E104: 0 | F104: 0 | G104: 0 | H104: 0 | I104: 0 | J104: 0 | K104: 0
A105: ='Org structure'!E102 -> 10.1 - [Name of sub-vote]
A106: ='Org structure'!E103 -> 0
A107: ='Org structure'!E104 -> 0
A108: ='Org structure'!E105 -> 0
A109: ='Org structure'!E106 -> 0
A110: ='Org structure'!E107 -> 0
A111: ='Org structure'!E108 -> 0
A112: ='Org structure'!E109 -> 0
A113: ='Org structure'!E110 -> 0
A114: ='Org structure'!E111 -> 0
A115: ='Org structure'!A12 -> Vote 11 - [NAME OF VOTE 11] | C115: =SUM(C116:C125) -> 0 | D115: =SUM(D116:D125) -> 0 | E115: 0 | F115: 0 | G115: 0 | H115: 0 | I115: 0 | J115: 0 | K115: 0
A116: ='Org structure'!E113 -> 11.1 - [Name of sub-vote]
A117: ='Org structure'!E114 -> 0
A118: ='Org structure'!E115 -> 0
A119: ='Org structure'!E116 -> 0
A120: ='Org structure'!E117 -> 0
A121: ='Org structure'!E118 -> 0
A122: ='Org structure'!E119 -> 0
A123: ='Org structure'!E120 -> 0
A124: ='Org structure'!E121 -> 0
A125: ='Org structure'!E122 -> 0
A126: ='Org structure'!A13 -> Vote 12 - [NAME OF VOTE 12] | C126: =SUM(C127:C136) -> 0 | D126: =SUM(D127:D136) -> 0 | E126: 0 | F126: 0 | G126: 0 | H126: 0 | I126: 0 | J126: 0 | K126: 0
A127: ='Org structure'!E124 -> 12.1 - [Name of sub-vote]
A128: ='Org structure'!E125 -> 0
A129: ='Org structure'!E126 -> 0
A130: ='Org structure'!E127 -> 0
A131: ='Org structure'!E128 -> 0
A132: ='Org structure'!E129 -> 0
A133: ='Org structure'!E130 -> 0
A134: ='Org structure'!E131 -> 0
A135: ='Org structure'!E132 -> 0
A136: ='Org structure'!E133 -> 0
A137: ='Org structure'!A14 -> Vote 13 - [NAME OF VOTE 13] | C137: =SUM(C138:C147) -> 0 | D137: =SUM(D138:D147) -> 0 | E137: 0 | F137: 0 | G137: 0 | H137: 0 | I137: 0 | J137: 0 | K137: 0
A138: ='Org structure'!E135 -> 13.1 - [Name of sub-vote]
A139: ='Org structure'!E136 -> 0
A140: ='Org structure'!E137 -> 0
A141: ='Org structure'!E138 -> 0
A142: ='Org structure'!E139 -> 0
A143: ='Org structure'!E140 -> 0
A144: ='Org structure'!E141 -> 0
A145: ='Org structure'!E142 -> 0
A146: ='Org structure'!E143 -> 0
A147: ='Org structure'!E144 -> 0
A148: ='Org structure'!A15 -> Vote 14 - [NAME OF VOTE 14] | C148: =SUM(C149:C158) -> 0 | D148: =SUM(D149:D158) -> 0 | E148: 0 | F148: 0 | G148: 0 | H148: 0 | I148: 0 | J148: 0 | K148: 0
A149: ='Org structure'!E146 -> 14.1 - [Name of sub-vote]
A150: ='Org structure'!E147 -> 0
A151: ='Org structure'!E148 -> 0
A152: ='Org structure'!E149 -> 0
A153: ='Org structure'!E150 -> 0
A154: ='Org structure'!E151 -> 0
A155: ='Org structure'!E152 -> 0
A156: ='Org structure'!E153 -> 0
A157: ='Org structure'!E154 -> 0
A158: ='Org structure'!E155 -> 0
A159: ='Org structure'!A16 -> Vote 15 - [NAME OF VOTE 15] | C159: =SUM(C160:C169) -> 0 | D159: =SUM(D160:D169) -> 0 | E159: 0 | F159: 0 | G159: 0 | H159: 0 | I159: 0 | J159: 0 | K159: 0
A160: ='Org structure'!E157 -> 15.1 - [Name of sub-vote]
A161: ='Org structure'!E158 -> 0
A162: ='Org structure'!E159 -> 0
A163: ='Org structure'!E160 -> 0
A164: ='Org structure'!E161 -> 0
A165: ='Org structure'!E162 -> 0
A166: ='Org structure'!E163 -> 0
A167: ='Org structure'!E164 -> 0
A168: ='Org structure'!E165 -> 0
A169: ='Org structure'!E166 -> 0
A170: Total Revenue by Vote | B170: 2 | C170: =C5+C16+C27+C38+C49+C60+C71+C82+C93+C104+C115+C126+C137+C148+C159 -> 703,987 | D170: =D5+D16+D27+D38+D49+D60+D71+D82+D93+D104+D115+D126+D137+D148+D159 -> 709,050 | E170: =E5+E16+E27+E38+E49+E60+E71+E82+E93+E104+E115+E126+E137+E148+E159 -> 733,992 | F170: 846,912 | G170: 858,756 | H170: 858,756 | I170: =I5+I16+I27+I38+I49+I60+I71+I82+I93+I104+I115+I126+I137+I148+I159 -> 904,725 | J170: 952,139 | K170: 1,002,127 | L170: =SUM(L78:L81) -> 0 | M170: 0 | N170: 0 | O170: 0 | P170: 0 | Q170: 0 | R170: 0 | S170: 0 | T170: 0 | U170: 0 | V170: 0 | W170: 0
A172: Expenditure by Vote | B172: 1
A173: =A5 -> Vote 1 - GOVERNANCE AND ADMIN | C173: =SUM(C174:C183) -> 208,769 | D173: 181,544 | E173: 124,660 | F173: 168,237 | G173: 188,103 | H173: 188,103 | I173: 175,613 | J173: 180,636 | K173: 185,321
A174: =A6 -> 1.1 - Municipal Manager | C174: 51,581 | D174: 26,533 | E174: 2,437 | F174: 3,493 | G174: 34,553 | H174: 34,553 | I174: 21,047 | J174: 22,345 | K174: 23,723
A175: 1.2 - Executive and Council | C175: 157,188 | D175: 155,011 | E175: 117,622 | F175: 157,673 | G175: 153,550 | H175: 153,550 | I175: 153,368 | J175: 157,037 | K175: 160,286
A176: 1.3 - Internal Audit | C176: 0 | D176: 0 | E176: 4,601 | F176: 7,071 | G176: 0 | H176: 0 | I176: 1,199 | J176: 1,254 | K176: 1,311
A177: 0
A178: 0
A179: 0
A180: 0
A181: 0
A182: 0
A183: 0
A184: =A16 -> Vote 2 - FINANCE | C184: =SUM(C185:C194) -> 234,298 | D184: =SUM(D185:D194) -> 50,518 | E184: =SUM(E185:E194) -> 40,783 | F184: 42,049 | G184: 44,719 | H184: 44,719 | I184: 72,779 | J184: 76,051 | K184: 78,099
A185: =A17 -> 2.1 - Finance | C185: 234,298 | D185: 50,518 | E185: 40,783 | F185: 42,049 | G185: 44,719 | H185: 44,719 | I185: 72,779 | J185: 76,051 | K185: 78,099
A186: 0
A187: 0
A188: 0
A189: 0
A190: 0
A191: 0
A192: 0
A193: 0
A194: 0
A195: =A27 -> Vote 3 - CORPORATE SERVICES | C195: =SUM(C196:C205) -> 56,826 | D195: 70,147 | E195: 86,891 | F195: 92,382 | G195: 83,916 | H195: 83,916 | I195: 63,313 | J195: 66,626 | K195: 70,581
A196: 3.1 - Corporate and Services | C196: 56,826 | D196: 70,147 | E196: 86,891 | F196: 92,382 | G196: 83,916 | H196: 83,916 | I196: 63,313 | J196: 66,626 | K196: 70,581
A197: 0
A198: 0
A199: 0
A200: 0
A201: 0
... 144 more rows

Sheet A4-FinPerf RE
A1: =muni&" - "&Approve4 -> LIM343 Thulamela - Table A4 Budgeted Financial Performance (revenue and expenditure)
A2: =desc -> Description | B2: =head27 -> Ref | C2: =head1b -> 2016/17 | D2: =head1A -> 2017/18 | E2: =Head1 -> 2018/19 | F2: =Head2 -> Current Year 2019/20 | J2: =Head3 -> 2020/21 Medium Term Revenue & Expenditure Framework | M2: =Head4 -> LTFS
A3: R thousand | B3: 1 | C3: =Head5 -> Audited Outcome | D3: =Head5 -> Audited Outcome | E3: =Head5 -> Audited Outcome | F3: =Head6 -> Original Budget | G3: =Head7 -> Adjusted Budget | H3: =Head8 -> Full Year Forecast | I3: =Head5b -> Pre-audit outcome | J3: =Head9 -> Budget Year 2020/21 | K3: =Head10 -> Budget Year +1 2021/22 | L3: =Head11 -> Budget Year +2 2022/23 | M3: =Head12 -> Forecast 2023/24 | N3: =Head13 -> Forecast 2024/25 | O3: =Head14 -> Forecast 2025/26 | P3: =Head15 -> Forecast 2026/27 | Q3: =Head16 -> Forecast 2027/28 | R3: =Head17 -> Forecast 2028/29 | S3: =Head18 -> Forecast 2029/30 | T3: =Head19 -> Forecast 2030/31 | U3: =Head20 -> Forecast 2031/32 | V3: =Head21 -> Forecast 2032/33 | W3: =Head22 -> Forecast 2033/34 | X3: =Head23 -> Forecast 2034/35
A4: Revenue By Source
A5: Property rates | B5: 2 | C5: ='SA1'!C9 -> 44,111 | D5: ='SA1'!D9 -> 53,944 | E5: ='SA1'!E9 -> 61,076 | F5: ='SA1'!F9 -> 70,190 | G5: ='SA1'!G9 -> 97,147 | H5: ='SA1'!H9 -> 97,147 | I5: ='SA1'!I9 -> 61,076 | J5: ='SA1'!J9 -> 108,961 | K5: ='SA1'!K9 -> 116,547 | L5: ='SA1'!L9 -> 120,298
A6: Service charges - electricity revenue | B6: 2 | C6: ='SA1'!C15 -> 0 | D6: ='SA1'!D15 -> 0 | E6: ='SA1'!E15 -> 0 | F6: ='SA1'!F15 -> 0 | G6: ='SA1'!G15 -> 0 | H6: ='SA1'!H15 -> 0 | I6: ='SA1'!I15 -> 0 | J6: ='SA1'!J15 -> 0 | K6: ='SA1'!K15 -> 0 | L6: ='SA1'!L15 -> 0
A7: Service charges - water revenue | B7: 2 | C7: ='SA1'!C21 -> 0 | D7: ='SA1'!D21 -> 0 | E7: ='SA1'!E21 -> 0 | F7: ='SA1'!F21 -> 0 | G7: ='SA1'!G21 -> 0 | H7: ='SA1'!H21 -> 0 | I7: ='SA1'!I21 -> 0 | J7: ='SA1'!J21 -> 0 | K7: ='SA1'!K21 -> 0 | L7: ='SA1'!L21 -> 0
A8: Service charges - sanitation revenue | B8: 2 | C8: ='SA1'!C27 -> 0 | D8: ='SA1'!D27 -> 0 | E8: ='SA1'!E27 -> 0 | F8: ='SA1'!F27 -> 0 | G8: ='SA1'!G27 -> 0 | H8: ='SA1'!H27 -> 0 | I8: ='SA1'!I27 -> 0 | J8: ='SA1'!J27 -> 0 | K8: ='SA1'!K27 -> 0 | L8: ='SA1'!L27 -> 0
A9: Service charges - refuse revenue | B9: 2 | C9: ='SA1'!C34 -> 43,271 | D9: ='SA1'!D34 -> 46,445 | E9: ='SA1'!E34 -> 21,052 | F9: ='SA1'!F34 -> 46,518 | G9: ='SA1'!G34 -> 30,764 | H9: ='SA1'!H34 -> 30,764 | I9: ='SA1'!I34 -> 20,691 | J9: ='SA1'!J34 -> 34,436 | K9: ='SA1'!K34 -> 36,184 | L9: ='SA1'!L34 -> 38,873
A11: Rental of facilities and equipment | C11: 790 | D11: 1,583 | E11: 1,904 | F11: 4,501 | G11: 9,000 | H11: 9,000 | I11: 1,904 | J11: 9,497 | K11: 9,984 | L11: 13,145
A12: Interest earned - external investments | C12: 29,570 | D12: 28,808 | E12: 33,974 | F12: 35,000 | G12: 36,000 | H12: 36,000 | I12: 33,974 | J12: 38,000 | K12: 39,748 | L12: 41,576
A13: Interest earned - outstanding debtors | C13: 18,848 | D13: 19,668 | E13: 24,295 | F13: 27,800 | G13: 27,800 | H13: 27,800 | I13: 24,295 | J13: 29,000 | K13: 30,334 | L13: 31,730
A14: Dividends received | J14: 0 | K14: 0 | L14: 0
A15: Fines, penalties and forfeits | C15: 6,012 | D15: 11,073 | E15: 10,456 | F15: 27,513 | G15: 26,100 | H15: 26,100 | I15: 10,456 | J15: 27,392 | K15: 28,652 | L15: 29,970
A16: Licences and permits | C16: 11,356 | D16: 11,042 | E16: 13,466 | F16: 22,000 | G16: 15,565 | H16: 15,565 | I16: 652 | J16: 16,343 | K16: 17,105 | L16: 17,892
A17: Agency services | G17: 0 | H17: 0 | J17: 0 | K17: 0 | L17: 0
A18: Transfers and subsidies | C18: 419,476 | D18: 393,323 | E18: 401,812 | F18: 482,309 | G18: 480,559 | H18: 480,559 | I18: 436,812 | J18: 505,805 | K18: 533,094 | L18: 563,797
A19: Other revenue | B19: 2 | C19: ='SA1'!C49 -> 20,799 | D19: ='SA1'!D49 -> 22,005 | E19: ='SA1'!E49 -> 17,647 | F19: ='SA1'!F49 -> 31,198 | G19: ='SA1'!G49 -> 36,438 | H19: ='SA1'!H49 -> 36,438 | I19: ='SA1'!I49 -> 31,310 | J19: ='SA1'!J49 -> 36,589 | K19: ='SA1'!K49 -> 33,006 | L19: ='SA1'!L49 -> 30,934
A20: Gains | F20: 500 | G20: 0 | H20: 0 | I20: 0
A21: Total Revenue (excluding capital transfers and contributions) | C21: =SUM(C5:C9)+SUM(C11:C20) -> 594,234 | D21: =SUM(D5:D9)+SUM(D11:D20) -> 587,891 | E21: 585,681 | F21: 747,529 | G21: 759,373 | H21: 759,373 | I21: 621,169 | J21: 806,023 | K21: 844,654 | L21: 888,215 | M21: =SUM(M5:M20) -> 0 | N21: 0 | O21: 0 | P21: 0 | Q21: 0 | R21: 0 | S21: 0 | T21: 0 | U21: 0 | V21: 0 | W21: 0 | X21: 0
A23: Expenditure By Type
A24: Employee related costs | B24: 2 | C24: ='SA1'!C67 -> 227,164 | D24: ='SA1'!D67 -> 243,870 | E24: ='SA1'!E67 -> 261,950 | F24: ='SA1'!F67 -> 274,561 | G24: ='SA1'!G67 -> 285,496 | H24: ='SA1'!H67 -> 285,496 | I24: ='SA1'!I67 -> 267,062 | J24: ='SA1'!J67 -> 306,893 | K24: ='SA1'!K67 -> 326,061 | L24: ='SA1'!L67 -> 346,428
A25: Remuneration of councillors | C25: 25,767 | D25: 28,412 | E25: 29,330 | F25: 35,200 | G25: 35,200 | H25: 35,200 | I25: 29,118 | J25: 36,960 | K25: 38,808 | L25: 40,748
A26: Debt impairment | B26: 3 | C26: 86,852 | D26: 72,530 | E26: 63,734 | F26: 89,033 | G26: 84,033 | H26: 84,033 | I26: 59,563 | J26: 85,424 | K26: 85,949 | L26: 85,855
A27: Depreciation & asset impairment | B27: 2 | C27: ='SA1'!C83 -> 46,345 | D27: ='SA1'!D83 -> 50,533 | E27: ='SA1'!E83 -> 50,223 | F27: ='SA1'!F83 -> 58,000 | G27: ='SA1'!G83 -> 60,840 | H27: ='SA1'!H83 -> 60,840 | I27: ='SA1'!I83 -> 86,266 | J27: ='SA1'!J83 -> 60,466 | K27: ='SA1'!K83 -> 60,470 | L27: ='SA1'!L83 -> 60,820
A28: Finance charges | C28: 558 | D28: 225 | E28: 2,365 | F28: 0 | G28: 50 | H28: 50 | I28: 2,374 | J28: 50 | K28: 52 | L28: 55
A29: Bulk purchases | B29: 2 | C29: ='SA1'!C88 -> 0 | D29: ='SA1'!D88 -> 0 | E29: ='SA1'!E88 -> 0 | F29: ='SA1'!F88 -> 0 | G29: ='SA1'!G88 -> 0 | H29: ='SA1'!H88 -> 0 | I29: ='SA1'!I88 -> 0 | J29: ='SA1'!J88 -> 0 | K29: ='SA1'!K88 -> 0 | L29: ='SA1'!L88 -> 0
A30: Other materials | B30: 8 | C30: 0 | D30: 0 | E30: 7,487 | F30: 31,647 | G30: 14,637 | H30: 14,637 | I30: 0 | J30: 16,920 | K30: 17,698 | L30: 18,511
A31: Contracted services | C31: ='SA1'!C127 -> 0 | D31: ='SA1'!D127 -> 0 | E31: ='SA1'!E127 -> 99,819 | F31: ='SA1'!F127 -> 106,433 | G31: ='SA1'!G127 -> 94,632 | H31: ='SA1'!H127 -> 94,632 | I31: ='SA1'!I127 -> 73,711 | J31: ='SA1'!J127 -> 85,761 | K31: ='SA1'!K127 -> 85,280 | L31: ='SA1'!L127 -> 86,106
A32: Transfers and subsidies | C32: ='SA1'!C93 -> 0 | D32: ='SA1'!D93 -> 0 | E32: ='SA1'!E93 -> 6,354 | F32: ='SA1'!F93 -> 13,560 | G32: ='SA1'!G93 -> 8,967 | H32: ='SA1'!H93 -> 8,967 | I32: ='SA1'!I93 -> 0 | J32: ='SA1'!J93 -> 6,056 | K32: ='SA1'!K93 -> 6,106 | L32: ='SA1'!L93 -> 6,158
A33: Other expenditure | B33: 4, 5 | C33: ='SA1'!C157 -> 257,397 | D33: ='SA1'!D157 -> 233,229 | E33: ='SA1'!E157 -> 71,904 | F33: ='SA1'!F157 -> 68,095 | G33: ='SA1'!G157 -> 79,203 | H33: ='SA1'!H157 -> 79,203 | I33: ='SA1'!I157 -> 111,816 | J33: ='SA1'!J157 -> 103,736 | K33: ='SA1'!K157 -> 107,962 | L33: ='SA1'!L157 -> 113,179
A34: Losses | C34: 195,888 | D34: 0 | E34: 30,076 | F34: 0 | G34: 23,530 | H34: 23,530 | I34: 2,528 | J34: 12,459 | K34: 12,503 | L34: 12,595
A35: Total Expenditure | C35: =SUM(C24:C34) -> 839,970 | D35: =SUM(D24:D34) -> 628,799 | E35: 623,242 | F35: 676,529 | G35: 686,588 | H35: 686,588 | I35: 632,437 | J35: 714,725 | K35: 740,889 | L35: 770,454 | M35: =SUM(M24:M34) -> 0 | N35: 0 | O35: 0 | P35: 0 | Q35: 0 | R35: 0 | S35: 0 | T35: 0 | U35: 0 | V35: 0 | W35: 0 | X35: 0
A37: Surplus/(Deficit) | C37: =C21-C35 -> (245,737) | D37: (40,908) | E37: (37,561) | F37: 71,000 | G37: 72,785 | H37: 72,785 | I37: (11,269) | J37: 91,298 | K37: 103,765 | L37: 117,761 | M37: =M21+M35 -> 0 | N37: 0 | O37: 0 | P37: 0 | Q37: 0 | R37: 0 | S37: 0 | T37: 0 | U37: 0 | V37: 0 | W37: 0 | X37: 0
A38: Transfers and subsidies - capital (monetary allocations) (National / Provincial and District) | C38: 109,753 | D38: 121,159 | E38: 148,311 | F38: 99,383 | G38: 99,383 | H38: 99,383 | I38: 112,823 | J38: 98,702 | K38: 107,485 | L38: 113,912
A39: Transfers and subsidies - capital (monetary allocations) (National / Provincial Departmental Agencies, Households, Non-profit Institutions, Private Enterprises, Public Corporatons, Higher Educational Institutions) | B39: 6 | C39: ='SA1'!C76 -> 0 | D39: ='SA1'!D76 -> 0 | E39: ='SA1'!E76 -> 0 | F39: ='SA1'!F76 -> 0 | G39: ='SA1'!G76 -> 0 | H39: ='SA1'!H76 -> 0 | I39: ='SA1'!I76 -> 0 | J39: ='SA1'!J76 -> 0 | K39: ='SA1'!K76 -> 0 | L39: ='SA1'!L76 -> 0
A40: Transfers and subsidies - capital (in-kind - all)
A41: Surplus/(Deficit) after capital transfers & contributions | C41: =SUM(C37:C40) -> (135,983) | D41: 80,251 | E41: 110,750 | F41: 170,383 | G41: 172,168 | H41: 172,168 | I41: 101,554 | J41: 190,000 | K41: 211,250 | L41: 231,673
A42: Taxation
A43: Surplus/(Deficit) after taxation | C43: =C41-C42 -> (135,983) | D43: 80,251 | E43: 110,750 | F43: 170,383 | G43: 172,168 | H43: 172,168 | I43: 101,554 | J43: 190,000 | K43: 211,250 | L43: 231,673
A44: Attributable to minorities
A45: Surplus/(Deficit) attributable to municipality | C45: =SUM(C43:C44) -> (135,983) | D45: 80,251 | E45: 110,750 | F45: 170,383 | G45: 172,168 | H45: 172,168 | I45: 101,554 | J45: 190,000 | K45: 211,250 | L45: 231,673
A46: Share of surplus/ (deficit) of associate | B46: 7
A47: =result -> Surplus/(Deficit) for the year | C47: =SUM(C45:C46) -> (135,983) | D47: 80,251 | E47: 110,750 | F47: 170,383 | G47: 172,168 | H47: 172,168 | I47: 101,554 | J47: 190,000 | K47: 211,250 | L47: 231,673 | M47: =M25+M46 -> 0 | N47: 0 | O47: 0 | P47: 0 | Q47: 0 | R47: 0 | S47: 0 | T47: 0 | U47: 0 | V47: 0 | W47: 0 | X47: 0
A48: =head27a -> References
A49: 1. Classifications are revenue sources and expenditure type
A50: 2. Detail to be provided in Table SA1
A51: 3. Previously described as 'bad or doubtful debts' - amounts shown should reflect the change in the provision for debt impairment
A52: 4. Expenditure type components previously shown under repairs and maintenance should be allocated back to the originating expenditure group/item; e.g. employee costs
A53: 5. Repairs & maintenance detailed in Table A9 and Table SA34c
A54: 6. Contributions are funds provided by external organisations to assist with infrastructure development; e.g. developer contributions (detail to be provided in Table SA1)
A55: 7. Equity method ( Includes Joint Ventures)
A56: 8. All materials not part of 'bulk' e.g road making materials, pipe, cable etc.
A57: check balance | C57: =C45-'A3-FinPerf V'!C39 -> 0 | D57: =D45-'A3-FinPerf V'!D39 -> -1 | E57: =E45-'A3-FinPerf V'!E39 -> 0 | F57: =F45-'A3-FinPerf V'!F39 -> 0 | G57: =G45-'A3-FinPerf V'!G39 -> -1 | H57: =H45-'A3-FinPerf V'!H39 -> -1 | J57: =J45-'A3-FinPerf V'!I39 -> 0 | K57: =K45-'A3-FinPerf V'!J39 -> 0 | L57: =L45-'A3-FinPerf V'!K39 -> 0
A59: Total revenue | C59: =C21+SUM(C38:C40) -> 703,987 | D59: 709,050 | E59: 733,992 | F59: 846,912 | G59: 858,756 | H59: 858,756 | I59: 733,992 | J59: 904,725 | K59: 952,139 | L59: 1,002,127

Sheet A5-Capex
A2: =Vdesc -> Vote Description | B2: =head27 -> Ref | C2: =head1b -> 2016/17 | D2: =head1A -> 2017/18 | E2: =Head1 -> 2018/19 | F2: =Head2 -> Current Year 2019/20 | J2: =Head3 -> 2020/21 Medium Term Revenue & Expenditure Framework
A3: R thousand | B3: 1 | C3: =Head5 -> Audited Outcome | D3: =Head5 -> Audited Outcome | E3: =Head5 -> Audited Outcome | F3: =Head6 -> Original Budget | G3: =Head7 -> Adjusted Budget | H3: =Head8 -> Full Year Forecast | I3: =Head5b -> Pre-audit outcome | J3: =Head9 -> Budget Year 2020/21 | K3: =Head10 -> Budget Year +1 2021/22 | L3: =Head11 -> Budget Year +2 2022/23
A4: Capital expenditure - Vote
A5: Multi-year expenditure to be appropriated | B5: 2
A6: =A5A!A6 -> Vote 1 - GOVERNANCE AND ADMIN | C6: =A5A!C6 -> 0 | D6: =A5A!D6 -> 0 | E6: =A5A!E6 -> 0 | F6: =A5A!F6 -> 0 | G6: =A5A!G6 -> 0 | H6: =A5A!H6 -> 0 | I6: =A5A!I6 -> 0 | J6: =A5A!J6 -> 0 | K6: =A5A!K6 -> 0 | L6: =A5A!L6 -> 0
A7: =A5A!A17 -> Vote 2 - FINANCE | C7: =A5A!C17 -> 0 | D7: =A5A!D17 -> 0 | E7: =A5A!E17 -> 0 | F7: =A5A!F17 -> 0 | G7: =A5A!G17 -> 0 | H7: =A5A!H17 -> 0 | I7: =A5A!I17 -> 0 | J7: =A5A!J17 -> 0 | K7: =A5A!K17 -> 0 | L7: =A5A!L17 -> 0
A8: =A5A!A28 -> Vote 3 - CORPORATE SERVICES | C8: =A5A!C28 -> 1,141 | D8: =A5A!D28 -> 0 | E8: =A5A!E28 -> 0 | F8: =A5A!F28 -> 0 | G8: =A5A!G28 -> 0 | H8: =A5A!H28 -> 0 | I8: =A5A!I28 -> 0 | J8: =A5A!J28 -> 0 | K8: =A5A!K28 -> 0 | L8: =A5A!L28 -> 0
A9: =A5A!A39 -> Vote 4 - COMMUNITY AND PUBLIC SAFETEY | C9: =A5A!C39 -> 25,315 | D9: =A5A!D39 -> 31,286 | E9: =A5A!E39 -> 40,189 | F9: =A5A!F39 -> 0 | G9: =A5A!G39 -> 11,000 | H9: =A5A!H39 -> 11,000 | I9: =A5A!I39 -> 40,189 | J9: =A5A!J39 -> 8,600 | K9: =A5A!K39 -> 34,000 | L9: =A5A!L39 -> 22,000
A10: =A5A!A50 -> Vote 5 - PLANNING AND DEVELOPMENT | C10: =A5A!C50 -> 405 | D10: =A5A!D50 -> 0 | E10: =A5A!E50 -> 1,681 | F10: =A5A!F50 -> 6,000 | G10: =A5A!G50 -> 2,400 | H10: =A5A!H50 -> 2,400 | I10: =A5A!I50 -> 1,681 | J10: =A5A!J50 -> 18,202 | K10: =A5A!K50 -> 14,413 | L10: =A5A!L50 -> 30,000
A11: =A5A!A61 -> Vote 6 - TECHNICAL SERVICES | C11: =A5A!C61 -> 153,427 | D11: =A5A!D61 -> 812 | E11: =A5A!E61 -> 93,225 | F11: =A5A!F61 -> 143,283 | G11: =A5A!G61 -> 139,618 | H11: =A5A!H61 -> 139,618 | I11: =A5A!I61 -> 89,193 | J11: =A5A!J61 -> 130,495 | K11: =A5A!K61 -> 112,287 | L11: =A5A!L61 -> 173,803
A12: =A5A!A72 -> Vote 7 - [NAME OF VOTE 7] | C12: =A5A!C72 -> 0 | D12: =A5A!D72 -> 0 | E12: =A5A!E72 -> 0 | F12: =A5A!F72 -> 0 | G12: =A5A!G72 -> 0 | H12: =A5A!H72 -> 0 | I12: =A5A!I72 -> 0 | J12: =A5A!J72 -> 0 | K12: =A5A!K72 -> 0 | L12: =A5A!L72 -> 0
A13: =A5A!A83 -> Vote 8 - [NAME OF VOTE 8] | C13: =A5A!C83 -> 0 | D13: =A5A!D83 -> 0 | E13: =A5A!E83 -> 0 | F13: =A5A!F83 -> 0 | G13: =A5A!G83 -> 0 | H13: =A5A!H83 -> 0 | I13: =A5A!I83 -> 0 | J13: =A5A!J83 -> 0 | K13: =A5A!K83 -> 0 | L13: =A5A!L83 -> 0
A14: =A5A!A94 -> Vote 9 - [NAME OF VOTE 9] | C14: =A5A!C94 -> 0 | D14: =A5A!D94 -> 0 | E14: =A5A!E94 -> 0 | F14: =A5A!F94 -> 0 | G14: =A5A!G94 -> 0 | H14: =A5A!H94 -> 0 | I14: =A5A!I94 -> 0 | J14: =A5A!J94 -> 0 | K14: =A5A!K94 -> 0 | L14: =A5A!L94 -> 0
A15: =A5A!A105 -> Vote 10 - [NAME OF VOTE 10] | C15: =A5A!C105 -> 0 | D15: =A5A!D105 -> 0 | E15: =A5A!E105 -> 0 | F15: =A5A!F105 -> 0 | G15: =A5A!G105 -> 0 | H15: =A5A!H105 -> 0 | I15: =A5A!I105 -> 0 | J15: =A5A!J105 -> 0 | K15: =A5A!K105 -> 0 | L15: =A5A!L105 -> 0
A16: =A5A!A116 -> Vote 11 - [NAME OF VOTE 11] | C16: =A5A!C116 -> 0 | D16: =A5A!D116 -> 0 | E16: =A5A!E116 -> 0 | F16: =A5A!F116 -> 0 | G16: =A5A!G116 -> 0 | H16: =A5A!H116 -> 0 | I16: =A5A!I116 -> 0 | J16: =A5A!J116 -> 0 | K16: =A5A!K116 -> 0 | L16: =A5A!L116 -> 0
A17: =A5A!A127 -> Vote 12 - [NAME OF VOTE 12] | C17: =A5A!C127 -> 0 | D17: =A5A!D127 -> 0 | E17: =A5A!E127 -> 0 | F17: =A5A!F127 -> 0 | G17: =A5A!G127 -> 0 | H17: =A5A!H127 -> 0 | I17: =A5A!I127 -> 0 | J17: =A5A!J127 -> 0 | K17: =A5A!K127 -> 0 | L17: =A5A!L127 -> 0
A18: =A5A!A138 -> Vote 13 - [NAME OF VOTE 13] | C18: =A5A!C138 -> 0 | D18: =A5A!D138 -> 0 | E18: =A5A!E138 -> 0 | F18: =A5A!F138 -> 0 | G18: =A5A!G138 -> 0 | H18: =A5A!H138 -> 0 | I18: =A5A!I138 -> 0 | J18: =A5A!J138 -> 0 | K18: =A5A!K138 -> 0 | L18: =A5A!L138 -> 0
A19: =A5A!A149 -> Vote 14 - [NAME OF VOTE 14] | C19: =A5A!C149 -> 0 | D19: =A5A!D149 -> 0 | E19: =A5A!E149 -> 0 | F19: =A5A!F149 -> 0 | G19: =A5A!G149 -> 0 | H19: =A5A!H149 -> 0 | I19: =A5A!I149 -> 0 | J19: =A5A!J149 -> 0 | K19: =A5A!K149 -> 0 | L19: =A5A!L149 -> 0
A20: =A5A!A160 -> Vote 15 - [NAME OF VOTE 15] | C20: =A5A!C160 -> 0 | D20: =A5A!D160 -> 0 | E20: =A5A!E160 -> 0 | F20: =A5A!F160 -> 0 | G20: =A5A!G160 -> 0 | H20: =A5A!H160 -> 0 | I20: =A5A!I160 -> 0 | J20: =A5A!J160 -> 0 | K20: =A5A!K160 -> 0 | L20: =A5A!L160 -> 0
A21: Capital multi-year expenditure sub-total | B21: 7 | C21: =SUM(C6:C20) -> 180,287 | D21: =SUM(D6:D20) -> 32,099 | E21: 135,095 | F21: 149,283 | G21: 153,018 | H21: =SUM(H6:H20) -> 153,018 | I21: 131,064 | J21: 157,297 | K21: 160,700 | L21: 225,803
A23: Single-year expenditure to be appropriated | B23: 2
A24: =A6 -> Vote 1 - GOVERNANCE AND ADMIN | C24: =A5A!C175 -> 0 | D24: =A5A!D175 -> 777 | E24: =A5A!E175 -> 0 | F24: =A5A!F175 -> 0 | G24: =A5A!G175 -> 0 | H24: =A5A!H175 -> 0 | I24: =A5A!I175 -> 0 | J24: =A5A!J175 -> 0 | K24: =A5A!K175 -> 0 | L24: =A5A!L175 -> 0
A25: =A7 -> Vote 2 - FINANCE | C25: =A5A!C186 -> 0 | D25: =A5A!D186 -> 0 | E25: =A5A!E186 -> 0 | F25: =A5A!F186 -> 0 | G25: =A5A!G186 -> 0 | H25: =A5A!H186 -> 0 | I25: =A5A!I186 -> 0 | J25: =A5A!J186 -> 0 | K25: =A5A!K186 -> 0 | L25: =A5A!L186 -> 0
A26: Vote 3 - CORPORATE SERVICES | C26: =A5A!C197 -> 0 | D26: =A5A!D197 -> 11,172 | E26: =A5A!E197 -> 1,466 | F26: =A5A!F197 -> 4,982 | G26: =A5A!G197 -> 4,932 | H26: =A5A!H197 -> 4,932 | I26: =A5A!I197 -> 5,351 | J26: =A5A!J197 -> 8,580 | K26: =A5A!K197 -> 24,650 | L26: =A5A!L197 -> 3,470
A27: Vote 4 - COMMUNITY AND PUBLIC SAFETEY | C27: =A5A!C208 -> 0 | D27: =A5A!D208 -> 8,842 | E27: =A5A!E208 -> 785 | F27: =A5A!F208 -> 4,200 | G27: =A5A!G208 -> 2,200 | H27: =A5A!H208 -> 2,200 | I27: =A5A!I208 -> 785 | J27: =A5A!J208 -> 10,800 | K27: =A5A!K208 -> 10,200 | L27: =A5A!L208 -> 2,100
A28: Vote 5 - PLANNING AND DEVELOPMENT | C28: =A5A!C219 -> 0 | D28: =A5A!D219 -> 1,716 | E28: =A5A!E219 -> 99 | F28: =A5A!F219 -> 0 | G28: =A5A!G219 -> 100 | H28: =A5A!H219 -> 100 | I28: =A5A!I219 -> 99 | J28: =A5A!J219 -> 0 | K28: =A5A!K219 -> 0 | L28: =A5A!L219 -> 0
A29: Vote 6 - TECHNICAL SERVICES | C29: =A5A!C230 -> 0 | D29: =A5A!D230 -> 61,523 | E29: =A5A!E230 -> 1,775 | F29: =A5A!F230 -> 11,918 | G29: =A5A!G230 -> 11,918 | H29: =A5A!H230 -> 11,918 | I29: =A5A!I230 -> 3,975 | J29: =A5A!J230 -> 13,323 | K29: =A5A!K230 -> 15,700 | L29: =A5A!L230 -> 300
A30: Vote 7 - [NAME OF VOTE 7] | C30: =A5A!C241 -> 0 | D30: =A5A!D241 -> 0 | E30: =A5A!E241 -> 0 | F30: =A5A!F241 -> 0 | G30: =A5A!G241 -> 0 | H30: =A5A!H241 -> 0 | I30: =A5A!I241 -> 0 | J30: =A5A!J241 -> 0 | K30: =A5A!K241 -> 0 | L30: =A5A!L241 -> 0
A31: Vote 8 - [NAME OF VOTE 8] | C31: =A5A!C252 -> 0 | D31: =A5A!D252 -> 0 | E31: =A5A!E252 -> 0 | F31: =A5A!F252 -> 0 | G31: =A5A!G252 -> 0 | H31: =A5A!H252 -> 0 | I31: =A5A!I252 -> 0 | J31: =A5A!J252 -> 0 | K31: =A5A!K252 -> 0 | L31: =A5A!L252 -> 0
A32: Vote 9 - [NAME OF VOTE 9] | C32: =A5A!C263 -> 0 | D32: =A5A!D263 -> 0 | E32: =A5A!E263 -> 0 | F32: =A5A!F263 -> 0 | G32: =A5A!G263 -> 0 | H32: =A5A!H263 -> 0 | I32: =A5A!I263 -> 0 | J32: =A5A!J263 -> 0 | K32: =A5A!K263 -> 0 | L32: =A5A!L263 -> 0
A33: Vote 10 - [NAME OF VOTE 10] | C33: =A5A!C274 -> 0 | D33: =A5A!D274 -> 0 | E33: =A5A!E274 -> 0 | F33: =A5A!F274 -> 0 | G33: =A5A!G274 -> 0 | H33: =A5A!H274 -> 0 | I33: =A5A!I274 -> 0 | J33: =A5A!J274 -> 0 | K33: =A5A!K274 -> 0 | L33: =A5A!L274 -> 0
A34: Vote 11 - [NAME OF VOTE 11] | C34: =A5A!C285 -> 0 | D34: =A5A!D285 -> 0 | E34: =A5A!E285 -> 0 | F34: =A5A!F285 -> 0 | G34: =A5A!G285 -> 0 | H34: =A5A!H285 -> 0 | I34: =A5A!I285 -> 0 | J34: =A5A!J285 -> 0 | K34: =A5A!K285 -> 0 | L34: =A5A!L285 -> 0
A35: Vote 12 - [NAME OF VOTE 12] | C35: =A5A!C296 -> 0 | D35: =A5A!D296 -> 0 | E35: =A5A!E296 -> 0 | F35: =A5A!F296 -> 0 | G35: =A5A!G296 -> 0 | H35: =A5A!H296 -> 0 | I35: =A5A!I296 -> 0 | J35: =A5A!J296 -> 0 | K35: =A5A!K296 -> 0 | L35: =A5A!L296 -> 0
A36: Vote 13 - [NAME OF VOTE 13] | C36: =A5A!C307 -> 0 | D36: =A5A!D307 -> 0 | E36: =A5A!E307 -> 0 | F36: =A5A!F307 -> 0 | G36: =A5A!G307 -> 0 | H36: =A5A!H307 -> 0 | I36: =A5A!I307 -> 0 | J36: =A5A!J307 -> 0 | K36: =A5A!K307 -> 0 | L36: =A5A!L307 -> 0
A37: Vote 14 - [NAME OF VOTE 14] | C37: =A5A!C318 -> 0 | D37: =A5A!D318 -> 0 | E37: =A5A!E318 -> 0 | F37: =A5A!F318 -> 0 | G37: =A5A!G318 -> 0 | H37: =A5A!H318 -> 0 | I37: =A5A!I318 -> 0 | J37: =A5A!J318 -> 0 | K37: =A5A!K318 -> 0 | L37: =A5A!L318 -> 0
A38: =A20 -> Vote 15 - [NAME OF VOTE 15] | C38: =A5A!C329 -> 0 | D38: =A5A!D329 -> 0 | E38: =A5A!E329 -> 0 | F38: =A5A!F329 -> 0 | G38: =A5A!G329 -> 0 | H38: =A5A!H329 -> 0 | I38: =A5A!I329 -> 0 | J38: =A5A!J329 -> 0 | K38: =A5A!K329 -> 0 | L38: =A5A!L329 -> 0
A39: Capital single-year expenditure sub-total | C39: =SUM(C24:C38) -> 0 | D39: =SUM(D24:D38) -> 84,029 | E39: 4,125 | F39: 21,100 | G39: 19,150 | H39: 19,150 | I39: 10,210 | J39: 32,703 | K39: 50,550 | L39: 5,870
A40: Total Capital Expenditure - Vote | C40: =C39+C21 -> 180,287 | D40: =D39+D21 -> 116,127 | E40: 139,220 | F40: 170,383 | G40: 172,168 | H40: 172,168 | I40: 141,273 | J40: 190,000 | K40: 211,250 | L40: 231,673
A42: Capital Expenditure - Functional
A43: Governance and administration | C43: =SUM(C44:C46) -> 1,141 | D43: =SUM(D44:D46) -> 11,949 | E43: 1,466 | F43: 4,982 | G43: 4,932 | H43: 4,932 | I43: 5,351 | J43: 8,580 | K43: 24,650 | L43: 5,470
A44: Executive and council | D44: 777
A45: Finance and administration | C45: 1,141 | D45: 11,172 | E45: 1,466 | F45: 4,982 | G45: 4,932 | H45: 4,932 | I45: 5,351 | J45: 8,580 | K45: 24,650 | L45: 5,470
A46: Internal audit
A47: Community and public safety | C47: =SUM(C48:C52) -> 18,364 | D47: =SUM(D48:D52) -> 41,205 | E47: 45,897 | F47: 10,860 | G47: 19,860 | H47: 19,860 | I47: 44,065 | J47: 16,500 | K47: 26,650 | L47: 24,500
A48: Community and social services
A49: Sport and recreation | C49: 14,299 | D49: 31,489 | E49: 36,932 | F49: 2,400 | G49: 11,400 | H49: 11,400 | I49: 36,932 | J49: 1,300 | K49: 4,500 | L49: 12,000
A50: Public safety | C50: 1,425 | D50: 2,742 | G50: 0 | H50: 0 | J50: 1,000 | K50: 3,600 | L50: 0
A51: Housing | C51: 2,640 | D51: 6,974 | E51: 8,965 | F51: 8,460 | G51: 8,460 | H51: 8,460 | I51: 7,133 | J51: 14,200 | K51: 18,550 | L51: 12,500
A52: Health | J52: 0 | K52: 0 | L52: 0
A53: Economic and environmental services | C53: =SUM(C54:C56) -> 151,192 | D53: =SUM(D54:D56) -> 57,077 | E53: 87,815 | F53: 152,741 | G53: 145,576 | H53: 145,576 | I53: 87,815 | J53: 154,820 | K53: 131,850 | L53: 191,603
A54: Planning and development | C54: 405 | D54: 1,716 | E54: 1,780 | F54: 6,000 | G54: 2,500 | H54: 2,500 | I54: 1,780 | J54: 18,202 | K54: 14,413 | L54: 30,000
A55: Road transport | C55: 150,787 | D55: 55,361 | E55: 86,035 | F55: 146,741 | G55: 143,076 | H55: 143,076 | I55: 86,035 | J55: 136,618 | K55: 117,437 | L55: 161,603
A56: Environmental protection | J56: 0 | K56: 0 | L56: 0
A57: Trading services | C57: =SUM(C58:C61) -> 9,591 | D57: =SUM(D58:D61) -> 5,896 | E57: 4,043 | F57: 1,800 | G57: 1,800 | H57: 1,800 | I57: 4,043 | J57: 10,100 | K57: 28,100 | L57: 10,100
A58: Energy sources
A59: Water management
A60: Waste water management
A61: Waste management | C61: 9,591 | D61: 5,896 | E61: 4,043 | F61: 1,800 | G61: 1,800 | H61: 1,800 | I61: 4,043 | J61: 10,100 | K61: 28,100 | L61: 10,100
A62: Other
A63: Total Capital Expenditure - Functional | B63: 3 | C63: =C43+C47+C53+C57+C62 -> 180,287 | D63: =D43+D47+D53+D57+D62 -> 116,127 | E63: 139,220 | F63: 170,383 | G63: 172,168 | H63: 172,168 | I63: 141,273 | J63: 190,000 | K63: 211,250 | L63: =L43+L47+L53+L57+L62 -> 231,673
A65: Funded by:
A66: National Government | C66: 109,602 | D66: 54,549 | E66: 105,206 | F66: 99,383 | G66: 99,383 | H66: 99,383 | I66: 105,206 | J66: 98,702 | K66: 107,485 | L66: 113,912
A67: Provincial Government
A68: District Municipality
A69: ='A4-FinPerf RE'!A39 -> Transfers and subsidies - capital (monetary allocations) (National / Provincial Departmental Agencies, Households, Non-profit Institutions, Private Enterprises, Public Corporatons, Higher Educational Institutions)
A70: Transfers recognised - capital | B70: 4 | C70: =SUM(C66:C69) -> 109,602 | D70: 54,549 | E70: 105,206 | F70: 99,383 | G70: 99,383 | H70: 99,383 | I70: 105,206 | J70: 98,702 | K70: 107,485 | L70: 113,912
A72: Borrowing | B72: 6
A73: Internally generated funds | C73: 70,685 | D73: 61,578 | E73: 34,014 | F73: 71,000 | G73: 72,785 | H73: 72,785 | I73: 36,067 | J73: 91,298 | K73: 103,765 | L73: 117,761
A74: Total Capital Funding | B74: 7 | C74: =+C70+C72+C73 -> 180,287 | D74: =+D70+D72+D73 -> 116,127 | E74: 139,220 | F74: 170,383 | G74: 172,168 | H74: 172,168 | I74: 141,273 | J74: 190,000 | K74: 211,250 | L74: 231,673
A75: =head27a -> References
A76: 1. Municipalities may choose to appropriate for capital expenditure for three years or for one year (if one year appropriation projected expenditure required for yr2 and yr3).
A77: 2. Include capital component of PPP unitary payment. Note that capital transfers are only appropriated to municipalities for the budget year
A78: 3. Capital expenditure by functional classification must reconcile to the appropriations by vote
A79: 4. Must reconcile to supporting table SA20 and to Budgeted Financial Performance (revenue and expenditure)
A81: 6. Include finance leases and PPP capital funding component of unitary payment - total borrowing/repayments to reconcile to changes in Table SA17
A82: 7. Total Capital Funding must balance with Total Capital Expenditure
A83: 8. Include any capitalised interest (MFMA section 46) as part of relevant capital budget
A85: check balance | C85: =IF((C63-C74)=0,0,"Unbalanced") -> 0 | D85: =IF((D63-D74)=0,0,"Unbalanced") -> 0 | E85: 0 | F85: 0 | G85: 0 | H85: 0 | I85: 0 | J85: Unbalanced | K85: Unbalanced | L85: 0

Sheet A5A
A1: =muni&" - "&Approve5 -> LIM343 Thulamela - Table A5 Budgeted Capital Expenditure by vote, functional classification and funding
A2: =Vdesc -> Vote Description | B2: =head27 -> Ref | C2: =head1b -> 2016/17 | D2: =head1A -> 2017/18 | E2: =Head1 -> 2018/19 | F2: =Head2 -> Current Year 2019/20 | J2: =Head3 -> 2020/21 Medium Term Revenue & Expenditure Framework | N2: ="Multi-year appropriation for "&Head9& " in the "&Head2A&" Annual Budget" -> Multi-year appropriation for Budget Year 2020/21 in the 2019/20 Annual Budget | R2: ="Multi-year appropriation for "&RIGHT(Head10,7)& " in the "&Head2A&" Annual Budget" -> Multi-year appropriation for 2021/22 in the 2019/20 Annual Budget | V2: New multi-year appropriations (funds for new and existing projects)
A3: R thousand | B3: 1 | C3: =Head5 -> Audited Outcome | D3: =Head5 -> Audited Outcome | E3: =Head5 -> Audited Outcome | F3: =Head6 -> Original Budget | G3: =Head7 -> Adjusted Budget | H3: =Head8 -> Full Year Forecast | I3: =Head5b -> Pre-audit outcome | J3: =Head9 -> Budget Year 2020/21 | K3: =Head10 -> Budget Year +1 2021/22 | L3: =Head11 -> Budget Year +2 2022/23 | N3: ="Appropriation for "&RIGHT(Head9,7) -> Appropriation for 2020/21 | O3: ="Adjustments in "&Head2A -> Adjustments in 2019/20 | P3: ="Downward adjustments for "&RIGHT(Head9,7) -> Downward adjustments for 2020/21 | Q3: Appropriation carried forward | R3: ="Appropriation for "&RIGHT(Head9,7) -> Appropriation for 2020/21 | S3: ="Adjustments in "&Head2A -> Adjustments in 2019/20 | T3: ="Downward adjustments for "&RIGHT(Head9,7) -> Downward adjustments for 2020/21 | U3: Appropriation carried forward | V3: =Head9 -> Budget Year 2020/21 | W3: =Head10 -> Budget Year +1 2021/22 | X3: =Head11 -> Budget Year +2 2022/23
A4: Capital expenditure - Municipal Vote
A5: Multi-year expenditure appropriation | B5: 2
A6: ='Org structure'!A2 -> Vote 1 - GOVERNANCE AND ADMIN | C6: =SUM(C7:C16) -> 0 | D6: =SUM(D7:D16) -> 0 | E6: 0 | F6: 0 | G6: 0 | H6: 0 | I6: =SUM(I7:I16) -> 0 | J6: 0 | K6: 0 | L6: 0 | N6: =SUM(N7:N16) -> 0 | O6: 0 | P6: 0 | Q6: 0 | R6: 0 | S6: 0 | T6: 0 | U6: 0 | V6: =SUM(V7:V16) -> 0 | W6: =SUM(W7:W16) -> 0 | X6: =SUM(X7:X16) -> 0
A7: ='Org structure'!E3 -> 1.1 - Municipal Manager | J7: =Q7+V7 -> 0 | K7: =U7+W7 -> 0 | L7: =X7 -> 0 | Q7: =SUM(N7:P7) -> 0 | U7: =SUM(R7:T7) -> 0
A8: ='Org structure'!E4 -> 1.2 - Executive and Council | J8: =Q8+V8 -> 0 | K8: =U8+W8 -> 0 | L8: =X8 -> 0 | Q8: =SUM(N8:P8) -> 0 | U8: =SUM(R8:T8) -> 0
A9: ='Org structure'!E5 -> 1.3 - Internal Audit | J9: =Q9+V9 -> 0 | K9: =U9+W9 -> 0 | L9: 0 | Q9: 0 | U9: 0
A10: ='Org structure'!E6 -> 0 | J10: 0 | K10: 0 | L10: 0 | Q10: 0 | U10: 0
A11: ='Org structure'!E7 -> 0 | J11: 0 | K11: 0 | L11: =X11 -> 0 | Q11: 0 | U11: 0
A12: ='Org structure'!E8 -> 0 | J12: 0 | K12: 0 | L12: 0 | Q12: 0 | U12: 0
A13: ='Org structure'!E9 -> 0 | J13: 0 | K13: 0 | L13: 0 | Q13: 0 | U13: 0
A14: ='Org structure'!E10 -> 0 | J14: 0 | K14: 0 | L14: 0 | Q14: 0 | U14: 0
A15: ='Org structure'!E11 -> 0 | J15: 0 | K15: 0 | L15: 0 | Q15: 0 | U15: 0
A16: ='Org structure'!E12 -> 0 | J16: 0 | K16: 0 | L16: 0 | Q16: 0 | U16: 0
A17: ='Org structure'!A3 -> Vote 2 - FINANCE | C17: =SUM(C18:C27) -> 0 | D17: =SUM(D18:D27) -> 0 | E17: 0 | F17: 0 | G17: 0 | H17: 0 | I17: =SUM(I18:I27) -> 0 | J17: 0 | K17: 0 | L17: 0 | N17: =SUM(N18:N27) -> 0 | O17: 0 | P17: 0 | Q17: 0 | R17: 0 | S17: 0 | T17: 0 | U17: 0 | V17: 0 | W17: 0 | X17: 0
A18: ='Org structure'!E14 -> 2.1 - Finance | J18: =Q18+V18 -> 0 | K18: =U18+W18 -> 0 | L18: =X18 -> 0 | Q18: =SUM(N18:P18) -> 0 | U18: 0
A19: ='Org structure'!E15 -> 0 | J19: =Q19+V19 -> 0 | K19: =U19+W19 -> 0 | L19: 0 | Q19: 0 | U19: 0
A20: ='Org structure'!E16 -> 0 | J20: 0 | K20: 0 | L20: 0 | Q20: 0 | U20: 0
A21: ='Org structure'!E17 -> 0 | J21: 0 | K21: =U21+W21 -> 0 | L21: 0 | Q21: 0 | U21: 0
A22: ='Org structure'!E18 -> 0 | J22: 0 | K22: 0 | L22: 0 | Q22: 0 | U22: 0
A23: ='Org structure'!E19 -> 0 | J23: 0 | K23: 0 | L23: 0 | Q23: 0 | U23: 0
A24: ='Org structure'!E20 -> 0 | J24: 0 | K24: 0 | L24: 0 | Q24: 0 | U24: 0
A25: ='Org structure'!E21 -> 0 | J25: 0 | K25: 0 | L25: 0 | Q25: 0 | U25: 0
A26: ='Org structure'!E22 -> 0 | J26: 0 | K26: 0 | L26: 0 | Q26: 0 | U26: 0
A27: ='Org structure'!E23 -> 0 | J27: 0 | K27: 0 | L27: 0 | Q27: 0 | U27: 0
A28: ='Org structure'!A4 -> Vote 3 - CORPORATE SERVICES | C28: =SUM(C29:C38) -> 1,141 | D28: =SUM(D29:D38) -> 0 | E28: 0 | F28: 0 | G28: 0 | H28: 0 | I28: =SUM(I29:I38) -> 0 | J28: 0 | K28: 0 | L28: 0 | N28: =SUM(N29:N38) -> 0 | O28: 0 | P28: 0 | Q28: 0 | R28: 0 | S28: 0 | T28: 0 | U28: 0 | V28: 0 | W28: 0 | X28: 0
A29: ='Org structure'!E25 -> 3.1 - Corporate and Services | C29: 1,141 | J29: =Q29+V29 -> 0 | K29: =U29+W29 -> 0 | L29: =X29 -> 0 | Q29: =SUM(N29:P29) -> 0 | U29: 0
A30: ='Org structure'!E26 -> 0 | J30: 0 | K30: 0 | L30: 0 | Q30: 0 | U30: 0
A31: ='Org structure'!E27 -> 0 | J31: 0 | K31: 0 | L31: 0 | Q31: 0 | U31: =SUM(R31:T31) -> 0
A32: ='Org structure'!E28 -> 0 | J32: 0 | K32: =U32+W32 -> 0 | L32: 0 | Q32: 0 | U32: 0
A33: ='Org structure'!E29 -> 0 | J33: =Q33+V33 -> 0 | K33: 0 | L33: 0 | Q33: 0 | U33: 0
A34: ='Org structure'!E30 -> 0 | J34: 0 | K34: 0 | L34: 0 | Q34: 0 | U34: 0
A35: ='Org structure'!E31 -> 0 | J35: 0 | K35: 0 | L35: 0 | Q35: 0 | U35: 0
A36: ='Org structure'!E32 -> 0 | J36: 0 | K36: 0 | L36: 0 | Q36: 0 | U36: 0
A37: ='Org structure'!E33 -> 0 | J37: 0 | K37: 0 | L37: 0 | Q37: 0 | U37: 0
A38: ='Org structure'!E34 -> 0 | J38: 0 | K38: 0 | L38: 0 | Q38: 0 | U38: 0
A39: ='Org structure'!A5 -> Vote 4 - COMMUNITY AND PUBLIC SAFETEY | C39: =SUM(C40:C49) -> 25,315 | D39: =SUM(D40:D49) -> 31,286 | E39: 40,189 | F39: 0 | G39: 11,000 | H39: 11,000 | I39: =SUM(I40:I49) -> 40,189 | J39: 8,600 | K39: 34,000 | L39: 22,000 | N39: =SUM(N40:N49) -> 0 | O39: 0 | P39: 0 | Q39: 0 | R39: 0 | S39: 0 | T39: 0 | U39: 0 | V39: 8,600 | W39: 34,000 | X39: 22,000
A40: ='Org structure'!E36 -> 4.1 - Sports and recreational services | C40: 14,299 | D40: 31,286 | E40: 36,689 | F40: 0 | G40: 11,000 | H40: 11,000 | I40: 36,689 | J40: =Q40+V40 -> 100 | K40: =U40+W40 -> 4,000 | L40: =X40 -> 12,000 | Q40: =SUM(N40:P40) -> 0 | U40: 0 | V40: 100 | W40: 4,000 | X40: 12,000
A41: ='Org structure'!E37 -> 4.2 - Public Safety | C41: 1,425 | J41: 7,000 | K41: 8,000 | L41: 0 | Q41: 0 | U41: 0 | V41: 7,000 | W41: 8,000 | X41: 0
A42: ='Org structure'!E38 -> 4.3 - Health & Waste Management | C42: 9,591 | E42: 3,500 | I42: 3,500 | J42: 1,500 | K42: 22,000 | L42: 10,000 | Q42: 0 | U42: 0 | V42: 1,500 | W42: 22,000 | X42: 10,000
A43: ='Org structure'!E39 -> 0 | J43: 0 | K43: 0 | L43: 0 | Q43: 0 | U43: 0
A44: ='Org structure'!E40 -> 0 | J44: 0 | K44: 0 | L44: 0 | Q44: 0 | U44: 0
A45: ='Org structure'!E41 -> 0 | J45: 0 | K45: 0 | L45: 0 | Q45: 0 | U45: 0
A46: ='Org structure'!E42 -> 0 | J46: 0 | K46: 0 | L46: 0 | Q46: 0 | U46: 0
A47: ='Org structure'!E43 -> 0 | J47: 0 | K47: 0 | L47: 0 | Q47: 0 | U47: 0
A48: ='Org structure'!E44 -> 0 | J48: 0 | K48: 0 | L48: 0 | Q48: 0 | U48: 0
A49: ='Org structure'!E45 -> 0 | J49: 0 | K49: 0 | L49: 0 | Q49: 0 | U49: 0
A50: ='Org structure'!A6 -> Vote 5 - PLANNING AND DEVELOPMENT | C50: =SUM(C51:C60) -> 405 | D50: =SUM(D51:D60) -> 0 | E50: 1,681 | F50: 6,000 | G50: 2,400 | H50: 2,400 | I50: =SUM(I51:I60) -> 1,681 | J50: 18,202 | K50: 14,413 | L50: 30,000 | N50: =SUM(N51:N60) -> 0 | O50: 0 | P50: 0 | Q50: 0 | R50: 0 | S50: 0 | T50: 0 | U50: 0 | V50: 18,202 | W50: 14,413 | X50: 30,000
A51: ='Org structure'!E47 -> 5.1 - Planning and Development | C51: 405 | E51: 1,681 | F51: 6,000 | G51: 2,400 | H51: 2,400 | I51: 1,681 | J51: =Q51+V51 -> 18,202 | K51: =U51+W51 -> 14,413 | L51: =X51 -> 30,000 | Q51: =SUM(N51:P51) -> 0 | U51: 0 | V51: 18,202 | W51: 14,413 | X51: 30,000
A52: ='Org structure'!E48 -> 0 | J52: 0 | K52: 0 | L52: 0 | Q52: 0 | U52: 0
A53: ='Org structure'!E49 -> 0 | J53: 0 | K53: 0 | L53: 0 | Q53: 0 | U53: 0
A54: ='Org structure'!E50 -> 0 | J54: 0 | K54: 0 | L54: 0 | Q54: 0 | U54: 0
A55: ='Org structure'!E51 -> 0 | J55: 0 | K55: 0 | L55: 0 | Q55: 0 | U55: 0
A56: ='Org structure'!E52 -> 0 | J56: 0 | K56: 0 | L56: 0 | Q56: 0 | U56: 0
A57: ='Org structure'!E53 -> 0 | J57: 0 | K57: 0 | L57: 0 | Q57: 0 | U57: 0
A58: ='Org structure'!E54 -> 0 | J58: 0 | K58: 0 | L58: 0 | Q58: 0 | U58: 0
A59: ='Org structure'!E55 -> 0 | J59: 0 | K59: 0 | L59: 0 | Q59: 0 | U59: 0
A60: ='Org structure'!E56 -> 0 | J60: 0 | K60: 0 | L60: 0 | Q60: 0 | U60: 0
A61: ='Org structure'!A7 -> Vote 6 - TECHNICAL SERVICES | C61: =SUM(C62:C71) -> 153,427 | D61: =SUM(D62:D71) -> 812 | E61: 93,225 | F61: 143,283 | G61: 139,618 | H61: 139,618 | I61: =SUM(I62:I71) -> 89,193 | J61: 130,495 | K61: 112,287 | L61: 173,803 | N61: =SUM(N62:N71) -> 0 | O61: 0 | P61: 0 | Q61: 0 | R61: 0 | S61: 0 | T61: 0 | U61: 0 | V61: 130,495 | W61: 112,287 | X61: 173,803
A62: ='Org structure'!E58 -> 6.1 - Roads | C62: 150,787 | D62: 812 | E62: 85,154 | F62: 138,283 | G62: 134,618 | H62: 134,618 | I62: 83,164 | J62: =Q62+V62 -> 121,595 | K62: =U62+W62 -> 94,437 | L62: =X62 -> 161,603 | Q62: =SUM(N62:P62) -> 0 | U62: 0 | V62: 121,595 | W62: 94,437 | X62: 161,603
A63: ='Org structure'!E59 -> 6.2 - Housing and electricity | C63: 2,640 | E63: 8,071 | F63: 5,000 | G63: 5,000 | H63: 5,000 | I63: 6,029 | J63: 8,900 | K63: 17,850 | L63: 12,200 | Q63: 0 | U63: 0 | V63: 8,900 | W63: 17,850 | X63: 12,200
A64: ='Org structure'!E60 -> 0 | J64: 0 | K64: 0 | L64: 0 | Q64: 0 | U64: 0
A65: ='Org structure'!E61 -> 0 | J65: 0 | K65: 0 | L65: 0 | Q65: 0 | U65: 0
A66: ='Org structure'!E62 -> 0 | J66: 0 | K66: 0 | L66: 0 | Q66: 0 | U66: 0
A67: ='Org structure'!E63 -> 0 | J67: 0 | K67: 0 | L67: 0 | Q67: 0 | U67: 0
A68: ='Org structure'!E64 -> 0 | J68: 0 | K68: 0 | L68: 0 | Q68: 0 | U68: 0
A69: ='Org structure'!E65 -> 0 | J69: 0 | K69: 0 | L69: 0 | Q69: 0 | U69: 0
A70: ='Org structure'!E66 -> 0 | J70: 0 | K70: 0 | L70: 0 | Q70: 0 | U70: 0
A71: ='Org structure'!E67 -> 0 | J71: 0 | K71: 0 | L71: 0 | Q71: 0 | U71: 0
A72: ='Org structure'!A8 -> Vote 7 - [NAME OF VOTE 7] | C72: =SUM(C73:C82) -> 0 | D72: 0 | E72: 0 | F72: 0 | G72: 0 | H72: 0 | I72: 0 | J72: 0 | K72: 0 | L72: 0 | N72: =SUM(N73:N82) -> 0 | O72: 0 | P72: 0 | Q72: 0 | R72: 0 | S72: 0 | T72: 0 | U72: 0 | V72: 0 | W72: 0 | X72: 0
A73: ='Org structure'!E69 -> 7.1 - [Name of sub-vote] | J73: =Q73+V73 -> 0 | K73: =U73+W73 -> 0 | L73: =X73 -> 0 | Q73: =SUM(N73:P73) -> 0 | U73: =SUM(R73:T73) -> 0
A74: ='Org structure'!E70 -> 0 | J74: 0 | K74: 0 | L74: 0 | Q74: 0 | U74: 0
A75: ='Org structure'!E71 -> 0 | J75: 0 | K75: 0 | L75: 0 | Q75: 0 | U75: 0
A76: ='Org structure'!E72 -> 0 | J76: 0 | K76: 0 | L76: 0 | Q76: 0 | U76: 0
A77: ='Org structure'!E73 -> 0 | J77: 0 | K77: 0 | L77: 0 | Q77: 0 | U77: 0
A78: ='Org structure'!E74 -> 0 | J78: 0 | K78: 0 | L78: 0 | Q78: 0 | U78: 0
A79: ='Org structure'!E75 -> 0 | J79: 0 | K79: 0 | L79: 0 | Q79: 0 | U79: 0
A80: ='Org structure'!E76 -> 0 | J80: 0 | K80: 0 | L80: 0 | Q80: 0 | U80: 0
A81: ='Org structure'!E77 -> 0 | J81: 0 | K81: 0 | L81: 0 | Q81: 0 | U81: 0
A82: ='Org structure'!E78 -> 0 | J82: 0 | K82: 0 | L82: 0 | Q82: 0 | U82: 0
A83: ='Org structure'!A9 -> Vote 8 - [NAME OF VOTE 8] | C83: =SUM(C84:C93) -> 0 | D83: 0 | E83: 0 | F83: 0 | G83: 0 | H83: 0 | I83: 0 | J83: 0 | K83: 0 | L83: 0 | N83: =SUM(N84:N93) -> 0 | O83: 0 | P83: 0 | Q83: 0 | R83: 0 | S83: 0 | T83: 0 | U83: 0 | V83: 0 | W83: 0 | X83: 0
A84: ='Org structure'!E80 -> 8.1 - [Name of sub-vote] | J84: =Q84+V84 -> 0 | K84: =U84+W84 -> 0 | L84: =X84 -> 0 | Q84: =SUM(N84:P84) -> 0 | U84: 0
A85: ='Org structure'!E81 -> 0 | J85: 0 | K85: 0 | L85: 0 | Q85: 0 | U85: 0
A86: ='Org structure'!E82 -> 0 | J86: 0 | K86: 0 | L86: 0 | Q86: 0 | U86: 0
A87: ='Org structure'!E83 -> 0 | J87: 0 | K87: 0 | L87: 0 | Q87: 0 | U87: 0
A88: ='Org structure'!E84 -> 0 | J88: 0 | K88: 0 | L88: 0 | Q88: 0 | U88: 0
A89: ='Org structure'!E85 -> 0 | J89: 0 | K89: 0 | L89: 0 | Q89: 0 | U89: 0
A90: ='Org structure'!E86 -> 0 | J90: 0 | K90: 0 | L90: 0 | Q90: 0 | U90: 0
A91: ='Org structure'!E87 -> 0 | J91: 0 | K91: 0 | L91: 0 | Q91: 0 | U91: 0
A92: ='Org structure'!E88 -> 0 | J92: 0 | K92: 0 | L92: 0 | Q92: 0 | U92: 0
A93: ='Org structure'!E89 -> 0 | J93: 0 | K93: 0 | L93: 0 | Q93: 0 | U93: 0
A94: ='Org structure'!A10 -> Vote 9 - [NAME OF VOTE 9] | C94: =SUM(C95:C104) -> 0 | D94: =SUM(D95:D104) -> 0 | E94: 0 | F94: 0 | G94: 0 | H94: 0 | I94: 0 | J94: 0 | K94: 0 | L94: 0 | N94: =SUM(N95:N104) -> 0 | O94: 0 | P94: 0 | Q94: 0 | R94: 0 | S94: 0 | T94: 0 | U94: 0 | V94: 0 | W94: 0 | X94: 0
A95: ='Org structure'!E91 -> 9.1 - [Name of sub-vote] | J95: =Q95+V95 -> 0 | K95: =U95+W95 -> 0 | L95: =X95 -> 0 | Q95: =SUM(N95:P95) -> 0 | U95: 0
A96: ='Org structure'!E92 -> 0 | J96: 0 | K96: 0 | L96: 0 | Q96: 0 | U96: 0
A97: ='Org structure'!E93 -> 0 | J97: 0 | K97: 0 | L97: 0 | Q97: 0 | U97: 0
A98: ='Org structure'!E94 -> 0 | J98: 0 | K98: 0 | L98: 0 | Q98: 0 | U98: 0
A99: ='Org structure'!E95 -> 0 | J99: 0 | K99: 0 | L99: 0 | Q99: 0 | U99: 0
A100: ='Org structure'!E96 -> 0 | J100: 0 | K100: 0 | L100: 0 | Q100: 0 | U100: 0
A101: ='Org structure'!E97 -> 0 | J101: 0 | K101: 0 | L101: 0 | Q101: 0 | U101: 0
A102: ='Org structure'!E98 -> 0 | J102: 0 | K102: 0 | L102: 0 | Q102: 0 | U102: 0
A103: ='Org structure'!E99 -> 0 | J103: 0 | K103: 0 | L103: 0 | Q103: 0 | U103: 0
A104: ='Org structure'!E100 -> 0 | J104: 0 | K104: 0 | L104: 0 | Q104: 0 | U104: 0
A105: ='Org structure'!A11 -> Vote 10 - [NAME OF VOTE 10] | C105: =SUM(C106:C115) -> 0 | D105: =SUM(D106:D115) -> 0 | E105: 0 | F105: 0 | G105: 0 | H105: 0 | I105: 0 | J105: 0 | K105: 0 | L105: 0 | N105: =SUM(N106:N115) -> 0 | O105: 0 | P105: 0 | Q105: 0 | R105: 0 | S105: 0 | T105: 0 | U105: 0 | V105: 0 | W105: 0 | X105: 0
A106: ='Org structure'!E102 -> 10.1 - [Name of sub-vote] | J106: =Q106+V106 -> 0 | K106: =U106+W106 -> 0 | L106: =X106 -> 0 | Q106: =SUM(N106:P106) -> 0 | U106: 0
A107: ='Org structure'!E103 -> 0 | J107: 0 | K107: 0 | L107: 0 | Q107: 0 | U107: 0
A108: ='Org structure'!E104 -> 0 | J108: 0 | K108: 0 | L108: 0 | Q108: 0 | U108: 0
A109: ='Org structure'!E105 -> 0 | J109: 0 | K109: 0 | L109: 0 | Q109: 0 | U109: 0
A110: ='Org structure'!E106 -> 0 | J110: 0 | K110: 0 | L110: 0 | Q110: 0 | U110: 0
A111: ='Org structure'!E107 -> 0 | J111: 0 | K111: 0 | L111: 0 | Q111: 0 | U111: 0
A112: ='Org structure'!E108 -> 0 | J112: 0 | K112: 0 | L112: 0 | Q112: 0 | U112: 0
A113: ='Org structure'!E109 -> 0 | J113: 0 | K113: 0 | L113: 0 | Q113: 0 | U113: 0
A114: ='Org structure'!E110 -> 0 | J114: 0 | K114: 0 | L114: 0 | Q114: 0 | U114: 0
A115: ='Org structure'!E111 -> 0 | J115: 0 | K115: 0 | L115: 0 | Q115: 0 | U115: 0
A116: ='Org structure'!A12 -> Vote 11 - [NAME OF VOTE 11] | C116: =SUM(C117:C126) -> 0 | D116: 0 | E116: 0 | F116: 0 | G116: 0 | H116: 0 | I116: 0 | J116: 0 | K116: 0 | L116: 0 | N116: =SUM(N117:N126) -> 0 | O116: 0 | P116: 0 | Q116: 0 | R116: 0 | S116: 0 | T116: 0 | U116: 0 | V116: 0 | W116: 0 | X116: 0
A117: ='Org structure'!E113 -> 11.1 - [Name of sub-vote] | J117: =Q117+V117 -> 0 | K117: =U117+W117 -> 0 | L117: =X117 -> 0 | Q117: =SUM(N117:P117) -> 0 | U117: 0
A118: ='Org structure'!E114 -> 0 | J118: 0 | K118: 0 | L118: 0 | Q118: 0 | U118: 0
A119: ='Org structure'!E115 -> 0 | J119: 0 | K119: 0 | L119: 0 | Q119: 0 | U119: 0
A120: ='Org structure'!E116 -> 0 | J120: 0 | K120: 0 | L120: 0 | Q120: 0 | U120: 0
A121: ='Org structure'!E117 -> 0 | J121: 0 | K121: 0 | L121: 0 | Q121: 0 | U121: 0
A122: ='Org structure'!E118 -> 0 | J122: 0 | K122: 0 | L122: 0 | Q122: 0 | U122: 0
A123: ='Org structure'!E119 -> 0 | J123: 0 | K123: 0 | L123: 0 | Q123: 0 | U123: 0
A124: ='Org structure'!E120 -> 0 | J124: 0 | K124: 0 | L124: 0 | Q124: 0 | U124: 0
A125: ='Org structure'!E121 -> 0 | J125: 0 | K125: 0 | L125: 0 | Q125: 0 | U125: 0
A126: ='Org structure'!E122 -> 0 | J126: 0 | K126: 0 | L126: 0 | Q126: 0 | U126: 0
A127: ='Org structure'!A13 -> Vote 12 - [NAME OF VOTE 12] | C127: =SUM(C128:C137) -> 0 | D127: 0 | E127: 0 | F127: 0 | G127: 0 | H127: 0 | I127: 0 | J127: 0 | K127: 0 | L127: 0 | N127: =SUM(N128:N137) -> 0 | O127: 0 | P127: 0 | Q127: 0 | R127: 0 | S127: 0 | T127: 0 | U127: 0 | V127: 0 | W127: 0 | X127: 0
A128: ='Org structure'!E124 -> 12.1 - [Name of sub-vote] | J128: =Q128+V128 -> 0 | K128: =U128+W128 -> 0 | L128: =X128 -> 0 | Q128: =SUM(N128:P128) -> 0 | U128: 0
A129: ='Org structure'!E125 -> 0 | J129: 0 | K129: 0 | L129: 0 | Q129: 0 | U129: 0
A130: ='Org structure'!E126 -> 0 | J130: 0 | K130: 0 | L130: 0 | Q130: 0 | U130: 0
A131: ='Org structure'!E127 -> 0 | J131: 0 | K131: 0 | L131: 0 | Q131: 0 | U131: 0
A132: ='Org structure'!E128 -> 0 | J132: 0 | K132: 0 | L132: 0 | Q132: 0 | U132: 0
A133: ='Org structure'!E129 -> 0 | J133: =Q133+V133 -> 0 | K133: 0 | L133: 0 | Q133: 0 | U133: 0
A134: ='Org structure'!E130 -> 0 | J134: 0 | K134: 0 | L134: 0 | Q134: 0 | U134: 0
A135: ='Org structure'!E131 -> 0 | J135: 0 | K135: 0 | L135: 0 | Q135: 0 | U135: 0
A136: ='Org structure'!E132 -> 0 | J136: 0 | K136: 0 | L136: 0 | Q136: 0 | U136: =SUM(R136:T136) -> 0
A137: ='Org structure'!E133 -> 0 | J137: 0 | K137: 0 | L137: 0 | Q137: 0 | U137: 0
A138: ='Org structure'!A14 -> Vote 13 - [NAME OF VOTE 13] | C138: =SUM(C139:C148) -> 0 | D138: 0 | E138: 0 | F138: 0 | G138: 0 | H138: 0 | I138: 0 | J138: 0 | K138: 0 | L138: 0 | N138: =SUM(N139:N148) -> 0 | O138: 0 | P138: 0 | Q138: 0 | R138: 0 | S138: 0 | T138: 0 | U138: 0 | V138: 0 | W138: 0 | X138: 0
A139: ='Org structure'!E135 -> 13.1 - [Name of sub-vote] | J139: =Q139+V139 -> 0 | K139: =U139+W139 -> 0 | L139: =X139 -> 0 | Q139: =SUM(N139:P139) -> 0 | U139: 0
A140: ='Org structure'!E136 -> 0 | J140: 0 | K140: 0 | L140: 0 | Q140: 0 | U140: 0
A141: ='Org structure'!E137 -> 0 | J141: 0 | K141: 0 | L141: 0 | Q141: 0 | U141: 0
A142: ='Org structure'!E138 -> 0 | J142: 0 | K142: 0 | L142: 0 | Q142: 0 | U142: 0
A143: ='Org structure'!E139 -> 0 | J143: 0 | K143: 0 | L143: 0 | Q143: 0 | U143: 0
A144: ='Org structure'!E140 -> 0 | J144: 0 | K144: 0 | L144: 0 | Q144: 0 | U144: 0
A145: ='Org structure'!E141 -> 0 | J145: 0 | K145: 0 | L145: 0 | Q145: 0 | U145: 0
A146: ='Org structure'!E142 -> 0 | J146: 0 | K146: 0 | L146: 0 | Q146: 0 | U146: 0
A147: ='Org structure'!E143 -> 0 | J147: 0 | K147: 0 | L147: 0 | Q147: 0 | U147: 0
A148: ='Org structure'!E144 -> 0 | J148: 0 | K148: 0 | L148: 0 | Q148: 0 | U148: 0
A149: ='Org structure'!A15 -> Vote 14 - [NAME OF VOTE 14] | C149: =SUM(C150:C159) -> 0 | D149: 0 | E149: 0 | F149: 0 | G149: 0 | H149: 0 | I149: 0 | J149: 0 | K149: 0 | L149: 0 | N149: =SUM(N150:N159) -> 0 | O149: 0 | P149: 0 | Q149: 0 | R149: 0 | S149: 0 | T149: 0 | U149: 0 | V149: 0 | W149: 0 | X149: 0
A150: ='Org structure'!E146 -> 14.1 - [Name of sub-vote] | J150: =Q150+V150 -> 0 | K150: =U150+W150 -> 0 | L150: =X150 -> 0 | Q150: =SUM(N150:P150) -> 0 | U150: 0
A151: ='Org structure'!E147 -> 0 | J151: 0 | K151: 0 | L151: 0 | Q151: 0 | U151: 0
A152: ='Org structure'!E148 -> 0 | J152: 0 | K152: 0 | L152: 0 | Q152: 0 | U152: 0
A153: ='Org structure'!E149 -> 0 | J153: 0 | K153: 0 | L153: 0 | Q153: 0 | U153: 0
A154: ='Org structure'!E150 -> 0 | J154: 0 | K154: 0 | L154: 0 | Q154: 0 | U154: 0
A155: ='Org structure'!E151 -> 0 | J155: 0 | K155: 0 | L155: 0 | Q155: 0 | U155: 0
A156: ='Org structure'!E152 -> 0 | J156: 0 | K156: 0 | L156: 0 | Q156: 0 | U156: 0
A157: ='Org structure'!E153 -> 0 | J157: 0 | K157: 0 | L157: 0 | Q157: 0 | U157: 0
A158: ='Org structure'!E154 -> 0 | J158: 0 | K158: 0 | L158: 0 | Q158: 0 | U158: 0
A159: ='Org structure'!E155 -> 0 | J159: 0 | K159: 0 | L159: 0 | Q159: 0 | U159: 0
A160: ='Org structure'!A16 -> Vote 15 - [NAME OF VOTE 15] | C160: =SUM(C161:C170) -> 0 | D160: 0 | E160: 0 | F160: 0 | G160: 0 | H160: 0 | I160: 0 | J160: 0 | K160: 0 | L160: 0 | N160: =SUM(N161:N170) -> 0 | O160: 0 | P160: 0 | Q160: 0 | R160: 0 | S160: 0 | T160: 0 | U160: 0 | V160: 0 | W160: 0 | X160: 0
A161: ='Org structure'!E157 -> 15.1 - [Name of sub-vote] | J161: =Q161+V161 -> 0 | K161: =U161+W161 -> 0 | L161: =X161 -> 0 | Q161: =SUM(N161:P161) -> 0 | U161: 0
A162: ='Org structure'!E158 -> 0 | J162: 0 | K162: 0 | L162: 0 | Q162: 0 | U162: 0
A163: ='Org structure'!E159 -> 0 | J163: 0 | K163: 0 | L163: 0 | Q163: 0 | U163: 0
A164: ='Org structure'!E160 -> 0 | J164: 0 | K164: 0 | L164: 0 | Q164: 0 | U164: 0
A165: ='Org structure'!E161 -> 0 | J165: 0 | K165: 0 | L165: 0 | Q165: 0 | U165: 0
A166: ='Org structure'!E162 -> 0 | J166: 0 | K166: 0 | L166: 0 | Q166: 0 | U166: 0
A167: ='Org structure'!E163 -> 0 | J167: 0 | K167: 0 | L167: 0 | Q167: 0 | U167: 0
A168: ='Org structure'!E164 -> 0 | J168: 0 | K168: 0 | L168: 0 | Q168: 0 | U168: 0
A169: ='Org structure'!E165 -> 0 | J169: 0 | K169: 0 | L169: 0 | Q169: 0 | U169: 0
A170: ='Org structure'!E166 -> 0 | J170: 0 | K170: 0 | L170: 0 | Q170: 0 | U170: 0
A171: Capital multi-year expenditure sub-total | C171: =C6+C17+C28+C39+C50+C61+C72+C83+C94+C105+C116+C127+C138+C149+C160 -> 180,287 | D171: =D6+D17+D28+D39+D50+D61+D72+D83+D94+D105+D116+D127+D138+D149+D160 -> 32,099 | E171: 135,095 | F171: 149,283 | G171: 153,018 | H171: 153,018 | I171: 131,064 | J171: 157,297 | K171: 160,700 | L171: 225,803 | N171: =N6+N17+N28+N39+N50+N61+N72+N83+N94+N105+N116+N127+N138+N149+N160 -> 0 | O171: 0 | P171: 0 | Q171: 0 | R171: 0 | S171: 0 | U171: 0 | V171: =V6+V17+V28+V39+V50+V61+V72+V83+V94+V105+V116+V127+V138+V149+V160 -> 157,297 | W171: =W6+W17+W28+W39+W50+W61+W72+W83+W94+W105+W116+W127+W138+W149+W160 -> 160,700 | X171: =X6+X17+X28+X39+X50+X61+X72+X83+X94+X105+X116+X127+X138+X149+X160 -> 225,803
A173: Capital expenditure - Municipal Vote
A174: Single-year expenditure appropriation | B174: 2
A175: =A6 -> Vote 1 - GOVERNANCE AND ADMIN | C175: =SUM(C176:C185) -> 0 | D175: 777 | E175: 0 | F175: 0 | G175: 0 | H175: 0 | I175: 0 | J175: 0 | K175: 0 | L175: 0
A176: =A7 -> 1.1 - Municipal Manager
A177: 1.2 - Executive and Council | D177: 777
A178: 1.3 - Internal Audit
A179: 0
A180: 0
A181: 0
A182: 0
A183: 0
A184: 0
A185: 0
A186: Vote 2 - FINANCE | C186: =SUM(C187:C196) -> 0 | D186: 0 | E186: 0 | F186: 0 | G186: 0 | H186: 0 | I186: 0 | J186: 0 | K186: 0 | L186: 0
A187: 2.1 - Finance
A188: 0
A189: 0
A190: 0
A191: 0
A192: 0
A193: 0
A194: 0
A195: 0
A196: 0
A197: Vote 3 - CORPORATE SERVICES | C197: =SUM(C198:C207) -> 0 | D197: 11,172 | E197: 1,466 | F197: 4,982 | G197: 4,932 | H197: 4,932 | I197: 5,351 | J197: 8,580 | K197: 24,650 | L197: 3,470
A198: 3.1 - Corporate and Services | D198: 11,172 | E198: 1,466 | F198: 4,982 | G198: 4,932 | H198: 4,932 | I198: 5,351 | J198: 8,580 | K198: 24,650 | L198: 3,470
A199: 0
A200: 0
A201: 0
... 140 more rows

Sheet A6-FinPos
A1: =muni&" - "&Approve6 -> LIM343 Thulamela - Table A6 Budgeted Financial Position
A2: =desc -> Description | B2: =head27 -> Ref | C2: =head1b -> 2016/17 | D2: =head1A -> 2017/18 | E2: =Head1 -> 2018/19 | F2: =Head2 -> Current Year 2019/20 | J2: =Head3 -> 2020/21 Medium Term Revenue & Expenditure Framework
A3: R thousand | C3: =Head5 -> Audited Outcome | D3: =Head5 -> Audited Outcome | E3: =Head5 -> Audited Outcome | F3: =Head6 -> Original Budget | G3: =Head7 -> Adjusted Budget | H3: =Head8 -> Full Year Forecast | I3: =Head5b -> Pre-audit outcome | J3: =Head9 -> Budget Year 2020/21 | K3: =Head10 -> Budget Year +1 2021/22 | L3: =Head11 -> Budget Year +2 2022/23
A4: ASSETS
A5: Current assets
A6: Cash | C6: 488,345 | D6: 480,261 | E6: 537,462 | F6: 499,759 | G6: 150,000 | H6: 150,000 | I6: 537,462 | J6: 195,342 | K6: 285,766 | L6: 372,522
A7: Call investment deposits | B7: 1 | C7: ='SA3'!C9 -> 0 | D7: ='SA3'!D9 -> 0 | E7: ='SA3'!E9 -> 0 | F7: ='SA3'!F9 -> 0 | G7: ='SA3'!G9 -> 301,600 | H7: ='SA3'!H9 -> 301,600 | I7: ='SA3'!I9 -> 0 | J7: ='SA3'!J9 -> 200,000 | K7: ='SA3'!K9 -> 200,000 | L7: ='SA3'!L9 -> 200,000
A8: Consumer debtors | B8: 1 | C8: ='SA3'!C14 -> 0 | D8: ='SA3'!D14 -> 0 | E8: ='SA3'!E14 -> 27,397 | F8: ='SA3'!F14 -> 40,000 | G8: ='SA3'!G14 -> 37,664 | H8: ='SA3'!H14 -> 37,664 | I8: ='SA3'!I14 -> 30,109 | J8: ='SA3'!J14 -> 34,110 | K8: ='SA3'!K14 -> 40,000 | L8: ='SA3'!L14 -> 45,000
A9: Other debtors | C9: 40,319 | D9: 32,761
A10: Current portion of long-term receivables
A11: Inventory | B11: 2 | C11: 34,267 | D11: 33,043 | E11: 33,984 | F11: 45,000 | G11: 35,000 | H11: 35,000 | I11: 34,500 | J11: 35,000 | K11: 35,000 | L11: 35,000
A12: Total current assets | C12: =SUM(C6:C11) -> 562,930 | D12: 546,065 | E12: 598,843 | F12: 584,759 | G12: 524,264 | H12: 524,264 | I12: 602,071 | J12: 464,452 | K12: 560,766 | L12: 652,522
A14: Non current assets
A15: Long-term receivables
A16: Investments
A17: Investment property
A18: Investment in Associate
A19: Property, plant and equipment | B19: 3 | C19: ='SA3'!C26 -> 1,364,379 | D19: ='SA3'!D26 -> 1,422,918 | E19: ='SA3'!E26 -> 1,481,411 | F19: ='SA3'!F26 -> 1,753,231 | G19: ='SA3'!G26 -> 1,583,635 | H19: ='SA3'!H26 -> 1,583,635 | I19: ='SA3'!I26 -> 1,488,975 | J19: ='SA3'!J26 -> 1,160,274 | K19: ='SA3'!K26 -> 1,303,304 | L19: ='SA3'!L26 -> 1,472,057
A21: Biological
A22: Intangible | C22: 0 | D22: 1,072 | E22: 432 | F22: (600) | G22: 1,042 | H22: 1,042 | I22: 432 | J22: 1,327 | K22: 4,827 | L22: 6,927
A23: Other non-current assets | J23: 15,600 | K23: 19,850 | L23: 19,850
A24: Total non current assets | C24: =SUM(C15:C19)+SUM(C21:C23) -> 1,364,379 | D24: =SUM(D15:D19)+SUM(D21:D23) -> 1,423,990 | E24: =SUM(E15:E19)+SUM(E21:E23) -> 1,481,842 | F24: =SUM(F15:F19)+SUM(F21:F23) -> 1,752,631 | G24: 1,584,677 | H24: 1,584,677 | I24: 1,489,407 | J24: 1,177,201 | K24: 1,327,981 | L24: 1,498,834
A25: TOTAL ASSETS | C25: =C12+C24 -> 1,927,309 | D25: =D12+D24 -> 1,970,055 | E25: =E12+E24 -> 2,080,685 | F25: =F12+F24 -> 2,337,390 | G25: =G12+G24 -> 2,108,941 | H25: 2,108,941 | I25: 2,091,478 | J25: 1,641,653 | K25: 1,888,746 | L25: 2,151,356
A27: LIABILITIES
A28: Current liabilities
A29: Bank overdraft | B29: 1
A30: Borrowing | B30: 4 | C30: ='SA3'!C32 -> 1,643 | D30: ='SA3'!D32 -> 431 | E30: ='SA3'!E32 -> 0 | F30: ='SA3'!F32 -> 0 | G30: ='SA3'!G32 -> 0 | H30: ='SA3'!H32 -> 0 | I30: ='SA3'!I32 -> 0 | J30: ='SA3'!J32 -> 0 | K30: ='SA3'!K32 -> 0 | L30: ='SA3'!L32 -> 0
A31: Consumer deposits | C31: 12,663 | D31: 15,207 | E31: 278 | F31: 300 | G31: 300 | H31: 300 | J31: 310 | K31: 320 | L31: 330
A32: Trade and other payables | B32: 4 | C32: ='SA3'!C39 -> 113,408 | D32: ='SA3'!D39 -> 77,889 | E32: ='SA3'!E39 -> 95,979 | F32: ='SA3'!F39 -> 70,000 | G32: ='SA3'!G39 -> 110,000 | H32: ='SA3'!H39 -> 110,000 | I32: ='SA3'!I39 -> 105,097 | J32: ='SA3'!J39 -> 130,000 | K32: ='SA3'!K39 -> 130,000 | L32: ='SA3'!L39 -> 130,000
A33: Provisions | C33: 9,380 | D33: 5,012 | E33: 34,978 | G33: 20,000 | H33: 20,000 | I33: 18,032 | J33: 19,000 | K33: 20,000 | L33: 20,000
A34: Total current liabilities | C34: =SUM(C29:C33) -> 137,094 | D34: 98,538 | E34: 131,235 | F34: 70,300 | G34: 130,300 | H34: 130,300 | I34: 123,130 | J34: 149,310 | K34: 150,320 | L34: 150,330
A36: Non current liabilities
A37: Borrowing | C37: ='SA3'!C44 -> 431 | D37: 0 | E37: ='SA3'!E44 -> 0 | F37: ='SA3'!F44 -> 0 | G37: ='SA3'!G44 -> 0 | H37: ='SA3'!H44 -> 0 | I37: ='SA3'!I44 -> 0 | J37: ='SA3'!J44 -> 0 | K37: ='SA3'!K44 -> 0 | L37: ='SA3'!L44 -> 0
A38: Provisions | C38: ='SA3'!C51 -> 27,317 | D38: ='SA3'!D51 -> 27,557 | E38: ='SA3'!E51 -> 28,753 | F38: ='SA3'!F51 -> 20,000 | G38: ='SA3'!G51 -> 30,700 | H38: ='SA3'!H51 -> 30,700 | I38: ='SA3'!I51 -> 37,254 | J38: ='SA3'!J51 -> 40,000 | K38: ='SA3'!K51 -> 40,000 | L38: ='SA3'!L51 -> 40,000
A39: Total non current liabilities | C39: =SUM(C37:C38) -> 27,748 | D39: =SUM(D37:D38) -> 27,557 | E39: =SUM(E37:E38) -> 28,753 | F39: =SUM(F37:F38) -> 20,000 | G39: 30,700 | H39: 30,700 | I39: 37,254 | J39: 40,000 | K39: =SUM(K37:K38) -> 40,000 | L39: 40,000
A40: TOTAL LIABILITIES | C40: =C34+C39 -> 164,842 | D40: =D34+D39 -> 126,095 | E40: =E34+E39 -> 159,988 | F40: =F34+F39 -> 90,300 | G40: 161,000 | H40: 161,000 | I40: 160,384 | J40: 189,310 | K40: =K34+K39 -> 190,320 | L40: 190,330
A42: NET ASSETS | B42: 5 | C42: =C25-C40 -> 1,762,467 | D42: 1,843,960 | E42: =E25-E40 -> 1,920,697 | F42: 2,247,090 | G42: 1,947,941 | H42: 1,947,941 | I42: 1,931,094 | J42: 1,452,343 | K42: 1,698,426 | L42: 1,961,026
A44: COMMUNITY WEALTH/EQUITY
A45: Accumulated Surplus/(Deficit) | C45: 1,762,467 | D45: 1,843,960 | E45: 1,920,697 | F45: 2,247,090 | G45: 1,947,941 | H45: 1,947,941 | I45: 1,931,094 | J45: 1,452,343 | K45: 1,698,426 | L45: 1,961,026
A46: Reserves | B46: 4 | C46: ='SA3'!C70 -> 0 | D46: ='SA3'!D70 -> 0 | E46: ='SA3'!E70 -> 0 | F46: ='SA3'!F70 -> 0 | G46: ='SA3'!G70 -> 0 | H46: ='SA3'!H70 -> 0 | I46: ='SA3'!I70 -> 0 | J46: ='SA3'!J70 -> 0 | K46: ='SA3'!K70 -> 0 | L46: ='SA3'!L70 -> 0
A48: TOTAL COMMUNITY WEALTH/EQUITY | B48: 5 | C48: =SUM(C45:C46) -> 1,762,467 | D48: =SUM(D45:D46) -> 1,843,960 | E48: 1,920,697 | F48: 2,247,090 | G48: 1,947,941 | H48: 1,947,941 | I48: 1,931,094 | J48: 1,452,343 | K48: 1,698,426 | L48: 1,961,026
A49: =head27a -> References
A50: 1. Detail to be provided in Table SA3
A51: 2. Include completed low cost housing to be transferred to beneficiaries within 12 months
A52: 3. Include 'Construction-work-in-progress' (disclosed separately in annual financial statements)
A53: 4. Detail to be provided in Table SA3. Includes reserves to be funded by statute.
A54: 5. Net assets must balance with Total Community Wealth/Equity
A55: check balance | C55: =IF((C42-C48)=0,0,"Unbalanced") -> 0 | D55: =IF((D42-D48)=0,0,"Unbalanced") -> 0 | E55: =IF((E42-E48)=0,0,"Unbalanced") -> 0 | F55: 0 | G55: 0 | H55: 0 | I55: 0 | J55: 0 | K55: 0 | L55: 0

Sheet A7-CFlow
A1: =muni&" - "&Approve7 -> LIM343 Thulamela - Table A7 Budgeted Cash Flows
A2: =desc -> Description | B2: =head27 -> Ref | C2: =head1b -> 2016/17 | D2: =head1A -> 2017/18 | E2: =Head1 -> 2018/19 | F2: =Head2 -> Current Year 2019/20 | J2: =Head3 -> 2020/21 Medium Term Revenue & Expenditure Framework
A3: R thousand | C3: =Head5 -> Audited Outcome | D3: =Head5 -> Audited Outcome | E3: =Head5 -> Audited Outcome | F3: =Head6 -> Original Budget | G3: =Head7 -> Adjusted Budget | H3: =Head8 -> Full Year Forecast | I3: =Head5b -> Pre-audit outcome | J3: =Head9 -> Budget Year 2020/21 | K3: =Head10 -> Budget Year +1 2021/22 | L3: =Head11 -> Budget Year +2 2022/23
A4: CASH FLOW FROM OPERATING ACTIVITIES
A5: Receipts
A6: Property rates | C6: 44,111 | D6: 19,917 | E6: 37,181 | F6: 28,076 | G6: 57,000 | H6: 57,000 | I6: 37,181 | J6: ='SA30'!N5 -> 54,480 | K6: ='SA30'!O5 -> 58,273 | L6: ='SA30'!P5 -> 60,149
A7: Service charges | C7: 43,271 | D7: 34,655 | E7: 14,571 | F7: 23,259 | G7: 24,600 | H7: 24,600 | I7: 14,571 | J7: ='SA30'!N6+'SA30'!N7+'SA30'!N8+'SA30'!N9 -> 17,218 | K7: ='SA30'!O6+'SA30'!O7+'SA30'!O8+'SA30'!O9 -> 18,092 | L7: ='SA30'!P6+'SA30'!P7+'SA30'!P8+'SA30'!P9 -> 19,437
A8: Other revenue | C8: 40,275 | D8: 45,703 | E8: 38,618 | F8: 77,212 | G8: 80,000 | H8: 80,000 | I8: 94,472 | J8: ='SA30'!N11+'SA30'!N15+'SA30'!N16+'SA30'!N17+'SA30'!N19 -> 89,821 | K8: ='SA30'!O11+'SA30'!O15+'SA30'!O16+'SA30'!O17+'SA30'!O19 -> 88,748 | L8: ='SA30'!P11+'SA30'!P15+'SA30'!P16+'SA30'!P17+'SA30'!P19 -> 91,941
A9: Transfers and Subsidies - Operational | B9: 1 | C9: 419,627 | D9: 393,323 | E9: 436,812 | F9: 483,309 | G9: 481,559 | H9: 481,559 | I9: 401,812 | J9: ='SA30'!N18 -> 505,805 | K9: ='SA30'!O18 -> 533,094 | L9: ='SA30'!P18 -> 563,797
A10: Transfers and Subsidies - Capital | B10: 1 | C10: 91,297 | D10: 121,159 | E10: 112,823 | F10: 99,383 | G10: 99,383 | H10: 99,383 | I10: 147,823 | J10: ='SA30'!N23 -> 98,702 | K10: ='SA30'!O23 -> 107,485 | L10: ='SA30'!P23 -> 113,912
A11: Interest | C11: 29,570 | D11: 28,808 | E11: 35,644 | F11: 50,000 | G11: 40,000 | H11: 40,000 | I11: 35,644 | J11: ='SA30'!N12+'SA30'!N13 -> 52,500 | K11: ='SA30'!O12+'SA30'!O13 -> 54,748 | L11: ='SA30'!P12+'SA30'!P13 -> 57,076
A12: Dividends | J12: ='SA30'!N14 -> 0 | K12: ='SA30'!O14 -> 0 | L12: ='SA30'!P14 -> 0
A13: Payments
A14: Suppliers and employees | C14: (426,656) | D14: (533,653) | E14: (472,846) | F14: (527,637) | G14: (506,668) | H14: (506,668) | I14: (540,061) | J14: =-('SA30'!N35+'SA30'!N36+'SA30'!N38+'SA30'!N39+'SA30'!N40+'SA30'!N41+'SA30'!N44+'SA30'!N50) -> (635,694) | K14: =-('SA30'!O35+'SA30'!O36+'SA30'!O38+'SA30'!O39+'SA30'!O40+'SA30'!O41+'SA30'!O44+'SA30'!O50) -> (661,758) | L14: =-('SA30'!P35+'SA30'!P36+'SA30'!P38+'SA30'!P39+'SA30'!P40+'SA30'!P41+'SA30'!P44+'SA30'!P50) -> (690,826)
A15: Finance charges | C15: (558) | D15: (225) | E15: (39) | F15: 0 | G15: (50) | H15: (50) | I15: (39) | J15: =-('SA30'!N37) -> (50) | K15: =-('SA30'!O37) -> (52) | L15: =-('SA30'!P37) -> (55)
A16: Transfers and Grants | B16: 1 | E16: (6,354) | F16: (13,460) | G16: (22,427) | H16: (22,427) | I16: (6,354) | J16: =-('SA30'!N42+'SA30'!N43) -> (6,056) | K16: =-('SA30'!O42+'SA30'!O43) -> (6,106) | L16: =-('SA30'!P42+'SA30'!P43) -> (6,158)
A17: NET CASH FROM/(USED) OPERATING ACTIVITIES | C17: =SUM(C6:C12)+SUM(C14:C16) -> 240,938 | D17: 109,687 | E17: 196,410 | F17: 220,142 | G17: 253,397 | H17: 253,397 | I17: 185,049 | J17: 176,726 | K17: 192,523 | L17: 209,273
A19: CASH FLOWS FROM INVESTING ACTIVITIES
A20: Receipts
A21: Proceeds on disposal of PPE | J21: ='SA30'!N24+'SA30'!N25 -> 108,616 | K21: ='SA30'!O24+'SA30'!O25 -> 109,150 | L21: ='SA30'!P24+'SA30'!P25 -> 109,157
A23: Decrease (increase) in non-current receivables | J23: ='SA30'!N30 -> 0 | K23: ='SA30'!O30 -> 0 | L23: ='SA30'!P30 -> 0
A24: Decrease (increase) in non-current investments | J24: ='SA30'!N31 -> 0 | K24: ='SA30'!O31 -> 0 | L24: ='SA30'!P31 -> 0
A25: Payments
A26: Capital assets | C26: (182,147) | D26: (116,027) | E26: (139,220) | F26: (170,383) | G26: (172,168) | H26: (172,168) | I26: (127,859) | J26: =-('SA30'!N48) -> (190,000) | K26: =-('SA30'!O48) -> (211,250) | L26: =-('SA30'!P48) -> (231,673)
A27: NET CASH FROM/(USED) INVESTING ACTIVITIES | C27: =+C21+C23+C24+C26 -> (182,147) | D27: =+D21+D23+D24+D26 -> (116,027) | E27: (139,220) | F27: (170,383) | G27: (172,168) | H27: (172,168) | I27: (127,859) | J27: (81,384) | K27: (102,100) | L27: (122,516)
A29: CASH FLOWS FROM FINANCING ACTIVITIES
A30: Receipts
A31: Short term loans | J31: ='SA30'!N26 -> 0 | K31: ='SA30'!O26 -> 0 | L31: ='SA30'!P26 -> 0
A32: Borrowing long term/refinancing | J32: ='SA30'!N27 -> 0 | K32: ='SA30'!O27 -> 0 | L32: ='SA30'!P27 -> 0
A33: Increase (decrease) in consumer deposits | J33: ='SA30'!N28 -> 0 | K33: ='SA30'!O28 -> 0 | L33: ='SA30'!P28 -> 0
A34: Payments
A35: Repayment of borrowing | C35: (1,868) | D35: (1,743) | J35: =-('SA30'!N49) -> 0 | K35: =-('SA30'!O49) -> 0 | L35: =-('SA30'!P49) -> 0
A36: NET CASH FROM/(USED) FINANCING ACTIVITIES | C36: =SUM(C31:C33)+C35 -> (1,868) | D36: =SUM(D31:D33)+D35 -> (1,743) | E36: 0 | F36: 0 | G36: 0 | H36: 0 | I36: 0 | J36: 0 | K36: 0 | L36: 0
A38: NET INCREASE/ (DECREASE) IN CASH HELD | C38: =C17+C27+C36 -> 56,922 | D38: =D17+D27+D36 -> (8,083) | E38: 57,190 | F38: 49,759 | G38: 81,229 | H38: 81,229 | I38: 57,190 | J38: 95,342 | K38: 90,423 | L38: 86,756
A39: Cash/cash equivalents at the year begin: | B39: 2 | C39: 431,422 | D39: 488,345 | E39: 480,272 | F39: 450,000 | G39: 537,462 | H39: 537,462 | I39: 480,272 | J39: ='SA30'!N54 -> 300,000 | K39: =J40 -> 395,342 | L39: =K40 -> 485,766
A40: Cash/cash equivalents at the year end: | B40: 2 | C40: =C38+C39 -> 488,345 | D40: =D38+D39 -> 480,261 | E40: =E38+E39 -> 537,462 | F40: =F38+F39 -> 499,759 | G40: 618,691 | H40: 618,691 | I40: 537,462 | J40: 395,342 | K40: 485,766 | L40: 572,522
A41: =head27a -> References
A42: 1. Local/District municipalities to include transfers from/to District/Local Municipalities
A43: 2. Cash equivalents includes investments with maturities of 3 months or less
A44: 3. The MTREF is populated directly from SA30.
A45: Total receipts | C45: =SUM(C6:C12)+SUM(C21:C23) -> 668,151 | D45: 643,565 | E45: 675,649 | F45: 761,239 | G45: 782,542 | H45: 782,542 | I45: 731,503 | J45: 927,143 | K45: 969,590 | L45: 1,015,469
A46: Total payments | C46: =SUM(C14:C16)+C26 -> (609,360) | D46: =SUM(D14:D16)+D26 -> (649,905) | E46: (618,459) | F46: (711,480) | G46: (701,313) | H46: (701,313) | I46: (674,313) | J46: (831,800) | K46: (879,166) | L46: (928,712)
C47: =C45+C46 -> 58,791 | D47: =D45+D46 -> (6,340) | E47: 57,190 | F47: 49,759 | G47: 81,229 | H47: 81,229 | I47: 57,190 | J47: 95,342 | K47: 90,423 | L47: 86,756
A48: Borrowings & investments & c.deposits | C48: =C24+C32+C33 -> 0 | D48: =D24+D32+D33 -> 0 | E48: 0 | F48: 0 | G48: 0 | H48: 0 | I48: 0 | J48: 0 | K48: 0 | L48: 0
A49: =A35 -> Repayment of borrowing | C49: =C35 -> (1,868) | D49: =D35 -> (1,743) | E49: 0 | F49: 0 | G49: 0 | H49: 0 | I49: =I35 -> 0 | J49: 0 | K49: 0 | L49: 0
C50: =C47+C48+C49 -> 56,922 | D50: =D47+D48+D49 -> (8,083) | E50: 57,190 | F50: 49,759 | G50: 81,229 | H50: 81,229 | I50: 57,190 | J50: 95,342 | K50: 90,423 | L50: 86,756
C51: =C38-C50 -> 0 | D51: 0 | E51: 0 | F51: 0 | G51: 0 | H51: 0 | I51: 0 | J51: 0 | K51: 0 | L51: 0

Sheet A8-ResRecon
A1: =muni&" - "&Approve8 -> LIM343 Thulamela - Table A8 Cash backed reserves/accumulated surplus reconciliation
A2: =desc -> Description | B2: =head27 -> Ref | C2: =head1b -> 2016/17 | D2: =head1A -> 2017/18 | E2: =Head1 -> 2018/19 | F2: =Head2 -> Current Year 2019/20 | J2: =Head3 -> 2020/21 Medium Term Revenue & Expenditure Framework
A3: R thousand | C3: =Head5 -> Audited Outcome | D3: =Head5 -> Audited Outcome | E3: =Head5 -> Audited Outcome | F3: =Head6 -> Original Budget | G3: =Head7 -> Adjusted Budget | H3: =Head8 -> Full Year Forecast | I3: =Head5b -> Pre-audit outcome | J3: =Head9 -> Budget Year 2020/21 | K3: =Head10 -> Budget Year +1 2021/22 | L3: =Head11 -> Budget Year +2 2022/23
A4: Cash and investments available
A5: =LEFT('A7-CFlow'!A40,37) -> Cash/cash equivalents at the year end | B5: 1 | C5: ='A7-CFlow'!C40 -> 488,345 | D5: ='A7-CFlow'!D40 -> 480,261 | E5: ='A7-CFlow'!E40 -> 537,462 | F5: ='A7-CFlow'!F40 -> 499,759 | G5: ='A7-CFlow'!G40 -> 618,691 | H5: ='A7-CFlow'!H40 -> 618,691 | I5: ='A7-CFlow'!I40 -> 537,462 | J5: ='A7-CFlow'!J40 -> 395,342 | K5: ='A7-CFlow'!K40 -> 485,766 | L5: ='A7-CFlow'!L40 -> 572,522
A6: Other current investments > 90 days | C6: ='A6-FinPos'!C6+'A6-FinPos'!C7-'A6-FinPos'!C29-'A8-ResRecon'!C5 -> 0 | D6: ='A6-FinPos'!D6+'A6-FinPos'!D7-'A6-FinPos'!D29-'A8-ResRecon'!D5 -> (0) | E6: ='A6-FinPos'!E6+'A6-FinPos'!E7-'A6-FinPos'!E29-'A8-ResRecon'!E5 -> 0 | F6: ='A6-FinPos'!F6+'A6-FinPos'!F7-'A6-FinPos'!F29-'A8-ResRecon'!F5 -> 0 | G6: ='A6-FinPos'!G6+'A6-FinPos'!G7-'A6-FinPos'!G29-'A8-ResRecon'!G5 -> (167,091) | H6: ='A6-FinPos'!H6+'A6-FinPos'!H7-'A6-FinPos'!H29-'A8-ResRecon'!H5 -> (167,091) | I6: ='A6-FinPos'!I6+'A6-FinPos'!I7-'A6-FinPos'!I29-'A8-ResRecon'!I5 -> 0 | J6: ='A6-FinPos'!J6+'A6-FinPos'!J7-'A6-FinPos'!J29-'A8-ResRecon'!J5 -> 0 | K6: ='A6-FinPos'!K6+'A6-FinPos'!K7-'A6-FinPos'!K29-'A8-ResRecon'!K5 -> 0 | L6: ='A6-FinPos'!L6+'A6-FinPos'!L7-'A6-FinPos'!L29-'A8-ResRecon'!L5 -> 0
A7: ='A6-FinPos'!A14&" - "&'A6-FinPos'!A16 -> Non current assets - Investments | B7: 1 | C7: ='A6-FinPos'!C16 -> 0 | D7: ='A6-FinPos'!D16 -> 0 | E7: ='A6-FinPos'!E16 -> 0 | F7: ='A6-FinPos'!F16 -> 0 | G7: ='A6-FinPos'!G16 -> 0 | H7: ='A6-FinPos'!H16 -> 0 | I7: ='A6-FinPos'!I16 -> 0 | J7: ='A6-FinPos'!J16 -> 0 | K7: ='A6-FinPos'!K16 -> 0 | L7: ='A6-FinPos'!L16 -> 0
A8: Cash and investments available: | C8: =SUM(C5:C7) -> 488,345 | D8: =SUM(D5:D7) -> 480,261 | E8: 537,462 | F8: 499,759 | G8: 451,600 | H8: 451,600 | I8: 537,462 | J8: 395,342 | K8: 485,766 | L8: 572,522
A10: Application of cash and investments
A11: ='SA3'!A37 -> Unspent conditional transfers | C11: ='SA3'!C37 -> 766 | D11: ='SA3'!D37 -> 0 | E11: ='SA3'!E37 -> 0 | F11: ='SA3'!F37 -> 0 | G11: ='SA3'!G37 -> 0 | H11: ='SA3'!H37 -> 0 | I11: ='SA3'!I37 -> 0 | J11: ='SA3'!J37 -> 0 | K11: ='SA3'!K37 -> 0 | L11: ='SA3'!L37 -> 0
A12: Unspent borrowing | C12: ='SA17'!C67 -> 0 | D12: ='SA17'!D67 -> 0 | E12: ='SA17'!E67 -> 0 | F12: ='SA17'!F67 -> 0 | G12: ='SA17'!G67 -> 0 | H12: ='SA17'!H67 -> 0 | J12: ='SA17'!I67 -> 0 | K12: ='SA17'!J67 -> 0 | L12: ='SA17'!K67 -> 0
A13: Statutory requirements | B13: 2 | G13: 20,000 | H13: 20,000 | I13: 37,254 | J13: 50,000 | K13: 50,000 | L13: 50,000
A14: Other working capital requirements | B14: 3 | C14: =-C32 -> 77,192 | D14: =-D32 -> 58,071 | E14: 79,462 | F14: =-F32 -> 47,617 | G14: 64,934 | H14: 64,934 | I14: 75,821 | J14: 78,989 | K14: 75,702 | L14: 72,710
A15: Other provisions | F15: 28,000 | G15: 50,700 | H15: 50,700 | I15: 0 | J15: 20,000 | K15: 20,000 | L15: 20,000
A16: Long term investments committed | B16: 4 | C16: =C52 -> 0 | D16: =D52 -> 0 | E16: 0 | F16: 0 | G16: 0 | H16: 0 | I16: 0 | J16: 0 | K16: 0 | L16: 0
A17: Reserves to be backed by cash/investments | B17: 5 | F17: 71,000 | J17: 190,000 | K17: 211,250 | L17: 231,673
A18: ="Total "&A10&":" -> Total Application of cash and investments: | C18: =SUM(C11:C17) -> 77,958 | D18: =SUM(D11:D17) -> 58,071 | E18: 79,462 | F18: 146,617 | G18: 135,634 | H18: 135,634 | I18: 113,076 | J18: 338,989 | K18: 356,952 | L18: 374,383
A19: Surplus(shortfall) | C19: =C8-C18 -> 410,387 | D19: =D8-D18 -> 422,190 | E19: 458,000 | F19: 353,142 | G19: 315,966 | H19: 315,966 | I19: 424,386 | J19: 56,353 | K19: 128,814 | L19: 198,139
A20: =head27a -> References
A21: 1. Must reconcile with Budgeted Cash Flows
A22: 2. For example: VAT, taxation
A23: 3. Council approval for policy required - include sufficient working capital (e.g. allowing for a % of current debtors > 90 days as uncollectable)
A24: 4. For example: sinking fund requirements for borrowing
A25: 5. Council approval required for each reserve created and basis of cash backing of reserves
A28: Other working capital requirements
A29: Debtors | C29: =IF(ISERROR(ROUND(C35*C36,-3)),0,(ROUND(C35*C36,-3))) -> 35,450 | D29: =IF(ISERROR(ROUND(D35*D36,-3)),0,(ROUND(D35*D36,-3))) -> 19,818 | E29: 16,517 | F29: 22,383 | G29: 25,066 | H29: 25,066 | I29: 29,276 | J29: 21,011 | K29: 24,298 | L29: 27,290
A31: Creditors due | C31: ='SA3'!C35+'SA3'!C36 -> 112,642 | D31: ='SA3'!D35+'SA3'!D36 -> 77,889 | E31: ='SA3'!E35+'SA3'!E36 -> 95,979 | F31: ='SA3'!F35+'SA3'!F36 -> 70,000 | G31: ='SA3'!G35+'SA3'!G36 -> 90,000 | H31: ='SA3'!H35+'SA3'!H36 -> 90,000 | I31: ='SA3'!I35+'SA3'!I36 -> 105,097 | J31: ='SA3'!J35+'SA3'!J36 -> 100,000 | K31: ='SA3'!K35+'SA3'!K36 -> 100,000 | L31: ='SA3'!L35+'SA3'!L36 -> 100,000
A32: Total | C32: =C29-C31 -> (77,192) | D32: =D29-D31 -> (58,071) | E32: (79,462) | F32: (47,617) | G32: (64,934) | H32: (64,934) | I32: (75,821) | J32: (78,989) | K32: (75,702) | L32: (72,710)
A34: Debtors collection assumptions
A35: Balance outstanding - debtors | C35: ='A6-FinPos'!C8+'A6-FinPos'!C9+'A6-FinPos'!C15 -> 40,319 | D35: ='A6-FinPos'!D8+'A6-FinPos'!D9+'A6-FinPos'!D15 -> 32,761 | E35: ='A6-FinPos'!E8+'A6-FinPos'!E9+'A6-FinPos'!E15 -> 27,397 | F35: ='A6-FinPos'!F8+'A6-FinPos'!F9+'A6-FinPos'!F15 -> 40,000 | G35: ='A6-FinPos'!G8+'A6-FinPos'!G9+'A6-FinPos'!G15 -> 37,664 | H35: ='A6-FinPos'!H8+'A6-FinPos'!H9+'A6-FinPos'!H15 -> 37,664 | I35: ='A6-FinPos'!I8+'A6-FinPos'!I9+'A6-FinPos'!I15 -> 30,109 | J35: ='A6-FinPos'!J8+'A6-FinPos'!J9+'A6-FinPos'!J15 -> 34,110 | K35: ='A6-FinPos'!K8+'A6-FinPos'!K9+'A6-FinPos'!K15 -> 40,000 | L35: ='A6-FinPos'!L8+'A6-FinPos'!L9+'A6-FinPos'!L15 -> 45,000
A36: Estimate of debtors collection rate | C36: =IF(ISERROR('SA10'!D10),0,('SA10'!D10)) -> 87.9% | D36: =IF(ISERROR('SA10'!E10),0,('SA10'!E10)) -> 60.5% | E36: =IF(ISERROR('SA10'!F10),0,('SA10'!F10)) -> 60.3% | F36: =IF(ISERROR('SA10'!G10),0,('SA10'!G10)) -> 56.0% | G36: =IF(ISERROR('SA10'!H10),0,('SA10'!H10)) -> 66.6% | H36: =IF(ISERROR('SA10'!I10),0,('SA10'!I10)) -> 66.6% | I36: =IF(ISERROR('SA10'!J10),0,('SA10'!J10)) -> 97.2% | J36: =IF(ISERROR('SA10'!K10),0,('SA10'!K10)) -> 61.6% | K36: =IF(ISERROR('SA10'!L10),0,('SA10'!L10)) -> 60.7% | L36: =IF(ISERROR('SA10'!M10),0,('SA10'!M10)) -> 60.6%
K39: `
A40: =A16 -> Long term investments committed
A41: Balance (Insert description; eg sinking fund)
C52: =SUM(C41:C51) -> 0 | D52: =SUM(D41:D51) -> 0 | E52: 0 | F52: 0 | G52: 0 | H52: 0 | I52: 0 | J52: 0 | K52: 0 | L52: 0
A53: =A17 -> Reserves to be backed by cash/investments
A54: ='SA3'!A65 -> Housing Development Fund | C54: ='SA3'!C65 -> 0 | D54: ='SA3'!D65 -> 0 | E54: ='SA3'!E65 -> 0 | F54: ='SA3'!F65 -> 0 | G54: ='SA3'!G65 -> 0 | H54: ='SA3'!H65 -> 0 | I54: ='SA3'!I65 -> 0 | J54: ='SA3'!J65 -> 0 | K54: ='SA3'!K65 -> 0 | L54: ='SA3'!L65 -> 0
A55: ='SA3'!A66 -> Capital replacement
A56: ='SA3'!A67 -> Self-insurance
A57: Other (list)
C67: =SUM(C54:C65) -> 0 | D67: 0 | E67: 0 | F67: 0 | G67: 0 | H67: 0 | I67: 0 | J67: 0 | K67: 0 | L67: 0

Sheet A9-Asset
A1: =muni&" - "&Approve9 -> LIM343 Thulamela - Table A9 Asset Management
A2: =desc -> Description | B2: =head27 -> Ref | C2: =head1b -> 2016/17 | D2: =head1A -> 2017/18 | E2: =Head1 -> 2018/19 | F2: =Head2 -> Current Year 2019/20 | I2: =Head3 -> 2020/21 Medium Term Revenue & Expenditure Framework
A3: R thousand | C3: =Head5 -> Audited Outcome | D3: =Head5 -> Audited Outcome | E3: =Head5 -> Audited Outcome | F3: =Head6 -> Original Budget | G3: =Head7 -> Adjusted Budget | H3: =Head8 -> Full Year Forecast | I3: =Head9 -> Budget Year 2020/21 | J3: =Head10 -> Budget Year +1 2021/22 | K3: =Head11 -> Budget Year +2 2022/23
A4: CAPITAL EXPENDITURE
A5: Total New Assets | B5: 1 | C5: =C15+C18+C19+C22+C25+C26+SUM(C29:C35) -> 180,287 | D5: =D15+D18+D19+D22+D25+D26+SUM(D29:D35) -> 116,127 | E5: 139,220 | F5: 168,883 | G5: 171,668 | H5: 171,668 | I5: 189,550 | J5: 201,250 | K5: 221,673
A6: Roads Infrastructure | C6: =SA34a!C7 -> 150,787 | D6: =SA34a!D7 -> 85,005 | E6: =SA34a!E7 -> 83,164 | F6: =SA34a!F7 -> 133,983 | G6: =SA34a!G7 -> 134,318 | H6: =SA34a!H7 -> 134,318 | I6: =SA34a!I7 -> 121,145 | J6: =SA34a!J7 -> 84,437 | K6: =SA34a!K7 -> 181,603
A7: Storm water Infrastructure | C7: =SA34a!C12 -> 0 | D7: =SA34a!D12 -> 0 | E7: =SA34a!E12 -> 0 | F7: =SA34a!F12 -> 0 | G7: =SA34a!G12 -> 0 | H7: =SA34a!H12 -> 0 | I7: =SA34a!I12 -> 0 | J7: =SA34a!J12 -> 0 | K7: =SA34a!K12 -> 0
A8: Electrical Infrastructure | C8: =SA34a!C16 -> 0 | D8: =SA34a!D16 -> 1,300 | E8: =SA34a!E16 -> 2,841 | F8: =SA34a!F16 -> 1,800 | G8: =SA34a!G16 -> 1,800 | H8: =SA34a!H16 -> 1,800 | I8: =SA34a!I16 -> 2,300 | J8: =SA34a!J16 -> 11,800 | K8: =SA34a!K16 -> 12,200
A9: Water Supply Infrastructure | C9: =SA34a!C26 -> 0 | D9: =SA34a!D26 -> 0 | E9: =SA34a!E26 -> 0 | F9: =SA34a!F26 -> 300 | G9: =SA34a!G26 -> 300 | H9: =SA34a!H26 -> 300 | I9: =SA34a!I26 -> 0 | J9: =SA34a!J26 -> 4,000 | K9: =SA34a!K26 -> 12,000
A10: Sanitation Infrastructure | C10: =SA34a!C37 -> 0 | D10: =SA34a!D37 -> 0 | E10: =SA34a!E37 -> 0 | F10: =SA34a!F37 -> 0 | G10: =SA34a!G37 -> 0 | H10: =SA34a!H37 -> 0 | I10: =SA34a!I37 -> 0 | J10: =SA34a!J37 -> 0 | K10: =SA34a!K37 -> 0
A11: Solid Waste Infrastructure | C11: =SA34a!C44 -> 9,591 | D11: =SA34a!D44 -> 3,300 | E11: =SA34a!E44 -> 3,500 | F11: =SA34a!F44 -> 1,650 | G11: =SA34a!G44 -> 1,650 | H11: =SA34a!H44 -> 1,650 | I11: =SA34a!I44 -> 7,500 | J11: =SA34a!J44 -> 22,000 | K11: =SA34a!K44 -> 10,000
A12: Rail Infrastructure | C12: =SA34a!C52 -> 0 | D12: =SA34a!D52 -> 0 | E12: =SA34a!E52 -> 0 | F12: =SA34a!F52 -> 0 | G12: =SA34a!G52 -> 0 | H12: =SA34a!H52 -> 0 | I12: =SA34a!I52 -> 0 | J12: =SA34a!J52 -> 0 | K12: =SA34a!K52 -> 0
A13: Coastal Infrastructure | C13: =SA34a!C62 -> 0 | D13: =SA34a!D62 -> 0 | E13: =SA34a!E62 -> 0 | F13: =SA34a!F62 -> 0 | G13: =SA34a!G62 -> 0 | H13: =SA34a!H62 -> 0 | I13: =SA34a!I62 -> 0 | J13: =SA34a!J62 -> 0 | K13: =SA34a!K62 -> 0
A14: Information and Communication Infrastructure | C14: =SA34a!C68 -> 0 | D14: =SA34a!D68 -> 0 | E14: =SA34a!E68 -> 0 | F14: =SA34a!F68 -> 0 | G14: =SA34a!G68 -> 0 | H14: =SA34a!H68 -> 0 | I14: =SA34a!I68 -> 0 | J14: =SA34a!J68 -> 0 | K14: =SA34a!K68 -> 0
A15: Infrastructure | C15: =SUM(C6:C14) -> 160,378 | D15: =SUM(D6:D14) -> 89,605 | E15: 89,504 | F15: 137,733 | G15: 138,068 | H15: 138,068 | I15: 130,945 | J15: 122,237 | K15: 215,803
A16: Community Facilities | C16: =SA34a!C75 -> 0 | D16: =SA34a!D75 -> 5,648 | E16: =SA34a!E75 -> 4,334 | F16: =SA34a!F75 -> 8,800 | G16: =SA34a!G75 -> 5,200 | H16: =SA34a!H75 -> 5,200 | I16: =SA34a!I75 -> 25,202 | J16: =SA34a!J75 -> 23,013 | K16: =SA34a!K75 -> 0
A17: Sport and Recreation Facilities | C17: =SA34a!C98 -> 14,299 | D17: =SA34a!D98 -> 9,250 | E17: =SA34a!E98 -> 39,216 | F17: =SA34a!F98 -> 2,000 | G17: =SA34a!G98 -> 11,000 | H17: =SA34a!H98 -> 11,000 | I17: =SA34a!I98 -> 2,150 | J17: =SA34a!J98 -> 2,000 | K17: =SA34a!K98 -> 500
A18: Community Assets | C18: =SUM(C16:C17) -> 14,299 | D18: =SUM(D16:D17) -> 14,898 | E18: 43,550 | F18: 10,800 | G18: 16,200 | H18: 16,200 | I18: 27,352 | J18: 25,013 | K18: 500
A19: Heritage Assets | C19: =SA34a!C103 -> 0 | D19: =SA34a!D103 -> 0 | E19: =SA34a!E103 -> 0 | F19: =SA34a!F103 -> 0 | G19: =SA34a!G103 -> 0 | H19: =SA34a!H103 -> 0 | I19: =SA34a!I103 -> 0 | J19: =SA34a!J103 -> 0 | K19: =SA34a!K103 -> 0
A20: Revenue Generating | C20: =SA34a!C111 -> 0 | D20: =SA34a!D111 -> 0 | E20: =SA34a!E111 -> 0 | F20: =SA34a!F111 -> 0 | G20: =SA34a!G111 -> 0 | H20: =SA34a!H111 -> 0 | I20: =SA34a!I111 -> 0 | J20: =SA34a!J111 -> 0 | K20: =SA34a!K111 -> 0
A21: Non-revenue Generating | C21: =SA34a!C114 -> 0 | D21: =SA34a!D114 -> 0 | E21: =SA34a!E114 -> 0 | F21: =SA34a!F114 -> 0 | G21: =SA34a!G114 -> 0 | H21: =SA34a!H114 -> 0 | I21: =SA34a!I114 -> 0 | J21: =SA34a!J114 -> 0 | K21: =SA34a!K114 -> 0
A22: Investment properties | C22: =SUM(C20:C21) -> 0 | D22: =SUM(D20:D21) -> 0 | E22: 0 | F22: 0 | G22: 0 | H22: 0 | I22: 0 | J22: 0 | K22: 0
A23: Operational Buildings | C23: =SA34a!C119 -> 3,045 | D23: =SA34a!D119 -> 2,900 | E23: =SA34a!E119 -> 2,726 | F23: =SA34a!F119 -> 5,000 | G23: =SA34a!G119 -> 5,000 | H23: =SA34a!H119 -> 5,000 | I23: =SA34a!I119 -> 10,600 | J23: =SA34a!J119 -> 4,250 | K23: =SA34a!K119 -> 0
A24: Housing | C24: =SA34a!C131 -> 0 | D24: =SA34a!D131 -> 0 | E24: =SA34a!E131 -> 0 | F24: =SA34a!F131 -> 0 | G24: =SA34a!G131 -> 0 | H24: =SA34a!H131 -> 0 | I24: =SA34a!I131 -> 0 | J24: =SA34a!J131 -> 0 | K24: =SA34a!K131 -> 0
A25: Other Assets | C25: =SUM(C23:C24) -> 3,045 | D25: =SUM(D23:D24) -> 2,900 | E25: 2,726 | F25: 5,000 | G25: 5,000 | H25: 5,000 | I25: 10,600 | J25: 4,250 | K25: 0
A26: Biological or Cultivated Assets | C26: =SA34a!C136 -> 0 | D26: =SA34a!D136 -> 0 | E26: =SA34a!E136 -> 0 | F26: =SA34a!F136 -> 0 | G26: =SA34a!G136 -> 0 | H26: =SA34a!H136 -> 0 | I26: =SA34a!I136 -> 0 | J26: =SA34a!J136 -> 0 | K26: =SA34a!K136 -> 0
A27: Servitudes | C27: =SA34a!C140 -> 0 | D27: =SA34a!D140 -> 0 | E27: =SA34a!E140 -> 0 | F27: =SA34a!F140 -> 0 | G27: =SA34a!G140 -> 0 | H27: =SA34a!H140 -> 0 | I27: =SA34a!I140 -> 0 | J27: =SA34a!J140 -> 0 | K27: =SA34a!K140 -> 0
A28: Licences and Rights | C28: =SA34a!C141 -> 0 | D28: =SA34a!D141 -> 1,720 | E28: =SA34a!E141 -> 0 | F28: =SA34a!F141 -> 450 | G28: =SA34a!G141 -> 610 | H28: =SA34a!H141 -> 610 | I28: =SA34a!I141 -> 300 | J28: =SA34a!J141 -> 3,500 | K28: =SA34a!K141 -> 2,100
A29: Intangible Assets | C29: =SUM(C27:C28) -> 0 | D29: =SUM(D27:D28) -> 1,720 | E29: 0 | F29: 450 | G29: 610 | H29: 610 | I29: 300 | J29: 3,500 | K29: 2,100
A30: Computer Equipment | C30: =SA34a!C149 -> 0 | D30: =SA34a!D149 -> 850 | E30: =SA34a!E149 -> 936 | F30: =SA34a!F149 -> 2,452 | G30: =SA34a!G149 -> 2,622 | H30: =SA34a!H149 -> 2,622 | I30: =SA34a!I149 -> 6,520 | J30: =SA34a!J149 -> 3,860 | K30: =SA34a!K149 -> 870
A31: Furniture and Office Equipment | C31: =SA34a!C152 -> 1,141 | D31: =SA34a!D152 -> 1,615 | E31: =SA34a!E152 -> 643 | F31: =SA34a!F152 -> 580 | G31: =SA34a!G152 -> 300 | H31: =SA34a!H152 -> 300 | I31: =SA34a!I152 -> 1,010 | J31: =SA34a!J152 -> 1,490 | K31: =SA34a!K152 -> 300
A32: Machinery and Equipment | C32: =SA34a!C155 -> 0 | D32: =SA34a!D155 -> 3,205 | E32: =SA34a!E155 -> 1,578 | F32: =SA34a!F155 -> 10,368 | G32: =SA34a!G155 -> 7,368 | H32: =SA34a!H155 -> 7,368 | I32: =SA34a!I155 -> 9,623 | J32: =SA34a!J155 -> 28,700 | K32: =SA34a!K155 -> 2,100
A33: Transport Assets | C33: =SA34a!C158 -> 1,425 | D33: =SA34a!D158 -> 1,335 | E33: =SA34a!E158 -> 282 | F33: =SA34a!F158 -> 1,500 | G33: =SA34a!G158 -> 1,500 | H33: =SA34a!H158 -> 1,500 | I33: =SA34a!I158 -> 3,200 | J33: =SA34a!J158 -> 12,200 | K33: =SA34a!K158 -> 0
A34: Land | C34: =SA34a!C161 -> 0 | D34: =SA34a!D161 -> 0 | E34: =SA34a!E161 -> 0 | F34: =SA34a!F161 -> 0 | G34: =SA34a!G161 -> 0 | H34: =SA34a!H161 -> 0 | I34: =SA34a!I161 -> 0 | J34: =SA34a!J161 -> 0 | K34: =SA34a!K161 -> 0
A35: Zoo's, Marine and Non-biological Animals | C35: =SA34a!C164 -> 0 | D35: =SA34a!D164 -> 0 | E35: =SA34a!E164 -> 0 | F35: =SA34a!F164 -> 0 | G35: =SA34a!G164 -> 0 | H35: =SA34a!H164 -> 0 | I35: =SA34a!I164 -> 0 | J35: =SA34a!J164 -> 0 | K35: =SA34a!K164 -> 0
A37: Total Renewal of Existing Assets | B37: 2 | C37: =C47+C50+C51+C54+C57+C58+SUM(C61:C67) -> 0 | D37: =D47+D50+D51+D54+D57+D58+SUM(D61:D67) -> 0 | E37: 0 | F37: 0 | G37: 0 | H37: 0 | I37: 0 | J37: 0 | K37: 0
A38: Roads Infrastructure | C38: =SA34b!C7 -> 0 | D38: =SA34b!D7 -> 0 | E38: =SA34b!E7 -> 0 | F38: =SA34b!F7 -> 0 | G38: =SA34b!G7 -> 0 | H38: =SA34b!H7 -> 0 | I38: =SA34b!I7 -> 0 | J38: =SA34b!J7 -> 0 | K38: =SA34b!K7 -> 0
A39: Storm water Infrastructure | C39: =SA34b!C12 -> 0 | D39: =SA34b!D12 -> 0 | E39: =SA34b!E12 -> 0 | F39: =SA34b!F12 -> 0 | G39: =SA34b!G12 -> 0 | H39: =SA34b!H12 -> 0 | I39: =SA34b!I12 -> 0 | J39: =SA34b!J12 -> 0 | K39: =SA34b!K12 -> 0
A40: Electrical Infrastructure | C40: =SA34b!C16 -> 0 | D40: =SA34b!D16 -> 0 | E40: =SA34b!E16 -> 0 | F40: =SA34b!F16 -> 0 | G40: =SA34b!G16 -> 0 | H40: =SA34b!H16 -> 0 | I40: =SA34b!I16 -> 0 | J40: =SA34b!J16 -> 0 | K40: =SA34b!K16 -> 0
A41: Water Supply Infrastructure | C41: =SA34b!C26 -> 0 | D41: =SA34b!D26 -> 0 | E41: =SA34b!E26 -> 0 | F41: =SA34b!F26 -> 0 | G41: =SA34b!G26 -> 0 | H41: =SA34b!H26 -> 0 | I41: =SA34b!I26 -> 0 | J41: =SA34b!J26 -> 0 | K41: =SA34b!K26 -> 0
A42: Sanitation Infrastructure | C42: =SA34b!C37 -> 0 | D42: =SA34b!D37 -> 0 | E42: =SA34b!E37 -> 0 | F42: =SA34b!F37 -> 0 | G42: =SA34b!G37 -> 0 | H42: =SA34b!H37 -> 0 | I42: =SA34b!I37 -> 0 | J42: =SA34b!J37 -> 0 | K42: =SA34b!K37 -> 0
A43: Solid Waste Infrastructure | C43: =SA34b!C44 -> 0 | D43: =SA34b!D44 -> 0 | E43: =SA34b!E44 -> 0 | F43: =SA34b!F44 -> 0 | G43: =SA34b!G44 -> 0 | H43: =SA34b!H44 -> 0 | I43: =SA34b!I44 -> 0 | J43: =SA34b!J44 -> 0 | K43: =SA34b!K44 -> 0
A44: Rail Infrastructure | C44: =SA34b!C52 -> 0 | D44: =SA34b!D52 -> 0 | E44: =SA34b!E52 -> 0 | F44: =SA34b!F52 -> 0 | G44: =SA34b!G52 -> 0 | H44: =SA34b!H52 -> 0 | I44: =SA34b!I52 -> 0 | J44: =SA34b!J52 -> 0 | K44: =SA34b!K52 -> 0
A45: Coastal Infrastructure | C45: =SA34b!C62 -> 0 | D45: =SA34b!D62 -> 0 | E45: =SA34b!E62 -> 0 | F45: =SA34b!F62 -> 0 | G45: =SA34b!G62 -> 0 | H45: =SA34b!H62 -> 0 | I45: =SA34b!I62 -> 0 | J45: =SA34b!J62 -> 0 | K45: =SA34b!K62 -> 0
A46: Information and Communication Infrastructure | C46: =SA34b!C68 -> 0 | D46: =SA34b!D68 -> 0 | E46: =SA34b!E68 -> 0 | F46: =SA34b!F68 -> 0 | G46: =SA34b!G68 -> 0 | H46: =SA34b!H68 -> 0 | I46: =SA34b!I68 -> 0 | J46: =SA34b!J68 -> 0 | K46: =SA34b!K68 -> 0
A47: Infrastructure | C47: =SUM(C38:C46) -> 0 | D47: =SUM(D38:D46) -> 0 | E47: 0 | F47: 0 | G47: 0 | H47: 0 | I47: 0 | J47: 0 | K47: 0
A48: Community Facilities | C48: =SA34b!C75 -> 0 | D48: =SA34b!D75 -> 0 | E48: =SA34b!E75 -> 0 | F48: =SA34b!F75 -> 0 | G48: =SA34b!G75 -> 0 | H48: =SA34b!H75 -> 0 | I48: =SA34b!I75 -> 0 | J48: =SA34b!J75 -> 0 | K48: =SA34b!K75 -> 0
A49: Sport and Recreation Facilities | C49: =SA34b!C98 -> 0 | D49: =SA34b!D98 -> 0 | E49: =SA34b!E98 -> 0 | F49: =SA34b!F98 -> 0 | G49: =SA34b!G98 -> 0 | H49: =SA34b!H98 -> 0 | I49: =SA34b!I98 -> 0 | J49: =SA34b!J98 -> 0 | K49: =SA34b!K98 -> 0
A50: Community Assets | C50: =SUM(C48:C49) -> 0 | D50: =SUM(D48:D49) -> 0 | E50: 0 | F50: 0 | G50: 0 | H50: 0 | I50: 0 | J50: 0 | K50: 0
A51: Heritage Assets | C51: =SA34b!C103 -> 0 | D51: =SA34b!D103 -> 0 | E51: =SA34b!E103 -> 0 | F51: =SA34b!F103 -> 0 | G51: =SA34b!G103 -> 0 | H51: =SA34b!H103 -> 0 | I51: =SA34b!I103 -> 0 | J51: =SA34b!J103 -> 0 | K51: =SA34b!K103 -> 0
A52: Revenue Generating | C52: =SA34b!C111 -> 0 | D52: =SA34b!D111 -> 0 | E52: =SA34b!E111 -> 0 | F52: =SA34b!F111 -> 0 | G52: =SA34b!G111 -> 0 | H52: =SA34b!H111 -> 0 | I52: =SA34b!I111 -> 0 | J52: =SA34b!J111 -> 0 | K52: =SA34b!K111 -> 0
A53: Non-revenue Generating | C53: =SA34b!C114 -> 0 | D53: =SA34b!D114 -> 0 | E53: =SA34b!E114 -> 0 | F53: =SA34b!F114 -> 0 | G53: =SA34b!G114 -> 0 | H53: =SA34b!H114 -> 0 | I53: =SA34b!I114 -> 0 | J53: =SA34b!J114 -> 0 | K53: =SA34b!K114 -> 0
A54: Investment properties | C54: =SUM(C52:C53) -> 0 | D54: =SUM(D52:D53) -> 0 | E54: 0 | F54: 0 | G54: 0 | H54: 0 | I54: 0 | J54: 0 | K54: 0
A55: Operational Buildings | C55: =SA34b!C119 -> 0 | D55: =SA34b!D119 -> 0 | E55: =SA34b!E119 -> 0 | F55: =SA34b!F119 -> 0 | G55: =SA34b!G119 -> 0 | H55: =SA34b!H119 -> 0 | I55: =SA34b!I119 -> 0 | J55: =SA34b!J119 -> 0 | K55: =SA34b!K119 -> 0
A56: Housing | C56: =SA34b!C131 -> 0 | D56: =SA34b!D131 -> 0 | E56: =SA34b!E131 -> 0 | F56: =SA34b!F131 -> 0 | G56: =SA34b!G131 -> 0 | H56: =SA34b!H131 -> 0 | I56: =SA34b!I131 -> 0 | J56: =SA34b!J131 -> 0 | K56: =SA34b!K131 -> 0
A57: Other Assets | C57: =SUM(C55:C56) -> 0 | D57: =SUM(D55:D56) -> 0 | E57: 0 | F57: 0 | G57: 0 | H57: 0 | I57: 0 | J57: 0 | K57: 0
A58: Biological or Cultivated Assets | C58: =SA34b!C136 -> 0 | D58: =SA34b!D136 -> 0 | E58: =SA34b!E136 -> 0 | F58: =SA34b!F136 -> 0 | G58: =SA34b!G136 -> 0 | H58: =SA34b!H136 -> 0 | I58: =SA34b!I136 -> 0 | J58: =SA34b!J136 -> 0 | K58: =SA34b!K136 -> 0
A59: Servitudes | C59: =SA34b!C140 -> 0 | D59: =SA34b!D140 -> 0 | E59: =SA34b!E140 -> 0 | F59: =SA34b!F140 -> 0 | G59: =SA34b!G140 -> 0 | H59: =SA34b!H140 -> 0 | I59: =SA34b!I140 -> 0 | J59: =SA34b!J140 -> 0 | K59: =SA34b!K140 -> 0
A60: Licences and Rights | C60: =SA34b!C141 -> 0 | D60: =SA34b!D141 -> 0 | E60: =SA34b!E141 -> 0 | F60: =SA34b!F141 -> 0 | G60: =SA34b!G141 -> 0 | H60: =SA34b!H141 -> 0 | I60: =SA34b!I141 -> 0 | J60: =SA34b!J141 -> 0 | K60: =SA34b!K141 -> 0
A61: Intangible Assets | C61: =SUM(C59:C60) -> 0 | D61: =SUM(D59:D60) -> 0 | E61: 0 | F61: 0 | G61: 0 | H61: 0 | I61: 0 | J61: 0 | K61: 0
A62: Computer Equipment | C62: =SA34b!C149 -> 0 | D62: =SA34b!D149 -> 0 | E62: =SA34b!E149 -> 0 | F62: =SA34b!F149 -> 0 | G62: =SA34b!G149 -> 0 | H62: =SA34b!H149 -> 0 | I62: =SA34b!I149 -> 0 | J62: =SA34b!J149 -> 0 | K62: =SA34b!K149 -> 0
A63: Furniture and Office Equipment | C63: =SA34b!C152 -> 0 | D63: =SA34b!D152 -> 0 | E63: =SA34b!E152 -> 0 | F63: =SA34b!F152 -> 0 | G63: =SA34b!G152 -> 0 | H63: =SA34b!H152 -> 0 | I63: =SA34b!I152 -> 0 | J63: =SA34b!J152 -> 0 | K63: =SA34b!K152 -> 0
A64: Machinery and Equipment | C64: =SA34b!C155 -> 0 | D64: =SA34b!D155 -> 0 | E64: =SA34b!E155 -> 0 | F64: =SA34b!F155 -> 0 | G64: =SA34b!G155 -> 0 | H64: =SA34b!H155 -> 0 | I64: =SA34b!I155 -> 0 | J64: =SA34b!J155 -> 0 | K64: =SA34b!K155 -> 0
A65: Transport Assets | C65: =SA34b!C158 -> 0 | D65: =SA34b!D158 -> 0 | E65: =SA34b!E158 -> 0 | F65: =SA34b!F158 -> 0 | G65: =SA34b!G158 -> 0 | H65: =SA34b!H158 -> 0 | I65: =SA34b!I158 -> 0 | J65: =SA34b!J158 -> 0 | K65: =SA34b!K158 -> 0
A66: Land | C66: =SA34b!C161 -> 0 | D66: =SA34b!D161 -> 0 | E66: =SA34b!E161 -> 0 | F66: =SA34b!F161 -> 0 | G66: =SA34b!G161 -> 0 | H66: =SA34b!H161 -> 0 | I66: =SA34b!I161 -> 0 | J66: =SA34b!J161 -> 0 | K66: =SA34b!K161 -> 0
A67: Zoo's, Marine and Non-biological Animals | C67: =SA34b!C164 -> 0 | D67: =SA34b!D164 -> 0 | E67: =SA34b!E164 -> 0 | F67: =SA34b!F164 -> 0 | G67: =SA34b!G164 -> 0 | H67: =SA34b!H164 -> 0 | I67: =SA34b!I164 -> 0 | J67: =SA34b!J164 -> 0 | K67: =SA34b!K164 -> 0
A69: Total Upgrading of Existing Assets | B69: 6 | C69: =C79+C82+C83+C86+C89+C90+SUM(C93:C99) -> 0 | D69: =D79+D82+D83+D86+D89+D90+SUM(D93:D99) -> 0 | E69: 0 | F69: 1,500 | G69: 500 | H69: 500 | I69: 450 | J69: 10,000 | K69: 10,000
A70: Roads Infrastructure | C70: =SA34e!C7 -> 0 | D70: =SA34e!D7 -> 0 | E70: =SA34e!E7 -> 0 | F70: =SA34e!F7 -> 1,500 | G70: =SA34e!G7 -> 500 | H70: =SA34e!H7 -> 500 | I70: =SA34e!I7 -> 450 | J70: =SA34e!J7 -> 10,000 | K70: =SA34e!K7 -> 10,000
A71: Storm water Infrastructure | C71: =SA34e!C12 -> 0 | D71: =SA34e!D12 -> 0 | E71: =SA34e!E12 -> 0 | F71: =SA34e!F12 -> 0 | G71: =SA34e!G12 -> 0 | H71: =SA34e!H12 -> 0 | I71: =SA34e!I12 -> 0 | J71: =SA34e!J12 -> 0 | K71: =SA34e!K12 -> 0
A72: Electrical Infrastructure | C72: =SA34e!C16 -> 0 | D72: =SA34e!D16 -> 0 | E72: =SA34e!E16 -> 0 | F72: =SA34e!F16 -> 0 | G72: =SA34e!G16 -> 0 | H72: =SA34e!H16 -> 0 | I72: =SA34e!I16 -> 0 | J72: =SA34e!J16 -> 0 | K72: =SA34e!K16 -> 0
A73: Water Supply Infrastructure | C73: =SA34e!C26 -> 0 | D73: =SA34e!D26 -> 0 | E73: =SA34e!E26 -> 0 | F73: =SA34e!F26 -> 0 | G73: =SA34e!G26 -> 0 | H73: =SA34e!H26 -> 0 | I73: =SA34e!I26 -> 0 | J73: =SA34e!J26 -> 0 | K73: =SA34e!K26 -> 0
A74: Sanitation Infrastructure | C74: =SA34e!C37 -> 0 | D74: =SA34e!D37 -> 0 | E74: =SA34e!E37 -> 0 | F74: =SA34e!F37 -> 0 | G74: =SA34e!G37 -> 0 | H74: =SA34e!H37 -> 0 | I74: =SA34e!I37 -> 0 | J74: =SA34e!J37 -> 0 | K74: =SA34e!K37 -> 0
A75: Solid Waste Infrastructure | C75: =SA34e!C44 -> 0 | D75: =SA34e!D44 -> 0 | E75: =SA34e!E44 -> 0 | F75: =SA34e!F44 -> 0 | G75: =SA34e!G44 -> 0 | H75: =SA34e!H44 -> 0 | I75: =SA34e!I44 -> 0 | J75: =SA34e!J44 -> 0 | K75: =SA34e!K44 -> 0
A76: Rail Infrastructure | C76: =SA34e!C52 -> 0 | D76: =SA34e!D52 -> 0 | E76: =SA34e!E52 -> 0 | F76: =SA34e!F52 -> 0 | G76: =SA34e!G52 -> 0 | H76: =SA34e!H52 -> 0 | I76: =SA34e!I52 -> 0 | J76: =SA34e!J52 -> 0 | K76: =SA34e!K52 -> 0
A77: Coastal Infrastructure | C77: =SA34e!C62 -> 0 | D77: =SA34e!D62 -> 0 | E77: =SA34e!E62 -> 0 | F77: =SA34e!F62 -> 0 | G77: =SA34e!G62 -> 0 | H77: =SA34e!H62 -> 0 | I77: =SA34e!I62 -> 0 | J77: =SA34e!J62 -> 0 | K77: =SA34e!K62 -> 0
A78: Information and Communication Infrastructure | C78: =SA34e!C68 -> 0 | D78: =SA34e!D68 -> 0 | E78: =SA34e!E68 -> 0 | F78: =SA34e!F68 -> 0 | G78: =SA34e!G68 -> 0 | H78: =SA34e!H68 -> 0 | I78: =SA34e!I68 -> 0 | J78: =SA34e!J68 -> 0 | K78: =SA34e!K68 -> 0
A79: Infrastructure | C79: =SUM(C70:C78) -> 0 | D79: 0 | E79: 0 | F79: 1,500 | G79: 500 | H79: 500 | I79: 450 | J79: 10,000 | K79: 10,000
A80: Community Facilities | C80: =SA34e!C75 -> 0 | D80: =SA34e!D75 -> 0 | E80: =SA34e!E75 -> 0 | F80: =SA34e!F75 -> 0 | G80: =SA34e!G75 -> 0 | H80: =SA34e!H75 -> 0 | I80: =SA34e!I75 -> 0 | J80: =SA34e!J75 -> 0 | K80: =SA34e!K75 -> 0
A81: Sport and Recreation Facilities | C81: =SA34e!C98 -> 0 | D81: =SA34e!D98 -> 0 | E81: =SA34e!E98 -> 0 | F81: =SA34e!F98 -> 0 | G81: =SA34e!G98 -> 0 | H81: =SA34e!H98 -> 0 | I81: =SA34e!I98 -> 0 | J81: =SA34e!J98 -> 0 | K81: =SA34e!K98 -> 0
A82: Community Assets | C82: =SUM(C80:C81) -> 0 | D82: 0 | E82: 0 | F82: 0 | G82: 0 | H82: 0 | I82: 0 | J82: 0 | K82: 0
A83: Heritage Assets | C83: =SA34e!C103 -> 0 | D83: =SA34e!D103 -> 0 | E83: =SA34e!E103 -> 0 | F83: =SA34e!F103 -> 0 | G83: =SA34e!G103 -> 0 | H83: =SA34e!H103 -> 0 | I83: =SA34e!I103 -> 0 | J83: =SA34e!J103 -> 0 | K83: =SA34e!K103 -> 0
A84: Revenue Generating | C84: =SA34e!C111 -> 0 | D84: =SA34e!D111 -> 0 | E84: =SA34e!E111 -> 0 | F84: =SA34e!F111 -> 0 | G84: =SA34e!G111 -> 0 | H84: =SA34e!H111 -> 0 | I84: =SA34e!I111 -> 0 | J84: =SA34e!J111 -> 0 | K84: =SA34e!K111 -> 0
A85: Non-revenue Generating | C85: =SA34e!C114 -> 0 | D85: =SA34e!D114 -> 0 | E85: =SA34e!E114 -> 0 | F85: =SA34e!F114 -> 0 | G85: =SA34e!G114 -> 0 | H85: =SA34e!H114 -> 0 | I85: =SA34e!I114 -> 0 | J85: =SA34e!J114 -> 0 | K85: =SA34e!K114 -> 0
A86: Investment properties | C86: =SUM(C84:C85) -> 0 | D86: 0 | E86: 0 | F86: 0 | G86: 0 | H86: 0 | I86: 0 | J86: 0 | K86: 0
A87: Operational Buildings | C87: =SA34e!C119 -> 0 | D87: =SA34e!D119 -> 0 | E87: =SA34e!E119 -> 0 | F87: =SA34e!F119 -> 0 | G87: =SA34e!G119 -> 0 | H87: =SA34e!H119 -> 0 | I87: =SA34e!I119 -> 0 | J87: =SA34e!J119 -> 0 | K87: =SA34e!K119 -> 0
A88: Housing | C88: =SA34e!C131 -> 0 | D88: =SA34e!D131 -> 0 | E88: =SA34e!E131 -> 0 | F88: =SA34e!F131 -> 0 | G88: =SA34e!G131 -> 0 | H88: =SA34e!H131 -> 0 | I88: =SA34e!I131 -> 0 | J88: =SA34e!J131 -> 0 | K88: =SA34e!K131 -> 0
A89: Other Assets | C89: =SUM(C87:C88) -> 0 | D89: 0 | E89: 0 | F89: 0 | G89: 0 | H89: 0 | I89: 0 | J89: 0 | K89: 0
A90: Biological or Cultivated Assets | C90: =SA34e!C136 -> 0 | D90: =SA34e!D136 -> 0 | E90: =SA34e!E136 -> 0 | F90: =SA34e!F136 -> 0 | G90: =SA34e!G136 -> 0 | H90: =SA34e!H136 -> 0 | I90: =SA34e!I136 -> 0 | J90: =SA34e!J136 -> 0 | K90: =SA34e!K136 -> 0
A91: Servitudes | C91: =SA34e!C140 -> 0 | D91: =SA34e!D140 -> 0 | E91: =SA34e!E140 -> 0 | F91: =SA34e!F140 -> 0 | G91: =SA34e!G140 -> 0 | H91: =SA34e!H140 -> 0 | I91: =SA34e!I140 -> 0 | J91: =SA34e!J140 -> 0 | K91: =SA34e!K140 -> 0
A92: Licences and Rights | C92: =SA34e!C141 -> 0 | D92: =SA34e!D141 -> 0 | E92: =SA34e!E141 -> 0 | F92: =SA34e!F141 -> 0 | G92: =SA34e!G141 -> 0 | H92: =SA34e!H141 -> 0 | I92: =SA34e!I141 -> 0 | J92: =SA34e!J141 -> 0 | K92: =SA34e!K141 -> 0
A93: Intangible Assets | C93: =SUM(C91:C92) -> 0 | D93: 0 | E93: 0 | F93: 0 | G93: 0 | H93: 0 | I93: 0 | J93: 0 | K93: 0
A94: Computer Equipment | C94: =SA34e!C149 -> 0 | D94: =SA34e!D149 -> 0 | E94: =SA34e!E149 -> 0 | F94: =SA34e!F149 -> 0 | G94: =SA34e!G149 -> 0 | H94: =SA34e!H149 -> 0 | I94: =SA34e!I149 -> 0 | J94: =SA34e!J149 -> 0 | K94: =SA34e!K149 -> 0
A95: Furniture and Office Equipment | C95: =SA34e!C152 -> 0 | D95: =SA34e!D152 -> 0 | E95: =SA34e!E152 -> 0 | F95: =SA34e!F152 -> 0 | G95: =SA34e!G152 -> 0 | H95: =SA34e!H152 -> 0 | I95: =SA34e!I152 -> 0 | J95: =SA34e!J152 -> 0 | K95: =SA34e!K152 -> 0
A96: Machinery and Equipment | C96: =SA34e!C155 -> 0 | D96: =SA34e!D155 -> 0 | E96: =SA34e!E155 -> 0 | F96: =SA34e!F155 -> 0 | G96: =SA34e!G155 -> 0 | H96: =SA34e!H155 -> 0 | I96: =SA34e!I155 -> 0 | J96: =SA34e!J155 -> 0 | K96: =SA34e!K155 -> 0
A97: Transport Assets | C97: =SA34e!C158 -> 0 | D97: =SA34e!D158 -> 0 | E97: =SA34e!E158 -> 0 | F97: =SA34e!F158 -> 0 | G97: =SA34e!G158 -> 0 | H97: =SA34e!H158 -> 0 | I97: =SA34e!I158 -> 0 | J97: =SA34e!J158 -> 0 | K97: =SA34e!K158 -> 0
A98: Land | C98: =SA34e!C161 -> 0 | D98: =SA34e!D161 -> 0 | E98: =SA34e!E161 -> 0 | F98: =SA34e!F161 -> 0 | G98: =SA34e!G161 -> 0 | H98: =SA34e!H161 -> 0 | I98: =SA34e!I161 -> 0 | J98: =SA34e!J161 -> 0 | K98: =SA34e!K161 -> 0
A99: Zoo's, Marine and Non-biological Animals | C99: =SA34e!C164 -> 0 | D99: =SA34e!D164 -> 0 | E99: =SA34e!E164 -> 0 | F99: =SA34e!F164 -> 0 | G99: =SA34e!G164 -> 0 | H99: =SA34e!H164 -> 0 | I99: =SA34e!I164 -> 0 | J99: =SA34e!J164 -> 0 | K99: =SA34e!K164 -> 0
A101: Total Capital Expenditure | B101: 4 | C101: =+C5+C37+C69 -> 180,287 | D101: =+D5+D37+D69 -> 116,127 | E101: 139,220 | F101: 170,383 | G101: 172,168 | H101: 172,168 | I101: 190,000 | J101: 211,250 | K101: 231,673
A102: Roads Infrastructure | C102: =+C6+C38+C70 -> 150,787 | D102: =+D6+D38+D70 -> 85,005 | E102: 83,164 | F102: 135,483 | G102: 134,818 | H102: 134,818 | I102: 121,595 | J102: 94,437 | K102: 191,603
A103: Storm water Infrastructure | C103: =+C7+C39+C71 -> 0 | D103: 0 | E103: 0 | F103: 0 | G103: 0 | H103: 0 | I103: 0 | J103: 0 | K103: 0
A104: Electrical Infrastructure | C104: 0 | D104: 1,300 | E104: 2,841 | F104: 1,800 | G104: 1,800 | H104: 1,800 | I104: 2,300 | J104: 11,800 | K104: 12,200
A105: Water Supply Infrastructure | C105: 0 | D105: 0 | E105: 0 | F105: 300 | G105: 300 | H105: 300 | I105: 0 | J105: 4,000 | K105: 12,000
A106: Sanitation Infrastructure | C106: 0 | D106: 0 | E106: 0 | F106: 0 | G106: 0 | H106: 0 | I106: 0 | J106: 0 | K106: 0
A107: Solid Waste Infrastructure | C107: 9,591 | D107: 3,300 | E107: 3,500 | F107: 1,650 | G107: 1,650 | H107: 1,650 | I107: 7,500 | J107: 22,000 | K107: 10,000
A108: Rail Infrastructure | C108: 0 | D108: 0 | E108: 0 | F108: 0 | G108: 0 | H108: 0 | I108: 0 | J108: 0 | K108: 0
A109: Coastal Infrastructure | C109: 0 | D109: 0 | E109: 0 | F109: 0 | G109: 0 | H109: 0 | I109: 0 | J109: 0 | K109: 0
A110: Information and Communication Infrastructure | C110: 0 | D110: 0 | E110: 0 | F110: 0 | G110: 0 | H110: 0 | I110: 0 | J110: 0 | K110: 0
A111: Infrastructure | C111: =SUM(C102:C110) -> 160,378 | D111: =SUM(D102:D110) -> 89,605 | E111: 89,504 | F111: 139,233 | G111: 138,568 | H111: 138,568 | I111: 131,395 | J111: 132,237 | K111: 225,803
A112: Community Facilities | C112: =+C16+C48+C80 -> 0 | D112: =+D16+D48+D80 -> 5,648 | E112: 4,334 | F112: 8,800 | G112: 5,200 | H112: 5,200 | I112: 25,202 | J112: 23,013 | K112: 0
A113: Sport and Recreation Facilities | C113: =+C17+C49+C81 -> 14,299 | D113: =+D17+D49+D81 -> 9,250 | E113: 39,216 | F113: 2,000 | G113: 11,000 | H113: 11,000 | I113: 2,150 | J113: 2,000 | K113: 500
A114: Community Assets | C114: =SUM(C112:C113) -> 14,299 | D114: =SUM(D112:D113) -> 14,898 | E114: 43,550 | F114: 10,800 | G114: 16,200 | H114: 16,200 | I114: 27,352 | J114: 25,013 | K114: 500
A115: Heritage Assets | C115: =+C19+C51+C83 -> 0 | D115: =+D19+D51+D83 -> 0 | E115: 0 | F115: 0 | G115: 0 | H115: 0 | I115: 0 | J115: 0 | K115: 0
A116: Revenue Generating | C116: =+C20+C52+C84 -> 0 | D116: =+D20+D52+D84 -> 0 | E116: 0 | F116: 0 | G116: 0 | H116: 0 | I116: 0 | J116: 0 | K116: 0
A117: Non-revenue Generating | C117: =+C21+C53+C85 -> 0 | D117: =+D21+D53+D85 -> 0 | E117: 0 | F117: 0 | G117: 0 | H117: 0 | I117: 0 | J117: 0 | K117: 0
A118: Investment properties | C118: =SUM(C116:C117) -> 0 | D118: =SUM(D116:D117) -> 0 | E118: 0 | F118: 0 | G118: 0 | H118: 0 | I118: 0 | J118: 0 | K118: 0
A119: Operational Buildings | C119: =+C23+C55+C87 -> 3,045 | D119: =+D23+D55+D87 -> 2,900 | E119: 2,726 | F119: 5,000 | G119: 5,000 | H119: 5,000 | I119: 10,600 | J119: 4,250 | K119: 0
A120: Housing | C120: =+C24+C56+C88 -> 0 | D120: =+D24+D56+D88 -> 0 | E120: 0 | F120: 0 | G120: 0 | H120: 0 | I120: 0 | J120: 0 | K120: 0
A121: Other Assets | C121: =SUM(C119:C120) -> 3,045 | D121: 2,900 | E121: 2,726 | F121: 5,000 | G121: 5,000 | H121: 5,000 | I121: 10,600 | J121: 4,250 | K121: 0
A122: Biological or Cultivated Assets | C122: =+C26+C58+C90 -> 0 | D122: =+D26+D58+D90 -> 0 | E122: 0 | F122: 0 | G122: 0 | H122: 0 | I122: 0 | J122: 0 | K122: 0
A123: Servitudes | C123: =+C27+C59+C91 -> 0 | D123: =+D27+D59+D91 -> 0 | E123: 0 | F123: 0 | G123: 0 | H123: 0 | I123: 0 | J123: 0 | K123: 0
A124: Licences and Rights | C124: =+C28+C60+C92 -> 0 | D124: =+D28+D60+D92 -> 1,720 | E124: 0 | F124: 450 | G124: 610 | H124: 610 | I124: 300 | J124: 3,500 | K124: 2,100
A125: Intangible Assets | C125: =SUM(C123:C124) -> 0 | D125: =SUM(D123:D124) -> 1,720 | E125: 0 | F125: 450 | G125: 610 | H125: 610 | I125: 300 | J125: 3,500 | K125: 2,100
A126: Computer Equipment | C126: =+C30+C62+C94 -> 0 | D126: =+D30+D62+D94 -> 850 | E126: 936 | F126: 2,452 | G126: 2,622 | H126: 2,622 | I126: 6,520 | J126: 3,860 | K126: 870
A127: Furniture and Office Equipment | C127: =+C31+C63+C95 -> 1,141 | D127: 1,615 | E127: 643 | F127: 580 | G127: 300 | H127: 300 | I127: 1,010 | J127: 1,490 | K127: 300
A128: Machinery and Equipment | C128: 0 | D128: 3,205 | E128: 1,578 | F128: 10,368 | G128: 7,368 | H128: 7,368 | I128: 9,623 | J128: 28,700 | K128: 2,100
A129: Transport Assets | C129: 1,425 | D129: 1,335 | E129: 282 | F129: 1,500 | G129: 1,500 | H129: 1,500 | I129: 3,200 | J129: 12,200 | K129: 0
A130: Land | C130: 0 | D130: 0 | E130: 0 | F130: 0 | G130: 0 | H130: 0 | I130: 0 | J130: 0 | K130: 0
A131: Zoo's, Marine and Non-biological Animals | C131: 0 | D131: 0 | E131: 0 | F131: 0 | G131: 0 | H131: 0 | I131: 0 | J131: 0 | K131: 0
A132: TOTAL CAPITAL EXPENDITURE - Asset class | C132: =+C5+C37+C69 -> 180,287 | D132: =+D5+D37+D69 -> 116,127 | E132: 139,220 | F132: 170,383 | G132: 172,168 | H132: 172,168 | I132: 190,000 | J132: 211,250 | K132: 231,673
A134: ASSET REGISTER SUMMARY - PPE (WDV) | B134: 5 | C134: =C144+C147+C148+C151+C154+C155+C158+C159+C160+C161+C162+C163+C164 -> 1,785,179 | D134: =D144+D147+D148+D151+D154+D155+D158+D159+D160+D161+D162+D163+D164 -> 1,423,554 | E134: 1,481,411 | F134: 1,812,066 | G134: 1,584,677 | H134: 1,584,677 | I134: 1,774,677 | J134: 1,985,927 | K134: 2,217,600
A135: Roads Infrastructure | C135: 1,301,982 | D135: 895,435 | E135: 864,430 | F135: 1,133,243 | G135: 998,148 | H135: 998,148 | I135: 1,119,743 | J135: 1,214,180 | K135: 1,405,783
A136: Storm water Infrastructure | G136: 0 | H136: 0
A137: Electrical Infrastructure | C137: 58,196 | D137: 37,841 | E137: 39,402 | F137: 46,153 | G137: 39,602 | H137: 39,602 | I137: 41,902 | J137: 53,702 | K137: 65,902
A138: Water Supply Infrastructure | F138: 450 | G138: 300 | H138: 300 | I138: 300 | J138: 4,300 | K138: 16,300
A139: Sanitation Infrastructure | G139: 0 | H139: 0
A140: Solid Waste Infrastructure | D140: 2 | E140: 19,833 | F140: 17,265 | G140: 21,481 | H140: 21,481 | I140: 28,981 | J140: 50,981 | K140: 60,981
A141: Rail Infrastructure
A142: Coastal Infrastructure
A143: Information and Communication Infrastructure | E143: 0
A144: Infrastructure | C144: =SUM(C135:C143) -> 1,360,179 | D144: =SUM(D135:D143) -> 933,277 | E144: 923,665 | F144: 1,197,111 | G144: 1,059,531 | H144: 1,059,531 | I144: 1,190,926 | J144: 1,323,163 | K144: 1,548,966
A147: Community Assets | C147: 334,190 | D147: 184,761 | E147: 342,489 | F147: 258,953 | G147: 312,942 | H147: 312,942 | I147: 340,294 | J147: 365,307 | K147: 365,807
A148: Heritage Assets
A151: Investment properties
A154: Other Assets | C154: 86,388 | D154: 27,019 | E154: 3,836 | F154: 85,507 | G154: 5,000 | H154: 5,000 | I154: 15,600 | J154: 19,850 | K154: 19,850
A155: Biological or Cultivated Assets
A158: Intangible Assets | C158: 4,421 | F158: 1,285 | G158: 1,027 | H158: 1,027 | I158: 1,327 | J158: 4,827 | K158: 6,927
A159: Computer Equipment | E159: 7,033 | F159: 14,016 | G159: 7,964 | H159: 7,964 | I159: 14,484 | J159: 18,344 | K159: 19,214
A160: Furniture and Office Equipment | D160: 10,457 | E160: 8,580 | F160: 11,981 | G160: 8,041 | H160: 8,041 | I160: 9,051 | J160: 10,541 | K160: 10,841
A161: Machinery and Equipment | D161: 3,190 | E161: 4,716 | F161: 7,165 | G161: 12,084 | H161: 12,084 | I161: 21,707 | J161: 50,407 | K161: 52,507
A162: Transport Assets | D162: 63,707 | E162: 64,874 | F162: 74,177 | G162: 62,793 | H162: 62,793 | I162: 65,993 | J162: 78,193 | K162: 78,193
A163: Land | D163: 201,143 | E163: 126,216 | F163: 161,870 | G163: 115,296 | H163: 115,296 | I163: 115,296 | J163: 115,296 | K163: 115,296
A164: Zoo's, Marine and Non-biological Animals
A165: TOTAL ASSET REGISTER SUMMARY - PPE (WDV) | B165: 5 | C165: =C144+C147+C148+C151+C154+C155+C158+C159+C160+C161+C162+C163+C164 -> 1,785,179 | D165: =D144+D147+D148+D151+D154+D155+D158+D159+D160+D161+D162+D163+D164 -> 1,423,554 | E165: 1,481,411 | F165: 1,812,066 | G165: 1,584,677 | H165: 1,584,677 | I165: 1,774,677 | J165: 1,985,927 | K165: 2,217,600
A167: EXPENDITURE OTHER ITEMS | C167: =SUM(C168:C169) -> 62,905 | D167: =SUM(D168:D169) -> 62,545 | E167: 75,356 | F167: 97,108 | G167: 90,938 | H167: 90,938 | I167: 96,315 | J167: 97,968 | K167: 99,780
A168: Depreciation | B168: 7 | C168: =SA34d!C167 -> 46,345 | D168: =SA34d!D167 -> 53,379 | E168: =SA34d!E167 -> 49,641 | F168: =SA34d!F167 -> 58,000 | G168: =SA34d!G167 -> 60,265 | H168: =SA34d!H167 -> 60,265 | I168: =SA34d!I167 -> 60,466 | J168: =SA34d!J167 -> 60,470 | K168: =SA34d!K167 -> 60,820
A169: Repairs and Maintenance by Asset Class | B169: 3 | C169: =C179+C182+C183+C186+C189+C190+SUM(C193:C199) -> 16,560 | D169: =D179+D182+D183+D186+D189+D190+SUM(D193:D199) -> 9,166 | E169: 25,715 | F169: 39,108 | G169: 30,673 | H169: 30,673 | I169: 35,849 | J169: 37,498 | K169: 38,960
A170: Roads Infrastructure | C170: =SA34c!C7 -> 3,964 | D170: =SA34c!D7 -> 5,000 | E170: =SA34c!E7 -> 9,635 | F170: =SA34c!F7 -> 15,755 | G170: =SA34c!G7 -> 13,700 | H170: =SA34c!H7 -> 13,700 | I170: =SA34c!I7 -> 14,709 | J170: =SA34c!J7 -> 15,386 | K170: =SA34c!K7 -> 15,840
A171: Storm water Infrastructure | C171: =SA34c!C12 -> 0 | D171: =SA34c!D12 -> 0 | E171: =SA34c!E12 -> 0 | F171: =SA34c!F12 -> 0 | G171: =SA34c!G12 -> 0 | H171: =SA34c!H12 -> 0 | I171: =SA34c!I12 -> 0 | J171: =SA34c!J12 -> 0 | K171: =SA34c!K12 -> 0
A172: Electrical Infrastructure | C172: =SA34c!C16 -> 817 | D172: =SA34c!D16 -> 1,500 | E172: =SA34c!E16 -> 4,019 | F172: =SA34c!F16 -> 5,000 | G172: =SA34c!G16 -> 3,500 | H172: =SA34c!H16 -> 3,500 | I172: =SA34c!I16 -> 5,000 | J172: =SA34c!J16 -> 5,230 | K172: =SA34c!K16 -> 5,471
A173: Water Supply Infrastructure | C173: =SA34c!C26 -> 0 | D173: =SA34c!D26 -> 0 | E173: =SA34c!E26 -> 0 | F173: =SA34c!F26 -> 0 | G173: =SA34c!G26 -> 0 | H173: =SA34c!H26 -> 0 | I173: =SA34c!I26 -> 0 | J173: =SA34c!J26 -> 0 | K173: =SA34c!K26 -> 0
A174: Sanitation Infrastructure | C174: =SA34c!C37 -> 0 | D174: =SA34c!D37 -> 0 | E174: =SA34c!E37 -> 0 | F174: =SA34c!F37 -> 0 | G174: =SA34c!G37 -> 0 | H174: =SA34c!H37 -> 0 | I174: =SA34c!I37 -> 0 | J174: =SA34c!J37 -> 0 | K174: =SA34c!K37 -> 0
A175: Solid Waste Infrastructure | C175: =SA34c!C44 -> 0 | D175: =SA34c!D44 -> 0 | E175: =SA34c!E44 -> 50 | F175: =SA34c!F44 -> 200 | G175: =SA34c!G44 -> 200 | H175: =SA34c!H44 -> 200 | I175: =SA34c!I44 -> 200 | J175: =SA34c!J44 -> 209 | K175: =SA34c!K44 -> 209
A176: Rail Infrastructure | C176: =SA34c!C52 -> 0 | D176: =SA34c!D52 -> 0 | E176: =SA34c!E52 -> 0 | F176: =SA34c!F52 -> 0 | G176: =SA34c!G52 -> 0 | H176: =SA34c!H52 -> 0 | I176: =SA34c!I52 -> 0 | J176: =SA34c!J52 -> 0 | K176: =SA34c!K52 -> 0
A177: Coastal Infrastructure | C177: =SA34c!C62 -> 0 | D177: =SA34c!D62 -> 0 | E177: =SA34c!E62 -> 0 | F177: =SA34c!F62 -> 0 | G177: =SA34c!G62 -> 0 | H177: =SA34c!H62 -> 0 | I177: =SA34c!I62 -> 0 | J177: =SA34c!J62 -> 0 | K177: =SA34c!K62 -> 0
A178: Information and Communication Infrastructure | C178: =SA34c!C68 -> 0 | D178: =SA34c!D68 -> 0 | E178: =SA34c!E68 -> 0 | F178: =SA34c!F68 -> 0 | G178: =SA34c!G68 -> 0 | H178: =SA34c!H68 -> 0 | I178: =SA34c!I68 -> 0 | J178: =SA34c!J68 -> 0 | K178: =SA34c!K68 -> 0
A179: Infrastructure | C179: =SUM(C170:C178) -> 4,782 | D179: =SUM(D170:D178) -> 6,500 | E179: 13,703 | F179: 20,955 | G179: 17,400 | H179: 17,400 | I179: 19,909 | J179: 20,825 | K179: 21,520
A180: Community Facilities | C180: =SA34c!C75 -> 7 | D180: =SA34c!D75 -> 10 | E180: =SA34c!E75 -> 26 | F180: =SA34c!F75 -> 62 | G180: =SA34c!G75 -> 50 | H180: =SA34c!H75 -> 50 | I180: =SA34c!I75 -> 60 | J180: =SA34c!J75 -> 63 | K180: =SA34c!K75 -> 66
A181: Sport and Recreation Facilities | C181: =SA34c!C98 -> 426 | D181: =SA34c!D98 -> 562 | E181: =SA34c!E98 -> 208 | F181: =SA34c!F98 -> 485 | G181: =SA34c!G98 -> 419 | H181: =SA34c!H98 -> 419 | I181: =SA34c!I98 -> 580 | J181: =SA34c!J98 -> 607 | K181: =SA34c!K98 -> 635
A182: Community Assets | C182: =SUM(C180:C181) -> 433 | D182: 572 | E182: 235 | F182: 548 | G182: 469 | H182: 469 | I182: 640 | J182: 669 | K182: 700
A183: Heritage Assets | C183: =SA34c!C103 -> 0 | D183: =SA34c!D103 -> 0 | E183: =SA34c!E103 -> 0 | F183: =SA34c!F103 -> 0 | G183: =SA34c!G103 -> 0 | H183: =SA34c!H103 -> 0 | I183: =SA34c!I103 -> 0 | J183: =SA34c!J103 -> 0 | K183: =SA34c!K103 -> 0
A184: Revenue Generating | C184: =SA34c!C111 -> 0 | D184: =SA34c!D111 -> 0 | E184: =SA34c!E111 -> 0 | F184: =SA34c!F111 -> 0 | G184: =SA34c!G111 -> 0 | H184: =SA34c!H111 -> 0 | I184: =SA34c!I111 -> 0 | J184: =SA34c!J111 -> 0 | K184: =SA34c!K111 -> 0
A185: Non-revenue Generating | C185: =SA34c!C114 -> 0 | D185: =SA34c!D114 -> 0 | E185: =SA34c!E114 -> 0 | F185: =SA34c!F114 -> 0 | G185: =SA34c!G114 -> 0 | H185: =SA34c!H114 -> 0 | I185: =SA34c!I114 -> 0 | J185: =SA34c!J114 -> 0 | K185: =SA34c!K114 -> 0
A186: Investment properties | C186: =SUM(C184:C185) -> 0 | D186: 0 | E186: 0 | F186: 0 | G186: 0 | H186: 0 | I186: 0 | J186: 0 | K186: 0
A187: Operational Buildings | C187: =SA34c!C119 -> 8,363 | D187: =SA34c!D119 -> 1,776 | E187: =SA34c!E119 -> 1,878 | F187: =SA34c!F119 -> 5,500 | G187: =SA34c!G119 -> 2,500 | H187: =SA34c!H119 -> 2,500 | I187: =SA34c!I119 -> 2,000 | J187: =SA34c!J119 -> 2,092 | K187: =SA34c!K119 -> 2,188
A188: Housing | C188: =SA34c!C131 -> 0 | D188: =SA34c!D131 -> 0 | E188: =SA34c!E131 -> 0 | F188: =SA34c!F131 -> 0 | G188: =SA34c!G131 -> 0 | H188: =SA34c!H131 -> 0 | I188: =SA34c!I131 -> 0 | J188: =SA34c!J131 -> 0 | K188: =SA34c!K131 -> 0
A189: Other Assets | C189: =SUM(C187:C188) -> 8,363 | D189: 1,776 | E189: 1,878 | F189: 5,500 | G189: 2,500 | H189: 2,500 | I189: 2,000 | J189: 2,092 | K189: 2,188
A190: Biological or Cultivated Assets | C190: =SA34c!C136 -> 0 | D190: =SA34c!D136 -> 0 | E190: =SA34c!E136 -> 0 | F190: =SA34c!F136 -> 0 | G190: =SA34c!G136 -> 0 | H190: =SA34c!H136 -> 0 | I190: =SA34c!I136 -> 0 | J190: =SA34c!J136 -> 0 | K190: =SA34c!K136 -> 0
A191: Servitudes | C191: =SA34c!C140 -> 0 | D191: =SA34c!D140 -> 0 | E191: =SA34c!E140 -> 0 | F191: =SA34c!F140 -> 0 | G191: =SA34c!G140 -> 0 | H191: =SA34c!H140 -> 0 | I191: =SA34c!I140 -> 0 | J191: =SA34c!J140 -> 0 | K191: =SA34c!K140 -> 0
A192: Licences and Rights | C192: =SA34c!C141 -> 0 | D192: =SA34c!D141 -> 318 | E192: =SA34c!E141 -> 0 | F192: =SA34c!F141 -> 0 | G192: =SA34c!G141 -> 0 | H192: =SA34c!H141 -> 0 | I192: =SA34c!I141 -> 0 | J192: =SA34c!J141 -> 0 | K192: =SA34c!K141 -> 0
A193: Intangible Assets | C193: =SUM(C191:C192) -> 0 | D193: 318 | E193: 0 | F193: 0 | G193: 0 | H193: 0 | I193: 0 | J193: 0 | K193: 0
A194: Computer Equipment | C194: =SA34c!C149 -> 0 | D194: =SA34c!D149 -> 0 | E194: =SA34c!E149 -> 0 | F194: =SA34c!F149 -> 0 | G194: =SA34c!G149 -> 0 | H194: =SA34c!H149 -> 0 | I194: =SA34c!I149 -> 0 | J194: =SA34c!J149 -> 0 | K194: =SA34c!K149 -> 0
A195: Furniture and Office Equipment | C195: =SA34c!C152 -> 0 | D195: =SA34c!D152 -> 0 | E195: =SA34c!E152 -> 5,259 | F195: =SA34c!F152 -> 105 | G195: =SA34c!G152 -> 305 | H195: =SA34c!H152 -> 305 | I195: =SA34c!I152 -> 400 | J195: =SA34c!J152 -> 418 | K195: =SA34c!K152 -> 438
A196: Machinery and Equipment | C196: =SA34c!C155 -> 0 | D196: =SA34c!D155 -> 0 | E196: =SA34c!E155 -> 4,523 | F196: =SA34c!F155 -> 8,500 | G196: =SA34c!G155 -> 5,000 | H196: =SA34c!H155 -> 5,000 | I196: =SA34c!I155 -> 7,500 | J196: =SA34c!J155 -> 7,845 | K196: =SA34c!K155 -> 8,206
A197: Transport Assets | C197: =SA34c!C158 -> 2,982 | D197: =SA34c!D158 -> 0 | E197: =SA34c!E158 -> 117 | F197: =SA34c!F158 -> 3,500 | G197: =SA34c!G158 -> 5,000 | H197: =SA34c!H158 -> 5,000 | I197: =SA34c!I158 -> 5,400 | J197: =SA34c!J158 -> 5,648 | K197: =SA34c!K158 -> 5,908
A198: Land | C198: =SA34c!C161 -> 0 | D198: =SA34c!D161 -> 0 | E198: =SA34c!E161 -> 0 | F198: =SA34c!F161 -> 0 | G198: =SA34c!G161 -> 0 | H198: =SA34c!H161 -> 0 | I198: =SA34c!I161 -> 0 | J198: =SA34c!J161 -> 0 | K198: =SA34c!K161 -> 0
A199: Zoo's, Marine and Non-biological Animals | C199: =SA34c!C164 -> 0 | D199: =SA34c!D164 -> 0 | E199: =SA34c!E164 -> 0 | F199: =SA34c!F164 -> 0 | G199: =SA34c!G164 -> 0 | H199: =SA34c!H164 -> 0 | I199: =SA34c!I164 -> 0 | J199: =SA34c!J164 -> 0 | K199: =SA34c!K164 -> 0
A201: TOTAL EXPENDITURE OTHER ITEMS | C201: =SUM(C168:C169) -> 62,905 | D201: 62,545 | E201: 75,356 | F201: 97,108 | G201: 90,938 | H201: 90,938 | I201: 96,315 | J201: 97,968 | K201: 99,780
A203: Renewal and upgrading of Existing Assets as % of total capex | C203: =IF(ISERROR((C37+C69)/C132),0,((C37+C69)/C132)) -> 0.0% | D203: =IF(ISERROR((D37+D69)/D132),0,((D37+D69)/D132)) -> 0.0% | E203: 0.0% | F203: 0.9% | G203: 0.3% | H203: 0.3% | I203: 0.2% | J203: 4.7% | K203: 4.3%
A204: Renewal and upgrading of Existing Assets as % of deprecn | C204: =IF(ISERROR((C37+C69)/C168),0,((C37+C69)/C168)) -> 0.0% | D204: =IF(ISERROR((D37+D69)/D168),0,((D37+D69)/D168)) -> 0.0% | E204: 0.0% | F204: 2.6% | G204: 0.8% | H204: 0.8% | I204: 0.7% | J204: 16.5% | K204: 16.4%
A205: R&M as a % of PPE | C205: =IF(ISERROR(ROUND(C169/'A6-FinPos'!C19,3)),0,(ROUND(C169/'A6-FinPos'!C19,3))) -> 1.2% | D205: =IF(ISERROR(ROUND(D169/'A6-FinPos'!D19,3)),0,(ROUND(D169/'A6-FinPos'!D19,3))) -> 0.6% | E205: =IF(ISERROR(ROUND(E169/'A6-FinPos'!E19,3)),0,(ROUND(E169/'A6-FinPos'!E19,3))) -> 1.7% | F205: =IF(ISERROR(ROUND(F169/'A6-FinPos'!F19,3)),0,(ROUND(F169/'A6-FinPos'!F19,3))) -> 2.2% | G205: =IF(ISERROR(ROUND(G169/'A6-FinPos'!G19,3)),0,(ROUND(G169/'A6-FinPos'!G19,3))) -> 1.9% | H205: =IF(ISERROR(ROUND(H169/'A6-FinPos'!H19,3)),0,(ROUND(H169/'A6-FinPos'!H19,3))) -> 1.9% | I205: =IF(ISERROR(ROUND(I169/'A6-FinPos'!J19,3)),0,(ROUND(I169/'A6-FinPos'!J19,3))) -> 3.1% | J205: =IF(ISERROR(ROUND(J169/'A6-FinPos'!K19,3)),0,(ROUND(J169/'A6-FinPos'!K19,3))) -> 2.9% | K205: =IF(ISERROR(ROUND(K169/'A6-FinPos'!L19,3)),0,(ROUND(K169/'A6-FinPos'!L19,3))) -> 2.6%
A206: Renewal and upgrading and R&M as a % of PPE | C206: =IF(ISERROR(ROUND((C37+C69+C169)/C165,2)),0,(ROUND((C37+C69+C169)/C165,2))) -> 1.0% | D206: =IF(ISERROR(ROUND((D37+D69+D169)/D165,2)),0,(ROUND((D37+D69+D169)/D165,2))) -> 1.0% | E206: 2.0% | F206: 2.0% | G206: 2.0% | H206: 2.0% | I206: 2.0% | J206: 2.0% | K206: 2.0%
A208: =head27a -> References
A209: 1. Detail of new assets provided in Table SA34a
A210: 2. Detail of renewal of existing assets provided in Table SA34b
A211: 3. Detail of Repairs and Maintenance by Asset Class provided in Table SA34c
A212: 4. Must reconcile to total capital expenditure on Budgeted Capital Expenditure
A213: 5. Must reconcile to 'Budgeted Financial Position' (written down value)
A214: 6. Detail of upgrading of existing assets provided in Table SA34e
A215: 7. Detail of depreciation provided in Table SA34d
A217: Check balance to A6 | C217: =C165-'A6-FinPos'!D17-'A6-FinPos'!D19-'A6-FinPos'!D20-'A6-FinPos'!D21-'A6-FinPos'!D22-C148 -> 361,189 | D217: =D165-'A6-FinPos'!E17-'A6-FinPos'!E19-'A6-FinPos'!E20-'A6-FinPos'!E21-'A6-FinPos'!E22-D148 -> (58,288) | E217: =E165-'A6-FinPos'!F17-'A6-FinPos'!F19-'A6-FinPos'!F20-'A6-FinPos'!F21-'A6-FinPos'!F22-E148 -> (271,220) | F217: =F165-'A6-FinPos'!G17-'A6-FinPos'!G19-'A6-FinPos'!G20-'A6-FinPos'!G21-'A6-FinPos'!G22-F148 -> 227,389 | G217: =G165-'A6-FinPos'!H17-'A6-FinPos'!H19-'A6-FinPos'!H20-'A6-FinPos'!H21-'A6-FinPos'!H22-G148 -> (0) | H217: =H165-'A6-FinPos'!I17-'A6-FinPos'!I19-'A6-FinPos'!I20-'A6-FinPos'!I21-'A6-FinPos'!I22-H148 -> 95,270 | I217: =I165-'A6-FinPos'!J17-'A6-FinPos'!J19-'A6-FinPos'!J20-'A6-FinPos'!J21-'A6-FinPos'!J22-I148 -> 613,076 | J217: =J165-'A6-FinPos'!K17-'A6-FinPos'!K19-'A6-FinPos'!K20-'A6-FinPos'!K21-'A6-FinPos'!K22-J148 -> 677,796 | K217: =K165-'A6-FinPos'!L17-'A6-FinPos'!L19-'A6-FinPos'!L20-'A6-FinPos'!L21-'A6-FinPos'!L22-K148 -> 738,616

Sheet A10-SerDel
A1: =muni&" - "&Approve10 -> LIM343 Thulamela - Table A10 Basic service delivery measurement
A2: =desc -> Description | B2: =head27 -> Ref | C2: =head1b -> 2016/17 | D2: =head1A -> 2017/18 | E2: =Head1 -> 2018/19 | F2: =Head2 -> Current Year 2019/20 | I2: =Head3 -> 2020/21 Medium Term Revenue & Expenditure Framework
C3: =Head5A -> Outcome | D3: =Head5A -> Outcome | E3: =Head5A -> Outcome | F3: =Head6 -> Original Budget | G3: =Head7 -> Adjusted Budget | H3: =Head8 -> Full Year Forecast | I3: =Head9 -> Budget Year 2020/21 | J3: =Head10 -> Budget Year +1 2021/22 | K3: =Head11 -> Budget Year +2 2022/23
A4: Household service targets | B4: 1
A5: Water:
A6: Piped water inside dwelling | C6: ='SA9'!E67 -> 0 | D6: ='SA9'!F67 -> 0 | E6: ='SA9'!G67 -> 0 | F6: ='SA9'!H67 -> 0 | G6: ='SA9'!I67 -> 0 | H6: ='SA9'!J67 -> 0 | I6: ='SA9'!K67 -> 0 | J6: ='SA9'!L67 -> 0 | K6: ='SA9'!M67 -> 0
A7: Piped water inside yard (but not in dwelling) | C7: ='SA9'!E68 -> 0 | D7: ='SA9'!F68 -> 0 | E7: ='SA9'!G68 -> 0 | F7: ='SA9'!H68 -> 0 | G7: ='SA9'!I68 -> 0 | H7: ='SA9'!J68 -> 0 | I7: ='SA9'!K68 -> 0 | J7: ='SA9'!L68 -> 0 | K7: ='SA9'!M68 -> 0
A8: Using public tap (at least min.service level) | B8: 2 | C8: ='SA9'!E69 -> 0 | D8: ='SA9'!F69 -> 0 | E8: ='SA9'!G69 -> 0 | F8: ='SA9'!H69 -> 0 | G8: ='SA9'!I69 -> 0 | H8: ='SA9'!J69 -> 0 | I8: ='SA9'!K69 -> 0 | J8: ='SA9'!L69 -> 0 | K8: ='SA9'!M69 -> 0
A9: Other water supply (at least min.service level) | B9: 4 | C9: ='SA9'!E70 -> 0 | D9: ='SA9'!F70 -> 0 | E9: ='SA9'!G70 -> 0 | F9: ='SA9'!H70 -> 0 | G9: ='SA9'!I70 -> 0 | H9: ='SA9'!J70 -> 0 | I9: ='SA9'!K70 -> 0 | J9: ='SA9'!L70 -> 0 | K9: ='SA9'!M70 -> 0
A10: Minimum Service Level and Above sub-total | C10: =SUM(C6:C9) -> 0 | D10: =SUM(D6:D9) -> 0 | E10: 0 | F10: 0 | G10: 0 | H10: 0 | I10: 0 | J10: 0 | K10: 0
A11: Using public tap (< min.service level) | B11: 3 | C11: ='SA9'!E72 -> 0 | D11: ='SA9'!F72 -> 0 | E11: ='SA9'!G72 -> 0 | F11: ='SA9'!H72 -> 0 | G11: ='SA9'!I72 -> 0 | H11: ='SA9'!J72 -> 0 | I11: ='SA9'!K72 -> 0 | J11: ='SA9'!L72 -> 0 | K11: ='SA9'!M72 -> 0
A12: Other water supply (< min.service level) | B12: =B9 -> 4 | C12: ='SA9'!E73 -> 0 | D12: ='SA9'!F73 -> 0 | E12: ='SA9'!G73 -> 0 | F12: ='SA9'!H73 -> 0 | G12: ='SA9'!I73 -> 0 | H12: ='SA9'!J73 -> 0 | I12: ='SA9'!K73 -> 0 | J12: ='SA9'!L73 -> 0 | K12: ='SA9'!M73 -> 0
A13: No water supply | C13: ='SA9'!E74 -> 0 | D13: ='SA9'!F74 -> 0 | E13: ='SA9'!G74 -> 0 | F13: ='SA9'!H74 -> 0 | G13: ='SA9'!I74 -> 0 | H13: ='SA9'!J74 -> 0 | I13: ='SA9'!K74 -> 0 | J13: ='SA9'!L74 -> 0 | K13: ='SA9'!M74 -> 0
A14: Below Minimum Service Level sub-total | C14: =SUM(C11:C13) -> 0 | D14: =SUM(D11:D13) -> 0 | E14: 0 | F14: 0 | G14: 0 | H14: 0 | I14: 0 | J14: 0 | K14: 0
A15: Total number of households | B15: 5 | C15: =C10+C14 -> 0 | D15: =D10+D14 -> 0 | E15: 0 | F15: 0 | G15: 0 | H15: 0 | I15: 0 | J15: 0 | K15: 0
A16: Sanitation/sewerage:
A17: Flush toilet (connected to sewerage) | C17: ='SA9'!E78 -> 0 | D17: ='SA9'!F78 -> 0 | E17: ='SA9'!G78 -> 0 | F17: ='SA9'!H78 -> 0 | G17: ='SA9'!I78 -> 0 | H17: ='SA9'!J78 -> 0 | I17: ='SA9'!K78 -> 0 | J17: ='SA9'!L78 -> 0 | K17: ='SA9'!M78 -> 0
A18: Flush toilet (with septic tank) | C18: ='SA9'!E79 -> 0 | D18: ='SA9'!F79 -> 0 | E18: ='SA9'!G79 -> 0 | F18: ='SA9'!H79 -> 0 | G18: ='SA9'!I79 -> 0 | H18: ='SA9'!J79 -> 0 | I18: ='SA9'!K79 -> 0 | J18: ='SA9'!L79 -> 0 | K18: ='SA9'!M79 -> 0
A19: Chemical toilet | C19: ='SA9'!E80 -> 0 | D19: ='SA9'!F80 -> 0 | E19: ='SA9'!G80 -> 0 | F19: ='SA9'!H80 -> 0 | G19: ='SA9'!I80 -> 0 | H19: ='SA9'!J80 -> 0 | I19: ='SA9'!K80 -> 0 | J19: ='SA9'!L80 -> 0 | K19: ='SA9'!M80 -> 0
A20: Pit toilet (ventilated) | C20: ='SA9'!E81 -> 0 | D20: ='SA9'!F81 -> 0 | E20: ='SA9'!G81 -> 0 | F20: ='SA9'!H81 -> 0 | G20: ='SA9'!I81 -> 0 | H20: ='SA9'!J81 -> 0 | I20: ='SA9'!K81 -> 0 | J20: ='SA9'!L81 -> 0 | K20: ='SA9'!M81 -> 0
A21: Other toilet provisions (> min.service level) | C21: ='SA9'!E82 -> 0 | D21: ='SA9'!F82 -> 0 | E21: ='SA9'!G82 -> 0 | F21: ='SA9'!H82 -> 0 | G21: ='SA9'!I82 -> 0 | H21: ='SA9'!J82 -> 0 | I21: ='SA9'!K82 -> 0 | J21: ='SA9'!L82 -> 0 | K21: ='SA9'!M82 -> 0
A22: =$A$10 -> Minimum Service Level and Above sub-total | C22: =SUM(C17:C21) -> 0 | D22: =SUM(D17:D21) -> 0 | E22: 0 | F22: 0 | G22: 0 | H22: 0 | I22: 0 | J22: 0 | K22: 0
A23: Bucket toilet | C23: ='SA9'!E84 -> 0 | D23: ='SA9'!F84 -> 0 | E23: ='SA9'!G84 -> 0 | F23: ='SA9'!H84 -> 0 | G23: ='SA9'!I84 -> 0 | H23: ='SA9'!J84 -> 0 | I23: ='SA9'!K84 -> 0 | J23: ='SA9'!L84 -> 0 | K23: ='SA9'!M84 -> 0
A24: Other toilet provisions (< min.service level) | C24: ='SA9'!E85 -> 0 | D24: ='SA9'!F85 -> 0 | E24: ='SA9'!G85 -> 0 | F24: ='SA9'!H85 -> 0 | G24: ='SA9'!I85 -> 0 | H24: ='SA9'!J85 -> 0 | I24: ='SA9'!K85 -> 0 | J24: ='SA9'!L85 -> 0 | K24: ='SA9'!M85 -> 0
A25: No toilet provisions | C25: ='SA9'!E86 -> 0 | D25: ='SA9'!F86 -> 0 | E25: ='SA9'!G86 -> 0 | F25: ='SA9'!H86 -> 0 | G25: ='SA9'!I86 -> 0 | H25: ='SA9'!J86 -> 0 | I25: ='SA9'!K86 -> 0 | J25: ='SA9'!L86 -> 0 | K25: ='SA9'!M86 -> 0
A26: =$A$14 -> Below Minimum Service Level sub-total | C26: =SUM(C23:C25) -> 0 | D26: =SUM(D23:D25) -> 0 | E26: 0 | F26: 0 | G26: 0 | H26: 0 | I26: 0 | J26: 0 | K26: 0
A27: =$A$15 -> Total number of households | B27: =$B$15 -> 5 | C27: =C22+C26 -> 0 | D27: =D22+D26 -> 0 | E27: 0 | F27: 0 | G27: 0 | H27: 0 | I27: 0 | J27: 0 | K27: 0
A28: Energy:
A29: Electricity (at least min.service level) | C29: ='SA9'!E90 -> 0 | D29: ='SA9'!F90 -> 0 | E29: ='SA9'!G90 -> 0 | F29: ='SA9'!H90 -> 133,953 | G29: ='SA9'!I90 -> 0 | H29: ='SA9'!J90 -> 0 | I29: ='SA9'!K90 -> 0 | J29: ='SA9'!L90 -> 0 | K29: ='SA9'!M90 -> 0
A30: Electricity - prepaid (min.service level) | C30: ='SA9'!E91 -> 0 | D30: ='SA9'!F91 -> 0 | E30: ='SA9'!G91 -> 0 | F30: ='SA9'!H91 -> 0 | G30: ='SA9'!I91 -> 0 | H30: ='SA9'!J91 -> 0 | I30: ='SA9'!K91 -> 0 | J30: ='SA9'!L91 -> 0 | K30: ='SA9'!M91 -> 0
A31: =$A$10 -> Minimum Service Level and Above sub-total | C31: =SUM(C29:C30) -> 0 | D31: =SUM(D29:D30) -> 0 | E31: 0 | F31: 133,953 | G31: 0 | H31: 0 | I31: 0 | J31: 0 | K31: 0
A32: Electricity (< min.service level) | C32: ='SA9'!E93 -> 0 | D32: ='SA9'!F93 -> 0 | E32: ='SA9'!G93 -> 0 | F32: ='SA9'!H93 -> 0 | G32: ='SA9'!I93 -> 0 | H32: ='SA9'!J93 -> 0 | I32: ='SA9'!K93 -> 0 | J32: ='SA9'!L93 -> 0 | K32: ='SA9'!M93 -> 0
A33: Electricity - prepaid (< min. service level) | C33: ='SA9'!E94 -> 0 | D33: ='SA9'!F94 -> 0 | E33: ='SA9'!G94 -> 0 | F33: ='SA9'!H94 -> 0 | G33: ='SA9'!I94 -> 0 | H33: ='SA9'!J94 -> 0 | I33: ='SA9'!K94 -> 0 | J33: ='SA9'!L94 -> 0 | K33: ='SA9'!M94 -> 0
A34: Other energy sources | C34: ='SA9'!E95 -> 0 | D34: ='SA9'!F95 -> 0 | E34: ='SA9'!G95 -> 0 | F34: ='SA9'!H95 -> 90 | G34: ='SA9'!I95 -> 0 | H34: ='SA9'!J95 -> 0 | I34: ='SA9'!K95 -> 0 | J34: ='SA9'!L95 -> 0 | K34: ='SA9'!M95 -> 0
A35: =$A$14 -> Below Minimum Service Level sub-total | C35: =SUM(C32:C34) -> 0 | D35: =SUM(D32:D34) -> 0 | E35: 0 | F35: 90 | G35: 0 | H35: 0 | I35: 0 | J35: 0 | K35: 0
A36: =$A$15 -> Total number of households | B36: =$B$15 -> 5 | C36: =C31+C35 -> 0 | D36: =D31+D35 -> 0 | E36: 0 | F36: 134,043 | G36: 0 | H36: 0 | I36: 0 | J36: 0 | K36: 0
A37: Refuse:
A38: Removed at least once a week | C38: ='SA9'!E99 -> 0 | D38: ='SA9'!F99 -> 0 | E38: ='SA9'!G99 -> 0 | F38: ='SA9'!H99 -> 0 | G38: ='SA9'!I99 -> 0 | H38: ='SA9'!J99 -> 0 | I38: ='SA9'!K99 -> 0 | J38: ='SA9'!L99 -> 0 | K38: ='SA9'!M99 -> 0
A39: =$A$10 -> Minimum Service Level and Above sub-total | C39: =SUM(C38) -> 0 | D39: =SUM(D38) -> 0 | E39: 0 | F39: 0 | G39: 0 | H39: 0 | I39: 0 | J39: 0 | K39: 0
A40: Removed less frequently than once a week | C40: ='SA9'!E101 -> 0 | D40: ='SA9'!F101 -> 0 | E40: ='SA9'!G101 -> 0 | F40: ='SA9'!H101 -> 57,476 | G40: ='SA9'!I101 -> 57,476 | H40: ='SA9'!J101 -> 57,476 | I40: ='SA9'!K101 -> 57,476 | J40: ='SA9'!L101 -> 57,476 | K40: ='SA9'!M101 -> 57,476
A41: Using communal refuse dump | C41: ='SA9'!E102 -> 0 | D41: ='SA9'!F102 -> 0 | E41: ='SA9'!G102 -> 0 | F41: ='SA9'!H102 -> 1,281 | G41: ='SA9'!I102 -> 1,281 | H41: ='SA9'!J102 -> 1,281 | I41: ='SA9'!K102 -> 1,281 | J41: ='SA9'!L102 -> 1,281 | K41: ='SA9'!M102 -> 1,281
A42: Using own refuse dump | C42: ='SA9'!E103 -> 0 | D42: ='SA9'!F103 -> 0 | E42: ='SA9'!G103 -> 0 | F42: ='SA9'!H103 -> 20,330 | G42: ='SA9'!I103 -> 20,330 | H42: ='SA9'!J103 -> 20,330 | I42: ='SA9'!K103 -> 20,330 | J42: ='SA9'!L103 -> 20,330 | K42: ='SA9'!M103 -> 20,330
A43: Other rubbish disposal | C43: ='SA9'!E104 -> 0 | D43: ='SA9'!F104 -> 0 | E43: ='SA9'!G104 -> 0 | F43: ='SA9'!H104 -> 2,767 | G43: ='SA9'!I104 -> 2,767 | H43: ='SA9'!J104 -> 2,767 | I43: ='SA9'!K104 -> 2,767 | J43: ='SA9'!L104 -> 2,767 | K43: ='SA9'!M104 -> 2,767
A44: No rubbish disposal | C44: ='SA9'!E105 -> 0 | D44: ='SA9'!F105 -> 0 | E44: ='SA9'!G105 -> 0 | F44: ='SA9'!H105 -> 52,190 | G44: ='SA9'!I105 -> 52,190 | H44: ='SA9'!J105 -> 52,190 | I44: ='SA9'!K105 -> 52,190 | J44: ='SA9'!L105 -> 52,190 | K44: ='SA9'!M105 -> 52,190
A45: =$A$14 -> Below Minimum Service Level sub-total | C45: =SUM(C40:C44) -> 0 | D45: 0 | E45: 0 | F45: 134,043 | G45: 134,043 | H45: 134,043 | I45: 134,043 | J45: 134,043 | K45: 134,043
A46: =$A$15 -> Total number of households | B46: =$B$15 -> 5 | C46: =C39+C45 -> 0 | D46: =D39+D45 -> 0 | E46: 0 | F46: 134,043 | G46: 134,043 | H46: 134,043 | I46: 134,043 | J46: 134,043 | K46: 134,043
A48: Households receiving Free Basic Service | B48: 7
A49: Water (6 kilolitres per household per month) | C49: ='SA9'!E263 -> 0 | D49: ='SA9'!F263 -> 0 | E49: ='SA9'!G263 -> 0 | F49: ='SA9'!H263 -> 0 | G49: ='SA9'!I263 -> 0 | H49: ='SA9'!J263 -> 0 | I49: ='SA9'!K263 -> 0 | J49: ='SA9'!L263 -> 0 | K49: ='SA9'!M263 -> 0
A50: Sanitation (free minimum level service) | C50: ='SA9'!E275 -> 0 | D50: ='SA9'!F275 -> 0 | E50: ='SA9'!G275 -> 0 | F50: ='SA9'!H275 -> 0 | G50: ='SA9'!I275 -> 0 | H50: ='SA9'!J275 -> 0 | I50: ='SA9'!K275 -> 0 | J50: ='SA9'!L275 -> 0 | K50: ='SA9'!M275 -> 0
A51: Electricity/other energy (50kwh per household per month) | C51: ='SA9'!E251 -> 0 | D51: ='SA9'!F251 -> 0 | E51: ='SA9'!G251 -> 0 | F51: ='SA9'!H251 -> 0 | G51: ='SA9'!I251 -> 0 | H51: ='SA9'!J251 -> 0 | I51: ='SA9'!K251 -> 0 | J51: ='SA9'!L251 -> 0 | K51: ='SA9'!M251 -> 0
A52: Refuse (removed at least once a week) | C52: ='SA9'!E287 -> 0 | D52: ='SA9'!F287 -> 0 | E52: ='SA9'!G287 -> 0 | F52: ='SA9'!H287 -> 14,000 | G52: ='SA9'!I287 -> 14,000 | H52: ='SA9'!J287 -> 14,000 | I52: ='SA9'!K287 -> 14,000 | J52: ='SA9'!L287 -> 14,000 | K52: ='SA9'!M287 -> 14,000
A54: Cost of Free Basic Services provided - Formal Settlements (R'000) | B54: 8
A55: Water (6 kilolitres per indigent household per month) | C55: ='SA1'!C20 -> 0 | D55: ='SA1'!D20 -> 0 | E55: ='SA1'!E20 -> 0 | F55: ='SA1'!F20 -> 0 | G55: ='SA1'!G20 -> 0 | H55: ='SA1'!H20 -> 0 | I55: ='SA1'!J20 -> 0 | J55: ='SA1'!K20 -> 0 | K55: ='SA1'!L20 -> 0
A56: Sanitation (free sanitation service to indigent households) | C56: ='SA1'!C26 -> 0 | D56: ='SA1'!D26 -> 0 | E56: ='SA1'!E26 -> 0 | F56: ='SA1'!F26 -> 0 | G56: ='SA1'!G26 -> 0 | H56: ='SA1'!H26 -> 0 | I56: ='SA1'!J26 -> 0 | J56: ='SA1'!K26 -> 0 | K56: ='SA1'!L26 -> 0
A57: Electricity/other energy (50kwh per indigent household per month) | C57: ='SA1'!C14 -> 0 | D57: ='SA1'!D14 -> 0 | E57: ='SA1'!E14 -> 0 | F57: ='SA1'!F14 -> 0 | G57: ='SA1'!G14 -> 0 | H57: ='SA1'!H14 -> 0 | I57: ='SA1'!J14 -> 0 | J57: ='SA1'!K14 -> 0 | K57: ='SA1'!L14 -> 0
A58: Refuse (removed once a week for indigent households) | C58: ='SA1'!C33 -> 0 | D58: ='SA1'!D33 -> 0 | E58: ='SA1'!E33 -> 0 | F58: ='SA1'!F33 -> 0 | G58: ='SA1'!G33 -> 0 | H58: ='SA1'!H33 -> 0 | I58: ='SA1'!J33 -> 0 | J58: ='SA1'!K33 -> 0 | K58: ='SA1'!L33 -> 0
A59: Cost of Free Basic Services provided - Informal Formal Settlements (R'000) | C59: ='SA9'!E260+'SA9'!E272+'SA9'!E284+'SA9'!E296 -> 0 | D59: ='SA9'!F260+'SA9'!F272+'SA9'!F284+'SA9'!F296 -> 0 | E59: ='SA9'!G260+'SA9'!G272+'SA9'!G284+'SA9'!G296 -> 0 | F59: ='SA9'!H260+'SA9'!H272+'SA9'!H284+'SA9'!H296 -> 128,500 | G59: ='SA9'!I260+'SA9'!I272+'SA9'!I284+'SA9'!I296 -> 123,000 | H59: ='SA9'!J260+'SA9'!J272+'SA9'!J284+'SA9'!J296 -> 123,000 | I59: ='SA9'!K260+'SA9'!K272+'SA9'!K284+'SA9'!K296 -> 123,000 | J59: ='SA9'!L260+'SA9'!L272+'SA9'!L284+'SA9'!L296 -> 123,000 | K59: ='SA9'!M260+'SA9'!M272+'SA9'!M284+'SA9'!M296 -> 123,000
A60: Total cost of FBS provided | C60: =SUM(C55:C59) -> 0 | D60: 0 | E60: 0 | F60: 128,500 | G60: 123,000 | H60: 123,000 | I60: 123,000 | J60: 123,000 | K60: 123,000
A62: Highest level of free service provided per household
A63: Property rates (R value threshold) | C63: 60,000 | D63: 60,000 | F63: 63,240 | G63: 63,240 | H63: 63,240 | I63: 63,240 | J63: 63,240 | K63: 63,240
A64: Water (kilolitres per household per month)
A65: Sanitation (kilolitres per household per month)
A66: Sanitation (Rand per household per month)
A67: Electricity (kwh per household per month) | F67: 53 | G67: 53 | H67: 53 | I67: 53 | J67: 53 | K67: 53
A68: Refuse (average litres per week) | C68: 18,000 | D68: 20,000 | F68: 21,080 | G68: 21,080 | H68: 21,080 | I68: 21,080 | J68: 21,080 | K68: 21,080
A69: Revenue cost of subsidised services provided (R'000) | B69: 9
A70: Property rates (tariff adjustment) ( impermissable values per section 17 of MPRA) | F70: 2,387 | G70: 2,387 | H70: 2,387 | I70: 2,387 | J70: 2,387 | K70: 2,387
A71: Property rates exemptions, reductions and rebates and impermissable values in excess of section 17 of MPRA) | C71: ='SA1'!C8 -> 0 | D71: ='SA1'!D8 -> 0 | E71: ='SA1'!E8 -> 0 | F71: ='SA1'!F8 -> 3,000 | G71: ='SA1'!G8 -> 3,000 | H71: ='SA1'!H8 -> 3,000 | I71: ='SA1'!J8 -> 0 | J71: ='SA1'!K8 -> 0 | K71: ='SA1'!L8 -> 0
A72: Water (in excess of 6 kilolitres per indigent household per month) | C72: ='SA1'!C19 -> 0 | D72: ='SA1'!D19 -> 0 | E72: ='SA1'!E19 -> 0 | F72: ='SA1'!F19 -> 0 | G72: ='SA1'!G19 -> 0 | H72: ='SA1'!H19 -> 0 | I72: ='SA1'!J19 -> 0 | J72: ='SA1'!K19 -> 0 | K72: ='SA1'!L19 -> 0
A73: Sanitation (in excess of free sanitation service to indigent households) | C73: ='SA1'!C25 -> 0 | D73: ='SA1'!D25 -> 0 | E73: ='SA1'!E25 -> 0 | F73: ='SA1'!F25 -> 0 | G73: ='SA1'!G25 -> 0 | H73: ='SA1'!H25 -> 0 | I73: ='SA1'!J25 -> 0 | J73: ='SA1'!K25 -> 0 | K73: ='SA1'!L25 -> 0
A74: Electricity/other energy (in excess of 50 kwh per indigent household per month) | C74: ='SA1'!C13 -> 0 | D74: ='SA1'!D13 -> 0 | E74: ='SA1'!E13 -> 0 | F74: ='SA1'!F13 -> 0 | G74: ='SA1'!G13 -> 0 | H74: ='SA1'!H13 -> 0 | I74: ='SA1'!J13 -> 0 | J74: ='SA1'!K13 -> 0 | K74: ='SA1'!L13 -> 0
A75: Refuse (in excess of one removal a week for indigent households) | C75: ='SA1'!C32 -> 0 | D75: ='SA1'!D32 -> 0 | E75: ='SA1'!E32 -> 0 | F75: ='SA1'!F32 -> 5,000 | G75: ='SA1'!G32 -> 1,050 | H75: ='SA1'!H32 -> 1,050 | I75: ='SA1'!J32 -> 0 | J75: ='SA1'!K32 -> 0 | K75: ='SA1'!L32 -> 0
A76: Municipal Housing - rental rebates
A77: Housing - top structure subsidies | B77: 6
A78: Other | C78: 18,774 | D78: 29,000 | G78: 1,050 | H78: 1,050 | I78: 1,050 | J78: 1,050 | K78: 1,050
A79: Total revenue cost of subsidised services provided | C79: =SUM(C70:C78) -> 18,774 | D79: =SUM(D70:D78) -> 29,000 | E79: 0 | F79: 10,387 | G79: 7,488 | H79: 7,488 | I79: 3,437 | J79: =SUM(J70:J78) -> 3,437 | K79: =SUM(K70:K78) -> 3,437
A80: =head27a -> References
A81: 1. Include services provided by another entity; e.g. Eskom
A82: 2. Stand distance <= 200m from dwelling
A83: 3. Stand distance > 200m from dwelling
A84: 4. Borehole, spring, rain-water tank etc.
A85: 5. Must agree to total number of households in municipal area (informal settlements receiving services must be included)
A86: 6. Include value of subsidy provided by municipality above provincial subsidy level
A87: 7. Show number of households receiving at least these levels of services completely free (informal settlements must be included)
A88: 8. Must reflect the cost to the municipality of providing the Free Basic Service
A89: 9. Reflect the cost to the municipality in terms of 'revenue foregone' of providing free services (note this will not equal 'Revenue Foregone' on SA1)

Sheet SA1
A1: =muni&" - "&TableA1 -> LIM343 Thulamela - Supporting Table SA1 Supportinging detail to 'Budgeted Financial Performance'
A2: =desc -> Description | B2: =head27 -> Ref | C2: =head1b -> 2016/17 | D2: =head1A -> 2017/18 | E2: =Head1 -> 2018/19 | F2: =Head2 -> Current Year 2019/20 | J2: =Head3 -> 2020/21 Medium Term Revenue & Expenditure Framework
C3: =Head5 -> Audited Outcome | D3: =Head5 -> Audited Outcome | E3: =Head5 -> Audited Outcome | F3: =Head6 -> Original Budget | G3: =Head7 -> Adjusted Budget | H3: =Head8 -> Full Year Forecast | I3: =Head5b -> Pre-audit outcome | J3: =Head9 -> Budget Year 2020/21 | K3: =Head10 -> Budget Year +1 2021/22 | L3: =Head11 -> Budget Year +2 2022/23
A4: R thousand
A5: REVENUE ITEMS:
A6: ='A4-FinPerf RE'!A5 -> Property rates | B6: 6
A7: Total Property Rates | C7: 44,111 | D7: 53,944 | E7: 61,076 | F7: 73,190 | G7: 100,147 | H7: 100,147 | I7: 61,076 | J7: 108,961 | K7: 116,547 | L7: 120,298
A8: less Revenue Foregone (exemptions, reductions and rebates and impermissable values in excess of section 17 of MPRA) | F8: 3,000 | G8: 3,000 | H8: 3,000 | I8: 0
A9: Net Property Rates | C9: =C7-C8 -> 44,111 | D9: =D7-D8 -> 53,944 | E9: 61,076 | F9: 70,190 | G9: 97,147 | H9: 97,147 | I9: 61,076 | J9: 108,961 | K9: 116,547 | L9: 120,298
A11: ='A4-FinPerf RE'!A6 -> Service charges - electricity revenue | B11: 6
A12: ="Total "&A11 -> Total Service charges - electricity revenue
A13: less Revenue Foregone (in excess of 50 kwh per indigent household per month)
A14: less Cost of Free Basis Services (50 kwh per indigent household per month) | C14: ='SA9'!E250 -> 0 | D14: ='SA9'!F250 -> 0 | E14: ='SA9'!G250 -> 0 | F14: ='SA9'!H250 -> 0 | G14: ='SA9'!I250 -> 0 | H14: ='SA9'!J250 -> 0 | J14: ='SA9'!K250 -> 0 | K14: ='SA9'!L250 -> 0 | L14: ='SA9'!M250 -> 0
A15: ="Net "& A11 -> Net Service charges - electricity revenue | C15: =C12-C13-C14 -> 0 | D15: =D12-D13-D14 -> 0 | E15: 0 | F15: 0 | G15: 0 | H15: 0 | I15: 0 | J15: 0 | K15: 0 | L15: 0
A17: ='A4-FinPerf RE'!A7 -> Service charges - water revenue | B17: 6
A18: ="Total "&A17 -> Total Service charges - water revenue
A19: less Revenue Foregone (in excess of 6 kilolitres per indigent household per month)
A20: less Cost of Free Basis Services (6 kilolitres per indigent household per month) | C20: ='SA9'!E262 -> 0 | D20: ='SA9'!F262 -> 0 | E20: ='SA9'!G262 -> 0 | F20: ='SA9'!H262 -> 0 | G20: ='SA9'!I262 -> 0 | H20: ='SA9'!J262 -> 0 | J20: ='SA9'!K262 -> 0 | K20: ='SA9'!L262 -> 0 | L20: ='SA9'!M262 -> 0
A21: ="Net "& A17 -> Net Service charges - water revenue | C21: =C18-C19-C20 -> 0 | D21: =D18-D19-D20 -> 0 | E21: 0 | F21: 0 | G21: 0 | H21: 0 | I21: 0 | J21: 0 | K21: 0 | L21: 0
A23: ='A4-FinPerf RE'!A8 -> Service charges - sanitation revenue
A24: ="Total "&A23 -> Total Service charges - sanitation revenue
A25: less Revenue Foregone (in excess of free sanitation service to indigent households)
A26: less Cost of Free Basis Services (free sanitation service to indigent households) | C26: ='SA9'!E274 -> 0 | D26: ='SA9'!F274 -> 0 | E26: ='SA9'!G274 -> 0 | F26: ='SA9'!H274 -> 0 | G26: ='SA9'!I274 -> 0 | H26: ='SA9'!J274 -> 0 | J26: ='SA9'!K274 -> 0 | K26: ='SA9'!L274 -> 0 | L26: ='SA9'!M274 -> 0
A27: ="Net "& A23 -> Net Service charges - sanitation revenue | C27: =C24-C25-C26 -> 0 | D27: =D24-D25-D26 -> 0 | E27: 0 | F27: 0 | G27: 0 | H27: 0 | I27: 0 | J27: 0 | K27: 0 | L27: 0
A29: ='A4-FinPerf RE'!A9 -> Service charges - refuse revenue | B29: 6
A30: Total refuse removal revenue | C30: 43,271 | D30: 46,445 | E30: 21,052 | F30: 51,518 | G30: 31,096 | H30: 31,096 | I30: 20,691 | J30: 34,436 | K30: 36,184 | L30: 38,873
A31: Total landfill revenue | G31: 718 | H31: 718
A32: less Revenue Foregone (in excess of one removal a week to indigent households) | F32: 5,000 | G32: 1,050 | H32: 1,050
A33: less Cost of Free Basis Services (removed once a week to indigent households) | C33: ='SA9'!E286 -> 0 | D33: ='SA9'!F286 -> 0 | E33: ='SA9'!G286 -> 0 | F33: ='SA9'!H286 -> 0 | G33: ='SA9'!I286 -> 0 | H33: ='SA9'!J286 -> 0 | J33: ='SA9'!K286 -> 0 | K33: ='SA9'!L286 -> 0 | L33: ='SA9'!M286 -> 0
A34: ="Net "& A29 -> Net Service charges - refuse revenue | C34: =SUM(C30:C31)-C32-C33 -> 43,271 | D34: =SUM(D30:D31)-D32-D33 -> 46,445 | E34: 21,052 | F34: 46,518 | G34: 30,764 | H34: 30,764 | I34: 20,691 | J34: 34,436 | K34: 36,184 | L34: 38,873
A36: Other Revenue by source
A37: Fuel Levy
A38: Other Revenue | C38: 20,799 | D38: 22,005 | E38: 17,647 | F38: 31,198 | G38: 36,438 | H38: 36,438 | I38: 31,310 | J38: 36,589 | K38: 33,006 | L38: 30,934
A49: Total 'Other' Revenue | B49: 1 | C49: =SUM(C37:C38) -> 20,799 | D49: =SUM(D37:D38) -> 22,005 | E49: =SUM(E37:E38) -> 17,647 | F49: 31,198 | G49: 36,438 | H49: 36,438 | I49: 31,310 | J49: 36,589 | K49: 33,006 | L49: 30,934
A51: EXPENDITURE ITEMS:
A52: ='A4-FinPerf RE'!A24 -> Employee related costs
A53: Basic Salaries and Wages | B53: 2 | C53: 172,780 | D53: 162,552 | E53: 191,631 | F53: 195,563 | G53: 205,536 | H53: 205,536 | I53: 224,643 | J53: 201,620 | K53: 214,221 | L53: 227,610
A54: Pension and UIF Contributions | C54: 54,384 | D54: 30,595 | E54: 32,927 | F54: 39,351 | G54: 39,553 | H54: 39,553 | I54: 20,553 | J54: 42,025 | K54: 44,652 | L54: 47,443
A55: Medical Aid Contributions | D55: 7,158 | E55: 7,456 | F55: 7,901 | G55: 8,181 | H55: 8,181 | I55: 4,233 | J55: 8,692 | K55: 9,235 | L55: 9,812
A56: Overtime | D56: 9,193 | E56: 8,778 | F56: 7,205 | G56: 7,205 | H56: 7,205 | I56: 4,257 | J56: 7,608 | K56: 8,084 | L56: 8,589
A57: Performance Bonus | F57: 593 | G57: 576 | H57: 576 | I57: 376 | J57: 16,327 | K57: 17,348 | L57: 18,432
A58: Motor Vehicle Allowance | D58: 16,339 | E58: 17,225 | F58: 20,439 | G58: 21,330 | H58: 21,330 | I58: 10,368 | J58: 22,663 | K58: 24,080 | L58: 25,585
A59: Cellphone Allowance | E59: 115 | F59: 127 | G59: 157 | H59: 157 | I59: 137 | J59: 157 | K59: 157 | L59: 157
A60: Housing Allowances | D60: 377 | E60: 427 | F60: 417 | G60: 597 | H60: 597 | I60: 357 | J60: 635 | K60: 674 | L60: 717
A61: Other benefits and allowances | D61: 16,232 | E61: 61 | F61: 1,023 | G61: 118 | H61: 118 | I61: 115 | J61: 1,216 | K61: 1,289 | L61: 1,367
A62: Payments in lieu of leave | E62: 1,050 | F62: 217 | G62: 468 | H62: 468 | I62: 448 | J62: 4,064 | K62: 4,317 | L62: 4,587
A63: Long service awards | D63: 1,425 | E63: 2,280 | F63: 1,725 | G63: 1,775 | H63: 1,775 | I63: 1,575 | J63: 1,886 | K63: 2,004 | L63: 2,129
A64: Post-retirement benefit obligations | B64: 4
A65: sub-total | B65: 5 | C65: =SUM(C53:C64) -> 227,164 | D65: =SUM(D53:D64) -> 243,870 | E65: 261,950 | F65: 274,561 | G65: 285,496 | H65: 285,496 | I65: 267,062 | J65: 306,893 | K65: 326,061 | L65: 346,428
A66: Less: Employees costs capitalised to PPE
A67: ="Total "&A52 -> Total Employee related costs | B67: 1 | C67: =C65-C66 -> 227,164 | D67: =D65-D66 -> 243,870 | E67: 261,950 | F67: 274,561 | G67: 285,496 | H67: 285,496 | I67: 267,062 | J67: 306,893 | K67: 326,061 | L67: 346,428
A78: ='A4-FinPerf RE'!A27 -> Depreciation & asset impairment
A79: Depreciation of Property, Plant & Equipment | C79: 46,345 | D79: 50,533 | E79: 50,223 | F79: 58,000 | G79: 60,265 | H79: 60,265 | I79: 86,266 | J79: 60,453 | K79: 60,457 | L79: 60,806
A80: Lease amortisation | J80: 0 | K80: 0 | L80: 0
A81: Capital asset impairment | G81: 575 | H81: 575 | I81: 0 | J81: 14 | K81: 14 | L81: 14
A83: ="Total "&LEFT(A78,35) -> Total Depreciation & asset impairment | B83: 1 | C83: =SUM(C79:C81) -> 46,345 | D83: =SUM(D79:D81) -> 50,533 | E83: 50,223 | F83: 58,000 | G83: 60,840 | H83: 60,840 | I83: 86,266 | J83: 60,466 | K83: 60,470 | L83: 60,820
A85: ='A4-FinPerf RE'!A29 -> Bulk purchases
A86: Electricity Bulk Purchases
A87: Water Bulk Purchases
A88: Total bulk purchases | B88: 1 | C88: =SUM(C86:C87) -> 0 | D88: =SUM(D86:D87) -> 0 | E88: 0 | F88: 0 | G88: 0 | H88: 0 | I88: 0 | J88: 0 | K88: 0 | L88: 0
A90: Transfers and grants
A91: Cash transfers and grants | C91: ='SA21'!C32 -> 0 | D91: ='SA21'!D32 -> 0 | E91: ='SA21'!E32 -> 0 | F91: ='SA21'!F32 -> 0 | G91: ='SA21'!G32 -> 0 | H91: ='SA21'!H32 -> 0 | I91: ='SA21'!I32 -> 0 | J91: ='SA21'!J32 -> 0 | K91: ='SA21'!K32 -> 0 | L91: ='SA21'!L32 -> 0
A92: Non-cash transfers and grants | C92: ='SA21'!C63 -> 0 | D92: ='SA21'!D63 -> 0 | E92: ='SA21'!E63 -> 6,354 | F92: ='SA21'!F63 -> 13,560 | G92: ='SA21'!G63 -> 8,967 | H92: ='SA21'!H63 -> 8,967 | I92: ='SA21'!I63 -> 0 | J92: ='SA21'!J63 -> 6,056 | K92: ='SA21'!K63 -> 6,106 | L92: ='SA21'!L63 -> 6,158
A93: Total transfers and grants | B93: 1 | C93: =SUM(C91:C92) -> 0 | D93: =SUM(D91:D92) -> 0 | E93: 6,354 | F93: 13,560 | G93: 8,967 | H93: 8,967 | I93: 0 | J93: 6,056 | K93: 6,106 | L93: 6,158
A95: ='A4-FinPerf RE'!A31 -> Contracted services
A96: Outsourced Services | C96: 0 | D96: 0 | E96: 53,464 | F96: 6,777 | G96: 29,145 | H96: 29,145 | I96: 13,700 | J96: 85,761 | K96: 85,280 | L96: 86,106
A97: Consultants and Professional Services | C97: 0 | D97: 0 | E97: 20,343 | F97: 32,290 | G97: 18,510 | H97: 18,510 | I97: 18,510 | J97: 0 | K97: 0 | L97: 0
A98: Contractors | C98: 0 | D98: 0 | E98: 26,012 | F98: 67,366 | G98: 46,977 | H98: 46,977 | I98: 41,500 | J98: 0 | K98: 0 | L98: 0
A127: Total contracted services | C127: =SUM(C96:C98) -> 0 | D127: =SUM(D96:D98) -> 0 | E127: 99,819 | F127: 106,433 | G127: 94,632 | H127: 94,632 | I127: 73,711 | J127: 85,761 | K127: 85,280 | L127: 86,106
A129: Other Expenditure By Type
A130: Collection costs
A131: Contributions to 'other' provisions
A133: Audit fees | C133: 0 | D133: 3,531 | E133: 4,380 | F133: 4,600 | G133: 4,600 | H133: 4,600 | I133: 4,600 | J133: 4,700 | K133: 4,916 | L133: 5,142
A136: Other Expenditure | C136: 257,397 | D136: 229,698 | E136: 67,524 | F136: 63,495 | G136: 74,603 | H136: 74,603 | I136: 107,216 | J136: 99,036 | K136: 103,046 | L136: 108,037
A157: Total 'Other' Expenditure | B157: 1 | C157: =+C130+C131+C133+C136 -> 257,397 | D157: =+D130+D131+D133+D136 -> 233,229 | E157: 71,904 | F157: 68,095 | G157: 79,203 | H157: 79,203 | I157: 111,816 | J157: 103,736 | K157: 107,962 | L157: 113,179
A159: Repairs and Maintenance by Expenditure Item | B159: 8
A160: Employee related costs
A161: Other materials
A162: Contracted Services
A163: Other Expenditure | C163: 16,560 | D163: 9,166 | E163: 25,715 | F163: 39,108 | G163: 30,673 | H163: 30,673 | I163: 0 | J163: 35,849 | K163: 37,498 | L163: 38,960
A164: Total Repairs and Maintenance Expenditure | B164: 9 | C164: =SUM(C160:C163) -> 16,560 | D164: =SUM(D160:D163) -> 9,166 | E164: 25,715 | F164: 39,108 | G164: 30,673 | H164: 30,673 | I164: 0 | J164: 35,849 | K164: 37,498 | L164: 38,960
A166: check | C166: =C164-SA34c!C167 -> 0 | D166: =D164-SA34c!D167 -> 0 | E166: =E164-SA34c!E167 -> 0 | F166: =F164-SA34c!F167 -> 0 | G166: =G164-SA34c!G167 -> 0 | H166: =H164-SA34c!H167 -> 0 | J166: =J164-SA34c!I167 -> 0 | K166: =K164-SA34c!J167 -> 0 | L166: =L164-SA34c!K167 -> 0
A169: =head27a -> References
A170: 1. Must reconcile with 'Budgeted Financial Performance (Revenue and Expenditure)
A171: 2. Must reconcile to supporting documentation on staff salaries
A173: 4. Expenditure to meet any 'unfunded obligations'
A174: 5 This sub-total must agree with the total on SA22, but excluding councillor and board member items
A175: 6. Include a note for each revenue item that is affected by 'revenue foregone'
A176: 7. Special consideration may have to be given to including 'goodwill arising' or 'joint venture' budgets where circumstances require this (include separately under relevant notes)
A177: 8. Repairs and Maintenance is not a GRAP item. However to facilitate transparency, municipalities must provide a breakdown of the amounts included in the relevant GRAP items that will be spent on Repairs and Maintenance.
A178: 9. Must reconcile with Repairs and Maintenance by Asset Class (Total Repairs and Maintenance) on Table SA34c.
A179: 10. Only applicable to municipalities that have adopted the 'revaluation method' in GRAP 17. The aim is to prevent overstating 'depreciation and asset impairment'

Sheet SA2
A1: =muni&" - "&TableA2 -> LIM343 Thulamela - Supporting Table SA2 Matrix Financial Performance Budget (revenue source/expenditure type and dept.)
A2: =desc -> Description | B2: =head27 -> Ref | C2: ='A3-FinPerf V'!A5 -> Vote 1 - GOVERNANCE AND ADMIN | D2: ='A3-FinPerf V'!A6 -> Vote 2 - FINANCE | E2: ='A3-FinPerf V'!A7 -> Vote 3 - CORPORATE SERVICES | F2: ='A3-FinPerf V'!A8 -> Vote 4 - COMMUNITY AND PUBLIC SAFETEY | G2: ='A3-FinPerf V'!A9 -> Vote 5 - PLANNING AND DEVELOPMENT | H2: ='A3-FinPerf V'!A10 -> Vote 6 - TECHNICAL SERVICES | I2: ='A3-FinPerf V'!A11 -> Vote 7 - [NAME OF VOTE 7] | J2: ='A3-FinPerf V'!A12 -> Vote 8 - [NAME OF VOTE 8] | K2: ='A3-FinPerf V'!A13 -> Vote 9 - [NAME OF VOTE 9] | L2: ='A3-FinPerf V'!A14 -> Vote 10 - [NAME OF VOTE 10] | M2: ='A3-FinPerf V'!A15 -> Vote 11 - [NAME OF VOTE 11] | N2: ='A3-FinPerf V'!A16 -> Vote 12 - [NAME OF VOTE 12] | O2: ='A3-FinPerf V'!A17 -> Vote 13 - [NAME OF VOTE 13] | P2: ='A3-FinPerf V'!A18 -> Vote 14 - [NAME OF VOTE 14] | Q2: ='A3-FinPerf V'!A19 -> Vote 15 - [NAME OF VOTE 15] | R2: Total
A3: R thousand | B3: 1 | C3: R'000 | D3: R'000 | E3: R'000 | F3: R'000 | G3: R'000 | H3: R'000 | Q3: R'000 | R3: R'000
A4: ='A4-FinPerf RE'!A4 -> Revenue By Source
A5: ='A4-FinPerf RE'!A5 -> Property rates | D5: 108,811 | F5: 0 | G5: 150 | H5: 0 | R5: =SUM(C5:Q5) -> 108,961
A6: ='A4-FinPerf RE'!A6 -> Service charges - electricity revenue | R6: =SUM(C6:Q6) -> 0
A7: ='A4-FinPerf RE'!A7 -> Service charges - water revenue | R7: 0
A8: ='A4-FinPerf RE'!A8 -> Service charges - sanitation revenue | R8: 0
A9: ='A4-FinPerf RE'!A9 -> Service charges - refuse revenue | F9: 33,636 | G9: 0 | H9: 800 | R9: 34,436
A11: ='A4-FinPerf RE'!A11 -> Rental of facilities and equipment | F11: 3,671 | G11: 5,825 | H11: 0 | R11: 9,497
A12: ='A4-FinPerf RE'!A12 -> Interest earned - external investments | D12: 38,000 | R12: 38,000
A13: ='A4-FinPerf RE'!A13 -> Interest earned - outstanding debtors | D13: 29,000 | F13: 0 | R13: 29,000
A14: ='A4-FinPerf RE'!A14 -> Dividends received | R14: 0
A15: ='A4-FinPerf RE'!A15 -> Fines, penalties and forfeits | G15: 8,510 | H15: 18,882 | R15: 27,392
A16: ='A4-FinPerf RE'!A16 -> Licences and permits | F16: 565 | G16: 43 | H16: 15,735 | R16: 16,343
A17: ='A4-FinPerf RE'!A17 -> Agency services | F17: 0 | G17: 0 | R17: 0
A18: ='A4-FinPerf RE'!A19 -> Other revenue | D18: 6,706 | F18: 421 | G18: 29,462 | R18: 36,589
A19: ='A4-FinPerf RE'!A18 -> Transfers and subsidies | C19: 492,987 | D19: 1,700 | G19: 4,000 | H19: 7,118 | R19: 505,805
A20: ='A4-FinPerf RE'!A20 -> Gains | R20: 0
A21: ='A4-FinPerf RE'!A21 -> Total Revenue (excluding capital transfers and contributions) | C21: =SUM(C5:C9)+SUM(C11:C20) -> 492,987 | D21: =SUM(D5:D9)+SUM(D11:D20) -> 184,217 | E21: 0 | F21: 38,294 | G21: 47,990 | H21: 42,535 | I21: 0 | J21: 0 | K21: 0 | L21: 0 | M21: 0 | N21: 0 | O21: 0 | P21: 0 | Q21: 0 | R21: =SUM(R5:R9)+SUM(R11:R20) -> 806,023
A23: ='A4-FinPerf RE'!A23 -> Expenditure By Type
A24: ='A4-FinPerf RE'!A24 -> Employee related costs | C24: 30,486 | D24: 70,863 | E24: 50,010 | F24: 11,878 | G24: 30,062 | H24: 113,595 | R24: =SUM(C24:Q24) -> 306,893
A25: ='A4-FinPerf RE'!A25 -> Remuneration of councillors | C25: 36,960 | D25: 0 | E25: 0 | F25: 0 | H25: 0 | R25: =SUM(C25:Q25) -> 36,960
A26: ='A4-FinPerf RE'!A26 -> Debt impairment | C26: 85,424 | D26: 0 | E26: 0 | F26: 0 | H26: 0 | R26: 85,424
A27: ='A4-FinPerf RE'!A27 -> Depreciation & asset impairment | C27: 2 | D27: 3,948 | E27: 3,560 | F27: 5,340 | G27: 73 | H27: 47,543 | R27: 60,466
A28: ='A4-FinPerf RE'!A28 -> Finance charges | C28: 0 | D28: 50 | E28: 0 | F28: 0 | G28: 0 | H28: 0 | R28: 50
A29: ='A4-FinPerf RE'!A29 -> Bulk purchases | C29: 0 | D29: 0 | E29: 0 | F29: 0 | G29: 0 | H29: 0 | R29: 0
A30: ='A4-FinPerf RE'!A30 -> Other materials | C30: 500 | D30: 2,980 | E30: 2,871 | F30: 1,193 | G30: 50 | H30: 9,326 | R30: 16,920
A31: ='A4-FinPerf RE'!A31 -> Contracted services | C31: 1,714 | D31: 29,375 | E31: 200 | F31: 5,739 | G31: 2,766 | H31: 45,967 | R31: 85,761
A32: ='A4-FinPerf RE'!A32 -> Transfers and subsidies | C32: 5,376 | D32: 0 | E32: 0 | F32: 600 | G32: 80 | H32: 0 | R32: 6,056
A33: ='A4-FinPerf RE'!A33 -> Other expenditure | C33: 15,151 | D33: 43,432 | E33: 5,241 | F33: 1,112 | G33: 5,758 | H33: 33,043 | R33: 103,736
A34: ='A4-FinPerf RE'!A34 -> Losses | C34: 100 | D34: 425 | E34: 0 | F34: 500 | G34: 10,000 | H34: 1,434 | R34: 12,459
A35: Total Expenditure | C35: =SUM(C24:C34) -> 175,713 | D35: 151,073 | E35: 61,882 | F35: 26,361 | G35: 48,788 | H35: 250,907 | I35: 0 | J35: 0 | K35: 0 | L35: 0 | M35: 0 | N35: 0 | O35: 0 | P35: 0 | Q35: 0 | R35: 714,725
A37: ='A4-FinPerf RE'!A37 -> Surplus/(Deficit) | C37: =C21-C35 -> 317,274 | D37: 33,144 | E37: (61,882) | F37: 11,933 | G37: (799) | H37: (208,372) | I37: =I21-I35 -> 0 | J37: 0 | K37: 0 | L37: 0 | M37: 0 | N37: 0 | O37: 0 | P37: 0 | Q37: 0 | R37: =R21-R35 -> 91,298
A38: ='A4-FinPerf RE'!A38 -> Transfers and subsidies - capital (monetary allocations) (National / Provincial and District) | H38: 98,702 | R38: =SUM(C38:Q38) -> 98,702
A39: ='A4-FinPerf RE'!A39 -> Transfers and subsidies - capital (monetary allocations) (National / Provincial Departmental Agencies, Households, Non-profit Institutions, Private Enterprises, Public Corporatons, Higher Educational Institutions) | R39: =SUM(C39:Q39) -> 0
A40: ='A4-FinPerf RE'!A40 -> Transfers and subsidies - capital (in-kind - all) | R40: =SUM(C40:Q40) -> 0
A41: ='A4-FinPerf RE'!A41 -> Surplus/(Deficit) after capital transfers & contributions | C41: =SUM(C37:C40) -> 317,274 | D41: 33,144 | E41: (61,882) | F41: 11,933 | G41: (799) | H41: (109,670) | I41: 0 | J41: 0 | K41: 0 | L41: 0 | M41: 0 | N41: 0 | O41: 0 | P41: 0 | Q41: =SUM(Q37:Q40) -> 0 | R41: =SUM(R37:R40) -> 190,000
A42: =head27a -> References
A43: 1. Departmental columns to be based on municipal organisation structure
A44: check balance | R44: ='A4-FinPerf RE'!J41-'SA2'!R41 -> 0

Sheet SA3
A1: =muni&" - "&TableA3 -> LIM343 Thulamela - Supporting Table SA3 Supportinging detail to 'Budgeted Financial Position'
A2: =desc -> Description | B2: =head27 -> Ref | C2: =head1b -> 2016/17 | D2: =head1A -> 2017/18 | E2: =Head1 -> 2018/19 | F2: =Head2 -> Current Year 2019/20 | J2: =Head3 -> 2020/21 Medium Term Revenue & Expenditure Framework
C3: =Head5 -> Audited Outcome | D3: =Head5 -> Audited Outcome | E3: =Head5 -> Audited Outcome | F3: =Head6 -> Original Budget | G3: =Head7 -> Adjusted Budget | H3: =Head8 -> Full Year Forecast | I3: =Head5b -> Pre-audit outcome | J3: =Head9 -> Budget Year 2020/21 | K3: =Head10 -> Budget Year +1 2021/22 | L3: =Head11 -> Budget Year +2 2022/23
A4: R thousand
A5: ASSETS
A9: Total Call investment deposits | G9: 301,600 | H9: 301,600 | J9: 200,000 | K9: 200,000 | L9: 200,000
A11: ='A6-FinPos'!A8 -> Consumer debtors
A12: =A11 -> Consumer debtors | E12: 27,397 | F12: 500,000 | G12: 590,000 | H12: 590,000 | I12: 30,109 | J12: 600,000 | K12: 610,000 | L12: 630,000
A13: Less: Provision for debt impairment | F13: (460,000) | G13: (552,336) | H13: (552,336) | I13: 0 | J13: (565,890) | K13: (570,000) | L13: (585,000)
A14: ="Total "&A11 -> Total Consumer debtors | B14: 2 | C14: =SUM(C12:C13) -> 0 | D14: =SUM(D12:D13) -> 0 | E14: 27,397 | F14: =SUM(F12:F13) -> 40,000 | G14: 37,664 | H14: 37,664 | I14: 30,109 | J14: 34,110 | K14: 40,000 | L14: 45,000
A16: Debt impairment provision
A17: Balance at the beginning of the year | G17: 488,836 | H17: 488,836 | I17: 0 | J17: 500,000 | K17: 500,000 | L17: 500,000
A18: Contributions to the provision | G18: 60,000 | H18: 60,000 | I18: 0 | J18: 65,000 | K18: 68,000 | L18: 70,000
A19: Bad debts written off | G19: 3,500 | H19: 3,500 | I19: 0
A20: Balance at end of year | C20: =SUM(C17:C19) -> 0 | D20: =SUM(D17:D19) -> 0 | E20: 0 | F20: 0 | G20: 552,336 | H20: 552,336 | I20: 0 | J20: 565,000 | K20: 568,000 | L20: 570,000
A22: ='A6-FinPos'!A19&" (PPE)" -> Property, plant and equipment (PPE)
A23: PPE at cost/valuation (excl. finance leases) | C23: 1,364,379 | D23: 1,422,918 | E23: 1,481,411 | F23: 1,811,231 | G23: 2,120,645 | H23: 2,120,645 | I23: 1,488,975 | J23: 1,757,750 | K23: 1,961,250 | L23: 2,190,823
A24: Leases recognised as PPE | B24: 3
A25: Less: Accumulated depreciation | F25: 58,000 | G25: 537,009 | H25: 537,009 | I25: 0 | J25: 597,476 | K25: 657,946 | L25: 718,766
A26: ="Total "&A22 -> Total Property, plant and equipment (PPE) | B26: 2 | C26: =SUM(C23:C24)-C25 -> 1,364,379 | D26: =SUM(D23:D24)-D25 -> 1,422,918 | E26: 1,481,411 | F26: 1,753,231 | G26: 1,583,635 | H26: 1,583,635 | I26: 1,488,975 | J26: 1,160,274 | K26: 1,303,304 | L26: 1,472,057
A28: LIABILITIES
A29: ='A6-FinPos'!A28&" - "&'A6-FinPos'!A30 -> Current liabilities - Borrowing
A30: Short term loans (other than bank overdraft)
A31: Current portion of long-term liabilities | C31: 1,643 | D31: 431
A32: ="Total "&A29 -> Total Current liabilities - Borrowing | C32: =SUM(C30:C31) -> 1,643 | D32: =SUM(D30:D31) -> 431 | E32: 0 | F32: 0 | G32: 0 | H32: 0 | I32: 0 | J32: 0 | K32: 0 | L32: 0
A34: ='A6-FinPos'!A32 -> Trade and other payables
A35: Trade Payables | B35: 5 | D35: 77,889 | E35: 95,979 | G35: 40,000 | H35: 40,000 | I35: 105,097 | J35: 40,000 | K35: 40,000 | L35: 40,000
A36: Other creditors | C36: 112,642 | F36: 70,000 | G36: 50,000 | H36: 50,000 | I36: 0 | J36: 60,000 | K36: 60,000 | L36: 60,000
A37: Unspent conditional transfers | C37: 766 | G37: 0 | H37: 0 | I37: 0 | J37: 0 | K37: 0 | L37: 0
A38: VAT | G38: 20,000 | H38: 20,000 | I38: 0 | J38: 30,000 | K38: 30,000 | L38: 30,000
A39: ="Total "&A34 -> Total Trade and other payables | B39: 2 | C39: =SUM(C35:C38) -> 113,408 | D39: 77,889 | E39: 95,979 | F39: 70,000 | G39: 110,000 | H39: 110,000 | I39: 105,097 | J39: 130,000 | K39: 130,000 | L39: =SUM(L35:L38) -> 130,000
A41: ='A6-FinPos'!A36&" - "&'A6-FinPos'!A37 -> Non current liabilities - Borrowing
A42: Borrowing | B42: 4 | C42: 431 | D42: (436)
A43: Finance leases (including PPP asset element)
A44: ="Total "&A41 -> Total Non current liabilities - Borrowing | C44: =SUM(C42:C43) -> 431 | D44: =SUM(D42:D43) -> (436) | E44: 0 | F44: 0 | G44: 0 | H44: 0 | I44: 0 | J44: 0 | K44: 0 | L44: 0
A46: ='A6-FinPos'!A38&" - non-current" -> Provisions - non-current
A47: Retirement benefits
A49: Refuse landfill site rehabilitation | E49: 28,753 | F49: 20,000 | G49: 30,700 | H49: 30,700 | I49: 37,254 | J49: 40,000 | K49: 40,000 | L49: 40,000
A50: Other | C50: 27,317 | D50: 27,557 | F50: 0
A51: ="Total "&A46 -> Total Provisions - non-current | C51: =+C47+C49+C50 -> 27,317 | D51: 27,557 | E51: 28,753 | F51: 20,000 | G51: 30,700 | H51: 30,700 | I51: =+I47+I49+I50 -> 37,254 | J51: =+J47+J49+J50 -> 40,000 | K51: 40,000 | L51: 40,000
A53: CHANGES IN NET ASSETS
A54: ='A6-FinPos'!A45 -> Accumulated Surplus/(Deficit)
A55: =A54&" - opening balance" -> Accumulated Surplus/(Deficit) - opening balance | C55: 1,930,472 | D55: 1,843,960 | E55: 1,829,540 | F55: 2,247,139 | G55: 1,920,697 | H55: 1,920,697 | I55: 0 | J55: =H63 -> 2,120,109 | K55: =J63 -> 1,452,343 | L55: =K63 -> 1,698,426
A56: GRAP adjustments
A57: Restated balance | C57: =SUM(C55:C56) -> 1,930,472 | D57: =SUM(D55:D56) -> 1,843,960 | E57: =SUM(E55:E56) -> 1,829,540 | F57: =SUM(F55:F56) -> 2,247,139 | G57: 1,920,697 | H57: 1,920,697 | I57: 0 | J57: 2,120,109 | K57: 1,452,343 | L57: 1,698,426
A58: ='A4-FinPerf RE'!A37 -> Surplus/(Deficit) | C58: ='A4-FinPerf RE'!C45 -> (135,983) | D58: ='A4-FinPerf RE'!D45 -> 80,251 | E58: ='A4-FinPerf RE'!E45 -> 110,750 | F58: ='A4-FinPerf RE'!F45 -> 170,383 | G58: ='A4-FinPerf RE'!G45 -> 172,168 | H58: ='A4-FinPerf RE'!H45 -> 172,168 | I58: ='A4-FinPerf RE'!I45 -> 101,554 | J58: ='A4-FinPerf RE'!J45 -> 190,000 | K58: ='A4-FinPerf RE'!K45 -> 211,250 | L58: ='A4-FinPerf RE'!L45 -> 231,673
A60: Transfers to/from Reserves
A61: Depreciation offsets
A62: Other adjustments | C62: (31,216) | E62: (9,195) | F62: (170,433) | G62: 27,244 | H62: 27,244 | I62: 0 | J62: (857,765) | K62: 34,833 | L62: 30,927
A63: Accumulated Surplus/(Deficit) | B63: 1 | C63: =SUM(C57:C62) -> 1,763,273 | D63: =SUM(D57:D62) -> 1,924,211 | E63: =SUM(E57:E62) -> 1,931,094 | F63: 2,247,090 | G63: 2,120,109 | H63: 2,120,109 | I63: 101,554 | J63: 1,452,343 | K63: 1,698,426 | L63: 1,961,026
A64: Reserves
A65: Housing Development Fund
A66: Capital replacement
A67: Self-insurance
A68: Other reserves
A69: Revaluation
A70: Total Reserves | B70: 2 | C70: =SUM(C65:C69) -> 0 | D70: 0 | E70: 0 | F70: 0 | G70: 0 | H70: 0 | I70: 0 | J70: 0 | K70: 0 | L70: 0
A71: ='A6-FinPos'!A48 -> TOTAL COMMUNITY WEALTH/EQUITY | B71: 2 | C71: =C63+C70 -> 1,763,273 | D71: 1,924,211 | E71: 1,931,094 | F71: 2,247,090 | G71: 2,120,109 | H71: 2,120,109 | I71: 101,554 | J71: 1,452,343 | K71: 1,698,426 | L71: 1,961,026
A77: =head27a -> References
A78: ="1. Must reconcile with "&'Template names'!F103 -> 1. Must reconcile with Table A4 Budgeted Financial Performance (revenue and expenditure)
A79: ="2. Must reconcile with "&'Template names'!F105 -> 2. Must reconcile with Table A6 Budgeted Financial Position
A80: 3. Leases treated as assets to be depreciated as the same as purchased/constructed assets. Includes PPP asset element accounted for as finance leases
A81: 4. Borrowing must reconcile to Table A17
A82: 5. Trade Payable should only include Trade Payables from Exchance Transactions ("True Creditors")
A83: check | C83: =C71-'A6-FinPos'!C48 -> 806 | D83: =D71-'A6-FinPos'!D48 -> 80,251 | E83: =E71-'A6-FinPos'!E48 -> 10,397 | F83: =F71-'A6-FinPos'!F48 -> 0 | G83: =G71-'A6-FinPos'!G48 -> 172,168 | H83: =H71-'A6-FinPos'!H48 -> 172,168 | I83: =I71-'A6-FinPos'!I48 -> (1,829,540) | J83: =J71-'A6-FinPos'!J48 -> 0 | K83: =K71-'A6-FinPos'!K48 -> 0 | L83: =L71-'A6-FinPos'!L48 -> 0
C84: =TREND(D84:H84) -> 0 | D84: =TREND(E84:H84) -> 0 | E84: =E74 -> 0 | F84: =H74 -> 0 | G84: =J74 -> 0 | H84: =K74 -> 0 | I84: =L74 -> 0

Sheet SA4
A1: =muni&" - "&TableA4 -> LIM343 Thulamela - Supporting Table SA4 Reconciliation of IDP strategic objectives and budget (revenue)
A2: Strategic Objective | B2: Goal | C2: Goal Code | D2: =head27 -> Ref | E2: =head1b -> 2016/17 | F2: =head1A -> 2017/18 | G2: =Head1 -> 2018/19 | H2: =Head2 -> Current Year 2019/20 | K2: =Head3 -> 2020/21 Medium Term Revenue & Expenditure Framework
A3: R thousand | E3: =Head5 -> Audited Outcome | F3: =Head5 -> Audited Outcome | G3: =Head5 -> Audited Outcome | H3: =Head6 -> Original Budget | I3: =Head7 -> Adjusted Budget | J3: =Head8 -> Full Year Forecast | K3: =Head9 -> Budget Year 2020/21 | L3: =Head10 -> Budget Year +1 2021/22 | M3: =Head11 -> Budget Year +2 2022/23
A4: Promote public participation and accountability to the community | B4: To assist management in improving the effectiveness of risk management, corporate governance and internal control all the times in order for municipality to achieve clean Audit. To ensure 100% participation ofcommunities in all municipal programmes. To have clean audit | E4: 375,301 | F4: 389,080 | G4: 369,070 | H4: 471,382 | I4: 471,382 | J4: 471,382 | K4: 495,879 | L4: 528,933 | M4: 560,276
A5: Ensure compliance with pilicies,Act and regulations | B5: 100% compliance with the MFMA and the Municipal Budget and Reporting Regulation (MBRR) annually. To collection 40% of own revenue to ensure financial viability | E5: 157,749 | F5: 116,975 | G5: 106,975 | H5: 138,919 | I5: 138,919 | J5: 138,919 | K5: 180,975 | L5: 192,415 | M5: 190,880
A6: Promote healthy and clean environment | B6: To protect the environment and to clean our streets and public places continuously.To clean our area to have licensed landfill site.To provide access to all sporting and cultural activities to all ciitizens | E6: 76,434 | F6: 67,689 | G6: 92,768 | H6: 51,015 | I6: 62,860 | J6: 62,860 | K6: 40,378 | L6: 49,700 | M6: 62,195
A7: Economic growth and development that lead to job creation | B7: To halve unemployment and poverty a year before 2030 | E7: 9,773 | F7: 11,148 | G7: 21,200 | H7: 40,555 | I7: 40,555 | J7: 40,555 | K7: 45,939 | L7: 36,054 | M7: 36,531
A8: Promote basic quality services and infrastructure | B8: Building of new access roads and timeously maintaining of existing roads | E8: 72,601 | F8: 124,158 | G8: 143,978 | H8: 145,040 | I8: 145,040 | J8: 145,040 | K8: 141,553 | L8: 145,037 | M8: 152,245
A9: Promote basic quality services and infrastructure | B9: To ensure everyone has access to electricity and eradicate informal settlement | E9: 12,130 | H9: 0 | I9: 0 | J9: 0
A21: Allocations to other priorities | D21: 2
A22: ='A4-FinPerf RE'!A21 -> Total Revenue (excluding capital transfers and contributions) | D22: 1 | E22: =SUM(E4:E21) -> 703,987 | F22: 709,050 | G22: 733,992 | H22: 846,912 | I22: 858,756 | J22: 858,756 | K22: 904,725 | L22: 952,139 | M22: 1,002,127
A23: =head27a -> References
A24: ="1. Total revenue must reconcile to "&'Template names'!F103 -> 1. Total revenue must reconcile to Table A4 Budgeted Financial Performance (revenue and expenditure)
A25: 2. Balance of allocations not directly linked to an IDP strategic objective
A26: check op revenue balance | E26: =E22-'A4-FinPerf RE'!C59 -> 0 | F26: =F22-'A4-FinPerf RE'!D59 -> 0 | G26: =G22-'A4-FinPerf RE'!E59 -> 0 | H26: =H22-'A4-FinPerf RE'!F59 -> (0) | I26: =I22-'A4-FinPerf RE'!G59 -> 0 | J26: =J22-'A4-FinPerf RE'!H59 -> 0 | K26: =K22-'A4-FinPerf RE'!J59 -> (0) | L26: =L22-'A4-FinPerf RE'!K59 -> 0 | M26: =M22-'A4-FinPerf RE'!L59 -> 0

Sheet SA5
A1: =muni&" - "&TableA5 -> LIM343 Thulamela - Supporting Table SA5 Reconciliation of IDP strategic objectives and budget (operating expenditure)
A2: Strategic Objective | B2: Goal | C2: Goal Code | D2: =head27 -> Ref | E2: =head1b -> 2016/17 | F2: =head1A -> 2017/18 | G2: =Head1 -> 2018/19 | H2: =Head2 -> Current Year 2019/20 | K2: =Head3 -> 2020/21 Medium Term Revenue & Expenditure Framework
A3: R thousand | E3: =Head5 -> Audited Outcome | F3: =Head5 -> Audited Outcome | G3: =Head5 -> Audited Outcome | H3: =Head6 -> Original Budget | I3: =Head7 -> Adjusted Budget | J3: =Head8 -> Full Year Forecast | K3: =Head9 -> Budget Year 2020/21 | L3: =Head10 -> Budget Year +1 2021/22 | M3: =Head11 -> Budget Year +2 2022/23
A4: Promote public participation and accountability to the community | B4: To assist management in improving the effectiveness of risk management, corporate governance and internal control all the times in order for municipality to achieve clean Audit. To ensure 100% participation ofcommunities in all municipal programmes. To have clean audit | E4: 220,864 | F4: 196,203 | G4: 179,864 | H4: 276,782 | I4: 276,782 | J4: 276,782 | K4: 238,927 | L4: 247,262 | M4: 255,902
A5: Ensure compliance with pilicies,Act and regulations | B5: 100% compliance with the MFMA and the Municipal Budget and Reporting Regulation (MBRR) annually. To collection 40% of own revenue to ensure financial viability | E5: 166,240 | F5: 37,501 | G5: 36,501 | H5: 41,755 | I5: 41,755 | J5: 41,755 | K5: 72,779 | L5: 76,051 | M5: 78,099
